Workbook

Sheet Brazil
D2: 2001 | E2: 2002 | F2: 2003 | G2: 2004 | H2: 2005 | I2: 2006 | J2: 2007 | K2: 2008 | L2: 2009 | M2: 2010 | N2: 2011 | O2: 2012 | P2: 2013 | Q2: 2014 | R2: 2015 | S2: 2016 | T2: 2017 | U2: 2018 | V2: 2019 | W2: 2020 | X2: 2021 | Y2: 2022 | Z2: 2023 | AA2: 2024 | AB2: 2025F | AC2: 2026F | AD2: 2027F | AE2: 2028F
C3: World | D3: 2001-12-01 | E3: =EDATE(D3,12) -> 2002-12-01 | F3: 2003-12-01 | G3: 2004-12-01 | H3: 2005-12-01 | I3: 2006-12-01 | J3: 2007-12-01 | K3: 2008-12-01 | L3: 2009-12-01 | M3: 2010-12-01 | N3: 2011-12-01 | O3: 2012-12-01 | P3: 2013-12-01 | Q3: 2014-12-01 | R3: 2015-12-01 | S3: 2016-12-01 | T3: 2017-12-01 | U3: 2018-12-01 | V3: 2019-12-01 | W3: 2020-12-01 | X3: 2021-12-01 | Y3: 2022-12-01 | Z3: 2023-12-01 | AA3: 2024-12-01 | AB3: 2025-12-01 | AC3: 2026-12-01 | AD3: 2027-12-01 | AE3: 2028-12-01
C4: Economic Activity
C5: World – Real GDP growth* | D5: 0.02482 | E5: 0.02991 | F5: 0.04283 | G5: 0.05386 | H5: 0.04894 | I5: 0.05467 | J5: 0.05574 | K5: 0.03037 | L5: -0.0011 | M5: 0.05385 | N5: 0.04282 | O5: 0.03513 | P5: 0.03491 | Q5: 0.0358 | R5: 0.03451 | S5: 0.03268 | T5: 0.038 | U5: 0.036 | V5: 0.028 | W5: -0.028 | X5: 0.063 | Y5: 0.035 | Z5: 0.032 | AA5: 0.032 | AB5: 0.033 | AC5: 0.036 | AD5: 0.034 | AE5: 0.032
C6: USA – Real GDP growth | D6: 0.009555902384 | E6: 0.01700548813 | F6: 0.02795608283 | G6: 0.03848144489 | H6: 0.0348354024 | I6: 0.02783962972 | J6: 0.02003882408 | K6: 0.001139454971 | L6: -0.02576646903 | M6: 0.02695561224 | N6: 0.01564044837 | O6: 0.02289413807 | P6: 0.02117779256 | Q6: 0.02523551274 | R6: 0.02945508907 | S6: 0.01819719569 | T6: 0.02457461981 | U6: 0.02966535965 | V6: 0.02583948618 | W6: -0.02081513055 | X6: 0.06151987971 | Y6: 0.02524103212 | Z6: 0.029344217 | AA6: 0.02793119078 | AB6: 0.02166672375 | AC6: 0.02665978992 | AD6: 0.02175569174 | AE6: 0.02153779403
C7: Eurozone – Real GDP growth | D7: 0.02158450946 | E7: 0.009292770459 | F7: 0.007393868676 | G7: 0.02043775438 | H7: 0.01894855787 | I7: 0.03424021758 | J7: 0.02979723072 | K7: 0.00308190482 | L7: -0.04424562474 | M7: 0.01988600591 | N7: 0.01783266059 | O7: -0.009054653275 | P7: -0.001204330496 | Q7: 0.01457266894 | R7: 0.02006867013 | S7: 0.01757515432 | T7: 0.02766773832 | U7: 0.01751805082 | V7: 0.01640746229 | W7: -0.0616429435 | X7: 0.06351180186 | Y7: 0.03704173565 | Z7: 0.005484131411 | AA7: 0.008498334798 | AB7: 0.01466229624 | AC7: 0.01177780644 | AD7: 0.01205410808 | AE7: 0.012
C8: China – Real GDP growth | D8: 0.08368468789 | E8: 0.09185288233 | F8: 0.101147043 | G8: 0.1014321142 | H8: 0.1136402539 | I8: 0.1262411017 | J8: 0.1410822677 | K8: 0.09736780858 | L8: 0.09313387937 | M8: 0.1066074119 | N8: 0.09279953609 | O8: 0.07821024961 | P8: 0.07814929206 | Q8: 0.07447580667 | R8: 0.07184851062 | S8: 0.06868678172 | T8: 0.06895583775 | U8: 0.06866628413 | V8: 0.06157624036 | W8: 0.01976562504 | X8: 0.07735009105 | Y8: 0.03 | Z8: 0.05359561901 | AA8: 0.05042641055 | AB8: 0.05037840717 | AC8: 0.05016569892 | AD8: 0.04498526655 | AE8: 0.04498526655
D9: 0 | E9: 0 | F9: 0 | G9: 0 | H9: 0 | I9: 0 | J9: 0 | K9: 0 | L9: 0 | M9: 0 | N9: 0 | O9: 0 | P9: 0 | Q9: 0 | R9: 0 | S9: 0 | T9: 0 | U9: 0 | V9: 0 | W9: 0 | X9: 0 | Y9: 0 | Z9: 0 | AA9: 0 | AB9: 0 | AC9: 0 | AD9: 0 | AE9: 0
C10: Inflation
C11: USA – CPI | D11: 0.01603665521 | E11: 0.02480270575 | F11: 0.0203520352 | G11: 0.03342318059 | H11: 0.03338549817 | I11: 0.02523977789 | J11: 0.04108813392 | K11: -0.0002222800255 | L11: 0.02814123123 | M11: 0.01437793022 | N11: 0.03062066838 | O11: 0.0175950498 | P11: 0.01512838367 | Q11: 0.00653121392 | R11: 0.006387247515 | S11: 0.02050798912 | T11: 0.0212993072 | U11: 0.02002380904 | V11: 0.0231952747 | W11: 0.01320419132 | X11: 0.07159457345 | Y11: 0.06410831677 | Z11: 0.03322200209 | AA11: 0.02872366269 | AB11: 0.02653312469 | AC11: 0.02997753541 | AD11: 0.03180292995 | AE11: 0.02780794995
C12: USA – Core CPI | D12: 0.02782324059 | E12: 0.01963906582 | F12: 0.01093180635 | G12: 0.02265705458 | H12: 0.02114803625 | I12: 0.02613412229 | J12: 0.02435367612 | K12: 0.01762459656 | L12: 0.01823671776 | M12: 0.006618948665 | N12: 0.02276662634 | O12: 0.01899694378 | P12: 0.01740856619 | Q12: 0.01622419505 | R12: 0.02071507279 | S12: 0.02197123661 | T12: 0.01770166453 | U12: 0.02248529551 | V12: 0.02290598816 | W12: 0.01624313961 | X12: 0.05504159561 | Y12: 0.05684013449 | Z12: 0.03913639184 | AA12: 0.03213613 | AB12: 0.02648965654 | AC12: 0.03154531223 | AD12: 0.03465775992 | AE12: 0.03059806365
C13: Eurozone – CPI | D13: 0.020489095 | E13: 0.022776339 | F13: 0.019736148 | G13: 0.023597599 | H13: 0.022244692 | I13: 0.019188922 | J13: 0.030667702 | K13: 0.015819209 | L13: 0.009269559 | M13: 0.02213446 | N13: 0.027495732 | O13: 0.0222 | P13: 0.0085 | Q13: -0.001698132055 | R13: 0.002301380828 | S13: 0.01138065289 | T13: 0.01352285066 | U13: 0.016 | V13: 0.013 | W13: -0.003 | X13: 0.05 | Y13: 0.092 | Z13: 0.029 | AA13: 0.024 | AB13: 0.02 | AC13: 0.02 | AD13: 0.02 | AE13: 0.02
C14: Brazil
C15: Economic Activity
C16: Nominal GDP – BRL Bil. | D16: 1315.756 | E16: 1488.788 | F16: 1717.951 | G16: 1957.75 | H16: 2170.584 | I16: 2409.45 | J16: 2720.263 | K16: 3109.803 | L16: 3333.039 | M16: 3885.847 | N16: 4376.382 | O16: 4814.76 | P16: 5331.619 | Q16: 5778.953 | R16: 5995.787 | S16: 6269.327 | T16: 6585.479 | U16: 7004.141 | V16: 7389.131 | W16: 7609.597 | X16: 9012.142 | Y16: 10079.676 | Z16: 10943.344 | AA16: 11779.251 | AB16: 12708.18255 | AC16: 13335.45126 | AD16: 14100.33326 | AE16: 14956.20152
C17: Nominal GDP – USD Bil. | D17: 559.7098622 | E17: 509.5626952 | F17: 558.3090963 | G17: 669.0590607 | H17: 891.3714681 | I17: 1107.768673 | J17: 1396.999175 | K17: 1693.768991 | L17: 1667.050308 | M17: 2207.577504 | N17: 2612.424225 | O17: 2463.043833 | P17: 2468.363641 | Q17: 2454.759117 | R17: 1800.06815 | S17: 1798.090435 | T17: 2063.276198 | U17: 1915.863361 | V17: 1872.491162 | W17: 1474.592358 | X17: 1670.180708 | Y17: 1951.452698 | Z17: 2192.249474 | AA17: 2185.573849 | AB17: 2273.012378 | AC17: 2514.444032 | AD17: 2559.818444 | AE17: 2661.48767
C18: Real GDP growth | D18: 0.01389888653 | E18: 0.03053460503 | F18: 0.01140838373 | G18: 0.05759956637 | H18: 0.03202168316 | I18: 0.03961956023 | J18: 0.06069895103 | K18: 0.05094177083 | L18: -0.001258141298 | M18: 0.0752824912 | N18: 0.03974402662 | O18: 0.01921181494 | P18: 0.03004826946 | Q18: 0.00503934595 | R18: -0.03545755284 | S18: -0.0327591305 | T18: 0.01322868384 | U18: 0.01783672177 | V18: 0.01220761868 | W18: -0.0327675065 | X18: 0.04762598948 | Y18: 0.03016717901 | Z18: 0.03241651798 | AA18: 0.03419315468 | AB18: 0.02250036756 | AC18: 0.01850466275 | AD18: 0.01678398579 | AE18: 0.0157679206
C19: Unemployment Rate - year avg | D19: 0 | E19: 0 | F19: 0 | G19: 0 | H19: 0 | I19: 0 | J19: 0 | K19: 0 | L19: 0 | M19: 0 | N19: 0 | O19: 0.07395058178 | P19: 0.07198932489 | Q19: 0.06886364336 | R19: 0.08623491781 | S19: 0.1162186213 | T19: 0.1283235388 | U19: 0.123710624 | V19: 0.1198648758 | W19: 0.137458208 | X19: 0.1323742387 | Y19: 0.09268728384 | Z19: 0.07975696604 | AA19: 0.06829512481 | AB19: 0.05851109124 | AC19: 0.05564751147 | AD19: 0.05913791941 | AE19: 0.0620151014
C20: Unemployment Rate - year end | D20: 0 | E20: 0 | F20: 0 | G20: 0 | H20: 0 | I20: 0 | J20: 0 | K20: 0 | L20: 0 | M20: 0 | N20: 0 | O20: 0.07516016037 | P20: 0.06867389891 | Q20: 0.07206652394 | R20: 0.09709017489 | S20: 0.1279617364 | T20: 0.1255311219 | U20: 0.1233949177 | V20: 0.1162458465 | W20: 0.1469041534 | X20: 0.1160938878 | Y20: 0.08408737534 | Z20: 0.07844014473 | AA20: 0.06536561997 | AB20: 0.05393480632 | AC20: 0.05702603974 | AD20: 0.05999546633 | AE20: 0.06326603974
C21: Inflation
C22: IPCA | D22: 0.07673436414 | E22: 0.1253027336 | F22: 0.093005128 | G22: 0.07599495849 | H22: 0.05689226819 | I22: 0.03141516132 | J22: 0.04457658553 | K22: 0.05902724391 | L22: 0.04311650063 | M22: 0.05908688722 | N22: 0.06503352744 | O22: 0.05838594718 | P22: 0.05910683255 | Q22: 0.06407470796 | R22: 0.1067302813 | S22: 0.06287988213 | T22: 0.0294742132 | U22: 0.0374558117 | V22: 0.04306151617 | W22: 0.04517456886 | X22: 0.1006098274 | Y22: 0.05785092908 | Z22: 0.04621190005 | AA22: 0.04831196748 | AB22: 0.04264347581 | AC22: 0.03815735977 | AD22: 0.03917884717 | AE22: 0.04
C23: INPC | D23: 0.09441028789 | E23: 0.1473991913 | F23: 0.1038395787 | G23: 0.06132793795 | H23: 0.05046764681 | I23: 0.02813086463 | J23: 0.0515534145 | K23: 0.06480961192 | L23: 0.04113797473 | M23: 0.06465213882 | N23: 0.06080187764 | O23: 0.06197348975 | P23: 0.05562748481 | Q23: 0.06228373702 | R23: 0.1127607123 | S23: 0.06579949307 | T23: 0.02067284923 | U23: 0.03433724905 | V23: 0.04481526357 | W23: 0.05447315885 | X23: 0.1016024821 | Y23: 0.05932464431 | Z23: 0.0370693008 | AA23: 0.04776205699 | AB23: 0.03870605616 | AC23: 0.03639223787 | AD23: 0.03917884717 | AE23: 0.04
C24: IGP-M | D24: 0.1038467627 | E24: 0.2530682864 | F24: 0.08708332872 | G24: 0.1241276256 | H24: 0.0120874307 | I24: 0.03831573166 | J24: 0.07754382737 | K24: 0.09807505036 | L24: -0.01719249226 | M24: 0.1132314295 | N24: 0.05096813021 | O24: 0.07818244825 | P24: 0.05510610443 | Q24: 0.0368575515 | R24: 0.1053916695 | S24: 0.07172908253 | T24: -0.005209404449 | U24: 0.07536873403 | V24: 0.07303930646 | W24: 0.2313835113 | X24: 0.1778321234 | Y24: 0.05451285573 | Z24: -0.03175827972 | AA24: 0.06535658428 | AB24: -0.01060851118 | AC24: 0.03037023971 | AD24: 0.03736238678 | AE24: 0.04
C25: IPA-M (wholesale prices) | D25: 0.1188320976 | E25: 0.3364397324 | F25: 0.07647820341 | G25: 0.1509003846 | H25: -0.009562576903 | I25: 0.04399660632 | J25: 0.09192084433 | K25: 0.1084144037 | L25: -0.04424421849 | M25: 0.138984373 | N25: 0.04344526085 | O25: 0.0863339315 | P25: 0.05120331862 | Q25: 0.02127058824 | R25: 0.1119975776 | S25: 0.07638313364 | T25: -0.02547416904 | U25: 0.0942949815 | V25: 0.09076844332 | W25: 0.3162974152 | X25: 0.2056652314 | Y25: 0.05273529209 | Z25: -0.0559191344 | AA25: 0.07233372373 | AB25: -0.03335783125 | AC25: 0.02429365951 | AD25: 0.03917884717 | AE25: 0.04
C26: Interest Rates
C27: Selic – eop | D27: 0.19 | E27: 0.25 | F27: 0.165 | G27: 0.1775 | H27: 0.18 | I27: 0.1325 | J27: 0.1125 | K27: 0.1375 | L27: 0.0875 | M27: 0.1075 | N27: 0.11 | O27: 0.0725 | P27: 0.1 | Q27: 0.1175 | R27: 0.1425 | S27: 0.1375 | T27: 0.07 | U27: 0.065 | V27: 0.045 | W27: 0.02 | X27: 0.0925 | Y27: 0.1375 | Z27: 0.1175 | AA27: 0.1225 | AB27: 0.15 | AC27: 0.1225 | AD27: 0.1125 | AE27: 0.1025
C28: Selic – year avg | D28: 0.17625 | E28: 0.1947916667 | F28: 0.2308333333 | G28: 0.164375 | H28: 0.1914583333 | I28: 0.150625 | J28: 0.1197916667 | K28: 0.1254166667 | L28: 0.09916666667 | M28: 0.1 | N28: 0.1170833333 | O28: 0.08458333333 | P28: 0.084375 | Q28: 0.1102083333 | R28: 0.1358333333 | S28: 0.1416666667 | T28: 0.09916666667 | U28: 0.065625 | V28: 0.05958333333 | W28: 0.028125 | X28: 0.048125 | Y28: 0.12625 | Z28: 0.1325 | AA28: 0.1091666667 | AB28: 0.145625 | AC28: 0.135 | AD28: 0.1172916667 | AE28: 0.1045833333
C29: Real interest rate (Selic/IPCA) – eop | D29: 0.1051936667 | E29: 0.1108121954 | F29: 0.06586874128 | G29: 0.09433598244 | H29: 0.1164808709 | I29: 0.09800596547 | J29: 0.06502482959 | K29: 0.07409890212 | L29: 0.04254893806 | M29: 0.04571212557 | N29: 0.04222071081 | O29: 0.01333544994 | P29: 0.0386109939 | Q29: 0.05020821531 | R29: 0.03232017707 | S29: 0.07020559813 | T29: 0.03936551909 | U29: 0.02654974601 | V29: 0.0018584559 | W29: -0.02408647284 | X29: -0.007368485337 | Y29: 0.07529328446 | Z29: 0.06813925549 | AA29: 0.07076904091 | AB29: 0.1029657085 | AC29: 0.08124263575 | AD29: 0.07055681804 | AE29: 0.06009615385
C30: CDI - eop (annual basis) | D30: 0.1905 | E30: 0.2291 | F30: 0.1681 | G30: 0.1746 | H30: 0.1815 | I30: 0.131101207 | J30: 0.111099698 | K30: 0.136100086 | L30: 0.08609947542 | M30: 0.1060988368 | N30: 0.1085992538 | O30: 0.07109898453 | P30: 0.0978 | Q30: 0.1151 | R30: 0.1414 | S30: 0.1363 | T30: 0.0699 | U30: 0.064 | V30: 0.0459 | W30: 0.019 | X30: 0.0876 | Y30: 0.1365 | Z30: 0.1187 | AA30: 0.1177 | AB30: 0.149 | AC30: 0.121335519 | AD30: 0.1113483771 | AE30: 0.1013640388
C31: CDI - accumulated | D31: 0.1742285043 | E31: 0.1903773095 | F31: 0.2322412114 | G31: 0.1616969119 | H31: 0.1907261819 | I31: 0.1517987058 | J31: 0.1190552554 | K31: 0.1229830484 | L31: 0.1000496827 | M31: 0.09753863837 | N31: 0.1161063476 | O31: 0.08488122873 | P31: 0.08017215203 | Q31: 0.1076529578 | R31: 0.1333347811 | S31: 0.1405990346 | T31: 0.100463044 | U31: 0.06475717425 | V31: 0.05938122745 | W31: 0.02784709532 | X31: 0.04396766323 | Y31: 0.1242156862 | Z31: 0.1319829927 | AA31: 0.1083819319 | AB31: 0.1431353521 | AC31: 0.1348751103 | AD31: 0.1165555189 | AE31: 0.1040501096
C32: TJLP (Nominal Rate) – eop | D32: 0.1 | E32: 0.1 | F32: 0.11 | G32: 0.0975 | H32: 0.0975 | I32: 0.0685 | J32: 0.0625 | K32: 0.0625 | L32: 0.06 | M32: 0.06 | N32: 0.06 | O32: 0.055 | P32: 0.05 | Q32: 0.05 | R32: 0.07 | S32: 0.075 | T32: 0.07 | U32: 0.0698 | V32: 0.0557 | W32: 0.0455 | X32: 0.0532 | Y32: 0.072 | Z32: 0.0655 | AA32: 0.0743 | AB32: 0.0907 | AC32: 0.08266659168 | AD32: 0.07382727357 | AE32: 0.06984846618
C33: TLP (Real Rate) – eop | D33: - | E33: - | F33: - | G33: - | H33: - | I33: - | J33: - | K33: - | L33: - | M33: - | N33: - | O33: - | P33: - | Q33: - | R33: - | S33: - | T33: - | U33: 0.0298 | V33: 0.0168 | W33: 0.0183 | X33: 0.041 | Y33: 0.0523 | Z33: 0.0556 | AA33: 0.0666 | AB33: 0.0782 | AC33: 0.06813606924 | AD33: 0.06388929013 | AE33: 0.06131896208
C34: Public Finances
C35: Primary budget surplus – % GDP | D35: - | E35: - | F35: 0.032 | G35: 0.037 | H35: 0.037 | I35: 0.03150736532 | J35: 0.03237848049 | K35: 0.03330874748 | L35: 0.01943236723 | M35: 0.02617088108 | N35: 0.0294285659 | O35: 0.02183793012 | P35: 0.0171742487 | Q35: -0.005720790735 | R35: -0.01876114537 | S35: -0.02485781142 | T35: -0.01689220609 | U35: -0.01545456359 | V35: -0.008176222012 | W35: -0.09219633395 | X35: 0.00686149461 | Y35: 0.01233607563 | Z35: -0.02276488795 | AA35: -0.004036844108 | AB35: -0.004329730062 | AC35: -0.007628294569 | AD35: -0.008583294859 | AE35: -0.005546663871
C36: Nominal budget surplus – % GDP | D36: - | E36: - | F36: - | G36: - | H36: - | I36: -0.03569683951 | J36: -0.02737253366 | K36: -0.01991354025 | L36: -0.03187543501 | M36: -0.0241062552 | N36: -0.02466942409 | O36: -0.0226203591 | P36: -0.02955004275 | Q36: -0.0595118747 | R36: -0.1022442574 | S36: -0.0898031731 | T36: -0.07765698606 | U36: -0.06959341842 | V36: -0.05807903314 | W36: -0.133435421 | X36: -0.04257186643 | Y36: -0.04567932256 | Z36: -0.08840236151 | AA36: -0.08472318928 | AB36: -0.08361341099 | AC36: -0.08760307218 | AD36: -0.0815462102 | AE36: -0.09438889311
C37: Net Debt – % GDP | D37: - | E37: - | F37: 0.541 | G37: 0.502 | H37: 0.479 | I37: 0.4648582199 | J37: 0.4454577555 | K37: 0.3756631332 | L37: 0.4088491959 | M37: 0.3797935938 | N37: 0.3449165227 | O37: 0.3225367169 | P37: 0.3059058838 | Q37: 0.331113828 | R37: 0.3603674234 | S37: 0.4615954727 | T37: 0.5136972129 | U37: 0.5276646085 | V37: 0.546988378 | W37: 0.6137070281 | X37: 0.5511366138 | Y37: 0.5613292019 | Z37: 0.604278704 | AA37: 0.6130048901 | AB37: 0.6539948358 | AC37: 0.7123663242 | AD37: 0.7514038539 | AE37: 0.7987490078
C38: Gross Debt – % GDP | D38: - | E38: - | F38: - | G38: - | H38: - | I38: 0.5547510573 | J38: 0.5671701131 | K38: 0.5598064439 | L38: 0.5920793237 | M38: 0.5176533358 | N38: 0.5126617638 | O38: 0.5366718911 | P38: 0.515415056 | Q38: 0.5628093098 | R38: 0.6545249471 | S38: 0.6986346218 | T38: 0.7371792677 | U38: 0.7526950498 | V38: 0.7443506085 | W38: 0.8694072208 | X38: 0.7730598565 | Y38: 0.7167771805 | Z38: 0.7382816463 | AA38: 0.7627171366 | AB38: 0.7883046299 | AC38: 0.8340790538 | AD38: 0.8715987613 | AE38: 0.9161104369
C39: Exchange Rate
C40: BRL / USD – dec | D40: 2.3105 | E40: 3.54 | F40: 2.8915 | G40: 2.656 | H40: 2.3355 | I40: 2.1364 | J40: 1.78 | K40: 2.3145 | L40: 1.7445 | M40: 1.6613 | N40: 1.8668 | O40: 2.0516 | P40: 2.3621 | Q40: 2.6576 | R40: 3.9578 | S40: 3.2552 | T40: 3.3125 | U40: 3.8764 | V40: 4.031 | W40: 5.1926 | X40: 5.5699 | Y40: 5.2804 | Z40: 4.8572 | AA40: 6.1774 | AB40: 5.4749 | AC40: 5.4 | AD40: 5.6 | AE40: 5.65
C41: BRL / USD – year avg | D41: 2.350782233 | E41: 2.921697397 | F41: 3.077060738 | G41: 2.926124336 | H41: 2.435105988 | I41: 2.175047967 | J41: 1.94721876 | K41: 1.836025465 | L41: 1.999363176 | M41: 1.760231291 | N41: 1.675218733 | O41: 1.954800778 | P41: 2.159981176 | Q41: 2.354183333 | R41: 3.330866667 | S41: 3.486658333 | T41: 3.191758333 | U41: 3.655866667 | V41: 3.94615 | W41: 5.160475 | X41: 5.395908333 | Y41: 5.165216667 | Z41: 4.991833333 | AA41: 5.389546094 | AB41: 5.590898963 | AC41: 5.30353871 | AD41: 5.508333333 | AE41: 5.627083333
C42: External Sector
C43: Trade balance – USD bn | D43: 1.463274061 | E43: 11.87239455 | F43: 23.46958354 | G43: 31.3080357 | H43: 43.90561985 | I43: 45.05005434 | J43: 37.77443471 | K43: 21.05753655 | L43: 22.39406266 | M43: 17.09716998 | N43: 25.69655281 | O43: 14.78611209 | P43: -8.956630853 | Q43: -9.899781958 | R43: 13.67809599 | S43: 40.20477156 | T43: 56.03666435 | U43: 46.5675399 | V43: 35.19884007 | W43: 50.39341678 | X43: 61.40652828 | Y43: 61.52535127 | Z43: 98.83815359 | AA43: 74.55212911 | AB43: 68.29354771 | AC43: 74.43494112 | AD43: 73.66467683 | AE43: 83.74423868
C44: Exports – USD bn | D44: 58.03229424 | E44: 60.1471581 | F44: 72.77674669 | G44: 95.12167237 | H44: 118.5978354 | I44: 137.5811512 | J44: 159.8163838 | K44: 195.7646242 | L44: 151.7916742 | M44: 200.4341348 | N44: 253.6663095 | O44: 239.9525382 | P44: 232.5442556 | Q44: 220.9232368 | R44: 186.7823551 | S44: 179.5261292 | T44: 214.9881084 | U44: 231.8895234 | V44: 221.1268076 | W44: 209.1802417 | X44: 280.8145775 | Y44: 334.1360382 | Z44: 339.6727778 | AA44: 337.0362754 | AB44: 348.6764921 | AC44: 363.1213722 | AD44: 365.2553138 | AE44: 383.9861261
C45: Imports – USD bn | D45: 56.56902018 | E45: 48.27476355 | F45: 49.30716315 | G45: 63.81363667 | H45: 74.69221555 | I45: 92.53109687 | J45: 122.0419491 | K45: 174.7070876 | L45: 129.3976115 | M45: 183.3369648 | N45: 227.9697567 | O45: 225.1664261 | P45: 241.5008865 | Q45: 230.8230188 | R45: 173.1042591 | S45: 139.3213577 | T45: 158.951444 | U45: 185.3219835 | V45: 185.9279676 | W45: 158.7868249 | X45: 219.4080492 | Y45: 272.6106869 | Z45: 240.8346242 | AA45: 262.4841463 | AB45: 280.3829444 | AC45: 288.6864311 | AD45: 291.5906369 | AE45: 300.2418874
C46: Current account result – % GDP | D46: -0.04448127768 | E46: -0.01851412073 | F46: 0.00392012551 | G46: 0.01338529501 | H46: 0.01309298528 | I46: 0.009731458991 | J46: -0.001971417604 | K46: -0.02102695608 | L46: -0.01753437447 | M46: -0.03924323514 | N46: -0.03196664042 | O46: -0.03761977997 | P46: -0.03580539013 | Q46: -0.04501025374 | R46: -0.03530231255 | S46: -0.01695919607 | T46: -0.01224495067 | U46: -0.02808576302 | V46: -0.03415181075 | W46: -0.01641678508 | X46: -0.02358438936 | Y46: -0.02150064653 | Z46: -0.01235661268 | AA46: -0.03028544669 | AB46: -0.03017151807 | AC46: -0.02779938591 | AD46: -0.02656438396 | AE46: -0.02368305701
C47: Direct Investment in the country – % GDP | D47: 0.04149622499 | E47: 0.03255065638 | F47: 0.01813155784 | G47: 0.02714465961 | H47: 0.01734403911 | I47: 0.0175290077 | J47: 0.03191089392 | K47: 0.02994292785 | L47: 0.01888421216 | M47: 0.03732142239 | N47: 0.03920773175 | O47: 0.03758292365 | P47: 0.03046999554 | Q47: 0.03573221609 | R47: 0.03596427917 | S47: 0.04131862689 | T47: 0.03338646148 | U47: 0.04080867228 | V47: 0.03694245033 | W47: 0.02595301413 | X47: 0.02780567594 | Y47: 0.03968965864 | Z47: 0.0286237333 | AA47: 0.0338999234 | AB47: 0.03708734753 | AC47: 0.03642066325 | AD47: 0.04059924941 | AE47: 0.03986018973

Sheet Brazil_Quarterly
C1: GDP NSA | G1: GDP SA | H1: Selic | J1: BRL/USD | L1: BRL/EUR | N1: BRL/GBP | P1: IPCA | S1: IGP-M | V1: IPA | Y1: US Inflation | AB1: Nominal GDP (BRL - '000) | AD1: Nominal GDP (BRL - '000): Personal Consumption | AF1: TJLP (Nominal Rate) | AG1: TLP (Real Rate)
C2: Index | D2: Ytd | E2: 12M | F2: YoY | G2: QoQ | H2: eop | I2: Avg | J2: eop | K2: Avg | L2: eop | M2: Avg | N2: eop | O2: Avg | P2: Index | Q2: QoQ | R2: YoY | S2: Index | T2: QoQ | U2: YoY | V2: Index | W2: QoQ | X2: YoY | Y2: Index | Z2: CPI QoQ | AA2: YoY | AB2: Quarterly | AC2: Annual | AD2: Quarterly | AE2: Annual | AF2: Annual | AG2: Annual
A3: 2003-03-01 | B3: 2003 - I | C3: 113.5764 | D3: 0.02236070381 | E3: 0.03238486622 | F3: 0.02236070381 | G3: -0.004358885534 | H3: 0.265 | I3: 0.2616666667 | J3: 3.3525 | K3: 3.495336163 | L3: 3.65925375 | M3: 3.785449064 | N3: 5.30600175 | O3: 5.594169017 | P3: 2144.49 | Q3: 0.05133396739 | R3: 0.1657307799 | S3: 287.855 | T3: 0.06271712686 | U3: 0.3248356929 | V3: 316.763 | W3: 0.07069146761 | X3: 0.4321697102 | Y3: 183.9 | Z3: 0.01 | AA3: 0.042 | AB3: 397242 | AC3: 1543733 | AD3: 257432 | AE3: 963055 | AF3: 11 | AG3: -
A4: =EDATE(A3,3) -> 2003-06-01 | B4: 2003 - II | C4: 116.3134 | D4: 0.01744470651 | E4: 0.03003223297 | F4: 0.01280387577 | G4: -0.008243405614 | H4: 0.26 | I4: 0.2633333333 | J4: 2.844 | K4: 2.981332973 | L4: 3.2740128 | M4: 3.426545363 | N4: 4.7056824 | O4: 4.859075856 | P4: 2175.23 | Q4: 0.01433441051 | R4: 0.1657056194 | S4: 286.843 | T4: -0.003515658926 | U4: 0.2823352169 | V4: 310.47 | W4: -0.01986658795 | X4: 0.3540376463 | Y4: 183.1 | Z4: -0.002 | AA4: 0.007 | AB4: 418987 | AC4: 1595357 | AD4: 260277 | AE4: 997536 | AF4: 12 | AG4: -
A5: 2003-09-01 | B5: 2003 - III | C5: 120.2491 | D5: 0.01443304993 | E5: 0.02197947408 | F5: 0.008676420551 | G5: 0.009213459194 | H5: 0.2 | I5: 0.2216666667 | J5: 2.9 | K5: 2.933911064 | L5: 3.38053 | M5: 3.312678982 | N5: 4.81922 | O5: 4.743449611 | P5: 2204.05 | Q5: 0.01324917365 | R5: 0.1514329896 | S5: 290.127 | T5: 0.01144877163 | U5: 0.2142100836 | V5: 313.511 | W5: 0.009794827197 | X5: 0.2477801437 | Y5: 185.1 | Z5: 0.007 | AA5: 0.03 | AB5: 439350 | AC5: 1654912 | AD5: 267445 | AE5: 1031326 | AF5: 12 | AG5: -
A6: 2003-12-01 | B6: 2003 - IV | C6: 119.9445 | D6: 0.01146749064 | E6: 0.01146749064 | F6: 0.009172276056 | G6: 0.01033176741 | H6: 0.165 | I6: 0.1766666667 | J6: 2.8915 | K6: 2.897662754 | L6: 3.64184425 | M6: 3.494967636 | N6: 5.1636407 | O6: 5.026189224 | P6: 2229.49 | Q6: 0.01154238788 | R6: 0.093005128 | S6: 294.455 | T6: 0.01491760505 | U6: 0.08708332872 | V6: 318.475 | W6: 0.01583357522 | X6: 0.07647820341 | Y6: 185.5 | Z6: 0.004 | AA6: 0.015 | AB6: 462372 | AC6: 1717951 | AD6: 277306 | AE6: 1062460 | AF6: 11 | AG6: -
A7: 2004-03-01 | B7: 2004 - I | C7: 117.981 | D7: 0.03878094393 | E7: 0.01157218218 | F7: 0.03878094393 | G7: 0.01374401121 | H7: 0.1625 | I7: 0.1641666667 | J7: 2.8953 | K7: 2.895794921 | L7: 3.56585148 | M7: 3.599183507 | N7: 5.34530286 | O7: 5.346120057 | P7: 2270.75 | Q7: 0.01850647457 | R7: 0.05887646946 | S7: 302.484 | T7: 0.02726732438 | U7: 0.05082072571 | V7: 328.441 | W7: 0.03129288013 | X7: 0.0368666795 | Y7: 187.1 | Z7: 0.008625336927 | AA7: 0.01740076128 | AB7: 444783 | AC7: 1765492 | AD7: 274159 | AE7: 1079187 | AF7: 10 | AG7: -
A8: 2004-06-01 | B8: 2004 - II | C8: 123.6507 | D8: 0.0510762113 | E8: 0.02425705795 | F8: 0.06308215562 | G8: 0.02799969204 | H8: 0.16 | I8: 0.16 | J8: 3.085 | K8: 3.046414502 | L8: 3.7637 | M8: 3.696620904 | N8: 5.615934 | O8: 5.515533456 | P8: 2307.03 | Q8: 0.01597710008 | R8: 0.06059129379 | S8: 314.419 | T8: 0.03945663242 | U8: 0.09613621389 | V8: 344.816 | W8: 0.04985674748 | X8: 0.1106258254 | Y8: 188.9 | Z8: 0.009620523784 | AA8: 0.03167667941 | AB8: 481795 | AC8: 1828300 | AD8: 284833 | AE8: 1103743 | AF8: 9.75 | AG8: -
A9: 2004-09-01 | B9: 2004 - III | C9: 128.136 | D9: 0.05606003789 | E9: 0.03982235106 | F9: 0.06558801687 | G9: 0.01244550257 | H9: 0.1625 | I9: 0.1608333333 | J9: 2.8608 | K9: 2.976710606 | L9: 3.55769088 | M9: 3.635357439 | N9: 5.1837696 | O9: 5.392112816 | P9: 2351.82 | Q9: 0.01941457198 | R9: 0.06704475851 | S9: 324.651 | T9: 0.03254256263 | U9: 0.1189961637 | V9: 358.427 | W9: 0.0394732263 | X9: 0.1432677003 | Y9: 189.8 | Z9: 0.004764425622 | AA9: 0.02539168017 | AB9: 505252 | AC9: 1894202 | AD9: 301881 | AE9: 1138179 | AF9: 9.75 | AG9: -
A10: 2004-12-01 | B10: 2004 - IV | C10: 127.3923 | D10: 0.05759956637 | E10: 0.05759956637 | F10: 0.06209371834 | G10: 0.007547087 | H10: 0.1775 | I10: 0.1725 | J10: 2.656 | K10: 2.785577317 | L10: 3.5999424 | M10: 3.679840488 | N10: 5.0947392 | O10: 5.2600985 | P10: 2398.92 | Q10: 0.02002704289 | R10: 0.07599495849 | S10: 331.005 | T10: 0.01957178632 | U10: 0.1241276256 | V10: 366.533 | W10: 0.02261548377 | X10: 0.1509003846 | Y10: 191.7 | Z10: 0.01001053741 | AA10: 0.03342318059 | AB10: 525920 | AC10: 1957750 | AD10: 317821 | AE10: 1178694 | AF10: 9.75 | AG10: -
A11: 2005-03-01 | B11: 2005 - I | C11: 122.9177 | D11: 0.04184317814 | E11: 0.05818629765 | F11: 0.04184317814 | G11: 0.008737702854 | H11: 0.1925 | I11: 0.1875 | J11: 2.679 | K11: 2.667518772 | L11: 3.4730556 | M11: 3.488314298 | N11: 5.0646495 | O11: 5.063395215 | P11: 2441.87 | Q11: 0.01790389008 | R11: 0.07535836177 | S11: 336.123 | T11: 0.01546200208 | U11: 0.1112091879 | V11: 371.46 | W11: 0.01344217301 | X11: 0.1309793844 | Y11: 193.1 | Z11: 0.007303077726 | AA11: 0.03206841261 | AB11: 499710 | AC11: 2012677 | AD11: 308544 | AE11: 1213079 | AF11: 9.75 | AG11: -
A12: 2005-06-01 | B12: 2005 - II | C12: 129.1841 | D12: 0.04333082125 | E12: 0.05355634086 | F12: 0.04475025212 | G12: 0.01108211921 | H12: 0.1975 | I12: 0.1966666667 | J12: 2.3325 | K12: 2.478630952 | L12: 2.824191 | M12: 3.080525169 | N12: 4.17867375 | O12: 4.558532806 | P12: 2474.68 | Q12: 0.01343642372 | R12: 0.07266918939 | S12: 336.801 | T12: 0.002017118733 | U12: 0.07118526552 | V12: 368.376 | W12: -0.008302374414 | X12: 0.06832629576 | Y12: 193.7 | Z12: 0.003107198343 | AA12: 0.02541026998 | AB12: 535557 | AC12: 2066439 | AD12: 321752 | AE12: 1249998 | AF12: 9.75 | AG12: -
A13: 2005-09-01 | B13: 2005 - III | C13: 130.8461 | D13: 0.03564454115 | E13: 0.04212269982 | F13: 0.02115018418 | G13: -0.006072910516 | H13: 0.195 | I13: 0.1966666667 | J13: 2.2275 | K13: 2.343132527 | L13: 2.6787915 | M13: 2.850420719 | N13: 3.92997825 | O13: 4.160075593 | P13: 2493.79 | Q13: 0.007722210548 | R13: 0.06036601441 | S13: 331.69 | T13: -0.01517513309 | U13: 0.0216817444 | V13: 359.967 | W13: -0.02282722001 | X13: 0.00429655132 | Y13: 198.8 | Z13: 0.02632937532 | AA13: 0.04741833509 | AB13: 552859 | AC13: 2114046 | AD13: 332896 | AE13: 1281013 | AF13: 9.75 | AG13: -
A14: 2005-12-01 | B14: 2005 - IV | C14: 130.132 | D14: 0.03202168316 | E14: 0.03202168316 | F14: 0.02150600939 | G14: 0.01280407397 | H14: 0.18 | I14: 0.185 | J14: 2.3355 | K14: 2.251141703 | L14: 2.76733395 | M14: 2.673530924 | N14: 4.0240665 | O14: 3.918712438 | P14: 2535.4 | Q14: 0.01668544665 | R14: 0.05689226819 | S14: 335.006 | T14: 0.009997286623 | U14: 0.0120874307 | V14: 363.028 | W14: 0.008503557271 | X14: -0.009562576903 | Y14: 198.1 | Z14: -0.003521126761 | AA14: 0.03338549817 | AB14: 582458 | AC14: 2170584 | AD14: 350104 | AE14: 1313296 | AF14: 9.75 | AG14: -
A15: 2006-03-01 | B15: 2006 - I | C15: 128.1774 | D15: 0.04279041993 | E15: 0.03235014291 | F15: 0.04279041993 | G15: 0.0158075766 | H15: 0.165 | I15: 0.17 | J15: 2.164 | K15: 2.193146765 | L15: 2.6223352 | M15: 2.646031573 | N15: 3.7593008 | O15: 3.852700923 | P15: 2571.83 | Q15: 0.01436854145 | R15: 0.05322150647 | S15: 337.339 | T15: 0.006964054375 | U15: 0.003617723274 | V15: 365.058 | W15: 0.005591855174 | X15: -0.01723469553 | Y15: 199.7 | Z15: 0.008076728925 | AA15: 0.03417918177 | AB15: 554270 | AC15: 2225144 | AD15: 345002 | AE15: 1349754 | AF15: 9 | AG15: -
A16: 2006-06-01 | B16: 2006 - II | C16: 132.1337 | D16: 0.03256343271 | E16: 0.02690758487 | F16: 0.02283253125 | G16: 0.003609886869 | H16: 0.1525 | I16: 0.1541666667 | J16: 2.165 | K16: 2.184373597 | L16: 2.7692515 | M16: 2.784056962 | N16: 4.0015695 | O16: 4.036722407 | P16: 2574.39 | Q16: 0.0009954001625 | R16: 0.04029207817 | S16: 339.712 | T16: 0.007034466812 | U16: 0.008643085977 | V16: 367.852 | W16: 0.007653578335 | X16: -0.001422459661 | Y16: 201.8 | Z16: 0.01051577366 | AA16: 0.04181724316 | AB16: 581977 | AC16: 2271564 | AD16: 355817 | AE16: 1383819 | AF16: 8.15 | AG16: -
A17: 2006-09-01 | B17: 2006 - III | C17: 136.7247 | D17: 0.03678803305 | E17: 0.03297329899 | F17: 0.04492759051 | G17: 0.01661068808 | H17: 0.1425 | I17: 0.1441666667 | J17: 2.169 | K17: 2.171362112 | L17: 2.7489906 | M17: 2.768776207 | N17: 4.0605849 | O17: 4.085417813 | P17: 2585.99 | Q17: 0.004505921791 | R17: 0.03697183805 | S17: 342.561 | T17: 0.008386515637 | U17: 0.03277457867 | V17: 371.698 | W17: 0.0104552918 | X17: 0.03258909845 | Y17: 202.8 | Z17: 0.004955401388 | AA17: 0.02012072435 | AB17: 617848 | AC17: 2336553 | AD17: 368734 | AE17: 1419657 | AF17: 7.5 | AG17: -
A18: 2006-12-01 | B18: 2006 - IV | C18: 136.3721 | D18: 0.03961956023 | E18: 0.03961956023 | F18: 0.04795207943 | G18: 0.01167508815 | H18: 0.1325 | I18: 0.1341666667 | J18: 2.1364 | K18: 2.151309394 | L18: 2.81940708 | M18: 2.811115985 | N18: 4.18478032 | O18: 4.182217172 | P18: 2615.05 | Q18: 0.01123747578 | R18: 0.03141516132 | S18: 347.842 | T18: 0.01541623244 | U18: 0.03831573166 | V18: 379 | W18: 0.0196449806 | X18: 0.04399660632 | Y18: 203.1 | Z18: 0.001479289941 | AA18: 0.02523977789 | AB18: 655355 | AC18: 2409450 | AD18: 386663 | AE18: 1456216 | AF18: 6.85 | AG18: -
A19: 2007-03-01 | B19: 2007 - I | C19: 134.8359 | D19: 0.05194753521 | E19: 0.04191614918 | F19: 0.05194753521 | G19: 0.01839212445 | H19: 0.1275 | I19: 0.1291666667 | J19: 2.0594 | K19: 2.107136124 | L19: 2.75012276 | M19: 2.782473252 | N19: 4.05248732 | O19: 4.142067718 | P19: 2647.88 | Q19: 0.01255425326 | R19: 0.02957038373 | S19: 351.717 | T19: 0.01114011534 | U19: 0.04262181367 | V19: 382.52 | W19: 0.009287598945 | X19: 0.04783349495 | Y19: 205.288 | Z19: 0.01077301822 | AA19: 0.02798197296 | AB19: 631423 | AC19: 2486603 | AD19: 384999 | AE19: 1496213 | AF19: 6.5 | AG19: -
A20: 2007-06-01 | B20: 2007 - II | C20: 140.7717 | D20: 0.05876238086 | E20: 0.05259115286 | F20: 0.06537317883 | G20: 0.01725604206 | H20: 0.12 | I20: 0.1233333333 | J20: 1.929 | K20: 1.981751219 | L20: 2.6120589 | M20: 2.684744435 | N20: 3.8747823 | O20: 3.955575434 | P20: 2669.38 | Q20: 0.00811970331 | R20: 0.03689806129 | S20: 352.936 | T20: 0.00346585465 | U20: 0.03892709118 | V20: 381.652 | W20: -0.002269162397 | X20: 0.03751508759 | Y20: 207.234 | Z20: 0.009479365574 | AA20: 0.02692765114 | AB20: 670655 | AC20: 2575281 | AD20: 400751 | AE20: 1541147 | AF20: 6.5 | AG20: -
A21: 2007-09-01 | B21: 2007 - III | C21: 144.7508 | D21: 0.05874180615 | E21: 0.05607834925 | F21: 0.05870263383 | G21: 0.01031538967 | H21: 0.1125 | I21: 0.1141666667 | J21: 1.8336 | K21: 1.914707132 | L21: 2.61599712 | M21: 2.653847908 | N21: 3.75392928 | O21: 3.890493421 | P21: 2693.21 | Q21: 0.008927166608 | R21: 0.04146187727 | S21: 361.997 | T21: 0.02567320987 | U21: 0.05673734021 | V21: 394.796 | W21: 0.0344397514 | X21: 0.06214184634 | Y21: 208.547 | Z21: 0.006335832923 | AA21: 0.0283382643 | AB21: 691846 | AC21: 2649279 | AD21: 410354 | AE21: 1582767 | AF21: 6.25 | AG21: -
A22: 2007-12-01 | B22: 2007 - IV | C22: 145.4268 | D22: 0.06069895103 | E22: 0.06069895103 | F22: 0.06639701229 | G22: 0.01492171731 | H22: 0.1125 | I22: 0.1125 | J22: 1.78 | K22: 1.785280563 | L22: 2.596842 | M22: 2.601094271 | N22: 3.5333 | O22: 3.642626951 | P22: 2731.62 | Q22: 0.01426179169 | R22: 0.04457658553 | S22: 374.815 | T22: 0.03540913322 | U22: 0.07754382737 | V22: 413.838 | W22: 0.04823250489 | X22: 0.09192084433 | Y22: 211.445 | Z22: 0.01389614811 | AA22: 0.04108813392 | AB22: 726339 | AC22: 2720263 | AD22: 432652 | AE22: 1628756 | AF22: 6.25 | AG22: -
A23: 2008-03-01 | B23: 2008 - I | C23: 143.1382 | D23: 0.06157336436 | E23: 0.06299429107 | F23: 0.06157336436 | G23: 0.01257593071 | H23: 0.1125 | I23: 0.1125 | J23: 1.7519 | K23: 1.737234199 | L23: 2.76589972 | M23: 2.653798963 | N23: 3.47524403 | O23: 3.451305276 | P23: 2773.08 | Q23: 0.01517780658 | R23: 0.04728310951 | S23: 383.731 | T23: 0.02378773528 | U23: 0.09102204329 | V23: 425.692 | W23: 0.02864405879 | X23: 0.1128620726 | Y23: 213.448 | Z23: 0.009472912578 | AA23: 0.0397490355 | AB23: 712055 | AC23: 2800895 | AD23: 433753 | AE23: 1677510 | AF23: 6.25 | AG23: -
A24: 2008-06-01 | B24: 2008 - II | C24: 149.6911 | D24: 0.06248630299 | E24: 0.06251544547 | F24: 0.06336074651 | G24: 0.02049988973 | H24: 0.1225 | I24: 0.1191666667 | J24: 1.6037 | K24: 1.654471573 | L24: 2.52662935 | M24: 2.58820018 | N24: 3.19505151 | O24: 3.287710761 | P24: 2831.16 | Q24: 0.02094422087 | R24: 0.06060583356 | S24: 400.382 | T24: 0.04339237643 | U24: 0.134432305 | V24: 446.997 | W24: 0.05004792197 | X24: 0.1712161865 | Y24: 217.463 | Z24: 0.01881020202 | AA24: 0.04935966106 | AB24: 769525 | AC24: 2899765 | AD24: 456473 | AE24: 1733232 | AF24: 6.25 | AG24: -
A25: 2008-09-01 | B25: 2008 - III | C25: 154.8556 | D25: 0.06500762207 | E25: 0.06534795561 | F25: 0.06980824976 | G25: 0.01616244073 | H25: 0.1375 | I25: 0.1325 | J25: 1.9046 | K25: 1.667783255 | L25: 2.68396232 | M25: 2.466540248 | N25: 3.3911403 | O25: 3.105245642 | P25: 2861.55 | Q25: 0.01073411605 | R25: 0.0625053375 | S25: 406.557 | T25: 0.01542277125 | U25: 0.1230949428 | V25: 453.642 | W25: 0.01486587158 | X25: 0.1490541951 | Y25: 218.877 | Z25: 0.006502255556 | AA25: 0.04953319875 | AB25: 812603 | AC25: 3020522 | AD25: 480468 | AE25: 1803346 | AF25: 6.25 | AG25: -
A26: 2008-12-01 | B26: 2008 - IV | C26: 146.9224 | D26: 0.05094177083 | E26: 0.05094177083 | F26: 0.01028421171 | G26: -0.037718438 | H26: 0.1375 | I26: 0.1375 | J26: 2.3145 | K26: 2.284612833 | L26: 3.23358795 | M26: 2.999544342 | N26: 3.37754985 | O26: 3.506576083 | P26: 2892.86 | Q26: 0.01094162255 | R26: 0.05902724391 | S26: 411.575 | T26: 0.01234267274 | U26: 0.09807505036 | V26: 458.704 | W26: 0.01115857879 | X26: 0.1084144037 | Y26: 211.398 | Z26: -0.03416987623 | AA26: -0.0002222800255 | AB26: 815620 | AC26: 3109803 | AD26: 486816 | AE26: 1857510 | AF26: 6.25 | AG26: -
A27: 2009-03-01 | B27: 2009 - I | C27: 139.6656 | D27: -0.02426046995 | E27: 0.02969442811 | F27: -0.02426046995 | G27: -0.01430856974 | H27: 0.1125 | I27: 0.1225 | J27: 2.3228 | K27: 2.315815382 | L27: 3.07771 | M27: 2.989872046 | N27: 3.32694644 | O27: 3.333307468 | P27: 2928.57 | Q27: 0.01234418534 | R27: 0.05607122766 | S27: 407.808 | T27: -0.009152645326 | U27: 0.06274447464 | V27: 449.612 | W27: -0.01982106108 | X27: 0.056190861 | Y27: 212.495 | Z27: 0.005189263853 | AA27: -0.004464787677 | AB27: 756127 | AC27: 3153875 | AD27: 474264 | AE27: 1898021 | AF27: 6.25 | AG27: -
A28: 2009-06-01 | B28: 2009 - II | C28: 146.3935 | D28: -0.02311995418 | E28: 0.008284979131 | F28: -0.02202936581 | G28: 0.01844384216 | H28: 0.0925 | I28: 0.09916666667 | J28: 1.9518 | K28: 2.076248773 | L28: 2.73896094 | M28: 2.866676682 | N28: 3.21227244 | O28: 3.283102977 | P28: 2967.1 | Q28: 0.01315659178 | R28: 0.04801565436 | S28: 406.486 | T28: -0.003241721594 | U28: 0.0152454406 | V28: 444.299 | W28: -0.01181685542 | X28: -0.006035834692 | Y28: 214.79 | Z28: 0.01080025412 | AA28: -0.01229174618 | AB28: 803577 | AC28: 3187927 | AD28: 504220 | AE28: 1945768 | AF28: 6.25 | AG28: -
A29: 2009-09-01 | B29: 2009 - III | C29: 153.0551 | D29: -0.01914449203 | E29: -0.01192878171 | F29: -0.01162696086 | G29: 0.02332293111 | H29: 0.0875 | I29: 0.0875 | J29: 1.767 | K29: 1.865447161 | L29: 2.586888 | M29: 2.688171541 | N29: 2.8240194 | O29: 3.045839943 | P29: 2985.83 | Q29: 0.006312561087 | R29: 0.04343100767 | S29: 404.945 | T29: -0.003791028473 | U29: -0.003965003677 | V29: 440.137 | W29: -0.009367565536 | X29: -0.02977017119 | Y29: 215.861 | Z29: 0.004986265655 | AA29: -0.01377942863 | AB29: 852843 | AC29: 3228167 | AD29: 534397 | AE29: 1999697 | AF29: 6 | AG29: -
A30: 2009-12-01 | B30: 2009 - IV | C30: 154.745 | D30: -0.001258141298 | E30: -0.001258141298 | F30: 0.05324307253 | G30: 0.02579792272 | H30: 0.0875 | I30: 0.0875 | J30: 1.7445 | K30: 1.739941389 | L30: 2.49829845 | M30: 2.554523949 | N30: 2.8208565 | O30: 2.845558146 | P30: 3017.59 | Q30: 0.01063690833 | R30: 0.04311650063 | S30: 404.499 | T30: -0.001101384139 | U30: -0.01719249226 | V30: 438.409 | W30: -0.003926050298 | X30: -0.04424421849 | Y30: 217.347 | Z30: 0.006884059649 | AA30: 0.02814123123 | AB30: 920492 | AC30: 3333039 | AD30: 552152 | AE30: 2065033 | AF30: 6 | AG30: -
A31: 2010-03-01 | B31: 2010 - I | C31: 152.5276 | D31: 0.09209139545 | E31: 0.02636708689 | F31: 0.09209139545 | G31: 0.02066433656 | H31: 0.0875 | I31: 0.0875 | J31: 1.7813 | K31: 1.802545217 | L31: 2.4065363 | M31: 2.463718803 | N31: 2.70472592 | O31: 2.788417282 | P31: 3079.86 | Q31: 0.02063567284 | R31: 0.0516600252 | S31: 415.734 | T31: 0.02777509957 | U31: 0.01943561676 | V31: 451.673 | W31: 0.03025485334 | X31: 0.004583952386 | Y31: 217.353 | Z31: 2.760562603e-05 | AA31: 0.02286171439 | AB31: 886397 | AC31: 3463309 | AD31: 546392 | AE31: 2137161 | AF31: 6 | AG31: -
A32: 2010-06-01 | B32: 2010 - II | C32: 158.8629 | D32: 0.08855302978 | E32: 0.05333705545 | F32: 0.08517727905 | G32: 0.01275112257 | H32: 0.1025 | I32: 0.0975 | J32: 1.8047 | K32: 1.793186905 | L32: 2.20859186 | M32: 2.259714364 | N32: 2.69712415 | O32: 2.670473711 | P32: 3110.74 | Q32: 0.01002642977 | R32: 0.04841090627 | S32: 427.489 | T32: 0.02827529141 | U32: 0.0516696762 | V32: 466.708 | W32: 0.03328735612 | X32: 0.05043675543 | Y32: 217.199 | Z32: -0.0007085248421 | AA32: 0.01121560594 | AB32: 944145 | AC32: 3603877 | AD32: 568567 | AE32: 2201508 | AF32: 6 | AG32: -
A33: 2010-09-01 | B33: 2010 - III | C33: 163.6269 | D33: 0.08176278517 | E33: 0.07461274603 | F33: 0.06907185713 | G33: 0.008749829054 | H33: 0.1075 | I33: 0.1075 | J33: 1.6873 | K33: 1.748733478 | L33: 2.30046482 | M33: 2.294688069 | N33: 2.65176068 | O33: 2.725284543 | P33: 3126.29 | Q33: 0.004998810572 | R33: 0.04704219597 | S33: 436.423 | T33: 0.02089878336 | U33: 0.07773401326 | V33: 480.998 | W33: 0.03061871663 | X33: 0.09283700302 | Y33: 218.275 | Z33: 0.004953982293 | AA33: 0.01118312247 | AB33: 997935 | AC33: 3748969 | AD33: 596732 | AE33: 2263843 | AF33: 6 | AG33: -
A34: 2010-12-01 | B34: 2010 - IV | C34: 163.549 | D34: 0.0752824912 | E34: 0.0752824912 | F34: 0.05689359915 | G34: 0.01433943697 | H34: 0.1075 | I34: 0.1075 | J34: 1.6613 | K34: 1.696459565 | L34: 2.22348392 | M34: 2.279702364 | N34: 2.59362156 | O34: 2.669774966 | P34: 3195.89 | Q34: 0.02226280991 | R34: 0.05908688722 | S34: 450.301 | T34: 0.03179942395 | U34: 0.1132314295 | V34: 499.341 | W34: 0.0381352937 | X34: 0.138984373 | Y34: 220.472 | Z34: 0.01006528462 | AA34: 0.01437793022 | AB34: 1057370 | AC34: 3885847 | AD34: 628475 | AE34: 2340166 | AF34: 6 | AG34: -
A35: 2011-03-01 | B35: 2011 - I | C35: 160.4516 | D35: 0.05195125341 | E35: 0.06554773428 | F35: 0.05195125341 | G35: 0.01343626256 | H35: 0.1175 | I35: 0.1141666667 | J35: 1.6318 | K35: 1.666837381 | L35: 2.31030244 | M35: 2.314570387 | N35: 2.61544904 | O35: 2.683552622 | P35: 3273.86 | Q35: 0.02439695985 | R35: 0.06298987616 | S35: 461.249 | T35: 0.02431262644 | U35: 0.1094810624 | V35: 512.468 | W35: 0.02628864844 | X35: 0.1345995886 | Y35: 223.046 | Z35: 0.01167495192 | AA35: 0.0261924151 | AB35: 1016531 | AC35: 4015981 | AD35: 623585 | AE35: 2417359 | AF35: 6 | AG35: -
A36: 2011-06-01 | B36: 2011 - II | C36: 166.3302 | D36: 0.04942764792 | E36: 0.05614926971 | F36: 0.0470046814 | G36: 0.0101073582 | H36: 0.1225 | I36: 0.1208333333 | J36: 1.5633 | K36: 1.594702624 | L36: 2.26709766 | M36: 2.323215939 | N36: 2.50956549 | O36: 2.615737557 | P36: 3319.55 | Q36: 0.01395600301 | R36: 0.06712550711 | S36: 464.463 | T36: 0.006968036787 | U36: 0.08649111439 | V36: 511.759 | W36: -0.001383501019 | X36: 0.0965293074 | Y36: 224.806 | Z36: 0.007890748993 | AA36: 0.03502318151 | AB36: 1086712 | AC36: 4158548 | AD36: 648649 | AE36: 2497441 | AF36: 6 | AG36: -
A37: 2011-09-01 | B37: 2011 - III | C37: 169.4149 | D37: 0.04458636673 | E37: 0.04761049564 | F37: 0.03537315686 | G37: -0.002289473437 | H37: 0.12 | I37: 0.1216666667 | J37: 1.8793 | K37: 1.637677502 | L37: 2.51581891 | M37: 2.301155247 | N37: 2.92870112 | O37: 2.634477208 | P37: 3354.85 | Q37: 0.01063397147 | R37: 0.0731090206 | S37: 468.975 | T37: 0.009714444423 | U37: 0.07458818623 | V37: 517.344 | W37: 0.01091334007 | X37: 0.07556372376 | Y37: 226.597 | Z37: 0.007966869212 | AA37: 0.03812621693 | AB37: 1112334 | AC37: 4272947 | AD37: 668612 | AE37: 2569321 | AF37: 6 | AG37: -
A38: 2011-12-01 | B38: 2011 - IV | C38: 167.7489 | D38: 0.03974402662 | E38: 0.03974402662 | F38: 0.0256797657 | G38: 0.00935641631 | H38: 0.11 | I38: 0.1116666667 | J38: 1.8668 | K38: 1.801657424 | L38: 2.41955948 | M38: 2.41812454 | N38: 2.90156724 | O38: 2.842655084 | P38: 3403.73 | Q38: 0.01456995097 | R38: 0.06503352744 | S38: 473.252 | T38: 0.00911988912 | U38: 0.05096813021 | V38: 521.035 | W38: 0.007134517845 | X38: 0.04344526085 | Y38: 227.223 | Z38: 0.002762613803 | AA38: 0.03062066838 | AB38: 1160805 | AC38: 4376382 | AD38: 696968 | AE38: 2637814 | AF38: 6 | AG38: -
A39: 2012-03-01 | B39: 2012 - I | C39: 163.1908 | D39: 0.0170718148 | E39: 0.0312369681 | F39: 0.0170718148 | G39: -0.01448596723 | H39: 0.0975 | I39: 0.1025 | J39: 1.8268 | K39: 1.766454386 | L39: 2.43749924 | M39: 2.340669825 | N39: 2.92434144 | O39: 2.807779246 | P39: 3445.41 | Q39: 0.01224538962 | R39: 0.05239991936 | S39: 476.166 | T39: 0.00615739606 | U39: 0.03234044952 | V39: 521.478 | W39: 0.0008502307906 | X39: 0.01758158558 | Y39: 228.807 | Z39: 0.006971125282 | AA39: 0.02582875281 | AB39: 1129474 | AC39: 4489325 | AD39: 694701 | AE39: 2708930 | AF39: 6 | AG39: -
A40: 2012-06-01 | B40: 2012 - II | C40: 167.971 | D40: 0.01340343924 | E40: 0.02197068709 | F40: 0.009864714886 | G40: 0.01807976906 | H40: 0.085 | I40: 0.08666666667 | J40: 2.0094 | K40: 1.965220758 | L40: 2.54530698 | M40: 2.50703212 | N40: 3.15616458 | O40: 3.1015114 | P40: 3482.72 | Q40: 0.0108288999 | R40: 0.04915425284 | S40: 488.342 | T40: 0.02557091434 | U40: 0.05141206081 | V40: 536.606 | W40: 0.02900985276 | X40: 0.04855215052 | Y40: 228.524 | Z40: -0.001236850271 | AA40: 0.01653870448 | AB40: 1183126 | AC40: 4585739 | AD40: 718126 | AE40: 2778407 | AF40: 6 | AG40: -
A41: 2012-09-01 | B41: 2012 - III | C41: 173.6256 | D41: 0.01731309378 | E41: 0.0193871669 | F41: 0.02485436641 | G41: 0.01737927162 | H41: 0.075 | I41: 0.07666666667 | J41: 2.0264 | K41: 2.027862513 | L41: 2.6059504 | M41: 2.551253828 | N41: 3.27608088 | O41: 3.225044945 | P41: 3532.06 | Q41: 0.01416708779 | R41: 0.05282203377 | S41: 506.804 | T41: 0.03780547239 | U41: 0.08066314836 | V41: 564.133 | W41: 0.05129834553 | X41: 0.09044078988 | Y41: 231.015 | Z41: 0.01090038683 | AA41: 0.01949716898 | AB41: 1230449 | AC41: 4703854 | AD41: 753551 | AE41: 2863346 | AF41: 5.5 | AG41: -
A42: 2012-12-01 | B42: 2012 - IV | C42: 171.9138 | D42: 0.01921181494 | E42: 0.01921181494 | F42: 0.02482818069 | G42: 0.0001224239284 | H42: 0.0725 | I42: 0.0725 | J42: 2.0516 | K42: 2.059665455 | L42: 2.70667588 | M42: 2.687108208 | N42: 3.3348758 | O42: 3.322720967 | P42: 3602.46 | Q42: 0.01993171124 | R42: 0.05838594718 | S42: 510.252 | T42: 0.006803419073 | U42: 0.07818244825 | V42: 566.018 | W42: 0.003341410625 | X42: 0.0863339315 | Y42: 231.221 | Z42: 0.0008917169881 | AA42: 0.0175950498 | AB42: 1271711 | AC42: 4814760 | AD42: 790457 | AE42: 2956835 | AF42: 5.5 | AG42: -
A43: 2013-03-01 | B43: 2013 - I | C43: 167.6314 | D43: 0.02721109278 | E43: 0.02168491017 | F43: 0.02721109278 | G43: 0.00535750546 | H43: 0.0725 | I43: 0.0725 | J43: 2.0217 | K43: 1.995366667 | L43: 2.59101072 | M43: 2.624040191 | N43: 3.07156881 | O43: 3.073729326 | P43: 3672.42 | Q43: 0.01942006296 | R43: 0.06588765923 | S43: 514.526 | T43: 0.008376253302 | U43: 0.08056014079 | V43: 567.892 | W43: 0.003310848772 | X43: 0.08900471353 | Y43: 232.282 | Z43: 0.004588683554 | AA43: 0.01518747241 | AB43: 1241614 | AC43: 4926900 | AD43: 777713 | AE43: 3039847 | AF43: 5 | AG43: -
A44: 2013-06-01 | B44: 2013 - II | C44: 174.7265 | D44: 0.03380854917 | E44: 0.02928467801 | F44: 0.04021825196 | G44: 0.0138966703 | H44: 0.08 | I44: 0.07833333333 | J44: 2.2317 | K44: 2.0713 | L44: 2.9034417 | M44: 2.70491067 | N44: 3.39508521 | O44: 3.172057863 | P44: 3715.92 | Q44: 0.0118450504 | R44: 0.06695915836 | S44: 519.153 | T44: 0.008992742835 | U44: 0.06309307821 | V44: 569.345 | W44: 0.002558585083 | X44: 0.06101124475 | Y44: 232.445 | Z44: 0.000701733238 | AA44: 0.01715793527 | AB44: 1322580 | AC44: 5066354 | AD44: 805985 | AE44: 3127706 | AF44: 5 | AG44: -
A45: 2013-09-01 | B45: 2013 - III | C45: 178.4159 | D45: 0.0316695702 | E45: 0.02996314102 | F45: 0.02758982546 | G45: 0.00463949688 | H45: 0.09 | I45: 0.08833333333 | J45: 2.217 | K45: 2.28889137 | L45: 2.9989359 | M45: 3.055746276 | N45: 3.5884362 | O45: 3.578071286 | P45: 3738.99 | Q45: 0.00620842214 | R45: 0.05858620748 | S45: 529.085 | T45: 0.01913116172 | U45: 0.04396374141 | V45: 583.926 | W45: 0.02561013094 | X45: 0.03508569788 | Y45: 233.544 | Z45: 0.004728000172 | AA45: 0.01094734108 | AB45: 1354134 | AC45: 5190039 | AD45: 833145 | AE45: 3207300 | AF45: 5 | AG45: -
A46: 2013-12-01 | B46: 2013 - IV | C46: 176.2611 | D46: 0.03004826946 | E46: 0.03004826946 | F46: 0.02528767324 | G46: 0.001615228877 | H46: 0.1 | I46: 0.09833333333 | J46: 2.3621 | K46: 2.284366667 | L46: 3.24623403 | M46: 3.115723842 | N46: 3.91092897 | O46: 3.728467128 | P46: 3815.39 | Q46: 0.02043332558 | R46: 0.05910683255 | S46: 538.37 | T46: 0.01754916507 | U46: 0.05510610443 | V46: 595 | W46: 0.01896473183 | X46: 0.05120331862 | Y46: 234.719 | Z46: 0.005031171856 | AA46: 0.01512838367 | AB46: 1413291 | AC46: 5331619 | AD46: 873580 | AE46: 3290423 | AF46: 5 | AG46: -
A47: 2014-03-01 | B47: 2014 - I | C47: 173.4471 | D47: 0.03469338083 | E47: 0.0318711904 | F47: 0.03469338083 | G47: 0.008502288556 | H47: 0.1075 | I47: 0.1066666667 | J47: 2.2719 | K47: 2.363133333 | L47: 3.12817911 | M47: 3.234105509 | N47: 3.78543978 | O47: 3.926424804 | P47: 3898.38 | Q47: 0.02175138059 | R47: 0.06152891009 | S47: 552.087 | T47: 0.02547875996 | U47: 0.07300117001 | V47: 611.583 | W47: 0.02787058824 | X47: 0.07693540321 | Y47: 236.028 | Z47: 0.005576881292 | AA47: 0.01612694914 | AB47: 1385981 | AC47: 5475986 | AD47: 873828 | AE47: 3386538 | AF47: 5 | AG47: -
A48: 2014-06-01 | B48: 2014 - II | C48: 173.966 | D48: 0.01476583423 | E48: 0.0206321496 | F48: -0.004352516647 | G48: -0.01482601541 | H48: 0.11 | I48: 0.11 | J48: 2.2143 | K48: 2.229 | L48: 3.03181956 | M48: 3.0607142 | N48: 3.78778158 | O48: 3.7695362 | P48: 3958.32 | Q48: 0.01537561756 | R48: 0.06523283601 | S48: 551.554 | T48: -0.0009654275504 | U48: 0.06241127375 | V48: 603.594 | W48: -0.01306282222 | X48: 0.0601550905 | Y48: 237.231 | Z48: 0.005096852916 | AA48: 0.02058981695 | AB48: 1422322 | AC48: 5575728 | AD48: 888391 | AE48: 3468944 | AF48: 5 | AG48: -
A49: 2014-09-01 | B49: 2014 - III | C49: 177.2761 | D49: 0.007518427386 | E49: 0.0119284653 | F49: -0.006388444079 | G49: -0.0006100946872 | H49: 0.11 | I49: 0.11 | J49: 2.4469 | K49: 2.275466667 | L49: 3.09067939 | M49: 2.969711547 | N49: 3.96715897 | O49: 3.769462231 | P49: 3991.24 | Q49: 0.008316659593 | R49: 0.06746474315 | S49: 547.839 | T49: -0.006735514564 | U49: 0.03544610034 | V49: 594.97 | W49: -0.01428774971 | X49: 0.01891335546 | Y49: 237.477 | Z49: 0.001036963972 | AA49: 0.01684050971 | AB49: 1462125 | AC49: 5683719 | AD49: 912055 | AE49: 3547854 | AF49: 5 | AG49: -
A50: 2014-12-01 | B50: 2014 - IV | C50: 175.8583 | D50: 0.00503934595 | E50: 0.00503934595 | F50: -0.002285246149 | G50: 0.005230394642 | H50: 0.1175 | I50: 0.1141666667 | J50: 2.6576 | K50: 2.549133333 | L50: 3.21516448 | M50: 3.150303944 | N50: 4.13974352 | O50: 4.012080953 | P50: 4059.86 | Q50: 0.01719265191 | R50: 0.06407470796 | S50: 558.213 | T50: 0.01893622031 | U50: 0.0368575515 | V50: 607.656 | W50: 0.02132208347 | X50: 0.02127058824 | Y50: 236.252 | Z50: -0.005158394287 | AA50: 0.00653121392 | AB50: 1508525 | AC50: 5778953 | AD50: 964130 | AE50: 3638404 | AF50: 5 | AG50: -
A51: 2015-03-01 | B51: 2015 - I | C51: 170.6383 | D51: -0.01619398652 | E51: -0.00727309616 | F51: -0.01619398652 | G51: -0.007767017046 | H51: 0.1275 | I51: 0.1241666667 | J51: 3.1967 | K51: 2.865666667 | L51: 3.43037877 | M51: 3.173057178 | N51: 4.73687006 | O51: 4.328685022 | P51: 4215.26 | Q51: 0.03827718197 | R51: 0.08128504661 | S51: 569.536 | T51: 0.02028437174 | U51: 0.03160552594 | V51: 616.157 | W51: 0.01398982319 | X51: 0.007478952162 | Y51: 235.976 | Z51: -0.001168244078 | AA51: -0.0002203128442 | AB51: 1456659 | AC51: 5849631 | AD51: 936567 | AE51: 3701143 | AF51: 5.5 | AG51: -
A52: 2015-06-01 | B52: 2015 - II | C52: 169.1987 | D52: -0.02180717998 | E52: -0.01298793417 | F52: -0.02740363059 | G52: -0.02369644819 | H52: 0.1375 | I52: 0.1341666667 | J52: 3.1029 | K52: 3.069433333 | L52: 3.47555829 | M52: 3.418427903 | N52: 4.82656095 | O52: 4.72662039 | P52: 4310.39 | Q52: 0.02256800292 | R52: 0.0889442996 | S52: 582.401 | T52: 0.02258856332 | U52: 0.05592743412 | V52: 629.294 | W52: 0.02132086465 | X52: 0.04257828938 | Y52: 237.657 | Z52: 0.00712360579 | AA52: 0.001795718098 | AB52: 1479970 | AC52: 5907279 | AD52: 938595 | AE52: 3751347 | AF52: 6 | AG52: -
A53: 2015-09-01 | B53: 2015 - III | C53: 169.7191 | D53: -0.02884202686 | E53: -0.02216405357 | F53: -0.04262841974 | G53: -0.01647398094 | H53: 0.1425 | I53: 0.1425 | J53: 3.9475 | K53: 3.5466 | L53: 4.41212075 | M53: 3.94523784 | N53: 5.971778 | O53: 5.4493509 | P53: 4370.12 | Q53: 0.01385721478 | R53: 0.09492789208 | S53: 593.606 | T53: 0.01923932136 | U53: 0.08354096733 | V53: 643.419 | W53: 0.02244578845 | X53: 0.08143099652 | Y53: 237.498 | Z53: -0.0006690314192 | AA53: 8.842961634e-05 | AB53: 1508228 | AC53: 5953382 | AD53: 959600 | AE53: 3798892 | AF53: 6.5 | AG53: -
A54: 2015-12-01 | B54: 2015 - IV | C54: 166.1517 | D54: -0.03545755284 | E54: -0.03545755284 | F54: -0.05519557507 | G54: -0.007694469379 | H54: 0.1425 | I54: 0.1425 | J54: 3.9578 | K54: 3.841766667 | L54: 4.29896236 | M54: 4.153333943 | N54: 5.83617188 | O54: 5.792103544 | P54: 4493.17 | Q54: 0.02815712154 | R54: 0.1067302813 | S54: 617.044 | T54: 0.03948410225 | U54: 0.1053916695 | V54: 675.712 | W54: 0.05018968977 | X54: 0.1119975776 | Y54: 237.761 | Z54: 0.001107377746 | AA54: 0.006387247515 | AB54: 1550930 | AC54: 5995787 | AD54: 1000430 | AE54: 3835192 | AF54: 7 | AG54: -
A55: 2016-03-01 | B55: 2016 - I | C55: 161.8705 | D55: -0.05138236844 | E55: -0.04414073635 | F55: -0.05138236844 | G55: -0.01431377836 | H55: 0.1425 | I55: 0.1425 | J55: 3.59 | K55: 3.904966667 | L55: 4.08542 | M55: 4.30639724 | N55: 5.15524 | O55: 5.534769588 | P55: 4610.92 | Q55: 0.02620644222 | R55: 0.09386372371 | S55: 635.349 | T55: 0.02966563162 | U55: 0.1155554697 | V55: 696.424 | W55: 0.03065211214 | X55: 0.1302703694 | Y55: 238.08 | Z55: 0.001341683455 | AA55: 0.008916160966 | AB55: 1500299 | AC55: 6039427 | AD55: 974593 | AE55: 3873218 | AF55: 7.5 | AG55: -
A56: 2016-06-01 | B56: 2016 - II | C56: 163.753 | D56: -0.0418244629 | E56: -0.04542337534 | F56: -0.03218523547 | G56: 0.00282060393 | H56: 0.1425 | I56: 0.1425 | J56: 3.213 | K56: 3.501366667 | L56: 3.5683578 | M56: 3.931918054 | N56: 4.2768243 | O56: 4.966688617 | P56: 4691.59 | Q56: 0.01749542391 | R56: 0.08843747318 | S56: 653.496 | T56: 0.02856225476 | U56: 0.1220722492 | V56: 720.875 | W56: 0.03510935867 | X56: 0.1455297524 | Y56: 240.222 | Z56: 0.008996975806 | AA56: 0.01079286535 | AB56: 1559050 | AC56: 6118507 | AD56: 986780 | AE56: 3921403 | AF56: 7.5 | AG56: -
A57: 2016-09-01 | B57: 2016 - III | C57: 165.5539 | D57: -0.03606806002 | E57: -0.04097564918 | F57: -0.02454172807 | G57: -0.005501532562 | H57: 0.1425 | I57: 0.1425 | J57: 3.2624 | K57: 3.248 | L57: 3.6653064 | M57: 3.679875733 | N57: 4.23198528 | O57: 4.259210667 | P57: 4740.53 | Q57: 0.01043143156 | R57: 0.08475968623 | S57: 656.894 | T57: 0.005199725783 | U57: 0.106616173 | V57: 722.424 | W57: 0.002148777527 | X57: 0.1227893488 | Y57: 241.176 | Z57: 0.003971326523 | AA57: 0.0154864462 | AB57: 1577170 | AC57: 6187449 | AD57: 1016029 | AE57: 3977832 | AF57: 7.5 | AG57: -
A58: 2016-12-01 | B58: 2016 - IV | C58: 162.3948 | D58: -0.0327591305 | E58: -0.0327591305 | F58: -0.02261126428 | G58: -0.0009284115456 | H58: 0.1375 | I58: 0.1391666667 | J58: 3.2552 | K58: 3.2923 | L58: 3.42349384 | M58: 3.52177331 | N58: 4.0169168 | O58: 4.070160747 | P58: 4775.7 | Q58: 0.007419001673 | R58: 0.06287988213 | S58: 661.304 | T58: 0.006713411905 | U58: 0.07172908253 | V58: 727.325 | W58: 0.006784104626 | X58: 0.07638313364 | Y58: 242.637 | Z58: 0.006057816698 | AA58: 0.02050798912 | AB58: 1632808 | AC58: 6269327 | AD58: 1050734 | AE58: 4028136 | AF58: 7.5 | AG58: -
A59: 2017-03-01 | B59: 2017 - I | C59: 162.327 | D59: 0.002820155618 | E59: -0.0193590128 | F59: 0.002820155618 | G59: 0.01013252169 | H59: 0.1225 | I59: 0.125 | J59: 3.122 | K59: 3.1419 | L59: 3.3255544 | M59: 3.35408298 | N59: 3.91811 | O59: 3.92831757 | P59: 4821.69 | Q59: 0.009630001885 | R59: 0.04571105116 | S59: 666.197 | T59: 0.007399017698 | U59: 0.04855284261 | V59: 730.425 | W59: 0.004262193655 | X59: 0.04882226919 | Y59: 243.892 | Z59: 0.005172335629 | AA59: 0.02441196237 | AB59: 1585673 | AC59: 6354701 | AD59: 1017563 | AE59: 4071106 | AF59: 7.5 | AG59: -
A60: 2017-06-01 | B60: 2017 - II | C60: 165.0425 | D60: 0.005362020862 | E60: -0.009336588388 | F60: 0.007874664892 | G60: 0.008358779961 | H60: 0.1025 | I60: 0.1091666667 | J60: 3.3082 | K60: 3.214033333 | L60: 3.77994932 | M60: 3.58975383 | N60: 4.3089305 | O60: 4.163887318 | P60: 4832.27 | Q60: 0.002194251393 | R60: 0.02998556992 | S60: 648.409 | T60: -0.02670081072 | U60: -0.007784286361 | V60: 697.723 | W60: -0.04477119485 | X60: -0.03211652506 | Y60: 244.163 | Z60: 0.001111147557 | AA60: 0.0164056581 | AB60: 1630730 | AC60: 6426381 | AD60: 1035708 | AE60: 4120034 | AF60: 7 | AG60: -
A61: 2017-09-01 | B61: 2017 - III | C61: 168.2702 | D61: 0.009084904965 | E61: 0.001073130643 | F61: 0.01640734528 | G61: 0.002420859858 | H61: 0.0825 | I61: 0.08916666667 | J61: 3.1625 | K61: 3.163066667 | L61: 3.7361775 | M61: 3.749920969 | N61: 4.2371175 | O61: 4.169238173 | P61: 4860.83 | Q61: 0.005910265776 | R61: 0.02537690933 | S61: 647.4 | T61: -0.001556116587 | U61: -0.01445286454 | V61: 694.397 | W61: -0.004766934729 | X61: -0.03879577644 | Y61: 246.435 | Z61: 0.009305259192 | AA61: 0.0218056523 | AB61: 1648635 | AC61: 6497846 | AD61: 1070402 | AE61: 4174407 | AF61: 7 | AG61: -
A62: 2017-12-01 | B62: 2017 - IV | C62: 166.5784 | D62: 0.01322868384 | E62: 0.01322868384 | F62: 0.02576190863 | G62: 0.005418087168 | H62: 0.07 | I62: 0.07333333333 | J62: 3.3125 | K62: 3.248033333 | L62: 3.97665625 | M62: 3.849460839 | N62: 4.47618125 | O62: 4.365465068 | P62: 4916.46 | Q62: 0.01144454754 | R62: 0.0294742132 | S62: 657.859 | T62: 0.01615539079 | U62: -0.005209404449 | V62: 708.797 | W62: 0.02073741678 | X62: -0.02547416904 | Y62: 247.805 | Z62: 0.005559275265 | AA62: 0.0212993072 | AB62: 1720441 | AC62: 6585479 | AD62: 1123586 | AE62: 4247259 | AF62: 7 | AG62: -
A63: 2018-03-01 | B63: 2018 - I | C63: 165.4193 | D63: 0.01904981919 | E63: 0.01724954883 | F63: 0.01904981919 | G63: 0.005855869682 | H63: 0.065 | I63: 0.0675 | J63: 3.3063 | K63: 3.243966667 | L63: 4.07468412 | M63: 3.993539231 | N63: 4.63377945 | O63: 4.537876838 | P63: 4950.95 | Q63: 0.007015210131 | R63: 0.02680802789 | S63: 667.524 | T63: 0.01469159805 | U63: 0.001991903296 | V63: 721.488 | W63: 0.01790498549 | X63: -0.01223534244 | Y63: 249.577 | Z63: 0.007150783882 | AA63: 0.02330949765 | AB63: 1682083 | AC63: 6681889 | AD63: 1088772 | AE63: 4318468 | AF63: 6.75 | AG63: -
A64: 2018-06-01 | B64: 2018 - II | C64: 167.7114 | D64: 0.0175984629 | E64: 0.01932053772 | F64: 0.01617098626 | G64: -0.0009471252441 | H64: 0.065 | I64: 0.065 | J64: 3.88 | K64: 3.608833333 | L64: 4.533392 | M64: 4.265039528 | N64: 5.124316 | O64: 4.844016689 | P64: 5044.46 | Q64: 0.01888728426 | R64: 0.04391103974 | S64: 693.287 | T64: 0.038594867 | U64: 0.0692124878 | V64: 758.269 | W64: 0.05097936487 | X64: 0.08677655746 | Y64: 251.018 | Z64: 0.005773769218 | AA64: 0.02807550694 | AB64: 1734099 | AC64: 6785258 | AD64: 1099647 | AE64: 4382407 | AF64: 6.6 | AG64: 2.58
A65: 2018-09-01 | B65: 2018 - III | C65: 171.7312 | D65: 0.01860666125 | E65: 0.02037248807 | F65: 0.0205681101 | G65: 0.009640000056 | H65: 0.065 | I65: 0.065 | J65: 4.05 | K65: 3.956433333 | L65: 4.69962 | M65: 4.602255134 | N65: 5.277555 | O65: 5.158529661 | P65: 5080.83 | Q65: 0.007209889661 | R65: 0.04525976016 | S65: 712.373 | T65: 0.02752972434 | U65: 0.1003599011 | V65: 786.501 | W65: 0.03723216959 | X65: 0.1326388219 | Y65: 252.182 | Z65: 0.004637117657 | AA65: 0.02332055106 | AB65: 1767856 | AC65: 6904479 | AD65: 1143238 | AE65: 4455243 | AF65: 6.56 | AG65: 3.13
A66: 2018-12-01 | B66: 2018 - IV | C66: 169.168 | D66: 0.01783672177 | E66: 0.01783672177 | F66: 0.01554583307 | G66: -0.002683121529 | H66: 0.065 | I66: 0.065 | J66: 3.8764 | K66: 3.814233333 | L66: 4.44506788 | M66: 4.335003324 | N66: 4.94396056 | O66: 4.865563181 | P66: 5100.61 | Q66: 0.003893064716 | R66: 0.0374558117 | S66: 707.441 | T66: -0.006923339318 | U66: 0.07536873403 | V66: 775.633 | W66: -0.01381816425 | X66: 0.0942949815 | Y66: 252.767 | Z66: 0.002319753194 | AA66: 0.02002380904 | AB66: 1820103 | AC66: 7004141 | AD66: 1194145 | AE66: 4525802 | AF66: 6.98 | AG66: 2.98
A67: 2019-03-01 | B67: 2019 - I | C67: 166.9102 | D67: 0.009012854002 | E67: 0.01534682157 | F67: 0.009012854002 | G67: 0.003148306058 | H67: 0.065 | I67: 0.065 | J67: 3.9205 | K67: 3.768133333 | L67: 4.3980169 | M67: 4.275072871 | N67: 5.11037175 | O67: 4.949694342 | P67: 5177.47 | Q67: 0.01506878589 | R67: 0.04575283531 | S67: 722.707 | T67: 0.0215791847 | U67: 0.08266818871 | V67: 796.106 | W67: 0.02639521526 | X67: 0.1034223715 | Y67: 254.277 | Z67: 0.005973881084 | AA67: 0.01883186351 | AB67: 1757554 | AC67: 7079612 | AD67: 1155353 | AE67: 4592383 | AF67: 7.03 | AG67: 2.84
A68: =EDATE(A67,3) -> 2019-06-01 | B68: 2019 - II | C68: 169.6779 | D68: 0.0103785091 | E68: 0.01423397402 | F68: 0.01172549988 | G68: 0.005594530519 | H68: 0.065 | I68: 0.065 | J68: 3.8499 | K68: 3.9184 | L68: 4.37849127 | M68: 4.409114293 | N68: 4.88783304 | O68: 5.009935627 | P68: 5214.27 | Q68: 0.007107718635 | R68: 0.03366267152 | S68: 738.421 | T68: 0.02174325141 | U68: 0.06510146592 | V68: 818.268 | W68: 0.02783800147 | X68: 0.07912627313 | Y68: 255.213 | Z68: 0.003681025024 | AA68: 0.01671194894 | AB68: 1826761 | AC68: 7172274 | AD68: 1172601 | AE68: 4665337 | AF68: 6.26 | AG68: 2.64
A69: 2019-09-01 | B69: 2019 - III | C69: 173.6366 | D69: 0.01062231077 | E69: 0.01184379311 | F69: 0.01109524652 | G69: 0.000189111203 | H69: 0.055 | I69: 0.06 | J69: 4.157 | K69: 3.979766667 | L69: 4.5307143 | M69: 4.372039001 | N69: 5.1085373 | O69: 4.855845969 | P69: 5227.84 | Q69: 0.002602473596 | R69: 0.02893424893 | S69: 736.362 | T69: -0.002788382237 | U69: 0.03367477431 | V69: 811.493 | W69: -0.008279683429 | X69: 0.03177618337 | Y69: 256.43 | Z69: 0.004768565865 | AA69: 0.01684497704 | AB69: 1880610 | AC69: 7285028 | AD69: 1216014 | AE69: 4738113 | AF69: 5.95 | AG69: 2.03
A70: 2019-12-01 | B70: 2019 - IV | C70: 172.0335 | D70: 0.01220761868 | E70: 0.01220761868 | F70: 0.01693878275 | G70: 0.008815465586 | H70: 0.045 | I70: 0.04833333333 | J70: 4.031 | K70: 4.1183 | L70: 4.5199603 | M70: 4.582706963 | N70: 5.3426874 | O70: 5.370400477 | P70: 5320.25 | Q70: 0.0176765165 | R70: 0.04306151617 | S70: 759.112 | T70: 0.03089513038 | U70: 0.07303930646 | V70: 846.036 | W70: 0.04256721869 | X70: 0.09076844332 | Y70: 258.63 | Z70: 0.008579339391 | AA70: 0.0231952747 | AB70: 1924206 | AC70: 7389131 | AD70: 1269611 | AE70: 4813579 | AF70: 5.57 | AG70: 1.68
A71: 2020-03-01 | B71: 2020 - I | C71: 167.6012 | D71: 0.004139950704 | E71: 0.01099655259 | F71: 0.004139950704 | G71: -0.02281794367 | H71: 0.0375 | I71: 0.04166666667 | J71: 5.2053 | K71: 4.466533333 | L71: 5.74196643 | M71: 4.93794615 | N71: 6.4649826 | O71: 5.724458004 | P71: 5348.49 | Q71: 0.00530802124 | R71: 0.0330315772 | S71: 771.908 | T71: 0.01685653764 | U71: 0.06807876498 | V71: 863.622 | W71: 0.02078634952 | X71: 0.08480780198 | Y71: 258.076 | Z71: -0.002142056219 | AA71: 0.01494039964 | AB71: 1868095 | AC71: 7499672 | AD71: 1211460 | AE71: 4869686 | AF71: 5.09 | AG71: 1.83
A72: 2020-06-01 | B72: 2020 - II | C72: 152.4765 | D72: -0.04905223922 | E72: -0.0173280001 | F72: -0.1013767851 | G72: -0.08886382757 | H72: 0.0225 | I72: 0.03 | J72: 5.4669 | K72: 5.389633333 | L72: 6.14151546 | M72: 5.980696456 | N72: 6.77950269 | O72: 6.731652033 | P72: 5325.46 | Q72: -0.004305888204 | R72: 0.02132417385 | S72: 792.429 | T72: 0.02658477435 | U72: 0.07313984841 | V72: 898.183 | W72: 0.04001866557 | X72: 0.09766360166 | Y72: 257.042 | Z72: -0.004006571708 | AA72: 0.007166562832 | AB72: 1752724 | AC72: 7425635 | AD72: 1066604 | AE72: 4763689 | AF72: 4.94 | AG72: 2.26
A73: 2020-09-01 | B73: 2020 - III | C73: 168.3655 | D73: -0.04269001481 | E73: -0.02784251288 | F73: -0.0303570791 | G73: 0.07920278402 | H73: 0.02 | I73: 0.02083333333 | J73: 5.61 | K73: 5.384433333 | L73: 6.611385 | M73: 6.371399963 | N73: 7.24812 | O73: 7.06706875 | P73: 5391.75 | Q73: 0.01244775099 | R73: 0.03135329314 | S73: 868.442 | T73: 0.09592405124 | U73: 0.1793682998 | V73: 1016.468 | W73: 0.1316936526 | X73: 0.2525899792 | Y73: 259.997 | Z73: 0.01149617572 | AA73: 0.01391022891 | AB73: 1929323 | AC73: 7474348 | AD73: 1200311 | AE73: 4747986 | AF73: 4.91 | AG73: 1.53
A74: 2020-12-01 | B74: 2020 - IV | C74: 171.4591 | D74: -0.0327675065 | E74: -0.0327675065 | F74: -0.003338884578 | G74: 0.03836726765 | H74: 0.02 | I74: 0.02 | J74: 5.1926 | K74: 5.4013 | L74: 6.34328016 | M74: 6.465536143 | N74: 7.0982842 | O74: 7.190930733 | P74: 5560.59 | Q74: 0.03131450828 | R74: 0.04517456886 | S74: 934.758 | T74: 0.07636203684 | U74: 0.2313835113 | V74: 1113.635 | W74: 0.09559277813 | X74: 0.3162974152 | Y74: 262.045 | Z74: 0.007877013966 | AA74: 0.01320419132 | AB74: 2059455 | AC74: 7609597 | AD74: 1326629 | AE74: 4805004 | AF74: 4.55 | AG74: 1.83
A75: 2021-03-01 | B75: 2021 - I | C75: 170.5338 | D75: 0.01749748808 | E75: -0.02945211738 | F75: 0.01749748808 | G75: 0.008928904934 | H75: 0.0275 | I75: 0.0225 | J75: 5.6344 | K75: 5.4738 | L75: 6.704936 | M75: 6.59939574 | N75: 7.8092784 | O75: 7.54818774 | P75: 5674.72 | Q75: 0.02052480043 | R75: 0.06099478544 | S75: 1011.948 | T75: 0.08257752274 | U75: 0.3109697011 | V75: 1231.299 | W75: 0.1056575988 | X75: 0.4257383439 | Y75: 264.847 | Z75: 0.01069281994 | AA75: 0.02623645748 | AB75: 2156670 | AC75: 7898172 | AD75: 1287344 | AE75: 4880888 | AF75: 4.39 | AG75: 2.08
A76: 2021-06-01 | B76: 2021 - II | C76: 171.3783 | D76: 0.06821593632 | E76: 0.02401645188 | F76: 0.1239653324 | G76: -0.007057434844 | H76: 0.0425 | I76: 0.035 | J76: 4.969 | K76: 5.2923 | L76: 5.982676 | M76: 6.37880919 | N76: 6.9670349 | O76: 7.40057591 | P76: 5769.98 | Q76: 0.01678673133 | R76: 0.08347072366 | S76: 1075.733 | T76: 0.06303189492 | U76: 0.3575134176 | V76: 1325.064 | W76: 0.07615128413 | X76: 0.4752717431 | Y76: 270.71 | Z76: 0.02213730947 | AA76: 0.05317418943 | AB76: 2203639 | AC76: 8349087 | AD76: 1306327 | AE76: 5120611 | AF76: 4.61 | AG76: 2.87
A77: 2021-09-01 | B77: 2021 - III | C77: 175.4587 | D77: 0.05922408174 | E77: 0.04292838794 | F77: 0.04212977124 | G77: 0.001443883849 | H77: 0.0625 | I77: 0.0525 | J77: 5.443 | K77: 5.233066667 | L77: 6.4036895 | M77: 6.167692373 | N77: 7.4748719 | O77: 7.211165867 | P77: 5944.21 | Q77: 0.03019594522 | R77: 0.1024639496 | S77: 1084.312 | T77: 0.00797502726 | U77: 0.2485715799 | V77: 1326.913 | W77: 0.001395404297 | X77: 0.3054154189 | Y77: 273.942 | Z77: 0.01193897529 | AA77: 0.05363523425 | AB77: 2295851 | AC77: 8715615 | AD77: 1413002 | AE77: 5333302 | AF77: 4.88 | AG77: 3.28
A78: 2021-12-01 | B78: 2021 - IV | C78: 173.96 | D78: 0.04762598948 | E78: 0.04762598948 | F78: 0.01458598581 | G78: 0.01313389133 | H78: 0.0925 | I78: 0.0825 | J78: 5.5699 | K78: 5.584466667 | L78: 6.29788593 | M78: 6.387512973 | N78: 7.41687884 | O78: 7.531025598 | P78: 6120.04 | Q78: 0.02958004512 | R78: 0.1006098274 | S78: 1100.988 | T78: 0.01537933731 | U78: 0.1778321234 | V78: 1342.671 | W78: 0.01187568439 | X78: 0.2056652314 | Y78: 280.806 | Z78: 0.0250563988 | AA78: 0.07159457345 | AB78: 2355982 | AC78: 9012142 | AD78: 1523898 | AE78: 5530571 | AF78: 5.32 | AG78: 4.1
A79: 2022-03-01 | B79: 2022 - I | C79: 173.0465 | D79: 0.01473432246 | E79: 0.04678178533 | F79: 0.01473432246 | G79: 0.007269368726 | H79: 0.1175 | I79: 0.1058333333 | J79: 4.74 | K79: 5.2266 | L79: 5.221584 | M79: 5.86738116 | N79: 6.239262 | O79: 7.0140972 | P79: 6315.93 | Q79: 0.03200796073 | R79: 0.1129941213 | S79: 1161.418 | T79: 0.05488706507 | U79: 0.1477052181 | V79: 1435.019 | W79: 0.06877932122 | X79: 0.1654512836 | Y79: 287.467 | Z79: 0.02372100311 | AA79: 0.08540780149 | AB79: 2319528 | AC79: 9175000 | AD79: 1475027 | AE79: 5718254 | AF79: 6.08 | AG79: 4.77
A80: 2022-06-01 | B80: 2022 - II | C80: 177.4517 | D80: 0.02511200978 | E80: 0.02666748028 | F80: 0.03543855902 | G80: 0.01136825153 | H80: 0.1325 | I80: 0.1258333333 | J80: 5.26 | K80: 4.9215 | L80: 5.556664 | M80: 5.2407413 | N80: 6.478742 | O80: 6.18386475 | P80: 6455.85 | Q80: 0.02215350708 | R80: 0.1188686963 | S80: 1190.908286 | T80: 0.02539162101 | U80: 0.107066796 | V80: 1466.795026 | W80: 0.02214327879 | X80: 0.1069616455 | Y80: 295.072 | Z80: 0.02645521051 | AA80: 0.08999298142 | AB80: 2517481 | AC80: 9488842 | AD80: 1563936 | AE80: 5975863 | AF80: 6.82 | AG80: 5.01
A81: 2022-09-01 | B81: 2022 - III | C81: 183.0417 | D81: 0.03125244022 | E81: 0.02710393379 | F81: 0.04321814763 | G81: 0.01060563301 | H81: 0.1375 | I81: 0.1358333333 | J81: 5.4155 | K81: 5.249566667 | L81: 5.36080345 | M81: 5.285088734 | N81: 6.130346 | O81: 6.17506527 | P81: 6370.34 | Q81: -0.01324535112 | R81: 0.07168824789 | S81: 1173.826631 | T81: -0.0143433836 | U81: 0.08255431215 | V81: 1440.886809 | W81: -0.01766314761 | X81: 0.08589395743 | Y81: 296.421 | Z81: 0.004571765535 | AA81: 0.08205751582 | AB81: 2601182 | AC81: 9794173 | AD81: 1626419 | AE81: 6189280 | AF81: 7.01 | AG81: 5.23
A82: 2022-12-01 | B82: 2022 - IV | C82: 178.6464 | D82: 0.03016717901 | E82: 0.03016717901 | F82: 0.02693952633 | G82: 0.003706100542 | H82: 0.1375 | I82: 0.1375 | J82: 5.2804 | K82: 5.2632 | L82: 5.6526682 | M82: 5.43056976 | N82: 6.38030732 | O82: 6.19899696 | P82: 6474.09 | Q82: 0.01628641485 | R82: 0.05785092908 | S82: 1161.006 | T82: -0.01092208251 | U82: 0.05451285573 | V82: 1413.477147 | W82: -0.01902277209 | X82: 0.05273529209 | Y82: 298.808 | Z82: 0.008052735805 | AA82: 0.06410831677 | AB82: 2641485 | AC82: 10079676 | AD82: 1691277 | AE82: 6356659 | AF82: 7.2 | AG82: 5.23
A83: 2023-03-01 | B83: 2023 - I | C83: 180.7372 | D83: 0.04444296764 | E83: 0.03752070892 | F83: 0.04444296764 | G83: 0.01390126541 | H83: 0.1375 | I83: 0.1375 | J83: 5.074 | K83: 5.1917 | L83: 5.4997086 | M83: 5.585923087 | N83: 6.2597938 | O83: 6.362082237 | P83: 6609.67 | Q83: 0.02094193933 | R83: 0.04650779853 | S83: 1163.36602 | T83: 0.002032737115 | U83: 0.001677277249 | V83: 1410.416698 | W83: -0.002165191986 | X83: -0.01714423435 | Y83: 301.643 | Z83: 0.009487697786 | AA83: 0.04931348642 | AB83: 2581018 | AC83: 10341166 | AD83: 1635673 | AE83: 6517305 | AF83: 7.37 | AG83: 6.15
A84: 2023-06-01 | B84: 2023 - II | C84: 184.2841 | D84: 0.04143559082 | E84: 0.03827954433 | F84: 0.03850287149 | G84: 0.007951364332 | H84: 0.1375 | I84: 0.1375 | J84: 4.7866 | K84: 4.937 | L84: 5.22170194 | M84: 5.3650379 | N84: 6.08041798 | O84: 6.197086967 | P84: 6659.95 | Q84: 0.007607036357 | R84: 0.03161473702 | S84: 1109.274249 | T84: -0.04649591755 | U84: -0.06854771037 | V84: 1315.16501 | W84: -0.06753442981 | X84: -0.1033750542 | Y84: 304.099 | Z84: 0.008142075235 | AA84: 0.03059253335 | AB84: 2727580 | AC84: 10551265 | AD84: 1686827 | AE84: 6640196 | AF84: 7.28 | AG84: 5.69
A85: 2023-09-01 | B85: 2023 - III | C85: 187.3524 | D85: 0.03529970298 | E85: 0.03324410364 | F85: 0.02355037131 | G85: 0.001683454223 | H85: 0.1275 | I85: 0.1325 | J85: 5.0283 | K85: 4.8832 | L85: 5.31642159 | M85: 5.275972053 | N85: 6.13402317 | O85: 6.139810133 | P85: 6700.66 | Q85: 0.006112658503 | R85: 0.05185280534 | S85: 1103.775776 | T85: -0.004956820193 | U85: -0.05967734332 | V85: 1304.46359 | W85: -0.008136941225 | X85: -0.09468003858 | Y85: 307.374 | Z85: 0.01076951914 | AA85: 0.03695082332 | AB85: 2769445 | AC85: 10719528 | AD85: 1748852 | AE85: 6762629 | AF85: 7 | AG85: 5.15
A86: 2023-12-01 | B86: 2023 - IV | C86: 182.8992 | D86: 0.03241651798 | E86: 0.03241651798 | F86: 0.02380568542 | G86: 0.002262519252 | H86: 0.1175 | I86: 0.1225 | J86: 4.8572 | K86: 4.955433333 | L86: 5.36186308 | M86: 5.368716473 | N86: 6.18370132 | O86: 6.194126486 | P86: 6773.27 | Q86: 0.01083624598 | R86: 0.04621190005 | S86: 1124.134447 | T86: 0.01844457062 | U86: -0.03175827972 | V86: 1334.436729 | W86: 0.02297736704 | X86: -0.0559191344 | Y86: 308.735 | Z86: 0.004427830591 | AA86: 0.03322200209 | AB86: 2865301 | AC86: 10943344 | AD86: 1814674 | AE86: 6886026 | AF86: 6.55 | AG86: 5.56
A87: 2024-03-01 | B87: 2024 - I | C87: 185.184 | D87: 0.02460367871 | E87: 0.02756401441 | F87: 0.02460367871 | G87: 0.008057049192 | H87: 0.1075 | I87: 0.1108333333 | J87: 5.0141 | K87: 4.950233333 | L87: 5.4102139 | M87: 5.352852311 | N87: 6.32929843 | O87: 6.254619817 | P87: 6869.14 | Q87: 0.01415416778 | R87: 0.0392561202 | S87: 1113.940496 | T87: -0.00906826689 | U87: -0.04248493047 | V87: 1311.147329 | W87: -0.01745260687 | X87: -0.07038300733 | Y87: 312.107 | Z87: 0.01092198811 | AA87: 0.03469001435 | AB87: 2764833 | AC87: 11127159 | AD87: 1784961 | AE87: 7035314 | AF87: 6.53 | AG87: 5.41
A88: 2024-06-01 | B88: 2024 - II | C88: 190.6808 | D88: 0.02970648562 | E88: 0.02670531027 | F88: 0.03471107925 | G88: 0.01706016943 | H88: 0.105 | I88: 0.1058333333 | J88: 5.5941 | K88: 5.2197 | L88: 5.99295933 | M88: 5.60717573 | N88: 7.07373945 | O88: 6.59317706 | P88: 6941.51 | Q88: 0.01053552555 | R88: 0.04227659367 | S88: 1136.527256 | T88: 0.02027645158 | U88: 0.02456832169 | V88: 1340.80457 | W88: 0.02261930427 | X88: 0.01949531722 | Y88: 313.131 | Z88: 0.003280926093 | AA88: 0.029700854 | AB88: 2934759 | AC88: 11334338 | AD88: 1834839 | AE88: 7183326 | AF88: 6.67 | AG88: 5.91
A89: 2024-09-01 | B89: 2024 - III | C89: 195.1024 | D89: 0.0336610885 | E89: 0.03125262903 | F89: 0.04136589657 | G89: 0.008982768275 | H89: 0.1075 | I89: 0.1058333333 | J89: 5.45 | K89: 5.545933333 | L89: 6.068575 | M89: 6.102190447 | N89: 7.30409 | O89: 7.27737372 | P89: 6997.15 | Q89: 0.00801554705 | R89: 0.04424788006 | S89: 1153.789719 | T89: 0.01518878054 | U89: 0.04531168715 | V89: 1363.270301 | W89: 0.01675541095 | X89: 0.04508114407 | Y89: 314.851 | Z89: 0.005492908719 | AA89: 0.02432541464 | AB89: 3015936 | AC89: 11580829 | AD89: 1932140 | AE89: 7366614 | AF89: 6.91 | AG89: 6.28
A90: 2024-12-01 | B90: 2024 - IV | C90: 189.447 | D90: 0.03419315468 | E90: 0.03419315468 | F90: 0.03580004724 | G90: -0.001459314535 | H90: 0.1225 | I90: 0.1141666667 | J90: 6.1774 | K90: 5.842317711 | L90: 6.39607996 | M90: 6.195777932 | N90: 7.73348706 | O90: 7.422469908 | P90: 7100.5 | Q90: 0.01477029934 | R90: 0.04831196748 | S90: 1197.604034 | T90: 0.03797426392 | U90: 0.06535658428 | V90: 1430.961506 | W90: 0.04965354653 | X90: 0.07233372373 | Y90: 317.603 | Z90: 0.008740642399 | AA90: 0.02872366269 | AB90: 3063723 | AC90: 11779251 | AD90: 1981637 | AE90: 7533577 | AF90: 7.43 | AG90: 6.66
A91: 2025-03-01 | B91: 2025 - I | C91: 191.0153 | D91: 0.03148922153 | E91: 0.03585925858 | F91: 0.03148922153 | G91: 0.01535155338 | H91: 0.1425 | I91: 0.1358333333 | J91: 5.7057 | K91: 5.848796785 | L91: 6.17128512 | M91: 6.151569498 | N91: 7.36434699 | O91: 7.38488578 | P91: 7245.38 | Q91: 0.02040419689 | R91: 0.05477250427 | S91: 1209.370388 | T91: 0.009824911698 | U91: 0.08566875265 | V91: 1440.718326 | W91: 0.00681836628 | X91: 0.0988226068 | Y91: 319.615 | Z91: 0.006334952755 | AA91: 0.02405585264 | AB91: 3024723 | AC91: 12039141 | AD91: 1934192 | AE91: 7682808 | AF91: 7.97 | AG91: 7.68
A92: 2025-06-01 | B92: 2025 - II | C92: 195.1805 | D92: 0.02748594707 | E92: 0.03300932669 | F92: 0.02359807595 | G92: 0.003202998631 | H92: 0.15 | I92: 0.1466666667 | J92: 5.4317 | K92: 5.667426416 | L92: 6.40234479 | M92: 6.510361638 | N92: 7.44903338 | O92: 7.654803946 | P92: 7312.97 | Q92: 0.009328703256 | R92: 0.05351285239 | S92: 1186.156032 | T92: -0.01919540648 | U92: 0.04366703553 | V92: 1394.573355 | W92: -0.0320291414 | X92: 0.04010188123 | Y92: 321.5 | Z92: 0.005897720695 | AA92: 0.02672683318 | AB92: 3200345 | AC92: 12304727 | AD92: 1992000 | AE92: 7839969 | AF92: 8.65 | AG92: 7.61
A93: 2025-09-01 | B93: 2025 - III | C93: 198.6604 | D93: 0.02432539032 | E93: 0.02710931274 | F93: 0.01823657731 | G93: 0.001073734752 | H93: 0.15 | I93: 0.15 | J93: 5.32 | K93: 5.444657527 | L93: 6.242488 | M93: 6.320339946 | N93: 7.160188 | O93: 7.290396428 | P93: 7359.06 | Q93: 0.006302500899 | R93: 0.05172248701 | S93: 1186.178418 | T93: 1.88724373e-05 | U93: 0.02807157849 | V93: 1389.265832 | W93: -0.003805840043 | X93: 0.0190685082 | Y93: 324.368 | Z93: 0.008920684292 | AA93: 0.03022699626 | AB93: 3235708 | AC93: 12524499 | AD93: 2050092 | AE93: 7957921 | AF93: 8.96 | AG93: 7.61
A94: 2025-12-01 | B94: 2025 - IV | C94: 192.667599 | D94: 0.02250036756 | E94: 0.02250036756 | F94: 0.017 | G94: 0 | H94: 0.15 | I94: 0.15 | J94: 5.4749 | K94: 5.402715125 | L94: 6.43081754 | M94: 6.281736876 | N94: 7.36483548 | O94: 7.174625596 | P94: 7403.29 | Q94: 0.006010278487 | R94: 0.04264347581 | S94: 1184.899239 | T94: -0.001078403663 | U94: -0.01060851118 | V94: 1383.227734 | W94: -0.004346251022 | X94: -0.03335783125 | Y94: 326.03 | Z94: 0.005123809994 | AA94: 0.02653312469 | AB94: 3247406.547 | AC94: 12708182.55 | AD94: 2097340.138 | AE94: 8073624.138 | AF94: 9.07 | AG94: 7.82
A95: 2026-03-01 | B95: 2026 - I | C95: 194.5299815 | D95: 0.0184 | E95: 0.01930579758 | F95: 0.0184 | G95: 0.011 | H95: 0.145 | I95: 0.1483333333 | J95: 5.22 | K95: 5.254154839 | L95: 6.1596 | M95: 6.19990271 | N95: 7.043465368 | O95: 7.089551273 | P95: 7482.06 | Q95: 0.01063986417 | R95: 0.03266633358 | S95: 1181.939897 | T95: -0.002497546737 | U95: -0.02268162936 | V95: - | W95: - | X95: - | Y95: 328.0488581 | Z95: 0.006192246326 | AA95: 0.02638755399 | AB95: 3173715.481 | AC95: 12857175.03 | AD95: 2033491.378 | AE95: 8172923.516 | AF95: 9.19 | AG95: 7.72
A96: 2026-06-01 | B96: 2026 - II | C96: 198.9670017 | D96: 0.0189053926 | E96: 0.01826775207 | F96: 0.0194 | G96: 0.0044 | H96: 0.135 | I96: 0.1383333333 | J96: 5.28 | K96: 5.26 | L96: 6.2304 | M96: 6.2068 | N96: 7.12442474 | O96: 7.097438282 | P96: 7556.42 | Q96: 0.009938439414 | R96: 0.03329016802 | S96: 1195.645212 | T96: 0.01159561063 | U96: 0.007999942556 | V96: - | W96: - | X96: - | Y96: 330.0802174 | Z96: 0.006192246326 | AA96: 0.02668807902 | AB96: 3361285.626 | AC96: 13018115.65 | AD96: 2094831.567 | AE96: 8275755.082 | AF96: 8.848495703 | AG96: 7.292594821
A97: 2026-09-01 | B97: 2026 - III | C97: 202.3753495 | D97: 0.01883562609 | E97: 0.01838650764 | F97: 0.0187 | G97: 0.0024 | H97: 0.125 | I97: 0.13 | J97: 5.34 | K97: 5.32 | L97: 6.3012 | M97: 6.2776 | N97: 7.205384112 | O97: 7.178397654 | P97: 7622.15 | Q97: 0.008698563606 | R97: 0.03575048987 | S97: 1207.269717 | T97: 0.009722369691 | U97: 0.01778088264 | V97: - | W97: - | X97: - | Y97: 332.1241554 | Z97: 0.006192246326 | AA97: 0.02391159245 | AB97: 3396093.353 | AC97: 13178501.01 | AD97: 2167663.257 | AE97: 8393326.339 | AF97: 8.544055785 | AG97: 6.924227513
A98: 2026-12-01 | B98: 2026 - IV | C98: 196.039282 | D98: 0.01850466275 | E98: 0.01850466275 | F98: 0.0175 | G98: 0.0024 | H98: 0.1225 | I98: 0.1233333333 | J98: 5.4 | K98: 5.38 | L98: 6.372 | M98: 6.3484 | N98: 7.286343484 | O98: 7.259357026 | P98: 7685.78 | Q98: 0.008348038283 | R98: 0.03815735977 | S98: 1220.884913 | T98: 0.01127767501 | U98: 0.03037023971 | V98: - | W98: - | X98: - | Y98: 334.18075 | Z98: 0.006192246326 | AA98: 0.025 | AB98: 3404356.799 | AC98: 13335451.26 | AD98: 2213220.999 | AE98: 8509207.2 | AF98: 8.266659168 | AG98: 6.813606924
A99: 2027-03-01 | B99: 2027 - I | C99: 196.3780163 | D99: 0.0095 | E99: 0.01628750606 | F99: 0.0095 | G99: 0.004844140512 | H99: 0.1225 | I99: 0.1225 | J99: 5.45 | K99: 5.433333333 | L99: 6.431 | M99: 6.411333333 | N99: 7.353809627 | O99: 7.331320913 | P99: 7777.19 | Q99: 0.01189339273 | R99: 0.03944501915 | S99: 1229.008825 | T99: 0.006654118434 | U99: 0.03982345298 | V99: - | W99: - | X99: - | Y99: 336.2500795 | Z99: 0.006192246326 | AA99: 0.025 | AB99: 3331442.803 | AC99: 13493178.58 | AD99: 2156815.183 | AE99: 8632531.005 | AF99: 8.032421923 | AG99: 6.723362023
A100: 2027-06-01 | B100: 2027 - II | C100: 202.8468582 | D100: 0.01455637934 | E100: 0.01632787451 | F100: 0.0195 | G100: 0.0058 | H100: 0.1175 | I100: 0.1191666667 | J100: 5.5 | K100: 5.483333333 | L100: 6.49 | M100: 6.470333333 | N100: 7.42127577 | O100: 7.398787056 | P100: 7859.3 | Q100: 0.01055779787 | R100: 0.04008247292 | S100: 1240.525638 | T100: 0.009370813551 | U100: 0.03753657455 | V100: - | W100: - | X100: - | Y100: 338.3322228 | Z100: 0.006192246326 | AA100: 0.025 | AB100: 3563286.121 | AC100: 13695179.08 | AD100: 2214586.972 | AE100: 8752286.411 | AF100: 7.807097612 | AG100: 6.595032554
A101: 2027-09-01 | B101: 2027 - III | C101: 206.0181058 | D101: 0.01572593177 | E101: 0.01615939805 | F101: 0.018 | G101: 0.0049 | H101: 0.1125 | I101: 0.115 | J101: 5.55 | K101: 5.533333333 | L101: 6.549 | M101: 6.529333333 | N101: 7.488741914 | O101: 7.466253199 | P101: 7897.92 | Q101: 0.004913923632 | R101: 0.03618008042 | S101: 1248.628699 | T101: 0.006531957406 | U101: 0.03425827793 | V101: - | W101: - | X101: - | Y101: 340.4272593 | Z101: 0.006192246326 | AA101: 0.025 | AB101: 3594888.672 | AC101: 13893974.39 | AD101: 2284065.119 | AE101: 8868688.273 | AF101: 7.558393879 | AG101: 6.460707912
A102: 2027-12-01 | B102: 2027 - IV | C102: 199.9600676 | D102: 0.01678398579 | E102: 0.01678398579 | F102: 0.02 | G102: 0.0049 | H102: 0.1125 | I102: 0.1125 | J102: 5.6 | K102: 5.583333333 | L102: 6.608 | M102: 6.588333333 | N102: 7.556208057 | O102: 7.533719343 | P102: 7986.9 | Q102: 0.01126625744 | R102: 0.03917884717 | S102: 1266.500087 | T102: 0.01431281241 | U102: 0.03736238678 | V102: - | W102: - | X102: - | Y102: 342.5352688 | Z102: 0.006192246326 | AA102: 0.025 | AB102: 3610715.666 | AC102: 14100333.26 | AD102: 2324419.347 | AE102: 8979886.621 | AF102: 7.382727357 | AG102: 6.388929013
A103: 2028-03-01 | B103: 2028 - I | C103: 200.1555189 | D103: 0.01923587272 | E103: 0.01917570514 | F103: 0.01923587272 | G103: 0.0035 | H103: 0.1075 | I103: 0.1091666667 | J103: 5.6125 | K103: 5.608333333 | L103: 6.62275 | M103: 6.617833333 | N103: 7.573074593 | O103: 7.567452414 | P103: 8098.328855 | Q103: 0.01395145235 | R103: 0.04129240185 | S103: 1274.742012 | T103: 0.006507638821 | U103: 0.03721143877 | V103: - | W103: - | X103: - | Y103: 344.6563315 | Z103: 0.006192246326 | AA103: 0.025 | AB103: 3548410.369 | AC103: 14317300.83 | AD103: 2287131.126 | AE103: 9110202.564 | AF103: 7.231895435 | AG103: 6.306832514
A104: 2028-06-01 | B104: 2028 - II | C104: 206.2760145 | D104: 0.01805162762 | E104: 0.01851738861 | F104: 0.01690514841 | G104: 0.0035 | H104: 0.1025 | I104: 0.1041666667 | J104: 5.625 | K104: 5.620833333 | L104: 6.6375 | M104: 6.632583333 | N104: 7.589941129 | O104: 7.58431895 | P104: 8161.075844 | Q104: 0.007748140381 | R104: 0.03839729284 | S104: 1287.017199 | T104: 0.009629545825 | U104: 0.03747730743 | V104: - | W104: - | X104: - | Y104: 346.7905284 | Z104: 0.006192246326 | AA104: 0.025 | AB104: 3786674.021 | AC104: 14540688.73 | AD104: 2360103.867 | AE104: 9255719.459 | AF104: 7.070593854 | AG104: 6.235557228
A105: 2028-09-01 | B105: 2028 - III | C105: 209.2090014 | D105: 0.01717914079 | E105: 0.01786928363 | F105: 0.01548842316 | G105: 0.0035 | H105: 0.1025 | I105: 0.1025 | J105: 5.6375 | K105: 5.633333333 | L105: 6.65225 | M105: 6.647333333 | N105: 7.606807665 | O105: 7.601185486 | P105: 8193.969055 | Q105: 0.004030499469 | R105: 0.0374844333 | S105: 1303.768413 | T105: 0.01301553235 | U105: 0.04416021683 | V105: - | W105: - | X105: - | Y105: 348.9379408 | Z105: 0.006192246326 | AA105: 0.025 | AB105: 3814935.503 | AC105: 14760735.56 | AD105: 2446285.273 | AE105: 9417939.613 | AF105: 6.982888807 | AG105: 6.180777316
A106: 2028-12-01 | B106: 2028 - IV | C106: 202.77424 | D106: 0.01640794423 | E106: 0.01640794423 | F106: 0.01407367165 | G106: 0.0035 | H106: 0.1025 | I106: 0.1025 | J106: 5.65 | K106: 5.645833333 | L106: 6.667 | M106: 6.662083333 | N106: 7.623674201 | O106: 7.618052022 | P106: 8306.376 | Q106: 0.01371825348 | R106: 0.04 | S106: 1317.16009 | T106: 0.01027151572 | U106: 0.04 | V106: - | W106: - | X106: - | Y106: 351.0986505 | Z106: 0.006192246326 | AA106: 0.025 | AB106: 3826393.017 | AC106: 14976412.91 | AD106: 2501919.573 | AE106: 9595439.839 | AF106: 6.984846618 | AG106: 6.131896208

Sheet Argentina
D2: 2009 | E2: 2010 | F2: 2011 | G2: 2012 | H2: 2013 | I2: 2014 | J2: 2015 | K2: 2016 | L2: 2017 | M2: 2018 | N2: 2019 | O2: 2020 | P2: 2021 | Q2: 2022 | R2: 2023 | S2: 2024 | T2: 2025F | U2: 2026F | V2: 2027F | W2: 2028F
C4: GDP % | D4: -0.0591852508 | E4: 0.1012539816 | F4: 0.06003951689 | G4: -0.01026420463 | H4: 0.02405323787 | I4: -0.02512615326 | J4: 0.02731159839 | K4: -0.02080327849 | L4: 0.02818502973 | M4: -0.02617396461 | N4: -0.02000861002 | O4: -0.09900484819 | P4: 0.10441812 | Q4: 0.06020745374 | R4: -0.01855788033 | S4: -0.01342930725 | T4: 0.04456669099 | U4: 0.03521548909 | V4: 0.02975079962 | W4: 0.02960251472
C5: CPI % | D5: 0.1486782796 | E5: 0.2636475076 | F5: 0.2281 | G5: 0.2563414034 | H5: 0.2660026127 | I5: 0.3803688895 | J5: 0.2690420949 | K5: 0.41 | L5: 0.2482571783 | M5: 0.4763516032 | N5: 0.5397586025 | O5: 0.361 | P5: 0.5081172267 | Q5: 0.9471905738 | R5: 2.055110939 | S5: 1.177714205 | T5: 0.315230048 | U5: 0.2354668012 | V5: 0.1801615923 | W5: 0.1504773669
C6: Exchange Rate - ARG / USD (end of period) | D6: 3.7967 | E6: 3.9758 | F6: 4.3032 | G6: 4.917 | H6: 6.518 | I6: 8.552 | J6: 13.005 | K6: 15.8502 | L6: 18.7742 | M6: 37.8083 | N6: 59.895 | O6: 84.14 | P6: 102.75 | Q6: 177.128 | R6: 809 | S6: 1032.5 | T6: 1459 | U6: 1700 | V6: 1950.111496 | W6: 2187.770979
C7: Monetary Policy Rate - % (end of period) | K7: 0.2475 | L7: 0.2875 | M7: 0.5925 | N7: 0.55 | O7: 0.38 | P7: 0.38 | Q7: 0.75 | R7: 1 | S7: 0.32 | T7: 0.27 | U7: 0.28 | V7: 0.22 | W7: 0.18

Sheet Argentina_Quarterly
C1: GDP NSA | H1: Monetary Policy Rate ** | J1: Exchange Rate | L1: Inflation NSA
C2: Index | D2: Ydt | E2: 12M | F2: YoY | G2: QoQ* | H2: eop | I2: Avg | J2: eop | K2: Avg | L2: Index (eop) | M2: QoQ | N2: YoY
A3: 2002-03-01 | B3: 2002 - I | H3: 0.335 | I3: 0.2003 | J3: 2.8517 | K3: 2.12585 | L3: 51.127
A4: 2002-06-01 | B4: 2002 - II | H4: 0.5881 | I4: 0.8506 | J4: 3.8037 | K4: 3.3602 | L4: 60.8282 | M4: =L4/L3-1 -> 0.1897471004
A5: 2002-09-01 | B5: 2002 - III | H5: 0.3469 | I5: 0.66065 | J5: 3.7267 | K5: 3.71375 | L5: 65.1055 | M5: 0.07031771448
A6: 2002-12-01 | B6: 2002 - IV | H6: 0.2131 | I6: 0.21155 | J6: 3.363 | K6: 3.4431 | L6: 65.7028 | M6: 0.00917434011
A7: 2003-03-01 | B7: 2003 - I | H7: 0.2513 | I7: 0.21035 | J7: 2.9625 | K7: 3.0721 | L7: 67.3372 | M7: 0.02487565218 | N7: =L7/L3-1 -> 0.3170575234
A8: 2003-06-01 | B8: 2003 - II | H8: 0.0525 | I8: 0.12065 | J8: 2.8075 | K8: 2.8185 | L8: 67.0585 | M8: -0.004138871233 | N8: 0.1024245334
A9: 2003-09-01 | B9: 2003 - III | H9: 0.0413 | I9: 0.03505 | J9: 2.911 | K9: 2.92115 | L9: 67.3994 | M9: 0.005083621017 | N9: 0.03523358242
A10: 2003-12-01 | B10: 2003 - IV | H10: 0.0281 | I10: 0.03095 | J10: 2.933 | K10: 2.90525 | L10: 68.1082 | M10: 0.01051641409 | N10: 0.03661031189
A11: 2004-03-01 | B11: 2004 - I | H11: 0.0169 | I11: 0.01595 | J11: 2.855 | K11: 2.89385 | L11: 68.8695 | M11: 0.01117780238 | N11: 0.02275562393
A12: 2004-06-01 | B12: 2004 - II | H12: 0.0244 | I12: 0.02125 | J12: 2.9607 | K12: 2.90295 | L12: 70.3639 | M12: 0.02169901045 | N12: 0.04929129044
A13: 2004-09-01 | B13: 2004 - III | H13: 0.0519 | I13: 0.04595 | J13: 2.9825 | K13: 2.97925 | L13: 71.3774 | M13: 0.0144036928 | N13: 0.05902129693
A14: 2004-12-01 | B14: 2004 - IV | H14: 0.04 | I14: 0.0419 | J14: 2.9738 | K14: 2.976 | L14: 72.2606 | M14: 0.01237366449 | N14: 0.06096769552
A15: 2005-03-01 | B15: 2005 - I | C15: 101.7495505 | H15: 0.0331 | I15: 0.03095 | J15: 2.9233 | K15: 2.9243 | L15: 75.1723 | M15: =L15/L14-1 -> 0.04029443431 | N15: 0.09151801596
A16: 2005-06-01 | B16: 2005 - II | C16: 119.903119 | G16: 0.02352208408 | H16: 0.0594 | I16: 0.05315 | J16: 2.8908 | K16: 2.90205 | L16: 76.6907 | M16: 0.02019892966 | N16: 0.08991542538
A17: 2005-09-01 | B17: 2005 - III | C17: 106.0980556 | G17: 0.005751031793 | H17: 0.0606 | I17: 0.06125 | J17: 2.9125 | K17: 2.88765 | L17: 78.704 | M17: 0.02625220529 | N17: 0.1026459355
A18: 2005-12-01 | B18: 2005 - IV | C18: 107.6559146 | G18: 0.01876699164 | H18: 0.0763 | I18: 0.0697 | J18: 3.0315 | K18: 3.0206 | L18: 81.1696 | M18: 0.03132750559 | N18: 0.1232898703
A19: 2006-03-01 | B19: 2006 - I | C19: 109.7364538 | D19: =AVERAGE(OFFSET($C$1,MATCH(EDATE(A19,0),$A$1:$A$304,0)-1,,IF(MONTH($A19)=3,-1,IF(MONTH($A19)=6,-2,IF(MONTH($A19)=9,-3,-4)))))/AVERAGE(OFFSET($C$1,MATCH(EDATE(A19,-12),$A$1:$A$304,0)-1,,IF(MONTH($A19)=3,-1,IF(MONTH($A19)=6,-2,IF(MONTH($A19)=9,-3,-4)))))-1 -> 0.0784957107 | F19: =C19/C15-1 -> 0.0784957107 | G19: 0.02670317863 | H19: 0.0863 | I19: 0.08345 | J19: 3.0808 | K19: 3.07225 | L19: 83.5258 | M19: 0.02902810905 | N19: 0.1111247095
A20: 2006-06-01 | B20: 2006 - II | C20: 126.5836236 | D20: 0.06617293566 | F20: =C20/C16-1 -> 0.05571585304 | G20: 0.01210383222 | H20: 0.0913 | I20: 0.09065 | J20: 3.0848 | K20: 3.0643 | L20: 85.1431 | M20: 0.01936287949 | N20: 0.1102141459
A21: 2006-09-01 | B21: 2006 - III | C21: 116.0505734 | D21: 0.07511783726 | F21: 0.09380490281 | G21: 0.02835416787 | H21: 0.095 | I21: 0.0947 | J21: 3.1043 | K21: 3.08955 | L21: 86.9252 | M21: 0.020930645 | N21: 0.1044572067
A22: 2006-12-01 | B22: 2006 - IV | C22: 118.0738209 | D22: 0.08047151504 | E22: =AVERAGE(C19:C22)/AVERAGE(C15:C18)-1 -> 0.08047151504 | F22: 0.09677040377 | G22: 0.02132786086 | H22: 0.0988 | I22: 0.0972 | J22: 3.0695 | K22: 3.0814 | L22: 89.1559 | M22: 0.02566229356 | N22: =L22/L18-1 -> 0.09839028405
A23: 2007-03-01 | B23: 2007 - I | C23: 118.9092594 | D23: 0.08358941136 | E23: =AVERAGE(C20:C23)/AVERAGE(C16:C19)-1 -> 0.08169657593 | F23: 0.08358941136 | G23: 0.02394998477 | H23: 0.0831 | I23: 0.08625 | J23: 3.1007 | K23: 3.1035 | L23: 91.97935725 | M23: 0.03166876508 | N23: 0.1012089349
A24: 2007-06-01 | B24: 2007 - II | C24: 139.0639934 | D24: 0.09162647387 | E24: 0.09337041258 | F24: 0.09859387387 | G24: 0.02083385509 | H24: 0.0819 | I24: 0.0794 | J24: 3.0908 | K24: 3.0903 | L24: 96.1261763 | M24: 0.045084236 | N24: 0.1289954947
A25: 2007-09-01 | B25: 2007 - III | C25: 125.831081 | D25: 0.08920630278 | E25: 0.09097646188 | F25: 0.08427797713 | G25: 0.01357928798 | H25: 0.1175 | I25: 0.10845 | J25: 3.1495 | K25: 3.1345 | L25: 101.1650591 | M25: 0.05241946608 | N25: 0.1638173871
A26: 2007-12-01 | B26: 2007 - IV | C26: 129.0161335 | D26: 0.09007650879 | E26: 0.09007650879 | F26: 0.0926734863 | G26: 0.03073201056 | H26: 0.1363 | I26: 0.13505 | J26: 3.151 | K26: 3.14935 | L26: 109.0161152 | M26: 0.0776064003 | N26: 0.2227582832
A27: 2008-03-01 | B27: 2008 - I | C27: 127.1286414 | D27: 0.06912314577 | E27: 0.08636588806 | F27: 0.06912314577 | G27: 0.01007820761 | H27: 0.0831 | I27: 0.0853 | J27: 3.1653 | K27: 3.1605 | L27: 115.7828276 | M27: 0.062070753 | N27: 0.2587914401
A28: 2008-06-01 | B28: 2008 - II | C28: 146.6467156 | D28: 0.06125481641 | E28: 0.07422292028 | F28: 0.05452685475 | G28: 0.005030364135 | H28: 0.1625 | I28: 0.13 | J28: 3.0242 | K28: 3.09385 | L28: 121.5748451 | M28: 0.05002484057 | N28: 0.2647423391
A29: 2008-09-01 | B29: 2008 - III | C29: 133.388516 | D29: 0.06086314619 | E29: 0.06834697143 | F29: 0.06006016144 | G29: 0.006590737794 | H29: 0.1256 | I29: 0.12625 | J29: 3.1302 | K29: 3.08035 | L29: 127.2018088 | M29: 0.04628394718 | N29: 0.2573689953
A30: 2008-12-01 | B30: 2008 - IV | C30: 126.462916 | D30: 0.04057233102 | E30: 0.04057233102 | F30: -0.01978990884 | G30: -0.04609503573 | H30: 0.1975 | I30: 0.21375 | J30: 3.4537 | K30: 3.41635 | L30: 131.1458446 | M30: 0.03100612969 | N30: 0.2029950278
A31: 2009-03-01 | B31: 2009 - I | C31: 119.2609611 | D31: -0.06188755144 | E31: 0.009057386596 | F31: -0.06188755144 | G31: -0.03569362494 | H31: 0.1238 | I31: 0.1272 | J31: 3.7135 | K31: 3.6005 | L31: 137.4048117 | M31: 0.0477252422 | N31: 0.1867460367
A32: 2009-06-01 | B32: 2009 - II | C32: 130.1129625 | D32: -0.08912940046 | E32: -0.03669388513 | F32: -0.1127454715 | G32: -0.02388291272 | H32: 0.1294 | I32: 0.12845 | J32: 3.7952 | K32: 3.7575 | L32: 140.7886424 | M32: 0.02462672583 | N32: 0.1580408949
A33: 2009-09-01 | B33: 2009 - III | C33: 125.8504909 | D33: -0.07844374376 | E33: -0.06433040327 | F33: -0.05651179964 | G33: 0.03937845574 | H33: 0.1219 | I33: 0.1269 | J33: 3.8427 | K33: 3.8366 | L33: 144.8975002 | M33: 0.02918458317 | N33: 0.1391150929
A34: 2009-12-01 | B34: 2009 - IV | C34: 126.8195392 | D34: -0.0591852508 | E34: -0.0591852508 | F34: 0.002819982261 | G34: 0.01999367815 | H34: 0.1 | I34: 0.1069 | J34: 3.7967 | K34: 3.80785 | L34: 150.6443831 | M34: 0.03966171168 | N34: 0.1486782796
A35: 2010-03-01 | B35: 2010 - I | C35: 126.0746607 | D35: 0.05713269108 | E35: -0.03214676661 | F35: 0.05713269108 | G35: 0.03120235166 | H35: 0.0938 | I35: 0.09565 | J35: 3.8763 | K35: 3.84965 | L35: 160.466747 | M35: 0.06520232404 | N35: 0.1678393568
A36: 2010-06-01 | B36: 2010 - II | C36: 151.2487717 | D36: 0.1120787148 | E36: 0.04078372517 | F36: 0.1624419951 | G36: 0.04422966789 | H36: 0.1031 | I36: 0.0978 | J36: 3.9318 | K36: 3.909 | L36: 169.2882614 | M36: 0.05497409631 | N36: 0.2024283957
A37: 2010-09-01 | B37: 2010 - III | C37: 137.8160313 | D37: 0.1063764717 | E37: 0.08027245265 | F37: 0.09507742367 | G37: 0.004193719552 | H37: 0.1044 | I37: 0.1044 | J37: 3.9607 | K37: 3.9501 | L37: 179.0707713 | M37: 0.05778610898 | N37: 0.2358444489
A38: 2010-12-01 | B38: 2010 - IV | C38: 137.7384391 | D38: 0.1012539816 | E38: 0.1012539816 | F38: 0.0860979311 | G38: 0.01219979912 | H38: 0.1125 | I38: 0.11065 | J38: 3.9758 | K38: 3.9664 | L38: 190.3613992 | M38: 0.06305120509 | N38: 0.2636475076
A39: 2011-03-01 | B39: 2011 - I | C39: 136.5295486 | D39: 0.0829261625 | E39: 0.1070537842 | F39: 0.0829261625 | G39: 0.02418590712 | H39: 0.1113 | I39: 0.1113 | J39: 4.052 | K39: 4.0264 | L39: 201.5959343 | M39: 0.05901687566 | N39: 0.2563097218
A40: 2011-06-01 | B40: 2011 - II | C40: 157.9692745 | D40: 0.06193270623 | E40: 0.07558551925 | F40: 0.04443343766 | G40: 0.0120919328 | H40: 0.1144 | I40: 0.11125 | J40: 4.111 | K40: 4.09575 | L40: 212.0716543 | M40: 0.0519639452 | N40: 0.252725101
A41: 2011-09-01 | B41: 2011 - III | C41: 146.6491668 | D41: 0.06265009334 | E41: 0.06813693637 | F41: 0.06409367181 | G41: 0.007808886549 | H41: 0.14 | I41: 0.13 | J41: 4.2045 | K41: 4.17375 | L41: 223.6864531 | M41: 0.05476827557 | N41: 0.2491511122
A42: 2011-12-01 | B42: 2011 - IV | C42: 144.9244351 | D42: 0.06003951689 | E42: 0.06003951689 | F42: 0.05217131892 | G42: -0.001126598896 | H42: 0.1719 | I42: 0.18625 | J42: 4.3032 | K42: 4.26935 | L42: 233.7828344 | M42: 0.04513631071 | N42: 0.2281
A43: 2012-03-01 | B43: 2012 - I | C43: 138.6652078 | D43: 0.01564246932 | E43: 0.04415736856 | F43: 0.01564246932 | G43: -0.009153312087 | H43: 0.1225 | I43: 0.13655 | J43: 4.3785 | K43: 4.35735 | L43: 248.6829508 | M43: 0.06373486077 | N43: 0.2335712608
A44: 2012-06-01 | B44: 2012 - II | C44: 150.6525213 | D44: -0.01759291924 | E44: 0.01901232329 | F44: -0.04631757223 | G44: -0.03520720063 | H44: 0.1363 | I44: 0.1269 | J44: 4.5253 | K44: 4.47005 | L44: 262.6107355 | M44: 0.05600619057 | N44: 0.238311345
A45: 2012-09-01 | B45: 2012 - III | C45: 145.0091977 | D45: -0.0154620746 | E45: 0.0006304050074 | F45: -0.01118294196 | G45: 0.03170108123 | H45: 0.1488 | I45: 0.1419 | J45: 4.6942 | K45: 4.63875 | L45: 277.8614745 | M45: 0.058073555 | N45: 0.2421917851
A46: 2012-12-01 | B46: 2012 - IV | C46: 145.729931 | D46: -0.01026420463 | E46: -0.01026420463 | F46: 0.005558040164 | G46: 0.01606932285 | H46: 0.1544 | I46: 0.1516 | J46: 4.917 | K46: 4.84125 | L46: 293.7110542 | M46: 0.0570413 | N46: 0.2563414034
A47: 2013-03-01 | B47: 2013 - I | C47: 139.5721132 | D47: 0.006540251446 | E47: -0.01231591581 | F47: 0.006540251446 | G47: -0.0005686287197 | H47: 0.1488 | I47: 0.1491 | J47: 5.1223 | K47: 5.04955 | L47: 308.3281121 | M47: 0.049766795 | N47: 0.2398441915
A48: 2013-06-01 | B48: 2013 - II | C48: 160.0623131 | D48: 0.03565871069 | E48: 0.0163235762 | F48: 0.06246023494 | G48: 0.006396602661 | H48: 0.1713 | I48: 0.1622 | J48: 5.3852 | K48: 5.2846 | L48: 325.2771242 | M48: 0.0549707 | N48: 0.2386284345
A49: 2013-09-01 | B49: 2013 - III | C49: 148.7190983 | D49: 0.0322950224 | E49: 0.02560562587 | F49: 0.02558389874 | G49: 0.00661351185 | H49: 0.1719 | I49: 0.1744 | J49: 5.7915 | K49: 5.649 | L49: 347.2549576 | M49: 0.06756648954 | N49: 0.2497412901
A50: 2013-12-01 | B50: 2013 - IV | C50: 145.6555787 | D50: 0.02405323787 | E50: 0.02405323787 | F50: -0.0005102057546 | G50: -0.008761219308 | H50: 0.2163 | I50: 0.2041 | J50: 6.518 | K50: 6.2144 | L50: 371.838962 | M50: 0.07079525827 | N50: 0.2660026127
A51: 2014-03-01 | B51: 2014 - I | C51: 138.3312775 | D51: =AVERAGE(OFFSET($C$1,MATCH(EDATE(A51,0),$A$1:$A$304,0)-1,,IF(MONTH($A51)=3,-1,IF(MONTH($A51)=6,-2,IF(MONTH($A51)=9,-3,-4)))))/AVERAGE(OFFSET($C$1,MATCH(EDATE(A51,-12),$A$1:$A$304,0)-1,,IF(MONTH($A51)=3,-1,IF(MONTH($A51)=6,-2,IF(MONTH($A51)=9,-3,-4)))))-1 -> -0.00889028384 | E51: 0.02031883105 | F51: -0.00889028384 | G51: -0.0150358351 | H51: 0.2638 | I51: 0.2588 | J51: 8.0098 | K51: 8.014 | L51: 421.4280991 | M51: 0.1333618638 | N51: 0.3668169803
A52: 2014-06-01 | B52: 2014 - II | C52: 156.7827345 | D52: -0.01508643191 | E52: -0.001498823889 | F52: -0.02048938693 | G52: -0.007765266427 | H52: 0.2281 | I52: 0.2431 | J52: 8.1327 | K52: 8.0671 | L52: 455.8962569 | M52: 0.08178894072 | N52: 0.4015626152
A53: 2014-09-01 | B53: 2014 - III | C53: 142.415617 | D53: -0.02414143114 | E53: -0.01834464146 | F53: -0.04238515055 | G53: -0.007974817188 | H53: 0.1988 | I53: 0.2063 | J53: 8.4643 | K53: 8.33725 | L53: 487.0722829 | M53: 0.06838403596 | N53: 0.4026359371
A54: 2014-12-01 | B54: 2014 - IV | C54: 141.5543107 | D54: -0.02512615326 | E54: -0.02512615326 | F54: -0.02815730139 | G54: 0.005042364337 | H54: 0.2038 | I54: 0.2022 | J54: 8.552 | K54: 8.52735 | L54: 513.2749351 | M54: 0.05379622925 | N54: 0.3803688895
A55: 2015-03-01 | B55: 2015 - I | C55: 138.678363 | D55: 0.002509089478 | E55: -0.0224999266 | F55: 0.002509089478 | G55: 0.01420097455 | H55: 0.2188 | I55: 0.2122 | J55: 8.8197 | K55: 8.7296 | L55: 539.5622101 | M55: 0.05121480365 | N55: 0.2803185438
A56: 2015-06-01 | B56: 2015 - II | C56: 163.1026967 | D56: 0.02259143087 | E56: -0.006340582391 | F56: 0.04031032032 | G56: 0.02555131449 | H56: 0.208 | I56: 0.2068 | J56: 9.0865 | K56: 8.9956 | L56: 572.2738762 | M56: 0.06062631045 | N56: 0.2552721536
A57: 2015-09-01 | B57: 2015 - III | C57: 148.0640624 | D57: 0.02814779261 | E57: 0.01408510559 | F57: 0.03966169986 | G57: -0.001968332527 | H57: 0.2125 | I57: 0.2122 | J57: 9.4147 | K57: 9.301 | L57: 604.1498238 | M57: 0.05570051155 | N57: 0.2403699513
A58: 2015-12-01 | B58: 2015 - IV | C58: 145.0545254 | D58: 0.02731159839 | E58: 0.02731159839 | F58: 0.02472700915 | G58: -0.0117235574 | H58: 0.33 | I58: 0.27815 | J58: 13.005 | K58: 11.2755 | L58: 654 | M58: 0.0825129367 | N58: 0.2741709273
A59: 2016-03-01 | B59: 2016 - I | C59: 139.6889019 | D59: 0.007286925453 | E59: 0.02844024676 | F59: 0.007286925453 | G59: -0.007645983675 | H59: 0.38 | I59: 0.34375 | J59: 14.5817 | K59: 14.24285 | L59: 731.4120965 | M59: 0.11836712 | N59: 0.3555658324
A60: 2016-06-01 | B60: 2016 - II | C60: 156.8087926 | D60: -0.01750727915 | E60: 0.006598870546 | F60: -0.03858859647 | G60: -0.01688751823 | H60: 0.3075 | I60: 0.34375 | J60: 14.92 | K60: 14.5891 | L60: 836.5829941 | M60: 0.1437915754 | N60: 0.4618577379
A61: 2016-09-01 | B61: 2016 - III | C61: 143.137647 | D61: -0.02269621287 | E61: -0.01134523563 | F61: -0.03327218852 | G61: 0.002643589449 | H61: 0.2675 | I61: 0.285 | J61: 15.2633 | K61: 15.154 | L61: 865.260021 | M61: 0.03427875906 | N61: 0.4321944439
A62: 2016-12-01 | B62: 2016 - IV | C62: 142.888443 | D62: -0.02080327849 | E62: -0.02080327849 | F62: -0.01493288393 | G62: 0.006654334145 | H62: 0.2475 | I62: 0.2575 | J62: 15.8502 | K62: 15.51235 | L62: 910.7865999 | M62: 0.05261606671 | N62: 0.3926400611
A63: 2017-03-01 | B63: 2017 - I | C63: 140.4707115 | D63: 0.005596790824 | E63: -0.02115183237 | F63: 0.005596790824 | G63: 0.009529132015 | H63: 0.2475 | I63: 0.2475 | J63: 15.3818 | K63: 15.64675 | L63: 967.4667299 | M63: 0.062232064 | N63: 0.3227382136
A64: 2017-06-01 | B64: 2017 - II | C64: 160.4570799 | D64: 0.01494142112 | E64: -0.004515480585 | F64: 0.02326583408 | G64: 0.009773975079 | H64: 0.2625 | I64: 0.2625 | J64: 16.5985 | K64: 16.01265 | L64: 1019.588551 | M64: 0.053874536 | N64: 0.2187536184
A65: 2017-09-01 | B65: 2017 - III | C65: 148.6493175 | D65: 0.02261366744 | E65: 0.01329881952 | F65: 0.03850608564 | G65: 0.01306557184 | H65: 0.2625 | I65: 0.2625 | J65: 17.3183 | K65: 17.49415 | L65: 1071.415789 | M65: 0.050831522 | N65: 0.2382587465
A66: 2017-12-01 | B66: 2017 - IV | C66: 149.3651258 | D66: 0.02818502973 | E66: 0.02818502973 | F66: 0.04532684826 | G66: 0.00978682864 | H66: 0.2875 | I66: 0.2825 | J66: 18.7742 | K66: 18.2221 | L66: 1136.895911 | M66: 0.06111551 | N66: 0.2482571783
A67: 2018-03-01 | B67: 2018 - I | C67: 145.8054242 | D67: 0.03797740218 | E67: 0.03595260107 | F67: 0.03797740218 | G67: -0.005544091479 | H67: 0.2725 | I67: 0.2725 | J67: 20.1433 | K67: 19.89765 | L67: 1212.394822 | M67: 0.066407936 | N67: 0.2531643567
A68: 2018-06-01 | B68: 2018 - II | C68: 154.0723332 | D68: -0.003489322164 | E68: 0.01863573886 | F68: -0.03979099407 | G68: -0.04169852099 | H68: 0.4 | I68: 0.35125 | J68: 28.8617 | K68: 24.7767 | L68: 1318.314458 | M68: 0.087363979 | N68: 0.2929867216
A69: 2018-09-01 | B69: 2018 - III | C69: 143.4920181 | D69: -0.01380704966 | E69: 0.0004546244173 | F69: -0.03469440387 | G69: -0.003007821429 | H69: 0.65 | I69: 0.525 | J69: 40.8967 | K69: 34.1196 | L69: 1503.982683 | M69: 0.140837585 | N69: 0.4037339174
A70: 2018-12-01 | B70: 2018 - IV | C70: 139.8957664 | D70: -0.02617396461 | E70: -0.02617396461 | F70: -0.06339739167 | G70: -0.01556572603 | H70: 0.5925 | I70: 0.6365 | J70: 37.8083 | K70: 37.0025 | L70: 1678.458101 | M70: 0.116008928 | N70: 0.4763516032
A71: 2019-03-01 | B71: 2019 - I | C71: 137.2557945 | D71: -0.05863725399 | E71: -0.04891968057 | F71: -0.05863725399 | G71: 0.003788031562 | H71: 0.6816 | I71: 0.60925 | J71: 43.3533 | K71: 40.19415 | L71: 1877.024384 | M71: 0.118302794 | N71: 0.5481956454
A72: 2019-06-01 | B72: 2019 - II | C72: 154.9702974 | D72: -0.02551594873 | E72: -0.03726143993 | F72: 0.005828198936 | G72: 0.005435983123 | H72: 0.6269 | I72: 0.6831 | J72: 42.4483 | K72: 43.22915 | L72: 2055.036606 | M72: 0.094837458 | N72: 0.5588364316
A73: 2019-09-01 | B73: 2019 - III | C73: 140.9770103 | D73: -0.02293046084 | E73: -0.0331278496 | F73: -0.01752716164 | G73: -0.0007852473916 | H73: 0.7837 | I73: 0.69383 | J73: 57.5583 | K73: 50.71915 | L73: 2313.128488 | M73: 0.12558992 | N73: 0.5380020762
A74: 2019-12-01 | B74: 2019 - IV | C74: 138.3921069 | D74: -0.02000861002 | E74: -0.02000861002 | F74: -0.0107484274 | G74: -0.01391344365 | H74: 0.55 | I74: 0.615 | J74: 59.895 | K74: 59.81085 | L74: 2584.4203 | M74: 0.117283503 | N74: 0.5397586025
A75: 2020-03-01 | B75: 2020 - I | C75: 130.3585952 | D75: -0.05025069659 | E75: -0.01743105097 | F75: -0.05025069659 | G75: -0.04395626195 | H75: 0.38 | I75: 0.43 | J75: 64.47 | K75: 62.4006 | L75: 2785.7316 | M75: 0.07789418 | N75: 0.4841211568
A76: 2020-06-01 | B76: 2020 - II | C76: 125.615523 | D76: -0.1240545411 | E76: -0.06996120604 | F76: -0.1894219404 | G76: -0.1414712989 | H76: 0.38 | I76: 0.38 | J76: 70.455 | K76: 68.645 | L76: 2934.216778 | M76: 0.05330204 | N76: 0.4278172806
A77: 2020-09-01 | B77: 2020 - III | C77: 126.6075531 | D77: -0.1168538051 | E77: -0.09095305056 | F77: -0.1019276628 | G77: 0.1070267457 | H77: 0.38 | I77: 0.38 | J77: 76.175 | K77: 74.245 | L77: 3157.903769 | M77: 0.0762339692 | N77: 0.3652089735
A78: 2020-12-01 | B78: 2020 - IV | C78: 132.4228409 | D78: -0.09900484819 | E78: -0.09900484819 | F78: -0.04313299476 | G78: 0.04897593164 | H78: 0.38 | I78: 0.37 | J78: 84.14 | K78: 81.235 | L78: 3518.108926 | M78: 0.11406464 | N78: 0.361275844
A79: 2021-03-01 | B79: 2021 - I | C79: 134.5725682 | D79: 0.03232600779 | E79: -0.08053778102 | F79: 0.03232600779 | G79: 0.0348391499 | H79: 0.38 | I79: 0.38 | J79: 91.985 | K79: 89.6425 | L79: 3972.514719 | M79: =L79/L78-1 -> 0.1291619456 | N79: 0.4260220614
A80: 2021-06-01 | B80: 2021 - II | C80: 149.1432612 | D80: 0.1083770162 | E80: 0.01382848886 | F80: 0.1872996078 | G80: 0.002803413245 | H80: 0.38 | I80: 0.38 | J80: 95.73 | K80: 94.6425 | L80: 4408.555001 | M80: 0.109764296 | N80: 0.5024639742
A81: 2021-09-01 | B81: 2021 - III | C81: 141.5656476 | D81: 0.111609648 | E81: 0.07050362452 | F81: 0.1181453567 | G81: 0.02045998759 | H81: 0.38 | I81: 0.38 | J81: 98.73 | K81: 97.7075 | L81: 4816.298175 | M81: 0.092489075 | N81: 0.5251567265
A82: 2021-12-01 | B82: 2021 - IV | C82: 143.4988382 | D82: 0.10441812 | E82: 0.10441812 | F82: 0.08364113941 | G82: 0.02417047466 | H82: 0.38 | I82: 0.38 | J82: 102.75 | K82: 101.24 | L82: 5305.720676 | M82: 0.101617982 | N82: 0.5081172267
A83: 2022-03-01 | B83: 2022 - I | C83: 143.8061086 | D83: =AVERAGE(OFFSET($C$1,MATCH(EDATE(A83,0),$A$1:$A$304,0)-1,,IF(MONTH($A83)=3,-1,IF(MONTH($A83)=6,-2,IF(MONTH($A83)=9,-3,-4)))))/AVERAGE(OFFSET($C$1,MATCH(EDATE(A83,-12),$A$1:$A$304,0)-1,,IF(MONTH($A83)=3,-1,IF(MONTH($A83)=6,-2,IF(MONTH($A83)=9,-3,-4)))))-1 -> 0.06861383872 | E83: 0.1132382074 | F83: 0.06861383872 | G83: 0.024544389 | H83: 0.445 | I83: 0.4225 | J83: 110.98 | K83: 107.9975 | L83: 6160.797286 | M83: 0.1611612562 | N83: 0.5508557477
A84: 2022-06-01 | B84: 2022 - II | C84: 161.2686299 | D84: 0.07528275472 | E84: 0.08732073844 | F84: =C84/C80-1 -> 0.08130014462 | G84: 0.01929501767 | H84: 0.52 | I84: 0.495 | J84: 125.215 | K84: 120.26335 | L84: 7229.30866 | M84: 0.1734371909 | N84: 0.6398363316
A85: 2022-09-01 | B85: 2022 - III | C85: 151.028492 | D85: 0.07247377385 | E85: 0.07512538372 | F85: 0.06684421363 | G85: -0.007947700644 | H85: 0.75 | I85: 0.675 | J85: 147.315 | K85: 139.2725 | L85: 8818.705207 | M85: 0.21985457 | N85: 0.8310131323
A86: 2022-12-01 | B86: 2022 - IV | C86: 146.9218991 | D86: 0.06020745374 | E86: 0.06020745374 | F86: 0.02385427627 | G86: -0.01878648268 | H86: 0.75 | I86: 0.75 | J86: 177.128 | K86: 167.014 | L86: 10331.24929 | M86: 0.1715154374 | N86: =L86/L82-1 -> 0.9471905738
A87: 2023-03-01 | B87: 2023 - I | C87: 145.117595 | D87: 0.009119823772 | E87: =AVERAGE(C84:C87)/AVERAGE(C80:C83)-1 -> 0.04554001627 | F87: 0.009119823772 | G87: 0.009518748777 | H87: 0.78 | I87: 0.765 | J87: 208.9883 | K87: 197.93165 | L87: 12218.19058 | M87: 0.1826440573 | N87: 0.9832158095
A88: 2023-06-01 | B88: 2023 - II | C88: 152.1168408 | D88: -0.02569961278 | E88: 0.008549851401 | F88: -0.05674872433 | G88: -0.0244459315 | H88: 0.97 | I88: 0.94 | J88: 256.67 | K88: 239.62 | L88: 15134.2465 | M88: 0.23866512 | N88: 1.093456955
A89: 2023-09-01 | B89: 2023 - III | C89: 150.199085 | D89: -0.01900821799 | E89: -0.008750217813 | F89: -0.005491725252 | G89: 0.01935788936 | H89: 1.18 | I89: 1.18 | J89: 350 | K89: 312.75 | L89: 20379.0669 | M89: 0.346553124 | N89: 1.310891046
A90: 2023-12-01 | B90: 2023 - IV | C90: 144.4007406 | D90: -0.01855788033 | E90: -0.01855788033 | F90: -0.01715985549 | G90: -0.02299650874 | H90: 1 | I90: 1.165 | J90: 809 | K90: 579.5 | L90: 31563.11271 | M90: 0.548800682 | N90: 2.055110939
A91: 2024-03-01 | B91: 2024 - I | C91: 137.9172906 | D91: -0.04961703258 | E91: -0.03260212682 | F91: -0.04961703258 | G91: -0.0160280748 | H91: 0.8 | I91: 0.9 | J91: 857.4 | K91: 841.825 | L91: 47863.71984 | M91: 0.5164448538 | N91: 2.917414738
A92: 2024-06-01 | B92: 2024 - II | C92: 150.4689592 | D92: -0.02976837467 | E92: -0.02049573685 | F92: -0.01083299918 | G92: -0.008242911355 | H92: 0.4 | I92: 0.5 | J92: 911.75 | K92: 894.25 | L92: 56801.66526 | M92: 0.1867373754 | N92: 2.753187532
A93: 2024-09-01 | B93: 2024 - III | C93: 147.2896278 | D93: -0.02627796692 | E93: -0.02402401213 | F93: -0.01937067199 | G93: 0.03640544144 | H93: 0.4 | I93: 0.4 | J93: 970.72 | K93: 951.735 | L93: 63666.29037 | M93: 0.1208525328 | N93: 2.124102329
A94: 2024-12-01 | B94: 2024 - IV | C94: 148.2104597 | D94: -0.01342930725 | E94: -0.01342930725 | F94: 0.02638296111 | G94: 0.01958707799 | H94: 0.32 | I94: 0.36 | J94: 1032.5 | K94: 1011.625 | L94: 68735.43889 | M94: 0.0796206044 | N94: 1.177714205
A95: 2025-03-01 | B95: 2025 - I | C95: 145.9681768 | D95: 0.05837474157 | E95: 0.01249203268 | F95: 0.05837474157 | G95: 0.01103801285 | H95: 0.29 | I95: 0.29 | J95: 1074 | K95: 1063.75 | L95: 74625.45724 | M95: 0.0856911434 | N95: 0.5591236429
A96: 2025-06-01 | B96: 2025 - II | C96: 160.0710066 | D96: 0.06121281293 | E96: 0.03182442301 | F96: 0.0638141409 | G96: -0.0005240100412 | H96: 0.35 | I96: 0.32 | J96: 1194 | K96: 1183 | L96: 79112.39493 | M96: 0.06012609987 | N96: 0.392783021
A97: 2025-09-01 | B97: 2025 - III | C97: 152.1016157 | D97: 0.05156338132 | E97: 0.04529512086 | F97: 0.03267024243 | G97: 0.002811825956 | H97: 0.4025 | I97: 0.40125 | J97: 1366.6 | K97: 1359.2 | L97: 83834.03525 | M97: 0.0596826871 | N97: 0.3167727342
A98: 2025-12-01 | B98: 2025 - IV | C98: 151.7674203 | D98: 0.04456669099 | E98: 0.04456669099 | F98: 0.02399938955 | G98: 0.0095 | H98: 0.27 | I98: 0.329 | J98: 1459 | K98: 1451 | L98: 90402.91459 | M98: 0.0783557576 | N98: 0.315230048
A99: 2026-03-01 | B99: 2026 - I | C99: 149.2425418 | D99: 0.0224320474 | E99: 0.03589123979 | F99: 0.0224320474 | G99: 0.0105 | H99: 0.3045454545 | I99: 0.3072727273 | J99: 1430 | K99: 1438.5 | L99: 97638.06108 | M99: 0.080032226 | N99: 0.3083747114
A100: 2026-06-01 | B100: 2026 - II | C100: 165.4668814 | D100: 0.02833048963 | E100: 0.02832597827 | F100: 0.03370925793 | G100: 0.0105 | H100: 0.2963636364 | I100: 0.2990909091 | J100: 1520 | K100: 1490 | L100: 103106.9759 | M100: 0.05601212 | N100: 0.3032973653
A101: 2026-09-01 | B101: 2026 - III | C101: 158.4342616 | D101: 0.03274732544 | E101: 0.03060906716 | F101: 0.04163431075 | G101: 0.0105 | H101: 0.2881818182 | I101: 0.2909090909 | J101: 1610 | K101: 1580 | L101: 107604.1838 | M101: 0.043616912 | N101: 0.2835381651
A102: 2026-12-01 | B102: 2026 - IV | C102: 158.2427507 | D102: 0.03521548909 | E102: 0.03521548909 | F102: 0.04266614266 | G102: 0.0105 | H102: 0.28 | I102: 0.2827272727 | J102: 1700 | K102: 1670 | L102: 111689.7997 | M102: 0.037968932 | N102: 0.2354668012
A103: 2027-03-01 | B103: 2027 - I | C103: 154.8401793 | D103: 0.03750698312 | E103: 0.03881631554 | F103: 0.03750698312 | G103: 0.0055 | H103: 0.265 | I103: 0.27 | J103: 1762.527874 | K103: 1741.685249 | L103: 116412.3031 | M103: 0.04228231562 | N103: 0.1922840517
A104: 2027-06-01 | B104: 2027 - II | C104: 170.8235989 | D104: 0.03480783915 | E104: 0.03841441771 | F104: 0.03237335134 | G104: 0.0055 | H104: 0.25 | I104: 0.255 | J104: 1825.055748 | K104: 1804.213123 | L104: 121334.4848 | M104: 0.04228231562 | N104: 0.1767824997
A105: 2027-09-01 | B105: 2027 - III | C105: 162.7539909 | D105: 0.03228212652 | E105: 0.03480401376 | F105: 0.027265121 | G105: 0.0055 | H105: 0.235 | I105: 0.24 | J105: 1887.583622 | K105: 1866.740997 | L105: 126464.7878 | M105: 0.04228231562 | N105: 0.1752776087
A106: 2027-12-01 | B106: 2027 - IV | C106: 161.7529177 | D106: 0.02975079962 | E106: 0.02975079962 | F106: 0.02218216642 | G106: 0.0055 | H106: 0.22 | I106: 0.225 | J106: 1950.111496 | K106: 1929.268871 | L106: 131812.0119 | M106: 0.04228231562 | N106: 0.1801615923
A107: 2028-03-01 | B107: 2028 - I | C107: 158.7313564 | D107: 0.02513028007 | E107: =AVERAGE(C104:C107)/AVERAGE(C100:C103)-1 -> 0.02681038918 | F107: =C107/C103-1 -> 0.02513028007 | G107: 0.0084 | H107: 0.21 | I107: 0.2133333333 | J107: 2009.526367 | K107: 1989.72141 | L107: 136614.4149 | M107: =L107/L106-1 -> 0.036433728 | N107: =L107/L103-1 -> 0.1735393189
A108: 2028-06-01 | B108: 2028 - II | C108: 175.6215037 | D108: 0.02668114293 | E108: 0.02571684439 | F108: 0.02808689649 | G108: 0.0084 | H108: 0.2 | I108: 0.2033333333 | J108: 2068.941237 | K108: 2049.13628 | L108: 141591.7873 | M108: 0.036433728 | N108: 0.1669542052
A109: 2028-09-01 | B109: 2028 - III | C109: 167.8078344 | D109: 0.02813764394 | E109: 0.02668029327 | F109: 0.0310520402 | G109: 0.0084 | H109: 0.19 | I109: 0.1933333333 | J109: 2128.356108 | K109: 2108.551151 | L109: 146750.5039 | M109: 0.036433728 | N109: 0.1604060427
A110: 2028-12-01 | B110: 2028 - IV | C110: 167.2566797 | D110: 0.02960251472 | E110: 0.02960251472 | F110: 0.03402573579 | G110: 0.0084 | H110: 0.18 | I110: 0.1833333333 | J110: 2187.770979 | K110: 2167.966022 | L110: 151646.7363 | M110: 0.033364331 | N110: 0.1504773669
A112: * Index SA
A113: ** From December 2015 and December 2016 Lebac 35 days rate. From December 2016 center of the corridor 7 day repo rate

Sheet Chile
D2: 2003 | E2: 2004 | F2: 2005 | G2: 2006 | H2: 2007 | I2: 2008 | J2: 2009 | K2: 2010 | L2: 2011 | M2: 2012 | N2: 2013 | O2: 2014 | P2: 2015 | Q2: 2016 | R2: 2017 | S2: 2018 | T2: 2019 | U2: 2020 | V2: 2021 | W2: 2022 | X2: 2023 | Y2: 2024 | Z2: 2025F | AA2: 2026F | AB2: 2027F | AC2: 2028F
C4: GDP % | D4: 0.041 | E4: 0.072 | F4: 0.057 | G4: 0.063 | H4: 0.049 | I4: 0.035 | J4: -0.016 | K4: 0.058 | L4: 0.061 | M4: 0.053 | N4: 0.04 | O4: 0.018 | P4: 0.022 | Q4: 0.018 | R4: 0.014 | S4: 0.04 | T4: 0.006 | U4: -0.061 | V4: 0.113 | W4: 0.022 | X4: 0.005 | Y4: 0.026 | Z4: 0.023 | AA4: 0.026 | AB4: 0.025 | AC4: 0.022
C5: CPI % | D5: 0.01072801816 | E5: 0.02428322299 | F5: 0.03658711105 | G5: 0.02570153448 | H5: 0.07829216412 | I5: 0.07089269736 | J5: -0.01482710426 | K5: 0.02974556874 | L5: 0.04440323997 | M5: 0.01485703607 | N5: 0.03 | O5: 0.046 | P5: 0.044 | Q5: 0.027 | R5: 0.023 | S5: 0.026 | T5: 0.03 | U5: 0.03 | V5: 0.072 | W5: 0.128 | X5: 0.039 | Y5: 0.045 | Z5: 0.035 | AA5: 0.028 | AB5: 0.03 | AC5: 0.03
C6: Exchange Rate - CLP / USD (end of period) | D6: 599.42 | E6: 559.83 | F6: 514.21 | G6: 534.43 | H6: 495.82 | I6: 629.11 | J6: 507.45 | K6: 468 | L6: 519.55 | M6: 479.2 | N6: 525.45 | O6: 606 | P6: 709 | Q6: 670 | R6: 615.43 | S6: 694 | T6: 753 | U6: 710.5 | V6: 851 | W6: 850.58 | X6: 879 | Y6: 996.49 | Z6: 901 | AA6: 860 | AB6: 860 | AC6: 860
C7: Monetary Policy Rate - % (end of period) | D7: 0.0225 | E7: 0.0225 | F7: 0.045 | G7: 0.0525 | H7: 0.06 | I7: 0.0825 | J7: 0.005 | K7: 0.0325 | L7: 0.0525 | M7: 0.05 | N7: 0.045 | O7: 0.03 | P7: 0.035 | Q7: 0.035 | R7: 0.025 | S7: 0.0275 | T7: 0.0175 | U7: 0.005 | V7: 0.04 | W7: 0.1125 | X7: 0.0825 | Y7: 0.05 | Z7: 0.045 | AA7: 0.0425 | AB7: 0.0425 | AC7: 0.0425

Sheet Chile_Quarterly
C1: GDP NSA | H1: Monetary Policy Rate | J1: Exchange Rate | L1: Inflation NSA
C2: Index | D2: Ydt | E2: 12M | F2: YoY | G2: QoQ* | H2: eop | I2: Avg | J2: eop | K2: Avg | L2: Index (eop) | M2: QoQ | N2: YoY**
A3: 1991-03-01 | B3: 1991 - I | C3: 40.38 | J3: 344.1 | K3: 340.72 | L3: 26.1
A4: 1991-06-01 | B4: 1991 - II | C4: 40.73 | G4: 0.03360258481 | J4: 348.04 | K4: 342.74 | L4: 27.69 | M4: =L4/L3-1 -> 0.06091954023
A5: 1991-09-01 | B5: 1991 - III | C5: 38.57 | G5: 0.009377930603 | J5: 346.1 | K5: 347.205 | L5: 29.03 | M5: 0.04839292163
A6: 1991-12-01 | B6: 1991 - IV | C6: 43.57 | G6: 0.04583462372 | J6: 363.27 | K6: 356.15 | L6: 30.52 | M6: 0.05132621426
A7: 1992-03-01 | B7: 1992 - I | C7: 45.54 | D7: =AVERAGE(OFFSET($C$1,MATCH(EDATE(A7,0),$A$1:$A$304,0)-1,,IF(MONTH($A7)=3,-1,IF(MONTH($A7)=6,-2,IF(MONTH($A7)=9,-3,-4)))))/AVERAGE(OFFSET($C$1,MATCH(EDATE(A7,-12),$A$1:$A$304,0)-1,,IF(MONTH($A7)=3,-1,IF(MONTH($A7)=6,-2,IF(MONTH($A7)=9,-3,-4)))))-1 -> 0.1277860327 | F7: =C7/C3-1 -> 0.1277860327 | G7: 0.02546639029 | J7: 340.15 | K7: 342.875 | L7: 30.8 | M7: 0.009174311927 | N7: =L7/L3-1 -> 0.1800766284
A8: 1992-06-01 | B8: 1992 - II | C8: 44.72 | D8: 0.1128097645 | F8: 0.09796219003 | G8: 0.01559341611 | J8: 348.3 | K8: 342.23 | L8: 31.71 | M8: 0.02954545455 | N8: 0.1451787649
A9: 1992-09-01 | B9: 1992 - III | C9: 43.39 | D9: 0.1167279412 | F9: 0.1249675914 | G9: 0.03724765425 | J9: 366.07 | K9: 360.13 | L9: 33.41 | M9: 0.05361084831 | N9: 0.1508784017
A10: 1992-12-01 | B10: 1992 - IV | C10: 47.82 | D10: 0.1116079632 | E10: =AVERAGE(C7:C10)/AVERAGE(C3:C6)-1 -> 0.1116079632 | F10: 0.09754418178 | G10: 0.01644736842 | J10: 382.12 | K10: 372.405 | L10: 34.4 | M10: 0.02963184675 | N10: 0.127129751
A11: 1993-03-01 | B11: 1993 - I | C11: 48.8 | D11: 0.07158541941 | E11: 0.09690635948 | F11: 0.07158541941 | G11: 0.008629989213 | J11: 401.06 | K11: 392.715 | L11: 34.71 | M11: 0.009011627907 | N11: 0.1269480519
A12: 1993-06-01 | B12: 1993 - II | C12: 48.09 | D12: 0.07345446488 | E12: 0.09106728538 | F12: 0.07535778175 | G12: 0.01229946524 | J12: 404.65 | K12: 404.9 | L12: 35.83 | M12: 0.03226735811 | N12: 0.1299274677
A13: 1993-09-01 | B13: 1993 - III | C13: 46.18 | D13: 0.07048260382 | E13: 0.07713576346 | F13: 0.06430053008 | G13: 0.02403592182 | J13: 410.83 | K13: 408.24 | L13: 37.52 | M13: 0.04716717834 | N13: 0.1230170608
A14: 1993-12-01 | B14: 1993 - IV | C14: 50.37 | D14: 0.06596131592 | E14: 0.06596131592 | F14: 0.05332496863 | G14: 0.004126902244 | J14: 431.04 | K14: 421.74 | L14: 38.59 | M14: 0.02851812367 | N14: 0.1218023256
A15: 1994-03-01 | B15: 1994 - I | C15: 50.79 | D15: 0.04077868852 | E15: 0.05792237319 | F15: 0.04077868852 | G15: 0.007706139224 | J15: 427 | K15: 429.02 | L15: 39.47 | M15: 0.02280383519 | N15: 0.137136272
A16: 1994-06-01 | B16: 1994 - II | C16: 50.77 | D16: 0.04819898854 | E16: 0.05321637427 | F16: 0.05572884176 | G16: 0.01937292888 | J16: 418.94 | K16: 422.97 | L16: 40.38 | M16: 0.02305548518 | N16: 0.1269885571
A17: 1994-09-01 | B17: 1994 - III | C17: 48.33 | D17: 0.04766897323 | E17: 0.04908586097 | F17: 0.04655695106 | G17: 0.01075268817 | J17: 412.2 | K17: 417.52 | L17: 41.42 | M17: 0.02575532442 | N17: 0.1039445629
A18: 1994-12-01 | B18: 1994 - IV | C18: 53.27 | D18: 0.05024813896 | E18: 0.05024813896 | F18: 0.05757395275 | G18: 0.01608114795 | J18: 404.09 | K18: 407.17 | L18: 42.03 | M18: 0.01472718493 | N18: 0.08914226484
A19: 1995-03-01 | B19: 1995 - I | C19: 54.51 | D19: 0.07324276432 | E19: 0.05858875301 | F19: 0.07324276432 | G19: 0.03238373509 | J19: 405.22 | K19: 406.705 | L19: 42.7 | M19: 0.01594099453 | N19: 0.08183430454
A20: 1995-06-01 | B20: 1995 - II | C20: 55.36 | D20: 0.08182355258 | E20: 0.06743728232 | F20: 0.0904077211 | G20: 0.02853773585 | H20: 0.06 | J20: 374.48 | K20: 381.34 | L20: 43.45 | M20: 0.01756440281 | N20: 0.0760277365
A21: 1995-09-01 | B21: 1995 - III | C21: 53.16 | D21: 0.08766428714 | E21: 0.08009587536 | F21: 0.09993792675 | G21: 0.01467553313 | H21: 0.06 | J21: 396.74 | K21: 390.325 | L21: 44.99 | M21: 0.03544303797 | N21: 0.08619024626
A22: 1995-12-01 | B22: 1995 - IV | C22: 58.27 | D22: 0.08928923016 | E22: 0.08928923016 | F22: 0.09386146048 | G22: 0.01039548023 | H22: 0.067 | I22: 0.0585 | J22: 407.13 | K22: 411.665 | L22: 45.47 | M22: 0.01066903756 | N22: 0.08184630026
A23: 1996-03-01 | B23: 1996 - I | C23: 58.67 | D23: 0.07631627224 | E23: 0.08981051817 | F23: 0.07631627224 | G23: 0.02415566987 | H23: 0.067 | I23: 0.066 | J23: 412.07 | K23: 412.965 | L23: 46.08 | M23: 0.01341543875 | N23: 0.07915690867
A24: 1996-06-01 | B24: 1996 - II | C24: 58.97 | D24: 0.07071994175 | E24: 0.08322693526 | F24: 0.06520953757 | G24: 0.01004586154 | H24: 0.075 | I24: 0.067 | J24: 410.35 | K24: 408.365 | L24: 47.06 | M24: 0.02126736111 | N24: 0.0830840046
A25: 1996-09-01 | B25: 1996 - III | C25: 56.69 | D25: 0.06931239649 | E25: 0.07535829866 | F25: 0.06640331076 | G25: 0.009945945946 | H25: 0.075 | I25: 0.075 | J25: 411.94 | K25: 411.285 | L25: 47.82 | M25: 0.01614959626 | N25: 0.0629028673
A26: 1996-12-01 | B26: 1996 - IV | C26: 62.02 | D26: 0.06800723 | E26: 0.06800723 | F26: 0.06435558606 | G26: 0.01434382359 | H26: 0.075 | I26: 0.075 | J26: 424.97 | K26: 422.125 | L26: 48.47 | M26: 0.01359263906 | N26: 0.06597756763
A27: 1997-03-01 | B27: 1997 - I | C27: 61.96 | D27: 0.0560763593 | E27: 0.06289363967 | F27: 0.0560763593 | G27: 0.02258336851 | H27: 0.0725 | I27: 0.075 | J27: 414.55 | K27: 416.95 | L27: 49.21 | M27: 0.01526717557 | N27: 0.06792534722
A28: 1997-06-01 | B28: 1997 - II | C28: 62.99 | D28: 0.06213872832 | E28: 0.06369232112 | F28: 0.06817025606 | G28: 0.02084623323 | H28: 0.0675 | I28: 0.07375 | J28: 416.25 | K28: 417.55 | L28: 49.55 | M28: 0.006909164804 | N28: 0.05291117722
A29: 1997-09-01 | B29: 1997 - III | C29: 61.32 | D29: 0.06849079332 | E29: 0.06745485813 | F29: 0.0816722526 | G29: 0.02264456126 | H29: 0.065 | I29: 0.06875 | J29: 414.85 | K29: 415.7 | L29: 50.69 | M29: 0.02300706357 | N29: 0.0600167294
A30: 1997-12-01 | B30: 1997 - IV | C30: 67.56 | D30: 0.07395811297 | E30: 0.07395811297 | F30: 0.08932602386 | G30: 0.02115460656 | H30: 0.065 | I30: 0.06625 | J30: 439.85 | K30: 430.175 | L30: 51.38 | M30: 0.0136121523 | N30: 0.06003713637
A31: 1998-03-01 | B31: 1998 - I | C31: 66.71 | D31: 0.07666236281 | E31: 0.0790352195 | F31: 0.07666236281 | G31: 0.008131655373 | H31: 0.085 | I31: 0.065 | J31: 454.35 | K31: 452.175 | L31: 51.82 | M31: 0.008563643441 | N31: 0.05303800041
A32: 1998-06-01 | B32: 1998 - II | C32: 67.36 | D32: 0.07298919568 | E32: 0.07916769269 | F32: 0.06937609144 | G32: 0.01690032648 | H32: 0.085 | I32: 0.0775 | J32: 466 | K32: 459.325 | L32: 52.23 | M32: 0.007912003088 | N32: 0.05408678103
A33: 1998-09-01 | B33: 1998 - III | C33: 63.73 | D33: 0.06189939335 | E33: 0.06875025172 | F33: 0.03930202218 | G33: -0.006610009443 | H33: 0.14 | I33: 0.085 | J33: 465.5 | K33: 465.275 | L33: 53.12 | M33: 0.01704001532 | N33: 0.0479384494
A34: 1998-12-01 | B34: 1998 - IV | C34: 66.65 | D34: 0.04183902612 | E34: 0.04183902612 | F34: -0.01346950858 | G34: -0.0325095057 | H34: 0.078 | I34: 0.1125 | J34: 473 | K34: 468.125 | L34: 53.8 | M34: 0.01280120482 | N34: 0.04710003893
A35: 1999-03-01 | B35: 1999 - I | C35: 65.02 | D35: -0.0253335332 | E35: 0.01616520999 | F35: -0.0253335332 | G35: 0.0001965022598 | H35: 0.07 | I35: 0.099 | J35: 483.35 | K35: 483.925 | L35: 53.94 | M35: 0.002602230483 | N35: 0.04091084523
A36: 1999-06-01 | B36: 1999 - II | C36: 65.19 | D36: -0.02879093011 | E36: -0.008975090321 | F36: -0.03221496437 | G36: 0.002750491159 | H36: 0.05 | I36: 0.07125 | J36: 517.95 | K36: 500.9 | L36: 54.21 | M36: =L36/L35-1 -> 0.005005561735 | N36: 0.03790924756
A37: 1999-09-01 | B37: 1999 - III | C37: 63.28 | D37: -0.02178968655 | E37: -0.01967138981 | F37: -0.007061038757 | G37: 0.02115987461 | H37: 0.05 | I37: 0.0575 | J37: 531.95 | K37: 523.1 | L37: 54.66 | M37: 0.008301051467 | N37: 0.02899096386
A38: 1999-12-01 | B38: 1999 - IV | C38: 70.23 | D38: -0.002760446209 | E38: -0.002760446209 | F38: 0.05371342836 | G38: 0.02628549501 | H38: 0.05 | I38: 0.05 | J38: 528.2 | K38: 538.175 | L38: 55.03 | M38: 0.006769118185 | N38: 0.02286245353
A39: 2000-03-01 | B39: 2000 - I | C39: 68.79 | D39: =AVERAGE(OFFSET($C$1,MATCH(EDATE(A39,0),$A$1:$A$304,0)-1,,IF(MONTH($A39)=3,-1,IF(MONTH($A39)=6,-2,IF(MONTH($A39)=9,-3,-4)))))/AVERAGE(OFFSET($C$1,MATCH(EDATE(A39,-12),$A$1:$A$304,0)-1,,IF(MONTH($A39)=3,-1,IF(MONTH($A39)=6,-2,IF(MONTH($A39)=9,-3,-4)))))-1 -> 0.05798215934 | E39: 0.01800121784 | F39: =C39/C35-1 -> 0.05798215934 | G39: 0.009534492428 | H39: 0.055 | I39: 0.05 | J39: 501.35 | K39: 509.3 | L39: 55.78 | M39: 0.01362892967 | N39: =L39/L35-1 -> 0.03411197627
A40: 2000-06-01 | B40: 2000 - II | C40: 69 | D40: 0.05821365487 | E40: 0.04109904448 | F40: 0.05844454671 | G40: 0.002222222222 | H40: 0.055 | I40: 0.05375 | J40: 538.55 | K40: 526.275 | L40: 56.22 | M40: 0.007888131947 | N40: 0.03707802988
A41: 2000-09-01 | B41: 2000 - III | C41: 66.45 | D41: 0.05555842679 | E41: 0.05508572307 | F41: 0.05009481669 | G41: 0.0155210643 | H41: 0.05 | I41: 0.055 | J41: 563.35 | K41: 559.05 | L41: 56.96 | M41: 0.0131625756 | N41: 0.04207830223
A42: 2000-12-01 | B42: 2000 - IV | C42: 72.6 | D42: 0.04974973457 | E42: =AVERAGE(C39:C42)/AVERAGE(C35:C38)-1 -> 0.04974973457 | F42: 0.03374626228 | G42: 0.01164483261 | H42: 0.05 | I42: 0.0525 | J42: 572.45 | K42: 571.4 | L42: 57.51 | M42: 0.009655898876 | N42: 0.04506632746
A43: 2001-03-01 | B43: 2001 - I | C43: 71.12 | D43: 0.03387120221 | E43: 0.04366518375 | F43: 0.03387120221 | G43: 0.007014388489 | H43: 0.04 | I43: 0.05 | J43: 592.65 | K43: 577.31 | L43: 57.73 | M43: 0.003825421666 | N43: 0.03495876658
A44: 2001-06-01 | B44: 2001 - II | C44: 71.9 | D44: 0.03795631033 | E44: 0.03969775157 | F44: 0.04202898551 | G44: 0.009644579389 | H44: 0.035 | I44: 0.04375 | J44: 626.85 | K44: 614.49 | L44: 58.24 | M44: 0.008834228304 | N44: 0.03593027392
A45: 2001-09-01 | B45: 2001 - III | C45: 68.28 | D45: 0.03456717587 | E45: 0.03435712464 | F45: 0.02753950339 | G45: -0.002299663895 | H45: 0.065 | I45: 0.03625 | J45: 696.2 | K45: 680.875 | L45: 59.18 | M45: 0.01614010989 | N45: 0.0389747191
A46: 2001-12-01 | B46: 2001 - IV | C46: 74.26 | D46: 0.03149833839 | E46: 0.03149833839 | F46: 0.02286501377 | G46: 0.006205673759 | H46: 0.065 | I46: 0.05 | J46: 654 | K46: 685.1 | L46: 59.01 | M46: -0.002872592092 | N46: 0.02608242045
A47: 2002-03-01 | B47: 2002 - I | C47: 71.97 | D47: 0.01195163105 | E47: 0.0259340187 | F47: 0.01195163105 | G47: 0.00845814978 | H47: 0.0475 | I47: 0.065 | J47: 656.45 | K47: 667 | L47: 59.23 | M47: 0.003728181664 | N47: 0.02598302442
A48: 2002-06-01 | B48: 2002 - II | C48: 73.76 | D48: 0.01894839883 | E48: 0.02198035949 | F48: 0.02586926287 | G48: 0.008037742443 | H48: 0.04 | I48: 0.05375 | J48: 695.45 | K48: 671.6 | L48: 59.41 | M48: 0.003039000507 | N48: 0.02008928571
A49: 2002-09-01 | B49: 2002 - III | C49: 71.17 | D49: 0.02650260293 | E49: 0.02557238464 | F49: 0.04232571763 | G49: 0.01092043682 | H49: 0.03 | I49: 0.04375 | J49: 746.75 | K49: 723.175 | L49: 60.54 | M49: 0.01902036694 | N49: 0.02298073674
A50: 2002-12-01 | B50: 2002 - IV | C50: 77.81 | D50: 0.03204230284 | E50: 0.03204230284 | F50: 0.04780500943 | G50: 0.01457475995 | H50: 0.03 | I50: 0.03125 | J50: 720.35 | K50: 726.85 | L50: 60.66 | M50: 0.001982160555 | N50: 0.02796136248
A51: 2003-03-01 | B51: 2003 - I | C51: 75.81 | D51: 0.05335556482 | E51: 0.04238678817 | F51: 0.05335556482 | G51: 0.0141963833 | H51: 0.0275 | I51: 0.03 | J51: 726.25 | K51: 730.75 | L51: 61.9 | M51: 0.02044180679 | N51: 0.04507850751
A52: 2003-06-01 | B52: 2003 - II | C52: 77.56 | D52: 0.0524257188 | E52: 0.04884309848 | F52: 0.05151843818 | G52: 0.01066488919 | H52: 0.0275 | I52: 0.0275 | J52: 695.46 | K52: 700.855 | L52: 61.54 | M52: -0.005815831987 | N52: 0.03585255008
A53: 2003-09-01 | B53: 2003 - III | C53: 74.44 | D53: 0.05029967727 | E53: 0.0496634153 | F53: 0.0459463257 | G53: 0.006430338005 | H53: 0.0275 | I53: 0.0275 | J53: 659.7 | K53: 683.7 | L53: 61.87 | M53: 0.005362365941 | N53: 0.02196894615
A54: 2003-12-01 | B54: 2003 - IV | C54: 80.83 | D54: 0.04726680466 | E54: 0.04726680466 | F54: 0.03881249197 | G54: 0.005570117955 | H54: 0.0225 | I54: 0.0275 | J54: 592.6 | K54: 610.275 | L54: 61.33 | M54: -0.008727978018 | N54: 0.0110451698
A55: 2004-03-01 | B55: 2004 - I | C55: 79.38 | D55: 0.04709141274 | E55: 0.04575447999 | F55: 0.04709141274 | G55: 0.02101661779 | H55: 0.0175 | I55: 0.025 | J55: 619.8 | K55: 609.925 | L55: 61.46 | M55: 0.002119680417 | N55: -0.007108239095
A56: 2004-06-01 | B56: 2004 - II | C56: 81.94 | D56: 0.05183543066 | E56: 0.04709773441 | F56: 0.05647240846 | G56: 0.01914791766 | H56: 0.0175 | I56: 0.0175 | J56: 635.85 | K56: 631.65 | L56: 62.22 | M56: 0.01236576635 | N56: 0.01104972376
A57: 2004-09-01 | B57: 2004 - III | C57: 79.97 | D57: 0.05917211712 | E57: 0.05398861331 | F57: 0.0742880172 | G57: 0.02630342884 | H57: 0.02 | I57: 0.0175 | J57: 606.9 | K57: 622.775 | L57: 62.8 | M57: 0.009321761491 | N57: 0.0150315177
A58: 2004-12-01 | B58: 2004 - IV | C58: 87.94 | D58: 0.06671202696 | E58: 0.06671202696 | F58: 0.0879623902 | G58: 0.01617086194 | H58: 0.0225 | I58: 0.01875 | J58: 559.2 | K58: 587.725 | L58: 62.8 | M58: 0 | N58: 0.02396869395
A59: 2005-03-01 | B59: 2005 - I | C59: 84.29 | D59: 0.06185437138 | E59: 0.07024118382 | F59: 0.06185437138 | G59: 0.001050893259 | H59: 0.0275 | I59: 0.02125 | J59: 586.75 | K59: 586.35 | L59: 62.94 | M59: 0.002229299363 | N59: 0.0240807029
A60: 2005-06-01 | B60: 2005 - II | C60: 86.8 | D60: 0.06056285643 | E60: 0.07078555861 | F60: 0.05931169148 | G60: 0.01664667067 | H60: 0.0325 | I60: 0.02625 | J60: 579.25 | K60: 582.45 | L60: 63.9 | M60: 0.01525262154 | N60: 0.02700096432
A61: 2005-09-01 | B61: 2005 - III | C61: 84.55 | D61: 0.05947200464 | E61: 0.06662113498 | F61: 0.0572714768 | G61: 0.02433987314 | H61: 0.04 | I61: 0.03125 | J61: 529.8 | K61: 546.475 | L61: 65.25 | M61: 0.02112676056 | N61: 0.03901273885
A62: 2005-12-01 | B62: 2005 - IV | C62: 92.8 | D62: 0.05834826717 | E62: 0.05834826717 | F62: 0.05526495338 | G62: 0.01209677419 | H62: 0.045 | I62: 0.0375 | J62: 513.75 | K62: 530.25 | L62: 65.12 | M62: -0.001992337165 | N62: 0.03694267516
A63: 2006-03-01 | B63: 2006 - I | C63: 89.31 | D63: 0.05955629375 | E63: 0.05782007542 | F63: 0.05955629375 | G63: 0.008964143426 | H63: 0.0475 | I63: 0.04375 | J63: 527.95 | K63: 526.1 | L63: 65.46 | M63: 0.005221130221 | N63: 0.04003813155
A64: 2006-06-01 | B64: 2006 - II | C64: 92.3 | D64: 0.06148810568 | E64: 0.05887905605 | F64: 0.0633640553 | G64: 0.02073050346 | H64: 0.05 | I64: 0.04625 | J64: 544.75 | K64: 531.325 | L64: 66.39 | M64: 0.0142071494 | N64: 0.03896713615
A65: 2006-09-01 | B65: 2006 - III | C65: 89.31 | D65: 0.05977155375 | E65: 0.05861808021 | F65: 0.05629804849 | G65: 0.01367781155 | H65: 0.0525 | I65: 0.05 | J65: 537.23 | K65: 539.24 | L65: 67.08 | M65: 0.0103931315 | N65: 0.02804597701
A66: 2006-12-01 | B66: 2006 - IV | C66: 98.61 | D66: 0.06052691999 | E66: 0.06052691999 | F66: 0.06260775862 | G66: 0.02126209622 | H66: 0.0525 | I66: 0.0525 | J66: 532.76 | K66: 529.465 | L66: 66.81 | M66: -0.004025044723 | N66: 0.02595208845
A67: 2007-03-01 | B67: 2007 - I | C67: 94.25 | D67: 0.05531295488 | E67: 0.05944095513 | F67: 0.05531295488 | G67: 0.01027625784 | H67: 0.05 | I67: 0.0525 | J67: 538.75 | K67: 540.965 | L67: 67.16 | M67: 0.005238736716 | N67: 0.02597005805
A68: 2007-06-01 | B68: 2007 - II | C68: 97.36 | D68: 0.05506304719 | E68: 0.05730443503 | F68: 0.0548212351 | G68: 0.01017173052 | H68: 0.05 | I68: 0.05 | J68: 527.65 | K68: 527.05 | L68: 68.52 | M68: =L68/L67-1 -> 0.0202501489 | N68: 0.03208314505
A69: 2007-09-01 | B69: 2007 - III | C69: 93.65 | D69: 0.05293075447 | E69: 0.05539975806 | F69: 0.04859478222 | G69: 0.002746174971 | H69: 0.0575 | I69: 0.05 | J69: 511.75 | K69: 517.5 | L69: 70.97 | M69: 0.03575598365 | N69: 0.05799045915
A70: 2007-12-01 | B70: 2007 - IV | C70: 103.37 | D70: 0.05168727843 | E70: 0.05168727843 | F70: 0.04827096643 | G70: 0.01877934272 | H70: 0.06 | I70: 0.055 | J70: 497.95 | K70: 495.535 | L70: 72.03 | M70: 0.0149358884 | N70: 0.07813201617
A71: 2008-03-01 | B71: 2008 - I | C71: 100 | D71: =AVERAGE(OFFSET($C$1,MATCH(EDATE(A71,0),$A$1:$A$304,0)-1,,IF(MONTH($A71)=3,-1,IF(MONTH($A71)=6,-2,IF(MONTH($A71)=9,-3,-4)))))/AVERAGE(OFFSET($C$1,MATCH(EDATE(A71,-12),$A$1:$A$304,0)-1,,IF(MONTH($A71)=3,-1,IF(MONTH($A71)=6,-2,IF(MONTH($A71)=9,-3,-4)))))-1 -> 0.06100795756 | E71: 0.05316847812 | F71: =C71/C67-1 -> 0.06100795756 | G71: 0.02112135177 | H71: 0.0625 | I71: 0.05875 | J71: 440.8 | K71: 453.275 | L71: 72.87 | M71: 0.01166180758 | N71: =L71/L67-1 -> 0.08502084574
A72: 2008-06-01 | B72: 2008 - II | C72: 102.23 | D72: 0.0554250822 | E72: 0.05195900192 | F72: 0.05002054232 | G72: 0.001002883289 | H72: 0.0675 | I72: 0.0625 | J72: 521.75 | K72: 490.8 | L72: 75.03 | M72: 0.02964182791 | N72: 0.09500875657
A73: 2008-09-01 | B73: 2008 - III | C73: 96.98 | D73: 0.04890275538 | E73: 0.04874045901 | F73: 0.03555792846 | G73: -0.008140262993 | H73: 0.0825 | I73: 0.065 | J73: 558.95 | K73: 533.6 | L73: 77.5 | M73: 0.03292016527 | N73: 0.09201070875
A74: 2008-12-01 | B74: 2008 - IV | C74: 104.14 | D74: 0.03787664359 | E74: =AVERAGE(C71:C74)/AVERAGE(C67:C70)-1 -> 0.03787664359 | F74: 0.00744896972 | G74: -0.008080808081 | H74: 0.0825 | I74: 0.0775 | J74: 642.25 | K74: 657.05 | L74: 77.14 | M74: -0.00464516129 | N74: 0.07094266278
A75: 2009-03-01 | B75: 2009 - I | C75: 97.74 | D75: -0.0226 | E75: 0.01701404737 | F75: -0.0226 | G75: -0.00483706721 | H75: 0.0225 | I75: 0.0825 | J75: 583.2 | K75: 600.025 | L75: 76.51 | M75: -0.008166969147 | N75: 0.04995196926
A76: 2009-06-01 | B76: 2009 - II | C76: 99.34 | D76: -0.0254660535 | E76: -0.002629931121 | F76: -0.02826958818 | G76: -0.005755947813 | H76: 0.0075 | I76: 0.0475 | J76: 533.65 | K76: 557.7 | L76: 76.45 | M76: -0.0007842112142 | N76: 0.01892576303
A77: 2009-09-01 | B77: 2009 - III | C77: 96.29 | D77: -0.01951806424 | E77: -0.01259377018 | F77: -0.007114869045 | G77: 0.01196449247 | H77: 0.005 | I77: 0.0125 | J77: 549.7 | K77: 545.215 | L77: 76.64 | M77: 0.0024852845 | N77: -0.01109677419
A78: 2009-12-01 | B78: 2009 - IV | C78: 105.47 | D78: -0.01118135614 | E78: -0.01118135614 | F78: 0.01277126944 | G78: 0.0122044241 | H78: 0.005 | I78: 0.005 | J78: 507.45 | K78: 519.11 | L78: 76.06 | M78: -0.007567849687 | N78: -0.01400051854
A79: 2010-03-01 | B79: 2010 - I | C79: 99.63 | D79: 0.01933701657 | E79: -0.0008975541649 | F79: 0.01933701657 | G79: 0.003265511178 | H79: 0.005 | I79: 0.005 | J79: 524.4 | K79: 524.575 | L79: 76.74 | M79: 0.008940310281 | N79: 0.003006142988
A80: 2010-06-01 | B80: 2010 - II | C80: 105.71 | D80: 0.04191191394 | E80: 0.0223505776 | F80: 0.06412321321 | G80: 0.03392588883 | H80: 0.01 | I80: 0.005 | J80: 546.04 | K80: 532.445 | L80: 77.37 | M80: 0.008209538702 | N80: 0.01203400916
A81: 2010-09-01 | B81: 2010 - III | C81: 103.51 | D81: 0.05276613151 | E81: 0.04228824432 | F81: 0.07498182573 | G81: 0.02348952658 | H81: 0.025 | I81: 0.0075 | J81: 483.55 | K81: 502.4 | L81: 78.1 | M81: 0.009435181595 | N81: 0.01905010438
A82: 2010-12-01 | B82: 2010 - IV | C82: 113.33 | D82: 0.05851970715 | E82: 0.05851970715 | F82: 0.0745235612 | G82: 0.01194842068 | H82: 0.0325 | I82: 0.02 | J82: 468 | K82: 478.575 | L82: 78.33 | M82: 0.002944942382 | N82: 0.02984485932
A83: 2011-03-01 | B83: 2011 - I | C83: 108.36 | D83: 0.08762420958 | E83: 0.07531255459 | F83: 0.08762420958 | G83: 0.01157353285 | H83: 0.04 | I83: 0.03 | J83: 477.45 | K83: 480.36 | L83: 79.32 | M83: 0.0126388357 | N83: 0.03362001564
A84: 2011-06-01 | B84: 2011 - II | C84: 112.33 | D84: 0.07475406643 | E84: 0.07474821911 | F84: 0.06262416044 | G84: 0.01444585693 | H84: 0.0525 | I84: 0.03625 | J84: 467.22 | K84: 463.835 | L84: 80.03 | M84: 0.008951084216 | N84: 0.03438025074
A85: 2011-09-01 | B85: 2011 - III | C85: 108.17 | D85: 0.06478873239 | E85: 0.06726684688 | F85: 0.04501980485 | G85: 0.006379585327 | H85: 0.0525 | I85: 0.04875 | J85: 519.75 | K85: 488.775 | L85: 80.66 | M85: 0.007872047982 | N85: 0.03277848912
A86: 2011-12-01 | B86: 2011 - IV | C86: 119.6 | D86: 0.0622483301 | E86: 0.0622483301 | F86: 0.05532515662 | G86: 0.02173420874 | H86: 0.0525 | I86: 0.0525 | J86: 519.55 | K86: 504.875 | L86: 81.8 | M86: 0.01413339945 | N86: 0.04429975744
A87: 2012-03-01 | B87: 2012 - I | C87: 114.89 | D87: 0.06026208933 | E87: 0.05588173865 | F87: 0.06026208933 | G87: 0.02060713494 | H87: 0.05 | I87: 0.0525 | J87: 488.35 | K87: 489.95 | L87: 82.33 | M87: 0.006479217604 | N87: 0.03794755421
A88: 2012-06-01 | B88: 2012 - II | C88: 119.63 | D88: 0.06266708958 | E88: 0.05659040523 | F88: 0.06498709161 | G88: 0.01845419019 | H88: 0.05 | I88: 0.05 | J88: 501.08 | K88: 493.065 | L88: 82.15 | M88: -0.002186323333 | N88: 0.02649006623
A89: 2012-09-01 | B89: 2012 - III | C89: 115.34 | D89: 0.06385696041 | E89: 0.06167032271 | F89: 0.06628455209 | G89: 0.00778085696 | H89: 0.05 | I89: 0.05 | J89: 474.7 | K89: 478.55 | L89: 82.95 | M89: 0.009738283628 | N89: 0.0283907761
A90: 2012-12-01 | B90: 2012 - IV | C90: 126.21 | D90: 0.06156624894 | E90: 0.06156624894 | F90: 0.05526755853 | G90: 0.005922792173 | H90: 0.05 | I90: 0.05 | J90: 479.2 | K90: 480.11 | L90: 83.02 | M90: 0.0008438818565 | N90: 0.01491442543
A91: 2013-03-01 | B91: 2013 - I | C91: 119.64 | D91: 0.04134389416 | E91: 0.05677047847 | F91: 0.04134389416 | G91: 0.008937020292 | H91: 0.05 | I91: 0.05 | J91: 472.15 | K91: 471.7 | L91: 83.58 | M91: 0.006745362563 | N91: 0.01518280092
A92: 2013-06-01 | B92: 2013 - II | C92: 123.74 | D92: 0.03777929388 | E92: 0.04897358801 | F92: 0.03435593079 | G92: 0.00719049604 | H92: 0.05 | I92: 0.05 | J92: 508.42 | K92: 489.73 | L92: 83.7 | M92: 0.001435750179 | N92: 0.01886792453
A93: 2013-09-01 | B93: 2013 - III | C93: 118.72 | D93: 0.03498542274 | E93: 0.04015251566 | F93: 0.02930466447 | G93: 0.006932229695 | H93: 0.05 | I93: 0.05 | J93: 504.67 | K93: 509.12 | L93: 84.58 | M93: 0.01051373955 | N93: 0.0196503918
A94: 2013-12-01 | B94: 2013 - IV | C94: 129.72 | D94: 0.03308337009 | E94: 0.03308337009 | F94: 0.02781079154 | G94: 0.004007398274 | H94: 0.045 | I94: 0.05 | J94: 525.45 | K94: 519.505 | L94: 85.52 | M94: 0.01111373847 | N94: 0.03011322573
A95: 2014-03-01 | B95: 2014 - I | C95: 122.57 | D95: 0.02449013708 | E95: 0.02897134063 | F95: 0.02449013708 | G95: 0.002558591751 | H95: 0.04 | I95: 0.04625 | J95: 549.47 | K95: 552.635 | L95: 86.81 | M95: 0.01508419083 | N95: 0.038645609
A96: 2014-06-01 | B96: 2014 - II | C96: 125.84 | D96: 0.02066726929 | E96: 0.02458086734 | F96: 0.01697106837 | G96: 0.007145773785 | H96: 0.04 | I96: 0.0425 | J96: 552.95 | K96: 558.9 | L96: 87.69 | M96: 0.01013708098 | N96: 0.0476702509
A97: 2014-09-01 | B97: 2014 - III | C97: 120.27 | D97: 0.01817177575 | E97: 0.02066310336 | F97: 0.01305592992 | G97: -0.003547536996 | H97: 0.0325 | I97: 0.04 | J97: 598.31 | K97: 585.21 | L97: 88.92 | M97: 0.01402668491 | N97: 0.05131236699
A98: 2014-12-01 | B98: 2014 - IV | C98: 131.96 | D98: 0.01793339026 | E98: 0.01793339026 | F98: 0.01726796176 | G98: 0.01149425287 | H98: 0.03 | I98: 0.035 | J98: 606 | K98: 592.03 | L98: 89.5 | M98: 0.006522717049 | N98: 0.04653882133
A99: 2015-03-01 | B99: 2015 - I | C99: 125.62 | D99: 0.0248837399 | E99: 0.01806973219 | F99: 0.0248837399 | G99: 0.005631536605 | H99: 0.03 | I99: 0.03 | J99: 625.29 | K99: 630.025 | L99: 90.44 | M99: 0.0105027933 | N99: 0.04181545905
A100: 2015-06-01 | B100: 2015 - II | C100: 128.41 | D100: 0.02262388793 | E100: 0.0189393177 | F100: 0.02042275906 | G100: 0.009 | H100: 0.03 | I100: 0.03 | J100: 639.12 | K100: 625.51 | L100: 91.57 | M100: =L100/L99-1 -> 0.01249447147 | N100: 0.04424677842
A101: 2015-09-01 | B101: 2015 - III | C101: 123 | D101: 0.02264836715 | E101: 0.02124799358 | F101: 0.02269892741 | G101: -0.003865213082 | H101: 0.03 | I101: 0.03 | J101: 696.38 | K101: 684.13 | L101: 93.05 | M101: 0.01616249863 | N101: 0.04644624381
A102: 2015-12-01 | B102: 2015 - IV | C102: 134.38 | D102: 0.02151246405 | E102: 0.02151246405 | F102: 0.01833889057 | G102: 0.008755347727 | H102: 0.035 | I102: 0.03 | J102: 709 | K102: 700.205 | L102: 93.41 | M102: 0.003868887695 | N102: 0.04368715084
A103: 2016-03-01 | B103: 2016 - I | C103: 129.33 | D103: =AVERAGE(OFFSET($C$1,MATCH(EDATE(A103,0),$A$1:$A$304,0)-1,,IF(MONTH($A103)=3,-1,IF(MONTH($A103)=6,-2,IF(MONTH($A103)=9,-3,-4)))))/AVERAGE(OFFSET($C$1,MATCH(EDATE(A103,-12),$A$1:$A$304,0)-1,,IF(MONTH($A103)=3,-1,IF(MONTH($A103)=6,-2,IF(MONTH($A103)=9,-3,-4)))))-1 -> 0.02953351377 | E103: 0.02269252913 | F103: =C103/C99-1 -> 0.02953351377 | G103: 0.00838346977 | H103: 0.035 | I103: 0.03375 | J103: 667.7 | K103: 689.65 | L103: 94.47 | M103: 0.01134782143 | N103: =L103/L99-1 -> 0.04455992923
A104: 2016-06-01 | B104: 2016 - II | C104: 130.03 | D104: 0.02098177381 | E104: 0.02070082566 | F104: 0.01261583989 | G104: -0.003423317684 | H104: 0.035 | I104: 0.035 | J104: 663.24 | K104: 661.845 | L104: 95.42 | M104: 0.01005610247 | N104: 0.04204433767
A105: 2016-09-01 | B105: 2016 - III | C105: 125.45 | D105: 0.02063496274 | E105: 0.02003968644 | F105: 0.01991869919 | G105: 0.006477573854 | H105: 0.035 | I105: 0.035 | J105: 657.75 | K105: 656.725 | L105: 95.93 | M105: 0.005344791448 | N105: 0.03095110156
A106: 2016-12-01 | B106: 2016 - IV | C106: 135.56 | D106: 0.01752018928 | E106: =AVERAGE(C103:C106)/AVERAGE(C99:C102)-1 -> 0.01752018928 | F106: 0.008781068611 | G106: 0.0003900536324 | H106: 0.035 | I106: 0.035 | J106: 670 | K106: 661.61 | L106: 95.94 | M106: 0.000104242677 | N106: 0.02708489455
A107: 2017-03-01 | B107: 2017 - I | C107: 128.85 | D107: -0.003711435862 | E107: 0.009259978257 | F107: -0.003711435862 | G107: -0.008187932547 | H107: 0.03 | I107: 0.035 | J107: 660.17 | K107: 653.735 | L107: 97.06 | M107: 0.01167396289 | N107: 0.02741611093
A108: 2017-06-01 | B108: 2017 - II | C108: 130.91 | D108: 0.001542257866 | E108: 0.00779889306 | F108: 0.006767668999 | G108: 0.01346437346 | H108: 0.025 | I108: 0.03125 | J108: 663.9 | K108: 665.625 | L108: 97.04 | M108: -0.0002060581084 | N108: 0.01697757284
A109: 2017-09-01 | B109: 2017 - III | C109: 127.78 | D109: 0.007094410228 | E109: 0.00753096169 | F109: 0.01857313671 | G109: 0.01891000776 | H109: 0.025 | I109: 0.02625 | J109: 639.11 | K109: 642.055 | L109: 97.32 | M109: 0.002885408079 | N109: 0.0144897321
A110: 2017-12-01 | B110: 2017 - IV | C110: 139.89 | D110: 0.01356726944 | E110: 0.01356726944 | F110: 0.03194157569 | G110: 0.009422289902 | H110: 0.025 | I110: 0.025 | J110: 615.43 | K110: 625.385 | L110: 98.12 | M110: 0.008220304151 | N110: 0.02272253492
A111: 2018-03-01 | B111: 2018 - I | C111: 134.68 | D111: 0.04524641055 | E111: 0.02571697859 | F111: 0.04524641055 | G111: 0.008768621535 | H111: 0.025 | I111: 0.025 | J111: 603.9 | K111: 602.655 | L111: 98.82 | M111: 0.007134121484 | N111: 0.01813311354
A112: 2018-06-01 | B112: 2018 - II | C112: 138.11 | D112: 0.05016168771 | E112: 0.03780939762 | F112: 0.05499961806 | G112: 0.01317880176 | H112: 0.025 | I112: 0.025 | J112: 653.9 | K112: 633.78 | L112: 99.52 | M112: 0.007083586319 | N112: 0.02555647156
A113: 2018-09-01 | B113: 2018 - III | C113: 130.85 | D113: 0.04154409867 | E113: 0.0390556299 | F113: 0.02402566912 | G113: -0.00479704797 | H113: 0.025 | I113: 0.025 | J113: 656.83 | K113: 646.75 | L113: 100.38 | M113: 0.0086414791 | N113: 0.03144266338
A114: 2018-12-01 | B114: 2018 - IV | C114: 144.84 | D114: 0.03991050945 | E114: 0.03991050945 | F114: 0.03538494531 | G114: 0.01473859844 | H114: 0.0275 | I114: 0.025 | J114: 694 | K114: 695.4 | L114: 100.64 | M114: 0.002590157402 | N114: 0.02568283734
A115: 2019-03-01 | B115: 2019 - I | C115: 136.35 | D115: 0.0123997624 | E115: 0.03167310505 | F115: 0.0123997624 | G115: -0.007125239792 | H115: 0.03 | I115: 0.0275 | J115: 679.72 | K115: 667.13 | L115: 101.27 | M115: 0.006259936407 | N115: 0.02479255211
A116: 2019-06-01 | B116: 2019 - II | C116: 139.77 | D116: 0.01220719235 | E116: 0.02100062909 | F116: 0.01201940482 | G116: 0.01278866501 | H116: 0.025 | I116: 0.03 | J116: 678.73 | K116: 677.745 | L116: 102.2 | M116: 0.009183371186 | N116: 0.02692926045
A117: 2019-09-01 | B117: 2019 - III | C117: 134.97 | D117: 0.01845704093 | E117: 0.02281382812 | F117: 0.03148643485 | G117: 0.001998546512 | H117: 0.02 | I117: 0.0275 | J117: 728.66 | K117: 712.94 | L117: 102.63 | M117: 0.004207436399 | N117: 0.02241482367
A118: 2019-12-01 | B118: 2019 - IV | C118: 140.87 | D118: 0.006344807468 | E118: 0.006344807468 | F118: -0.02740955537 | G118: -0.03889392566 | H118: 0.0175 | I118: 0.0225 | J118: 753 | K118: 747.18 | L118: 103.66 | M118: 0.01003605184 | N118: 0.03000794913
A119: 2020-03-01 | B119: 2020 - I | C119: 136.05 | D119: -0.002200220022 | E119: 0.002744705989 | F119: -0.002200220022 | G119: 0.01877181398 | H119: 0.005 | I119: 0.0175 | J119: 853.79 | K119: 827.165 | L119: 105.06 | M119: 0.01350569168 | N119: 0.03742470623
A120: 2020-06-01 | B120: 2020 - II | C120: 118.91 | D120: -0.07663334782 | E120: -0.03807469962 | F120: -0.1492451885 | G120: -0.1267592593 | H120: 0.005 | I120: 0.01125 | J120: 821.24 | K120: 828.385 | L120: 104.89 | M120: -0.001618122977 | N120: 0.02632093933
A121: 2020-09-01 | B121: 2020 - III | C121: 122.2 | D121: -0.0825366708 | E121: -0.06817405069 | F121: -0.09461361784 | G121: 0.05015374828 | H121: 0.005 | I121: 0.005 | J121: 784.31 | K121: 771.02 | L121: 105.79 | M121: 0.00858041758 | N121: 0.03079021729
A122: 2020-12-01 | B122: 2020 - IV | C122: 140.89 | D122: -0.06143561128 | E122: -0.06143561128 | F122: 0.0001419748704 | G122: 0.06906300485 | H122: 0.005 | I122: 0.005 | J122: 710.5 | K122: 742.165 | L122: 106.73 | M122: 0.008885527933 | N122: 0.02961605248
A123: 2021-03-01 | B123: 2021 - I | C123: 136.75 | D123: 0.005145167218 | E123: -0.05965631005 | F123: 0.005145167218 | G123: 0.03721193804 | H123: 0.005 | I123: 0.005 | J123: 719.04 | K123: 725.77 | L123: 108.08 | M123: 0.01264873981 | N123: 0.02874547877
A124: 2021-06-01 | B124: 2021 - II | C124: 140.71 | D124: 0.08824913712 | E124: 0.01836850038 | F124: 0.1833319317 | G124: 0.009561099982 | H124: 0.005 | I124: 0.005 | J124: 734.38 | K124: 722.365 | L124: 108.87 | M124: 0.007309400444 | N124: 0.0379445133
A125: 2021-09-01 | B125: 2021 - III | C125: 141.98 | D125: 0.1121009651 | E125: 0.08165550258 | F125: 0.1618657938 | G125: 0.04212140345 | H125: 0.015 | I125: 0.005 | J125: 810.13 | K125: 784.565 | L125: 111.43 | M125: 0.02351428309 | N125: 0.0533131676
A126: 2021-12-01 | B126: 2021 - IV | C126: 157.23 | D126: 0.1131551009 | E126: 0.1131551009 | F126: 0.1159770033 | G126: 0.0214644279 | H126: 0.04 | I126: 0.01125 | J126: 851 | K126: 828.235 | L126: 114.37 | M126: 0.02638427712 | N126: 0.07158249789
A127: 2022-03-01 | B127: 2022 - I | C127: 145.09 | D127: 0.06098720293 | E127: 0.1277301205 | F127: 0.06098720293 | G127: -0.01423487544 | H127: 0.07 | I127: 0.03375 | J127: 786 | K127: 793.3 | L127: 118.26 | M127: 0.03401241584 | N127: 0.09418948927
A128: 2022-06-01 | B128: 2022 - II | C128: 147.03 | D128: 0.05283644489 | E128: 0.09394135603 | F128: 0.04491507356 | G128: -0.001633144232 | H128: 0.09 | I128: 0.0625 | J128: 918.15 | K128: 884.885 | L128: 122.48 | M128: 0.03568408591 | N128: 0.1250114816
A129: 2022-09-01 | B129: 2022 - III | C129: 143 | D129: 0.03738317757 | E129: 0.05714489676 | F129: 0.007184110438 | G129: -0.001635815755 | H129: 0.1075 | I129: 0.08 | J129: 968.38 | K129: 934.74 | L129: 126.75 | M129: 0.03486283475 | N129: 0.1374854169
A130: 2022-12-01 | B130: 2022 - IV | C130: 153.97 | D130: 0.02153744776 | E130: 0.02153744776 | F130: -0.02073395662 | G130: -0.002414625733 | H130: 0.1125 | I130: 0.1025 | J130: 850.58 | K130: 877.79 | L130: 129.02 | M130: 0.01790927022 | N130: 0.1280930314
A131: 2023-03-01 | B131: 2023 - I | C131: 144.68 | D131: -0.002825832242 | E131: 0.006273397036 | F131: -0.002825832242 | G131: 0.001728907331 | H131: 0.1125 | I131: 0.1125 | J131: 795.47 | K131: 796.48 | L131: 131.38 | M131: 0.01829173772 | N131: 0.1109419922
A132: 2023-06-01 | B132: 2023 - II | C132: 146.88 | D132: -0.001917020403 | E132: -0.004735088698 | F132: -0.001020199959 | G132: 0.003192958233 | H132: 0.1125 | I132: 0.1125 | J132: 801.81 | K132: 804.53 | L132: 131.74 | M132: =L132/L131-1 -> 0.002740143096 | N132: 0.07560418027
A133: 2023-09-01 | B133: 2023 - III | C133: 144.99 | D133: 0.003286449715 | E133: -0.003089389719 | F133: 0.01391608392 | G133: 0.01204301075 | H133: 0.095 | I133: 0.1125 | J133: 892.8 | K133: 865.775 | L133: 133.24 | M133: 0.01138606346 | N133: 0.05120315582
A134: 2023-12-01 | B134: 2023 - IV | C134: 155.62 | D134: 0.00522840313 | E134: 0.00522840313 | F134: 0.01071637332 | G134: -0.003144921377 | H134: 0.0825 | I134: 0.09875 | J134: 879 | K134: 888.19 | L134: 134.1 | M134: 0.006454518163 | N134: 0.03937374051
A135: =EDATE(A134,3) -> 2024-03-01 | B135: 2024 - I | C135: 149.49 | D135: =AVERAGE(OFFSET($C$1,MATCH(EDATE(A135,0),$A$1:$A$304,0)-1,,IF(MONTH($A135)=3,-1,IF(MONTH($A135)=6,-2,IF(MONTH($A135)=9,-3,-4)))))/AVERAGE(OFFSET($C$1,MATCH(EDATE(A135,-12),$A$1:$A$304,0)-1,,IF(MONTH($A135)=3,-1,IF(MONTH($A135)=6,-2,IF(MONTH($A135)=9,-3,-4)))))-1 -> 0.0332457838 | E135: 0.0140993409 | F135: =C135/C131-1 -> 0.0332457838 | G135: 0.0144952251 | H135: 0.0725 | I135: 0.08625 | J135: 980.15 | K135: 954.6125 | L135: 136.3 | M135: 0.01640566741 | N135: =L135/L131-1 -> 0.03744862232
A136: 2024-06-01 | B136: 2024 - II | C136: 148.67 | D136: 0.02263685005 | E136: 0.01739928296 | F136: 0.01218681917 | G136: -0.006219532695 | H136: 0.0575 | I136: 0.0725 | J136: 941.05 | K136: 950.69 | L136: 137.25 | M136: 0.006969919296 | N136: 0.04182480644
A137: 2024-09-01 | B137: 2024 - III | C137: 147.87 | D137: 0.02171572558 | E137: 0.01884779516 | F137: 0.01986343886 | G137: 0.01674560217 | H137: 0.055 | I137: 0.06125 | J137: 898.7 | K137: 920.43 | L137: 138.74 | M137: 0.010856102 | N137: 0.04127889523
A138: 2024-12-01 | B138: 2024 - IV | C138: 161.79 | D138: 0.02642822163 | E138: =AVERAGE(C135:C138)/AVERAGE(C131:C134)-1 -> 0.02642822163 | F138: 0.03964786017 | G138: 0.006404924305 | H138: 0.05 | I138: 0.05625 | J138: 996.49 | K138: 978.955 | L138: 140.18 | M138: 0.01037912642 | N138: 0.04533929903
A139: 2025-03-01 | B139: 2025 - I | C139: 153.38 | D139: 0.02602180748 | E139: 0.02467419344 | F139: 0.02602180748 | G139: 0.009339614844 | H139: 0.05 | I139: 0.05125 | J139: 951.08 | K139: 965.95 | L139: 142.95 | M139: 0.01976030818 | N139: 0.04878943507
A140: 2025-06-01 | B140: 2025 - II | C140: 153.57 | D140: 0.02948081567 | E140: 0.02979441188 | F140: 0.03295890227 | G140: 0.00425810678 | H140: 0.05 | I140: 0.05 | J140: 931.62 | K140: 940.01 | L140: 142.91 | M140: -0.0002798181182 | N140: 0.04123861566
A141: 2025-09-01 | B141: 2025 - III | C141: 150.21 | D141: 0.02495347847 | E141: 0.02875425912 | F141: 0.01582471089 | G141: -0.001549249837 | H141: 0.0475 | I141: 0.05 | J141: 962.5 | K141: 967.54 | L141: 144.85 | M141: 0.01357497726 | N141: 0.04403921003
A142: 2025-12-01 | B142: 2025 - IV | C142: 164.49 | D142: 0.02275344674 | E142: 0.02275344674 | F142: 0.01668829965 | G142: 0.003511637403 | H142: 0.045 | I142: 0.0475 | J142: 901 | K142: 921.69 | L142: 145.02 | M142: 0.001173627891 | N142: 0.03452703667
A143: 2026-03-01 | B143: 2026 - I | C143: 155.91 | D143: 0.01649497979 | E143: 0.02038547678 | F143: 0.01649497979 | G143: 0.01163736979 | H143: 0.0425 | I143: 0.04625 | J143: 845 | K143: 859.35 | L143: 146.37 | M143: 0.009309060819 | N143: 0.02392444911
A144: 2026-06-01 | B144: 2026 - II | C144: 157.28 | D144: 0.02032904382 | E144: 0.01829357292 | F144: 0.02415836426 | G144: 0.005952859786 | H144: 0.0425 | I144: 0.04375 | J144: 849 | K144: 847 | L144: 146.81 | M144: 0.003006080481 | N144: 0.02728990274
A145: 2026-09-01 | B145: 2026 - III | C145: 155.12 | D145: 0.02438971039 | E145: 0.02237660554 | F145: 0.03268757073 | G145: 0.008636545382 | H145: 0.0425 | I145: 0.0425 | J145: 855 | K145: 853 | L145: 148.36 | M145: 0.01055786391 | N145: 0.0242319641
A146: 2026-12-01 | B146: 2026 - IV | C146: 169.19 | D146: 0.02549666211 | E146: 0.02549666211 | F146: 0.02857316554 | G146: 0.006818362007 | H146: 0.0425 | I146: 0.0425 | J146: 860 | K146: 858.5 | L146: 149.11 | M146: 0.005055270963 | N146: 0.02820300648
A147: 2027-03-01 | B147: 2027 - I | C147: 160.19 | D147: 0.02745173498 | E147: 0.02819699446 | F147: 0.02745173498 | G147: 0.005748484133 | H147: 0.0425 | I147: 0.0425 | J147: 860 | K147: 860 | L147: 150.6 | M147: 0.009992622896 | N147: 0.02889936462
A148: 2027-06-01 | B148: 2027 - II | C148: 161.5 | D148: 0.02714007472 | E148: 0.02884263167 | F148: 0.0268311292 | G148: 0.005402442844 | H148: 0.0425 | I148: 0.0425 | J148: 860 | K148: 860 | L148: 151.13 | M148: 0.003519256308 | N148: 0.02942578843
A149: 2027-09-01 | B149: 2027 - III | C149: 158.77 | D149: 0.0259443531 | E149: 0.02662768647 | F149: 0.02353017019 | G149: 0.005373413286 | H149: 0.0425 | I149: 0.0425 | J149: 860 | K149: 860 | L149: 152.73 | M149: 0.01058691193 | N149: 0.02945537881
A150: 2027-12-01 | B150: 2027 - IV | C150: 173.27 | D150: 0.02545882353 | E150: 0.02545882353 | F150: 0.02411490041 | G150: 0.005422153369 | H150: 0.0425 | I150: 0.0425 | J150: 860 | K150: 860 | L150: 153.57 | M150: 0.005499901787 | N150: 0.0299108041
A151: 2028-03-01 | B151: 2028 - I | C151: 163.69 | D151: 0.02184905425 | E151: 0.02407367011 | F151: 0.02184905425 | G151: 0.005392912173 | H151: 0.0425 | I151: 0.0425 | J151: 860 | K151: 860 | L151: 155.04 | M151: 0.009572182067 | N151: 0.02948207171
A152: 2028-06-01 | B152: 2028 - II | C152: 165.03 | D152: 0.02185333706 | E152: 0.02284829721 | F152: 0.02185758514 | G152: 0.005363984674 | H152: 0.0425 | I152: 0.0425 | J152: 860 | K152: 860 | L152: 155.73 | M152: 0.004450464396 | N152: 0.0304373718
A153: 2028-09-01 | B153: 2028 - III | C153: 162.24 | D153: 0.02185405653 | E153: 0.02244285384 | F153: 0.02185551427 | G153: 0.005411585366 | H153: 0.0425 | I153: 0.0425 | J153: 860 | K153: 860 | L153: 157.3 | M153: 0.0100815514 | N153: 0.02992208472
A154: 2028-12-01 | B154: 2028 - IV | C154: 177.05 | D154: 0.0218438805 | E154: 0.0218438805 | F154: 0.02181566342 | G154: 0.005382457736 | H154: 0.0425 | I154: 0.0425 | J154: 860 | K154: 860 | L154: 158.16 | M154: 0.005467260013 | N154: 0.02988865013
A156: * Index SA
A157: ** Growth rate calculated from the CPI constructed with QoQ variations of 2018 CPI basket on historical 2013 CPI.

Sheet Colombia
D2: 2003 | E2: 2004 | F2: 2005 | G2: 2006 | H2: 2007 | I2: 2008 | J2: 2009 | K2: 2010 | L2: 2011 | M2: 2012 | N2: 2013 | O2: 2014 | P2: 2015 | Q2: 2016 | R2: 2017 | S2: 2018 | T2: 2019 | U2: 2020 | V2: 2021 | W2: 2022 | X2: 2023 | Y2: 2024 | Z2: 2025 | AA2: 2026F | AB2: 2027F | AC2: 2028F
C4: GDP % | G4: 0.067 | H4: 0.067 | I4: 0.033 | J4: 0.011 | K4: 0.045 | L4: 0.069 | M4: 0.03903054219 | N4: 0.051 | O4: 0.045 | P4: 0.034 | Q4: 0.02 | R4: 0.016 | S4: 0.022 | T4: 0.031 | U4: -0.056 | V4: 0.067 | W4: 0.097 | X4: 0.013 | Y4: 0.011 | Z4: 0.027 | AA4: 0.023 | AB4: 0.023 | AC4: 0.026
C5: CPI % | D5: 0.06490638787 | E5: 0.05497524436 | F5: 0.04854900675 | G5: 0.04477906888 | H5: 0.05694069897 | I5: 0.07674755051 | J5: 0.0200181 | K5: 0.03171218236 | L5: 0.03725788702 | M5: 0.02436790033 | N5: 0.019 | O5: 0.037 | P5: 0.068 | Q5: 0.057 | R5: 0.041 | S5: 0.032 | T5: 0.038 | U5: 0.016 | V5: 0.056 | W5: 0.131 | X5: 0.093 | Y5: 0.052 | Z5: 0.051 | AA5: 0.067 | AB5: 0.057 | AC5: 0.04
C6: Exchange Rate - COP / USD (end of period) | D6: 2778.21 | E6: 2389.75 | F6: 2284.22 | G6: 2238.79 | H6: 2014.76 | I6: 2243.59 | J6: 2043.79 | K6: 1907.7 | L6: 1938.5 | M6: 1767 | N6: 1929.51 | O6: 2376.51 | P6: 3149.47 | Q6: 3000.71 | R6: 2984 | S6: 3249.75 | T6: 3277.14 | U6: 3432.5 | V6: 3981.16 | W6: 4810.2 | X6: 3822.05 | Y6: 4409.15 | Z6: 3757.08 | AA6: 3700 | AB6: 3700 | AC6: 3700
C7: Monetary Policy Rate - % (end of period) | D7: 0.0725 | E7: 0.065 | F7: 0.06 | G7: 0.075 | H7: 0.095 | I7: 0.095 | J7: 0.035 | K7: 0.03 | L7: 0.0475 | M7: 0.0425 | N7: 0.0325 | O7: 0.045 | P7: 0.0575 | Q7: 0.075 | R7: 0.0475 | S7: 0.0425 | T7: 0.0425 | U7: 0.0175 | V7: 0.03 | W7: 0.12 | X7: 0.13 | Y7: 0.095 | Z7: 0.0925 | AA7: 0.12 | AB7: 0.1075 | AC7: 0.0825

Sheet Colombia_Quarterly
C1: GDP SA | H1: Monetary Policy Rate | J1: Exchange Rate | L1: Inflation NSA
C2: Index | D2: Ydt | E2: 12M | F2: YoY | G2: QoQ* | H2: eop | I2: Avg | J2: eop | K2: Avg | L2: Index (eop) | M2: QoQ | N2: YoY
A3: 1991-03-01 | B3: 1991 - I | L3: 12.24
A4: 1991-06-01 | B4: 1991 - II | L4: 13.06 | M4: =L4/L3-1 -> 0.06699346405
A5: 1991-09-01 | B5: 1991 - III | L5: 13.66 | M5: 0.04594180704
A6: 1991-12-01 | B6: 1991 - IV | L6: 14.21 | M6: 0.04026354319
A7: 1992-03-01 | B7: 1992 - I | L7: 15.55 | M7: 0.09429978888 | N7: =L7/L3-1 -> 0.2704248366
A8: 1992-06-01 | B8: 1992 - II | L8: 16.74 | M8: 0.07652733119 | N8: 0.2817764165
A9: 1992-09-01 | B9: 1992 - III | J9: 702.81 | L9: 17.34 | M9: 0.03584229391 | N9: 0.2693997072
A10: 1992-12-01 | B10: 1992 - IV | J10: 735 | K10: 726.185 | L10: 17.78 | M10: 0.02537485582 | N10: 0.2512315271
A11: 1993-03-01 | B11: 1993 - I | J11: 766.79 | K11: 755.965 | L11: 19.31 | M11: 0.08605174353 | N11: 0.2418006431
A12: 1993-06-01 | B12: 1993 - II | J12: 787.12 | K12: 781.03 | L12: 20.32 | M12: 0.05230450544 | N12: 0.2138590203
A13: 1993-09-01 | B13: 1993 - III | J13: 810.84 | K13: 805.94 | L13: 21.06 | M13: 0.03641732283 | N13: 0.214532872
A14: 1993-12-01 | B14: 1993 - IV | J14: 802.33 | K14: 809.62 | L14: 21.8 | M14: 0.0351377018 | N14: 0.2260967379
A15: 1994-03-01 | B15: 1994 - I | J15: 820.78 | K15: 819.58 | L15: 23.84 | M15: 0.09357798165 | N15: 0.2345934749
A16: 1994-06-01 | B16: 1994 - II | J16: 819.64 | K16: 828.96 | L16: 25.01 | M16: 0.04907718121 | N16: 0.2308070866
A17: 1994-09-01 | B17: 1994 - III | J17: 841.2 | K17: 828.41 | L17: 25.76 | M17: 0.0299880048 | N17: 0.2231718898
A18: 1994-12-01 | B18: 1994 - IV | J18: 831.2 | K18: 836.26 | L18: 26.73 | M18: 0.0376552795 | N18: 0.226146789
A19: 1995-03-01 | B19: 1995 - I | J19: 876.21 | K19: 866.31 | L19: 28.92 | M19: 0.08193041526 | N19: 0.2130872483
A20: 1995-06-01 | B20: 1995 - II | J20: 881.23 | K20: 878.72 | L20: 30.42 | M20: 0.05186721992 | N20: 0.2163134746
A21: 1995-09-01 | B21: 1995 - III | J21: 973.2 | K21: 934.38 | L21: 31.12 | M21: 0.02301117686 | N21: 0.2080745342
A22: 1995-12-01 | B22: 1995 - IV | J22: 988.16 | K22: 991.33 | L22: 31.93 | M22: 0.02602827763 | N22: 0.1945379723
A23: 1996-03-01 | B23: 1996 - I | J23: 1048.42 | K23: 1038.28 | L23: 34.77 | M23: 0.08894456624 | N23: 0.2022821577
A24: 1996-06-01 | B24: 1996 - II | J24: 1071 | K24: 1062.5 | L24: 36.42 | M24: 0.04745470233 | N24: 0.1972386588
A25: 1996-09-01 | B25: 1996 - III | J25: 1030 | K25: 1045.74 | L25: 37.82 | M25: 0.03844041735 | N25: 0.2152956298
A26: 1996-12-01 | B26: 1996 - IV | J26: 1005.4 | K26: 1006.675 | L26: 38.84 | M26: 0.02696985722 | N26: 0.2164108988
A27: 1997-03-01 | B27: 1997 - I | J27: 1059.88 | K27: 1065.425 | L27: 41.35 | M27: 0.06462409887 | N27: 0.1892436008
A28: 1997-06-01 | B28: 1997 - II | J28: 1089 | K28: 1071.3 | L28: 43.22 | M28: 0.04522370012 | N28: 0.1867105986
A29: 1997-09-01 | B29: 1997 - III | J29: 1243 | K29: 1174.6 | L29: 44.64 | M29: 0.03285515965 | N29: 0.1803278689
A30: 1997-12-01 | B30: 1997 - IV | J30: 1289.5 | K30: 1285.35 | L30: 45.71 | M30: 0.02396953405 | N30: 0.1768795057
A31: 1998-03-01 | B31: 1998 - I | J31: 1360 | K31: 1350.5 | L31: 49.31 | M31: 0.0787573835 | N31: 0.192503023
A32: 1998-06-01 | B32: 1998 - II | J32: 1370 | K32: 1369 | L32: 52.17 | M32: 0.0580004056 | N32: 0.2070800555
A33: 1998-09-01 | B33: 1998 - III | J33: 1553 | K33: 1458.075 | L33: 52.58 | M33: 0.007858922753 | N33: 0.1778673835
A34: 1998-12-01 | B34: 1998 - IV | H34: 0.26 | J34: 1549 | K34: 1563 | L34: 53.35 | M34: 0.01464435146 | N34: 0.1671406694
A35: 1999-03-01 | B35: 1999 - I | H35: 0.2 | I35: 0.23 | J35: 1538.9 | K35: 1560.45 | L35: 55.97 | M35: 0.04910965323 | N35: 0.1350638816
A36: 1999-06-01 | B36: 1999 - II | H36: 0.18 | I36: 0.185 | J36: 1735 | K36: 1671.5 | L36: 56.84 | M36: =L36/L35-1 -> 0.01554404145 | N36: 0.08951504696
A37: 1999-09-01 | B37: 1999 - III | H37: 0.16 | I37: 0.165 | J37: 2020 | K37: 1913 | L37: 57.49 | M37: 0.01143560873 | N37: 0.09338151388
A38: 1999-12-01 | B38: 1999 - IV | H38: 0.12 | I38: 0.135 | J38: 1875 | K38: 1921.75 | L38: 58.27 | M38: 0.01356757697 | N38: 0.09222118088
A39: 2000-03-01 | B39: 2000 - I | H39: 0.12 | I39: 0.12 | J39: 1953.25 | K39: 1965.875 | L39: 61.42 | M39: 0.05405869229 | N39: =L39/L35-1 -> 0.097373593
A40: 2000-06-01 | B40: 2000 - II | H40: 0.12 | I40: 0.12 | J40: 2139.5 | K40: 2071.75 | L40: 62.34 | M40: 0.01497883426 | N40: 0.09676284307
A41: 2000-09-01 | B41: 2000 - III | H41: 0.12 | I41: 0.12 | J41: 2211 | K41: 2194.5 | L41: 62.78 | M41: 0.007058068656 | N41: 0.09201600278
A42: 2000-12-01 | B42: 2000 - IV | H42: 0.12 | I42: 0.12 | J42: 2243 | K42: 2200.25 | L42: 63.37 | M42: 0.00939789742 | N42: 0.08752359705
A43: 2001-03-01 | B43: 2001 - I | H43: 0.115 | I43: 0.1175 | J43: 2307.5 | K43: 2276.325 | L43: 66.22 | M43: 0.04497396244 | N43: 0.0781504396
A44: 2001-06-01 | B44: 2001 - II | H44: 0.115 | I44: 0.115 | J44: 2301.25 | K44: 2325.25 | L44: 67.28 | M44: 0.01600724857 | N44: 0.07924286173
A45: 2001-09-01 | B45: 2001 - III | H45: 0.095 | I45: 0.1025 | J45: 2330.3 | K45: 2311.9 | L45: 67.78 | M45: 0.007431629013 | N45: 0.07964319847
A46: 2001-12-01 | B46: 2001 - IV | H46: 0.085 | I46: 0.08875 | J46: 2312.5 | K46: 2311 | L46: 68.22 | M46: 0.00649159044 | N46: 0.07653463784
A47: 2002-03-01 | B47: 2002 - I | H47: 0.0725 | I47: 0.07625 | J47: 2273 | K47: 2272.025 | L47: 70.12 | M47: 0.02785107007 | N47: 0.05889459378
A48: 2002-06-01 | B48: 2002 - II | H48: 0.0525 | I48: 0.0575 | J48: 2400 | K48: 2337.6 | L48: 71.49 | M48: 0.01953793497 | N48: 0.06257431629
A49: 2002-09-01 | B49: 2002 - III | H49: 0.0525 | I49: 0.0525 | J49: 2832 | K49: 2738.25 | L49: 71.83 | M49: 0.004755909917 | N49: 0.05975213927
A50: 2002-12-01 | B50: 2002 - IV | H50: 0.0525 | I50: 0.0525 | J50: 2867 | K50: 2821.475 | L50: 72.99 | M50: 0.01614924126 | N50: 0.06992084433
A51: 2003-03-01 | B51: 2003 - I | H51: 0.0625 | I51: 0.0625 | J51: 2958.2 | K51: 2949.325 | L51: 75.45 | M51: 0.03370324702 | N51: 0.07601254991
A52: 2003-06-01 | B52: 2003 - II | H52: 0.0725 | I52: 0.0725 | J52: 2805.97 | K52: 2840.485 | L52: 76.64 | M52: 0.01577203446 | N52: 0.07203804728
A53: 2003-09-01 | B53: 2003 - III | H53: 0.0725 | I53: 0.0725 | J53: 2884 | K53: 2880.85 | L53: 76.94 | M53: 0.00391440501 | N53: 0.07114019212
A54: 2003-12-01 | B54: 2003 - IV | H54: 0.0725 | I54: 0.0725 | J54: 2778.95 | K54: 2832.225 | L54: 77.72 | M54: 0.01013776969 | N54: 0.06480339773
A55: 2004-03-01 | B55: 2004 - I | H55: 0.0675 | I55: 0.07 | J55: 2674.5 | K55: 2713.75 | L55: 80.13 | M55: 0.03100874936 | N55: 0.062027833
A56: 2004-06-01 | B56: 2004 - II | H56: 0.0675 | I56: 0.0675 | J56: 2699.48 | K56: 2680.865 | L56: 81.29 | M56: 0.01447647573 | N56: 0.06067327766
A57: 2004-09-01 | B57: 2004 - III | H57: 0.0675 | I57: 0.0675 | J57: 2596.25 | K57: 2606.75 | L57: 81.53 | M57: 0.002952392668 | N57: 0.05965687549
A58: 2004-12-01 | B58: 2004 - IV | H58: 0.065 | I58: 0.06625 | J58: 2396.5 | K58: 2491.5 | L58: 82 | M58: 0.005764749172 | N58: 0.05506948019
A59: 2005-03-01 | B59: 2005 - I | C59: 0 | H59: 0.065 | I59: 0.065 | J59: 2367 | K59: 2367.875 | L59: 84.16 | M59: 0.02634146341 | N59: 0.05029327343
A60: 2005-06-01 | B60: 2005 - II | C60: 94.1 | G60: -0.003190110657 | H60: 0.065 | I60: 0.065 | J60: 2327 | K60: 2337.235 | L60: 85.22 | M60: 0.01259505703 | N60: 0.04834542994
A61: 2005-09-01 | B61: 2005 - III | C61: 97.55 | G61: 0.01820182018 | H61: 0.06 | I61: 0.0625 | J61: 2291 | K61: 2300 | L61: 85.62 | M61: 0.004693733865 | N61: 0.05016558322
A62: 2005-12-01 | B62: 2005 - IV | C62: 100.4 | G62: 0.0233768785 | H62: 0.06 | I62: 0.06 | J62: 2286.5 | K62: 2288.25 | L62: 85.98 | M62: 0.004204625088 | N62: 0.04853658537
A63: 2006-03-01 | B63: 2006 - I | C63: 107.96 | D63: =AVERAGE(OFFSET($C$1,MATCH(EDATE(A63,0),$A$1:$A$304,0)-1,,IF(MONTH($A63)=3,-1,IF(MONTH($A63)=6,-2,IF(MONTH($A63)=9,-3,-4)))))/AVERAGE(OFFSET($C$1,MATCH(EDATE(A63,-12),$A$1:$A$304,0)-1,,IF(MONTH($A63)=3,-1,IF(MONTH($A63)=6,-2,IF(MONTH($A63)=9,-3,-4)))))-1 ->  | F63: =C63/C59-1 ->  | G63: 0.01372492562 | H63: 0.06 | I63: 0.06 | J63: 2297.35 | K63: 2282 | L63: 87.62 | M63: 0.0190742033 | N63: 0.0411121673
A64: 2006-06-01 | B64: 2006 - II | C64: 100.1 | D64: 1.211052072 | F64: 0.06376195537 | G64: 0.0194092028 | H64: 0.065 | I64: 0.06375 | J64: 2635.5 | K64: 2508.75 | L64: 88.57 | M64: 0.01084227345 | N64: 0.03931002112
A65: 2006-09-01 | B65: 2006 - III | C65: 102.74 | D65: 0.6217062353 | F65: 0.05320348539 | G65: 0.01588186124 | H65: 0.07 | I65: 0.0675 | J65: 2393.5 | K65: 2409.75 | L65: 89.54 | M65: 0.01095178954 | N65: 0.0457836954
A66: 2006-12-01 | B66: 2006 - IV | C66: 108.08 | D66: 0.4342749529 | E66: =AVERAGE(C63:C66)/AVERAGE(C59:C62)-1 -> 0.4342749529 | F66: 0.0764940239 | G66: 0.01737063449 | H66: 0.075 | I66: 0.07375 | J66: 2240 | K66: 2278.9 | L66: 89.83 | M66: 0.003238775966 | N66: 0.04477785532
A67: 2007-03-01 | B67: 2007 - I | C67: 115.95 | D67: 0.07400889218 | E67: 0.06714832129 | F67: 0.07400889218 | G67: 0.01320992092 | H67: 0.0825 | I67: 0.08 | J67: 2148.63 | K67: 2203.59 | L67: 92.69 | M67: 0.03183791606 | N67: 0.05786350148
A68: 2007-06-01 | B68: 2007 - II | C68: 106.82 | D68: 0.0707007594 | E68: 0.06792936135 | F68: 0.06713286713 | G68: 0.02075388027 | H68: 0.09 | I68: 0.0875 | J68: 1960.35 | K68: 2035.9 | L68: 93.92 | M68: =L68/L67-1 -> 0.01327003992 | N68: 0.06040420007
A69: 2007-09-01 | B69: 2007 - III | C69: 109.79 | D69: 0.07001287001 | E69: 0.07159533074 | F69: 0.06861981701 | G69: 0.01233817013 | H69: 0.0925 | I69: 0.0925 | J69: 2019.25 | K69: 1996.775 | L69: 94.03 | M69: 0.00117120954 | N69: 0.05014518651
A70: 2007-12-01 | B70: 2007 - IV | C70: 115.49 | D70: 0.06963808251 | E70: 0.06963808251 | F70: 0.06856032568 | G70: 0.004205647584 | H70: 0.095 | I70: 0.09375 | J70: 2017.25 | K70: 2006.25 | L70: 94.94 | M70: 0.009677762416 | N70: 0.05688522765
A71: 2008-03-01 | B71: 2008 - I | C71: 123.53 | D71: 0.06537300561 | E71: 0.06737414201 | F71: 0.06537300561 | G71: 0.007264957265 | H71: 0.0975 | I71: 0.09625 | J71: 1834.7 | K71: 1885.7 | L71: 98.18 | M71: 0.03412681694 | N71: =L71/L67-1 -> 0.05922969037
A72: 2008-06-01 | B72: 2008 - II | C72: 112.34 | D72: 0.05880504556 | E72: 0.06356235153 | F72: 0.05167571616 | G72: 0.008655070004 | H72: 0.0975 | I72: 0.0975 | J72: 1899.15 | K72: 1840.515 | L72: 100.66 | M72: 0.02525972703 | N72: 0.07176320273
A73: 2008-09-01 | B73: 2008 - III | C73: 115.05 | D73: 0.05520808275 | E73: 0.05848311547 | F73: 0.04790964569 | G73: -0.01682510305 | H73: 0.1 | I73: 0.1 | J73: 2185 | K73: 1990 | L73: 101.15 | M73: 0.004867872045 | N73: 0.07572051473
A74: 2008-12-01 | B74: 2008 - IV | C74: 119.32 | D74: 0.04952572258 | E74: 0.04952572258 | F74: 0.03316304442 | G74: 0.002652519894 | H74: 0.095 | I74: 0.0975 | J74: 2248.58 | K74: 2312.495 | L74: 102.23 | M74: 0.01067721206 | N74: 0.07678533811
A75: 2009-03-01 | B75: 2009 - I | C75: 123.88 | D75: 0.002833319841 | E75: 0.03283365889 | F75: 0.002833319841 | G75: 0.01109404335 | H75: 0.07 | I75: 0.08 | J75: 2548.3 | K75: 2491.45 | L75: 104.21 | M75: 0.01936809156 | N75: 0.06141780403
A76: 2009-06-01 | B76: 2009 - II | C76: 112.51 | D76: 0.002204604231 | E76: 0.02083920633 | F76: 0.001513263308 | G76: 0.01012829169 | H76: 0.045 | I76: 0.0575 | J76: 2143.15 | K76: 2218.025 | L76: 104.5 | M76: 0.002782842338 | N76: 0.03814822174
A77: 2009-09-01 | B77: 2009 - III | C77: 115.85 | D77: 0.003761541092 | E77: 0.01104178727 | F77: 0.006953498479 | G77: 0.007770721925 | H77: 0.04 | I77: 0.0425 | J77: 1919.73 | K77: 1978.165 | L77: 104.39 | M77: -0.001052631579 | N77: 0.03203163618
A78: 2009-12-01 | B78: 2009 - IV | C78: 119.96 | D78: 0.004168084382 | E78: 0.004168084382 | F78: 0.005363727791 | G78: 0.009286128845 | H78: 0.035 | I78: 0.0375 | J78: 2043.79 | K78: 2019.965 | L78: 104.28 | M78: -0.00105374078 | N78: 0.02005282207
A79: 2010-03-01 | B79: 2010 - I | C79: 127.64 | D79: 0.0303519535 | E79: 0.01141120721 | F79: 0.0303519535 | G79: 0.01634765465 | H79: 0.035 | I79: 0.035 | J79: 1920.35 | K79: 1951.125 | L79: 106.13 | M79: 0.01774069812 | N79: 0.01842433548
A80: 2010-06-01 | B80: 2010 - II | C80: 116.87 | D80: 0.03435001481 | E80: 0.02030758773 | F80: 0.03875211092 | G80: 0.007436146136 | H80: 0.03 | I80: 0.03 | J80: 1900.11 | K80: 1928.43 | L80: 106.85 | M80: 0.006784132667 | N80: 0.02248803828
A81: 2010-09-01 | B81: 2010 - III | C81: 121.2 | D81: 0.03824097206 | E81: 0.02992196115 | F81: 0.0461804057 | G81: 0.02102053915 | H81: 0.03 | I81: 0.03 | J81: 1802.18 | K81: 1822.84 | L81: 106.78 | M81: -0.0006551240056 | N81: 0.02289491331
A82: 2010-12-01 | B82: 2010 - IV | C82: 124.81 | D82: 0.03879711986 | E82: 0.03879711986 | F82: 0.04043014338 | G82: 0.02090209021 | H82: 0.03 | I82: 0.03 | J82: 1907.7 | K82: 1873.225 | L82: 107.58 | M82: 0.007492039708 | N82: 0.03164556962
A83: 2011-03-01 | B83: 2011 - I | C83: 134.46 | D83: 0.05343152617 | E83: 0.04491974115 | F83: 0.05343152617 | G83: 0.01547105911 | H83: 0.035 | I83: 0.0325 | J83: 1871 | K83: 1869.1 | L83: 109.51 | M83: 0.01794013757 | N83: 0.03184773391
A84: 2011-06-01 | B84: 2011 - II | C84: 124.82 | D84: 0.06040652734 | E84: 0.05198617588 | F84: 0.0680243005 | G84: 0.02031380277 | H84: 0.0425 | I84: 0.04 | J84: 1770.78 | K84: 1768.89 | L84: 110.3 | M84: 0.007213953064 | N84: 0.03228825456
A85: 2011-09-01 | B85: 2011 - III | C85: 129.42 | D85: 0.06286401794 | E85: 0.05732287356 | F85: 0.06782178218 | G85: 0.00624024961 | H85: 0.045 | I85: 0.045 | J85: 1931.99 | K85: 1855.185 | L85: 110.76 | M85: 0.004170444243 | N85: 0.03727289755
A86: 2011-12-01 | B86: 2011 - IV | C86: 134.7 | D86: 0.06703090598 | E86: 0.06703090598 | F86: 0.07924044548 | G86: 0.01675895164 | H86: 0.0475 | I86: 0.04625 | J86: 1938.5 | K86: 1902.125 | L86: 111.59 | M86: 0.007493680029 | N86: 0.03727458635
A87: 2012-03-01 | B87: 2012 - I | C87: 142.96 | D87: 0.06321582627 | E87: 0.06948968512 | F87: 0.06321582627 | G87: 0.003485332559 | H87: 0.0525 | I87: 0.05125 | J87: 1788.75 | K87: 1799.575 | L87: 113.23 | M87: 0.01469665741 | N87: 0.0339695005
A88: 2012-06-01 | B88: 2012 - II | C88: 132.48 | D88: 0.06232644246 | E88: 0.0678224386 | F88: 0.06136837045 | G88: -0.00484804631 | H88: 0.0525 | I88: 0.0525 | J88: 1783.76 | K88: 1772.88 | L88: 113.83 | M88: 0.005298949042 | N88: 0.03200362647
A89: 2012-09-01 | B89: 2012 - III | C89: 135.7 | D89: 0.05773089786 | E89: 0.06295885182 | F89: 0.04852418482 | G89: 0.01257907366 | H89: 0.0475 | I89: 0.04875 | J89: 1800.53 | K89: 1796.365 | L89: 114.18 | M89: 0.003074760608 | N89: 0.03087757313
A90: 2012-12-01 | B90: 2012 - IV | C90: 137.72 | D90: 0.04864348491 | E90: 0.04864348491 | F90: 0.02242019302 | G90: 0.01242280626 | H90: 0.0425 | I90: 0.045 | J90: 1767 | K90: 1799.575 | L90: 114.31 | M90: 0.001138553162 | N90: 0.02437494399
A91: 2013-03-01 | B91: 2013 - I | C91: 146.82 | D91: 0.0270005596 | E91: 0.039142696 | F91: 0.0270005596 | G91: 0.03361940563 | H91: 0.0325 | I91: 0.03625 | J91: 1825 | K91: 1800.115 | L91: 115.4 | M91: 0.009535473712 | N91: 0.01916453237
A92: 2013-06-01 | B92: 2013 - II | C92: 135.63 | D92: 0.02545018879 | E92: 0.0302283342 | F92: 0.02377717391 | G92: 0.002744802031 | H92: 0.0325 | I92: 0.0325 | J92: 1922.77 | K92: 1873.86 | L92: 116.28 | M92: 0.007625649913 | N92: 0.02152332426
A93: 2013-09-01 | B93: 2013 - III | C93: 142.99 | D93: 0.03478133969 | E93: 0.03173091016 | F93: 0.05372144436 | G93: 0.01443919797 | H93: 0.0325 | I93: 0.0325 | J93: 1906 | K93: 1900.24 | L93: 116.77 | M93: 0.004213966288 | N93: 0.02268348222
A94: 2013-12-01 | B94: 2013 - IV | C94: 146.33 | D94: 0.04174106329 | E94: 0.04174106329 | F94: 0.06251815277 | G94: 0.01443604965 | H94: 0.0325 | I94: 0.0325 | J94: 1929.51 | K94: 1910.59 | L94: 116.52 | M94: -0.002140960863 | N94: 0.01933339165
A95: 2014-03-01 | B95: 2014 - I | C95: 156.14 | D95: =AVERAGE(OFFSET($C$1,MATCH(EDATE(A95,0),$A$1:$A$304,0)-1,,IF(MONTH($A95)=3,-1,IF(MONTH($A95)=6,-2,IF(MONTH($A95)=9,-3,-4)))))/AVERAGE(OFFSET($C$1,MATCH(EDATE(A95,-12),$A$1:$A$304,0)-1,,IF(MONTH($A95)=3,-1,IF(MONTH($A95)=6,-2,IF(MONTH($A95)=9,-3,-4)))))-1 -> 0.06347909004 | E95: 0.051327978 | F95: =C95/C91-1 -> 0.06347909004 | G95: 0.002460433568 | H95: 0.0325 | I95: 0.0325 | J95: 1971.2 | K95: 1993.565 | L95: 118.29 | M95: 0.01519052523 | N95: 0.02504332756
A96: 2014-06-01 | B96: 2014 - II | C96: 144.59 | D96: 0.06471941937 | E96: 0.06148919711 | F96: 0.06606208066 | G96: 0.01008291874 | H96: 0.04 | I96: 0.0375 | J96: 1877.44 | K96: 1906.92 | L96: 119.52 | M96: 0.01039817398 | N96: 0.02786377709
A97: 2014-09-01 | B97: 2014 - III | C97: 147.88 | D97: 0.05446126363 | E97: 0.05643156474 | F97: 0.03419819568 | G97: 0.01024495961 | H97: 0.045 | I97: 0.04375 | J97: 2024.85 | K97: 1950.675 | L97: 120.11 | M97: 0.004936412316 | N97: 0.02860323713
A98: 2014-12-01 | B98: 2014 - IV | C98: 152.75 | D98: 0.05175157843 | E98: =AVERAGE(C95:C98)/AVERAGE(C91:C94)-1 -> 0.05175157843 | F98: 0.04387343675 | G98: 0.00591562114 | H98: 0.045 | I98: 0.045 | J98: 2376.51 | K98: 2217.055 | L98: 120.79 | M98: 0.005661476979 | N98: 0.03664606934
A99: 2015-03-01 | B99: 2015 - I | C99: 162.02 | D99: 0.03765851159 | E99: 0.04500163486 | F99: 0.03765851159 | G99: 0.007754943777 | H99: 0.045 | I99: 0.045 | J99: 2576.05 | K99: 2508.575 | L99: 123.68 | M99: 0.02392582167 | N99: 0.04556598191
A100: 2015-06-01 | B100: 2015 - II | C100: 148.67 | D100: 0.03311940944 | E100: 0.03604779256 | F100: 0.02821771907 | G100: 0.01000384763 | H100: 0.045 | I100: 0.045 | J100: 2585.11 | K100: 2486.585 | L100: 124.8 | M100: =L100/L99-1 -> 0.009055627426 | N100: 0.04417670683
A101: 2015-09-01 | B101: 2015 - III | C101: 152.95 | D101: 0.03350348855 | E101: 0.03605405587 | F101: 0.03428455504 | G101: -0.003174603175 | H101: 0.0475 | I101: 0.04625 | J101: 3121.94 | K101: 2993.99 | L101: 126.53 | M101: 0.01386217949 | N101: 0.05345100325
A102: 2015-12-01 | B102: 2015 - IV | C102: 158.21 | D102: 0.03407276839 | E102: 0.03407276839 | F102: 0.03574468085 | G102: 0.01031847134 | H102: 0.0575 | I102: 0.055 | J102: 3149.47 | K102: 3023.65 | L102: 128.96 | M102: 0.01920493164 | N102: 0.06763804951
A103: 2016-03-01 | B103: 2016 - I | C103: 165.35 | D103: 0.02055301815 | E103: 0.02954350833 | F103: 0.02055301815 | G103: 0.003971756399 | H103: 0.065 | I103: 0.0625 | J103: 3022.35 | K103: 3154.83 | L103: 133.55 | M103: 0.03559243176 | N103: =L103/L99-1 -> 0.07980271669
A104: 2016-06-01 | B104: 2016 - II | C104: 152.2 | D104: 0.0220798867 | E104: 0.02844664006 | F104: 0.02374386225 | G104: 0.002637362637 | H104: 0.075 | I104: 0.0725 | J104: 2916.15 | K104: 2883.645 | L104: 135.54 | M104: 0.01490078622 | N104: 0.08605769231
A105: 2016-09-01 | B105: 2016 - III | C105: 156.19 | D105: 0.02178414287 | E105: 0.02524375801 | F105: 0.02118339327 | G105: 0.006388175612 | H105: 0.0775 | I105: 0.0775 | J105: 2879.95 | K105: 2980.85 | L105: 135.74 | M105: 0.001475579165 | N105: 0.07278906188
A106: 2016-12-01 | B106: 2016 - IV | C106: 160.67 | D106: 0.0201977969 | E106: 0.0201977969 | F106: 0.01554895392 | G106: -0.001244632522 | H106: 0.075 | I106: 0.07625 | J106: 3000.71 | K106: 2984.185 | L106: 136.37 | M106: 0.004641225873 | N106: 0.05745967742
A107: 2017-03-01 | B107: 2017 - I | C107: 169.16 | D107: 0.02304203205 | E107: 0.0208579929 | F107: 0.02304203205 | G107: 0.004610879183 | H107: 0.07 | I107: 0.0725 | J107: 2880.24 | K107: 2908.45 | L107: 139.8 | M107: 0.02515215957 | N107: 0.0467989517
A108: 2017-06-01 | B108: 2017 - II | C108: 153.83 | D108: 0.01713116045 | E108: 0.01771882108 | F108: 0.01070959264 | G108: 0.006140296471 | H108: 0.0575 | I108: 0.06125 | J108: 3038.26 | K108: 2993.055 | L108: 140.94 | M108: 0.008154506438 | N108: 0.03984063745
A109: 2017-09-01 | B109: 2017 - III | C109: 158.17 | D109: 0.01566259974 | E109: 0.01563414827 | F109: 0.01267686792 | G109: 0.004623351005 | H109: 0.0525 | I109: 0.05375 | J109: 2918.49 | K109: 2956.745 | L109: 141.13 | M109: 0.001348091386 | N109: 0.0397082658
A110: 2017-12-01 | B110: 2017 - IV | C110: 163.39 | D110: 0.01598335461 | E110: 0.01598335461 | F110: 0.01692910935 | G110: 0.002270356507 | H110: 0.0475 | I110: 0.04875 | J110: 2984 | K110: 2997.72 | L110: 141.95 | M110: 0.005810245873 | N110: 0.04091809049
A111: 2018-03-01 | B111: 2018 - I | C111: 171.51 | D111: 0.01389217309 | E111: 0.01360032591 | F111: 0.01389217309 | G111: 0.01377494796 | H111: 0.045 | I111: 0.045 | J111: 2780.47 | K111: 2812.305 | L111: 144.19 | M111: 0.0157802043 | N111: 0.03140200286
A112: 2018-06-01 | B112: 2018 - II | C112: 156.37 | D112: 0.01513978761 | E112: 0.01498788779 | F112: 0.01651173373 | G112: 0.007246814421 | H112: 0.0425 | I112: 0.0425 | J112: 2930.8 | K112: 2868.54 | L112: 145.45 | M112: 0.008738470074 | N112: 0.03199943238
A113: 2018-09-01 | B113: 2018 - III | C113: 162.52 | D113: 0.01920359132 | E113: 0.01863421778 | F113: 0.02750205475 | G113: 0.00593560765 | H113: 0.0425 | I113: 0.0425 | J113: 2972.18 | K113: 2923.95 | L113: 145.68 | M113: 0.001581299416 | N113: 0.03223977893
A114: 2018-12-01 | B114: 2018 - IV | C114: 168.09 | D114: 0.02162749205 | E114: 0.02162749205 | F114: 0.02876553033 | G114: 0.007927047324 | H114: 0.0425 | I114: 0.0425 | J114: 3249.75 | K114: 3226.095 | L114: 146.46 | M114: 0.005354200988 | N114: 0.03177175062
A115: 2019-03-01 | B115: 2019 - I | C115: 176.51 | D115: 0.02915281908 | E115: 0.02564538569 | F115: 0.02915281908 | G115: 0.008810833186 | H115: 0.0425 | I115: 0.0425 | J115: 3174.79 | K115: 3169.125 | L115: 148.83 | M115: 0.01618189267 | N115: 0.03217976281
A116: 2019-06-01 | B116: 2019 - II | C116: 161.8 | D116: 0.03181041845 | E116: 0.02999507268 | F116: 0.03472533095 | G116: 0.007854630715 | H116: 0.0425 | I116: 0.0425 | J116: 3205.67 | K116: 3226.695 | L116: 150.43 | M116: 0.01075052073 | N116: 0.03423856996
A117: 2019-09-01 | B117: 2019 - III | C117: 167.52 | D117: 0.03146411093 | E117: 0.03078970312 | F117: 0.03076544425 | G117: 0.006106781435 | H117: 0.0425 | I117: 0.0425 | J117: 3462.01 | K117: 3379.43 | L117: 151.24 | M117: 0.005384564249 | N117: 0.03816584294
A118: 2019-12-01 | B118: 2019 - IV | C118: 173.35 | D118: 0.03142037085 | E118: 0.03142037085 | F118: 0.03129275983 | G118: -0.01913405399 | H118: 0.0425 | I118: 0.0425 | J118: 3277.14 | K118: 3333.54 | L118: 152.03 | M118: 0.00522348585 | N118: 0.03803086167
A119: 2020-03-01 | B119: 2020 - I | C119: 181.97 | D119: 0.03093309161 | E119: 0.0318768934 | F119: 0.03093309161 | G119: -0.1628948609 | H119: 0.0375 | I119: 0.04 | J119: 4064.81 | K119: 3738.13 | L119: 154.56 | M119: 0.01664145234 | N119: 0.03850030236
A120: 2020-06-01 | B120: 2020 - II | C120: 162.36 | D120: 0.01779433064 | E120: 0.02433773844 | F120: 0.003461063041 | G120: 0.1008166714 | H120: 0.025 | I120: 0.02875 | J120: 3758.91 | K120: 3871.1 | L120: 153.74 | M120: -0.005305383023 | N120: 0.02200358971
A121: 2020-09-01 | B121: 2020 - III | C121: 139.53 | D121: -0.04343356464 | E121: -0.02479522792 | F121: -0.1670845272 | G121: 0.07035047327 | H121: 0.0175 | I121: 0.02 | J121: 3878.94 | K121: 3809.215 | L121: 154.21 | M121: 0.003057109405 | N121: 0.01963766199
A122: 2020-12-01 | B122: 2020 - IV | C122: 157.61 | D122: -0.05552283636 | E122: -0.05552283636 | F122: -0.09079896164 | G122: 0.02963671128 | H122: 0.0175 | I122: 0.0175 | J122: 3432.5 | K122: 3645.53 | L122: 154.49 | M122: 0.001815705856 | N122: 0.0161810169
A123: 2021-03-01 | B123: 2021 - I | C123: 175.94 | D123: -0.03313733033 | E123: -0.07186258472 | F123: -0.03313733033 | G123: -0.02280640669 | H123: 0.0175 | I123: 0.0175 | J123: 3736.91 | K123: 3648.185 | L123: 156.89 | M123: 0.01553498608 | N123: 0.01507505176
A124: 2021-06-01 | B124: 2021 - II | C124: 164.8 | D124: -0.01042604478 | E124: -0.06906012843 | F124: 0.0150283321 | G124: 0.053863056 | H124: 0.0175 | I124: 0.0175 | J124: 3756.67 | K124: 3734.78 | L124: 159.32 | M124: 0.01548855886 | N124: 0.03629504358
A125: 2021-09-01 | B125: 2021 - III | C125: 165.23 | D125: 0.04569503575 | E125: 0.009692487941 | F125: 0.18418978 | G125: 0.04761636425 | H125: 0.02 | I125: 0.01875 | J125: 3834.68 | K125: 3851.28 | L125: 161.16 | M125: 0.01154908361 | N125: 0.0450684132
A126: 2021-12-01 | B126: 2021 - IV | C126: 178.61 | D126: 0.06720501348 | E126: 0.06720501348 | F126: 0.1332402766 | G126: 0.00107578936 | H126: 0.03 | I126: 0.025 | J126: 3981.16 | K126: 3882.8 | L126: 163.17 | M126: 0.01247207744 | N126: 0.05618486633
A127: 2022-03-01 | B127: 2022 - I | C127: 195.44 | D127: =AVERAGE(OFFSET($C$1,MATCH(EDATE(A127,0),$A$1:$A$304,0)-1,,IF(MONTH($A127)=3,-1,IF(MONTH($A127)=6,-2,IF(MONTH($A127)=9,-3,-4)))))/AVERAGE(OFFSET($C$1,MATCH(EDATE(A127,-12),$A$1:$A$304,0)-1,,IF(MONTH($A127)=3,-1,IF(MONTH($A127)=6,-2,IF(MONTH($A127)=9,-3,-4)))))-1 -> 0.1108332386 | E127: 0.1080196399 | F127: =C127/C123-1 -> 0.1108332386 | G127: 0.01622696255 | H127: 0.05 | I127: 0.045 | J127: 3748.15 | K127: 3865.375 | L127: 170.27 | M127: 0.04351290066 | N127: 0.08528268213
A128: 2022-06-01 | B128: 2022 - II | C128: 178.16 | D128: 0.09643716617 | E128: 0.1247256537 | F128: 0.08106796117 | G128: 0.007190821128 | H128: 0.075 | I128: 0.0675 | J128: 4127.47 | K128: 4046.87 | L128: 174.73 | M128: 0.02619369237 | N128: 0.09672357519
A129: 2022-09-01 | B129: 2022 - III | C129: 185.69 | D129: 0.105381742 | E129: 0.1119985533 | F129: 0.1238273921 | G129: -0.002834794477 | H129: 0.1 | I129: 0.095 | J129: 4532.07 | K129: 4416.185 | L129: 179.62 | M129: 0.0279860356 | N129: 0.114544552
A130: 2022-12-01 | B130: 2022 - IV | C130: 191.83 | D130: 0.09719828216 | E130: =AVERAGE(C127:C130)/AVERAGE(C123:C126)-1 -> 0.09719828216 | F130: 0.07401601254 | G130: 0.006264806528 | H130: 0.12 | I130: 0.115 | J130: 4810.2 | K130: 4814.81 | L130: 184.58 | M130: 0.02761385146 | N130: 0.1312128455
A131: 2023-03-01 | B131: 2023 - I | C131: 200 | D131: 0.02333196889 | E131: 0.07328712646 | F131: 0.02333196889 | G131: -0.006330438422 | H131: 0.13 | I131: 0.12875 | J131: 4627.27 | K131: 4629.735 | L131: 192.98 | M131: 0.04550872251 | N131: 0.1333764022
A132: 2023-06-01 | B132: 2023 - II | C132: 183.16 | D132: 0.0255888651 | E132: 0.06026984835 | F132: 0.02806466098 | G132: -0.001158321487 | H132: 0.1325 | I132: 0.1325 | J132: 4191.28 | K132: 4430.14 | L132: 195.93 | M132: =L132/L131-1 -> 0.01528655819 | N132: 0.1213300521
A133: 2023-09-01 | B133: 2023 - III | C133: 186.45 | D133: 0.01845196589 | E133: 0.03190134165 | F133: 0.00409284291 | G133: 0.008170365294 | H133: 0.1325 | I133: 0.1325 | J133: 4053.76 | K133: 3988.625 | L133: 199.36 | M133: 0.01750625223 | N133: 0.109898675
A134: 2023-12-01 | B134: 2023 - IV | C134: 190.97 | D134: 0.01259452551 | E134: 0.01259452551 | F134: -0.00448313611 | G134: 0.00219596361 | H134: 0.13 | I134: 0.13125 | J134: 3822.05 | K134: 3941.44 | L134: 201.7 | M134: 0.01173756019 | N134: 0.09275111063
A135: =EDATE(A134,3) -> 2024-03-01 | B135: 2024 - I | C135: 201.46 | D135: 0.0073 | E135: 0.008416260851 | F135: 0.0073 | G135: 0.007721202003 | H135: 0.1225 | I135: 0.125 | J135: 3842.3 | K135: 3883.95 | L135: 207.27 | M135: 0.0276152702 | N135: =L135/L131-1 -> 0.07404912426
A136: 2024-06-01 | B136: 2024 - II | C136: 183.74 | D136: 0.005324146571 | E136: 0.002550349687 | F136: 0.003166630269 | G136: -0.001553116587 | H136: 0.1125 | I136: 0.115 | J136: 4184.04 | K136: 4028.74 | L136: 210.01 | M136: 0.01321947219 | N136: 0.07186239984
A137: 2024-09-01 | B137: 2024 - III | C137: 189.43 | D137: 0.008813047524 | E137: 0.005463332633 | F137: 0.01598283722 | G137: 0.01482940993 | H137: 0.1025 | I137: 0.105 | J137: 4164.21 | K137: 4126.63 | L137: 210.95 | M137: 0.004475977334 | N137: 0.05813603531
A138: 2024-12-01 | B138: 2024 - IV | C138: 194.04 | D138: 0.01063661942 | E138: 0.01063661942 | F138: 0.01607582343 | G138: 0.004649499285 | H138: 0.095 | I138: 0.09625 | J138: 4409.15 | K138: 4411.305 | L138: 212.19 | M138: 0.005878170183 | N138: 0.05200793257
A139: 2025-03-01 | B139: 2025 - I | C139: 206.21 | D139: 0.02357788147 | E139: 0.01493359929 | F139: 0.02357788147 | G139: 0.00355998576 | H139: 0.095 | I139: 0.095 | J139: 4192.57 | K139: 4181.29 | L139: 217.81 | M139: 0.02648569678 | N139: 0.05085154629
A140: 2025-06-01 | B140: 2025 - II | C140: 188.51 | D140: 0.02471443406 | E140: 0.02041645905 | F140: 0.0259605965 | G140: 0.01261845639 | H140: 0.0925 | I140: 0.0925 | J140: 4069.67 | K140: 4134.25 | L140: 220.13 | M140: 0.01065148524 | N140: 0.04818818152
A141: 2025-09-01 | B141: 2025 - III | C141: 193.44 | D141: 0.02354558586 | E141: 0.02168234065 | F141: 0.02116876947 | G141: 0.001251126013 | H141: 0.0925 | I141: 0.0925 | J141: 3901.29 | K141: 4040.49 | L141: 221.88 | M141: 0.007949847817 | N141: 0.05181322588
A142: 2025-12-01 | B142: 2025 - IV | C142: 201.02 | D142: 0.02668245151 | E142: 0.02668245151 | F142: 0.03597196454 | G142: 0.006247813265 | H142: 0.0925 | I142: 0.0925 | J142: 3757.08 | K142: 3813.75 | L142: 223.01 | M142: 0.005092842978 | N142: 0.05099203544
A143: 2026-03-01 | B143: 2026 - I | C143: 210.88 | D143: 0.02264681635 | E143: 0.02641514313 | F143: 0.02264681635 | G143: 0.005463938009 | H143: 0.11 | I143: 0.10625 | J143: 3645 | K143: 3657.5 | L143: 229.79 | M143: 0.03040222412 | N143: 0.05500206602
A144: 2026-06-01 | B144: 2026 - II | C144: 193 | D144: 0.02320632347 | E144: 0.02589341934 | F144: 0.02381836507 | G144: 0.005533050094 | H144: 0.1175 | I144: 0.11625 | J144: 3620 | K144: 3633.5 | L144: 232.67 | M144: 0.01253318247 | N144: 0.05696633807
A145: 2026-09-01 | B145: 2026 - III | C145: 198.43 | D145: 0.02405807943 | E145: 0.02701355152 | F145: 0.02579611249 | G145: 0.005502603911 | H145: 0.12 | I145: 0.12 | J145: 3736 | K145: 3706 | L145: 234.75 | M145: 0.008939700004 | N145: 0.05800432666
A146: 2026-12-01 | B146: 2026 - IV | C146: 204.75 | D146: 0.02265642819 | E146: 0.02265642819 | F146: 0.01855536763 | G146: 0.005472490961 | H146: 0.12 | I146: 0.12 | J146: 3700 | K146: 3714 | L146: 237.96 | M146: 0.01367412141 | N146: 0.06703735259
A147: 2027-03-01 | B147: 2027 - I | C147: 215.72 | D147: 0.02295144158 | E147: 0.02273729294 | F147: 0.02295144158 | G147: 0.00549130139 | H147: 0.12 | I147: 0.12 | J147: 3714 | K147: 3765 | L147: 244.27 | M147: 0.02651706169 | N147: 0.06301405631
A148: 2027-06-01 | B148: 2027 - II | C148: 197.28 | D148: 0.02258096464 | E148: 0.02234636872 | F148: 0.0221761658 | G148: 0.005992943792 | H148: 0.115 | I148: 0.1175 | J148: 3743 | K148: 3767.5 | L148: 246.87 | M148: 0.01064395955 | N148: 0.06103064426
A149: 2027-09-01 | B149: 2027 - III | C149: 202.84 | D149: 0.02246351547 | E149: 0.02148556633 | F149: 0.02222446203 | G149: 0.006773961086 | H149: 0.1075 | I149: 0.10875 | J149: 3681 | K149: 3651 | L149: 248.83 | M149: 0.007939401304 | N149: 0.05997870075
A150: 2027-12-01 | B150: 2027 - IV | C150: 209.4 | D150: 0.02252620623 | E150: 0.02252620623 | F150: 0.02271062271 | G150: 0.007253292613 | H150: 0.1075 | I150: 0.1075 | J150: 3700 | K150: 3691.5 | L150: 251.52 | M150: 0.01081059358 | N150: 0.05698436712
A151: 2028-03-01 | B151: 2028 - I | C151: 220.89 | D151: 0.02396625255 | E151: 0.02279837418 | F151: 0.02396625255 | G151: 0.007248436612 | H151: 0.0975 | I151: 0.1 | J151: 3770 | K151: 3780 | L151: 255.99 | M151: 0.01777194656 | N151: 0.0479796946
A152: 2028-06-01 | B152: 2028 - II | C152: 202.36 | D152: 0.02481840194 | E152: 0.02365899679 | F152: 0.02575020276 | G152: 0.007008136964 | H152: 0.09 | I152: 0.09125 | J152: 3740 | K152: 3750 | L152: 257.48 | M152: 0.005820539865 | N152: 0.04297808563
A153: 2028-09-01 | B153: 2028 - III | C153: 208.42 | D153: 0.0257047285 | E153: 0.02495765242 | F153: 0.02750936699 | G153: 0.007006071929 | H153: 0.085 | I153: 0.08625 | J153: 3710 | K153: 3720 | L153: 259.03 | M153: 0.00601988504 | N153: 0.04099184182
A154: 2028-12-01 | B154: 2028 - IV | C154: 215.38 | D154: 0.02642867529 | E154: 0.02642867529 | F154: 0.02855778415 | G154: 0.007003710575 | H154: 0.0825 | I154: 0.0825 | J154: 3700 | K154: 3700 | L154: 261.58 | M154: 0.009844419565 | N154: 0.03999681934
A156: * Index SA

Sheet Mexico
D2: 2003 | E2: 2004 | F2: 2005 | G2: 2006 | H2: 2007 | I2: 2008 | J2: 2009 | K2: 2010 | L2: 2011 | M2: 2012 | N2: 2013 | O2: 2014 | P2: 2015 | Q2: 2016 | R2: 2017 | S2: 2018 | T2: 2019 | U2: 2020 | V2: 2021 | W2: 2022 | X2: 2023 | Y2: 2024 | Z2: 2025 | AA2: 2026F | AB2: 2027F | AC2: 2028F | AD2: 2028F
C4: GDP % | D4: 0.014 | E4: 0.043 | F4: 0.03 | G4: 0.05001385468 | H4: 0.03148225822 | I4: 0.01400290149 | J4: -0.04700339936 | K4: 0.05110198731 | L4: 0.0366300793 | M4: 0.03642322678 | N4: 0.01354091963 | O4: 0.02849773258 | P4: 0.027 | Q4: 0.018 | R4: 0.019 | S4: 0.02 | T4: -0.004 | U4: -0.084 | V4: 0.06 | W4: 0.037 | X4: 0.031 | Y4: 0.014 | Z4: 0.006 | AA4: 0.015 | AB4: 0.02 | AC4: 0.025 | AD4: 0.025
C5: CPI % | D5: 0.03976521807 | E5: 0.05190848256 | F5: 0.03332741004 | G5: 0.0405322168 | H5: 0.03759087657 | I5: 0.06528148787 | J5: 0.03573585196 | K5: 0.04401540764 | L5: 0.03818756788 | M5: 0.03568290021 | N5: 0.0397404099 | O5: 0.0408132152 | P5: 0.021 | Q5: 0.034 | R5: 0.068 | S5: 0.048 | T5: 0.028 | U5: 0.032 | V5: 0.074 | W5: 0.078 | X5: 0.047 | Y5: 0.042 | Z5: 0.0369 | AA5: 0.0365 | AB5: 0.036 | AC5: 0.036 | AD5: 0.036
C6: Exchange Rate - MXN / USD (end of period) | D6: 11.236 | E6: 11.2648 | F6: 10.7777 | G6: 10.881 | H6: 10.8662 | I6: 13.5383 | J6: 13.0587 | K6: 12.3401 | L6: 13.94 | M6: 13.03 | N6: 13.0367 | O6: 14.7515 | P6: 17.21 | Q6: 20.73 | R6: 19.66 | S6: 19.65 | T6: 18.93 | U6: 19.91 | V6: 20.53 | W6: 19.5 | X6: 16.97 | Y6: 20.83 | Z6: 18.01 | AA6: 18.8 | AB6: 19.3 | AC6: 20 | AD6: 20
C7: Monetary Policy Rate - % (end of period) | D7: 0.0638392381 | E7: 0.08936095652 | F7: 0.08701309524 | G7: 0.07340977778 | H7: 0.0757 | I7: 0.0825 | J7: 0.045 | K7: 0.045 | L7: 0.045 | M7: 0.045 | N7: 0.035 | O7: 0.03 | P7: 0.0325 | Q7: 0.0575 | R7: 0.0725 | S7: 0.0825 | T7: 0.0725 | U7: 0.0425 | V7: 0.055 | W7: 0.105 | X7: 0.1125 | Y7: 0.1 | Z7: 0.07 | AA7: 0.065 | AB7: 0.065 | AC7: 0.065 | AD7: 0.065

Sheet Mexico_Quarterly
C1: GDP NSA | H1: Monetary Policy Rate | J1: Exchange Rate | L1: Inflation NSA
C2: Index | D2: Ydt | E2: 12M | F2: YoY | G2: QoQ* | H2: eop | I2: Avg | J2: eop | K2: Avg | L2: Index eop | M2: QoQ | N2: YoY
A3: 2002-03-01 | B3: 2002 - I | C3: 17079137 | G3: -0.006233909996 | J3: 9.04 | K3: 9.095 | L3: 51.13
A4: 2002-06-01 | B4: 2002 - II | C4: 18016798 | G4: 0.01088364336 | J4: 9.95 | K4: 9.675 | L4: 51.76 | M4: =L4/L3-1 -> 0.01232153335
A5: 2002-09-01 | B5: 2002 - III | C5: 17828003 | G5: 0.009279659353 | J5: 10.21 | K5: 10.04 | L5: 52.42 | M5: 0.0127511592
A6: 2002-12-01 | B6: 2002 - IV | C6: 17834460 | G6: 0.002134842222 | J6: 10.37 | K6: 10.285 | L6: 53.31 | M6: 0.01697825258
A7: 2003-03-01 | B7: 2003 - I | C7: 17609606 | F7: =C7/C3-1 -> 0.03105947332 | G7: -0.0002795353148 | J7: 10.77 | K7: 10.84 | L7: 54.01 | M7: 0.0131307447 | N7: =L7/L3-1 -> 0.05632700958 | HG7: 2003-I
A8: 2003-06-01 | B8: 2003 - II | C8: 18082664 | F8: 0.003655810539 | G8: 0.001234221731 | J8: 10.46 | K8: 10.375 | L8: 53.98 | M8: -0.0005554526939 | N8: 0.04289026275 | HG8: 2003-II
A9: 2003-09-01 | B9: 2003 - III | C9: 17859147 | F9: 0.001746914671 | G9: 0.0005038591142 | J9: 10.99 | K9: 10.795 | L9: 54.54 | M9: 0.01037421267 | N9: 0.04044257917 | HG9: 2003-III
A10: 2003-12-01 | B10: 2003 - IV | C10: 18045855 | D10: =AVERAGE(OFFSET($C$1,MATCH(EDATE(A10,0),$A$1:$A$300,0)-1,,IF(MONTH($A10)=3,-1,IF(MONTH($A10)=6,-2,IF(MONTH($A10)=9,-3,-4)))))/AVERAGE(OFFSET($C$1,MATCH(EDATE(A10,-12),$A$1:$A$300,0)-1,,IF(MONTH($A10)=3,-1,IF(MONTH($A10)=6,-2,IF(MONTH($A10)=9,-3,-4)))))-1 -> 0.01185546909 | E10: =AVERAGE(C7:C10)/AVERAGE(C3:C6)-1 -> 0.01185546909 | F10: 0.01185317638 | G10: 0.009078209751 | J10: 11.23 | K10: 11.125 | L10: 55.43 | M10: 0.0163182985 | N10: 0.03976739824 | HG10: 2003-IV
A11: 2004-03-01 | B11: 2004 - I | C11: 18185015 | D11: 0.03267585885 | E11: 0.01239764408 | F11: 0.03267585885 | G11: 0.01317267745 | J11: 11.13 | K11: 11.095 | L11: 56.3 | M11: 0.01569547177 | N11: 0.04239955564 | HG11: 2004-I
A12: 2004-06-01 | B12: 2004 - II | C12: 18770260 | D12: 0.03538595332 | E12: 0.02109942728 | F12: 0.03802514939 | G12: 0.01334900913 | J12: 11.49 | K12: 11.455 | L12: 56.33 | M12: 0.0005328596803 | N12: 0.04353464246 | HG12: 2004-II
A13: 2004-09-01 | B13: 2004 - III | C13: 18461380 | D13: 0.03483078702 | E13: 0.02909024988 | F13: 0.0337212634 | G13: -0.0006069329332 | J13: 11.38 | K13: 11.4 | L13: 57.3 | M13: 0.01721995384 | N13: 0.05060506051 | HG13: 2004-III
A14: 2004-12-01 | B14: 2004 - IV | C14: 18733374 | D14: 0.03565438918 | E14: 0.03565438918 | F14: 0.03809844421 | G14: 0.010672807 | J14: 11.15 | K14: 11.345 | L14: 58.31 | M14: 0.01762652705 | N14: 0.05195742378 | HG14: 2004-IV
A15: 2005-03-01 | B15: 2005 - I | C15: 18271688 | D15: 0.004766176987 | E15: 0.02859836951 | F15: 0.004766176987 | G15: 0.002216353807 | J15: 11.17 | K15: 11.18 | L15: 58.77 | M15: 0.007888869834 | N15: 0.04387211368 | HG15: 2005-I
A16: 2005-06-01 | B16: 2005 - II | C16: 19218715 | D16: 0.01448042262 | E16: 0.02504629512 | F16: 0.02389178413 | G16: 0.0002174543346 | J16: 10.75 | K16: 10.9 | L16: 58.77 | M16: 0 | N16: 0.04331617255 | HG16: 2005-II
A17: 2005-09-01 | B17: 2005 - III | C17: 18883271 | D17: 0.01726951943 | E17: 0.02238608509 | F17: 0.02285262532 | G17: 0.01014102343 | J17: 10.76 | K17: 10.675 | L17: 59.31 | M17: 0.009188361409 | N17: 0.03507853403 | HG17: 2005-III
A18: 2005-12-01 | B18: 2005 - IV | C18: 19343329 | D18: 0.02113247993 | E18: 0.02113247993 | F18: 0.03255980476 | G18: 0.0185320562 | J18: 10.64 | K18: 10.715 | L18: 60.25 | M18: 0.01584892935 | N18: 0.03327045104 | HG18: 2005-IV
A19: 2006-03-01 | B19: 2006 - I | C19: 19362571 | D19: 0.05970346035 | E19: 0.03463494378 | F19: 0.05970346035 | G19: 0.0198040154 | J19: 10.87 | K19: 10.66 | L19: 60.77 | M19: 0.008630705394 | N19: 0.03403096818 | HG19: 2006-I
A20: 2006-06-01 | B20: 2006 - II | C20: 20116113 | D20: 0.05303439923 | E20: 0.04043811543 | F20: 0.04669396471 | G20: 0.008415561832 | J20: 11.35 | K20: 11.205 | L20: 60.64 | M20: -0.002139213428 | N20: 0.03181895525 | HG20: 2006-II
A21: 2006-09-01 | B21: 2006 - III | C21: 19836009 | D21: 0.05217007854 | E21: 0.0472788386 | F21: 0.05045407652 | G21: 0.002537527808 | J21: 10.99 | K21: 10.98 | L21: 61.74 | M21: 0.01813984169 | N21: 0.04097116844 | HG21: 2006-III
A22: 2006-12-01 | B22: 2006 - IV | C22: 20040523 | D22: 0.04805014536 | E22: 0.04805014536 | F22: 0.0360431237 | G22: 0.003613997153 | J22: 10.8 | K22: 10.785 | L22: 62.69 | M22: 0.01538710722 | N22: 0.04049792531 | HG22: 2006-IV
A23: 2007-03-01 | B23: 2007 - I | C23: 19745597 | D23: 0.01978177382 | E23: 0.03815175957 | F23: 0.01978177382 | G23: 0.007167253924 | J23: 11.05 | K23: 11.035 | L23: 63.33 | M23: 0.01020896475 | N23: 0.04212604904 | HG23: 2007-I
A24: 2007-06-01 | B24: 2007 - II | C24: 20509472 | D24: 0.01966592909 | E24: 0.03122460758 | F24: 0.01955442386 | G24: 0.006346620511 | J24: 10.81 | K24: 10.89 | L24: 63.06 | M24: -0.004263382283 | N24: 0.03990765172 | HG24: 2007-II
A25: 2007-09-01 | B25: 2007 - III | C25: 20266835 | D25: 0.02035264686 | E25: 0.0242111987 | F25: 0.02171938922 | G25: 0.00360993899 | J25: 10.94 | K25: 10.965 | L25: 64.08 | M25: 0.01617507136 | N25: 0.03790087464 | HG25: 2007-III
A26: 2007-12-01 | B26: 2007 - IV | C26: 20482205 | D26: 0.02077863414 | E26: 0.02077863414 | F26: 0.02203944478 | G26: 0.002554198924 | J26: 10.9 | K26: 10.775 | L26: 65.05 | M26: 0.01513732834 | N26: 0.03764555751 | HG26: 2007-IV
A27: 2008-03-01 | B27: 2008 - I | C27: 19902922 | D27: 0.007967599055 | E27: 0.01784829919 | F27: 0.007967599055 | G27: -0.0002701918559 | H27: 0.075 | I27: 0.075 | J27: 10.64 | K27: 10.735 | L27: 66.02 | M27: 0.01491160646 | N27: 0.04247591979 | HG27: 2008-I
A28: 2008-06-01 | B28: 2008 - II | C28: 20998504 | D28: 0.01605653688 | E28: 0.01895463189 | F28: 0.02384420233 | G28: 0.007439530874 | H28: 0.0775 | I28: 0.07625 | J28: 10.31 | K28: 10.4 | L28: 66.37 | M28: 0.005301423811 | N28: 0.05248969236 | HG28: 2008-II
A29: 2008-09-01 | B29: 2008 - III | C29: 20495873 | D29: 0.01446410212 | E29: 0.01634852684 | F29: 0.01130112324 | G29: 0.0007923715801 | H29: 0.0825 | I29: 0.08125 | J29: 10.94 | K29: 10.49 | L29: 67.58 | M29: 0.01823112852 | N29: 0.05461922597 | HG29: 2008-III
A30: 2008-12-01 | B30: 2008 - IV | C30: 20370948 | D30: 0.009433323932 | E30: 0.009433323932 | F30: -0.005431885874 | G30: -0.0157802596 | H30: 0.0825 | I30: 0.0825 | J30: 13.67 | K30: 13.25 | L30: 69.3 | M30: 0.02545131696 | N30: 0.06533435819 | HG30: 2008-IV
A31: 2009-03-01 | B31: 2009 - I | C31: 18537259 | D31: -0.0686162062 | E31: -0.009349884084 | F31: -0.0686162062 | G31: -0.06167119023 | H31: 0.0675 | I31: 0.0725 | J31: 14.17 | K31: 14.25 | L31: 70.01 | M31: 0.01024531025 | N31: 0.06043623145
A32: 2009-06-01 | B32: 2009 - II | C32: 18827563 | D32: -0.08646652075 | E32: -0.04187144504 | F32: -0.1033855078 | G32: -0.01684586295 | H32: 0.0475 | I32: 0.05375 | J32: 13.19 | K32: 13.515 | L32: 70.18 | M32: 0.002428224539 | N32: 0.05740545427
A33: 2009-09-01 | B33: 2009 - III | C33: 19292210 | D33: -0.07720644193 | E33: -0.05925199547 | F33: -0.05872709106 | G33: 0.03631870933 | H33: 0.045 | I33: 0.045 | J33: 13.51 | K33: 13.35 | L33: 70.89 | M33: 0.01011684241 | N33: 0.04897898787 | HG33: 1
A34: 2009-12-01 | B34: 2009 - IV | C34: 19963699 | D34: -0.06295250527 | E34: -0.06295250527 | F34: -0.01999165675 | G34: 0.02182382399 | H34: 0.045 | I34: 0.045 | J34: 13.09 | K34: 13.145 | L34: 71.77 | M34: 0.01241359853 | N34: 0.03564213564 | HG34: 2
A35: 2010-03-01 | B35: 2010 - I | C35: 19371871 | D35: 0.04502348486 | E35: -0.03665604827 | F35: 0.04502348486 | G35: 0.004205627418 | H35: 0.045 | I35: 0.045 | J35: 12.37 | K35: 12.735 | L35: 73.49 | M35: 0.02396544517 | N35: 0.04970718469 | HG35: 3
A36: 2010-06-01 | B36: 2010 - II | C36: 20180561 | D36: 0.0585473149 | E36: 0.007371671844 | F36: 0.07186261971 | G36: 0.01086066513 | H36: 0.045 | I36: 0.045 | J36: 12.94 | K36: 12.625 | L36: 72.77 | M36: =L36/L35-1 -> -0.009797251327 | N36: 0.03690510117 | HG36: 4
A37: 2010-09-01 | B37: 2010 - III | C37: 20200798 | D37: 0.05464807969 | E37: 0.03490873057 | F37: 0.0470961077 | G37: 0.00948208078 | H37: 0.045 | I37: 0.045 | J37: 12.59 | K37: 12.62 | L37: 73.52 | M37: 0.01030644496 | N37: 0.03709973198 | HG37: 5
A38: 2010-12-01 | B38: 2010 - IV | C38: 20676573 | D38: 0.04971333411 | E38: 0.04971333411 | F38: 0.03570851274 | G38: 0.008249305032 | H38: 0.045 | I38: 0.045 | J38: 12.34 | K38: 12.345 | L38: 74.93 | M38: 0.01917845484 | N38: 0.0440295388 | HG38: 6
A39: 2011-03-01 | B39: 2011 - I | C39: 20091352 | D39: 0.0371405013 | E39: 0.04769123545 | F39: =C39/C35-1 -> 0.0371405013 | G39: 0.006995314547 | H39: 0.045 | I39: 0.045 | J39: 11.9 | K39: 12.01 | L39: 75.72 | M39: 0.01054317363 | N39: =L39/L35-1 -> 0.03034426453 | HG39: 7
A40: 2011-06-01 | B40: 2011 - II | C40: 20682934 | D40: 0.03089200684 | E40: 0.0360788714 | F40: 0.02489390657 | G40: 0.003046031063 | H40: 0.045 | I40: 0.045 | J40: 11.71 | K40: 11.605 | L40: 75.16 | M40: -0.007395668251 | N40: 0.03284320462 | HG40: 8
A41: 2011-09-01 | B41: 2011 - III | C41: 20950182 | D41: 0.03298964759 | E41: 0.03367053942 | F41: 0.03709675232 | G41: 0.01874508407 | H41: 0.045 | I41: 0.045 | J41: 13.9 | K41: 12.82 | L41: 75.82 | M41: 0.008781266631 | N41: 0.03128400435 | HG41: 9
A42: 2011-12-01 | B42: 2011 - IV | C42: 21475374 | D42: =AVERAGE(OFFSET($C$1,MATCH(EDATE(A42,0),$A$1:$A$300,0)-1,,IF(MONTH($A42)=3,-1,IF(MONTH($A42)=6,-2,IF(MONTH($A42)=9,-3,-4)))))/AVERAGE(OFFSET($C$1,MATCH(EDATE(A42,-12),$A$1:$A$300,0)-1,,IF(MONTH($A42)=3,-1,IF(MONTH($A42)=6,-2,IF(MONTH($A42)=9,-3,-4)))))-1 -> 0.03444045486 | E42: =AVERAGE(C39:C42)/AVERAGE(C35:C38)-1 -> 0.03444045486 | F42: 0.03863314293 | G42: 0.007230947358 | H42: 0.045 | I42: 0.045 | J42: 13.94 | K42: 13.645 | L42: 77.79 | M42: 0.02598259035 | N42: 0.03816895769 | HG42: 10
A43: 2012-03-01 | B43: 2012 - I | C43: 21083780 | D43: 0.04939577984 | E43: 0.03749861798 | F43: 0.04939577984 | G43: 0.00953879195 | H43: 0.045 | I43: 0.045 | J43: 12.81 | K43: 12.93 | L43: 78.55 | M43: 0.009769893302 | N43: 0.03737453777 | HG43: 11
A44: 2012-06-01 | B44: 2012 - II | C44: 21522113 | D44: 0.04492063944 | E44: 0.04139281582 | F44: 0.0405734989 | G44: 0.006152901313 | H44: 0.045 | I44: 0.045 | J44: 13.36 | K44: 13.185 | L44: 78.41 | M44: -0.001782304265 | N44: 0.04324108568 | HG44: 12
A45: 2012-09-01 | B45: 2012 - III | C45: 21479008 | D45: 0.03824144746 | E45: 0.03833973408 | F45: 0.02524207188 | G45: 0.002577525541 | H45: 0.045 | I45: 0.045 | J45: 12.86 | K45: 13.095 | L45: 79.44 | M45: 0.01313607958 | N45: 0.0477446584 | HG45: 13
A46: 2012-12-01 | B46: 2012 - IV | C46: 22071206 | D46: 0.03553209873 | E46: 0.03553209873 | F46: 0.02774489515 | G46: 0.00777339318 | H46: 0.045 | I46: 0.045 | J46: 12.85 | K46: 12.97 | L46: 80.57 | M46: 0.014224572 | N46: 0.03573724129 | HG46: 14
A47: 2013-03-01 | B47: 2013 - I | C47: 21025801 | D47: -0.002749933835 | E47: 0.0226369713 | F47: -0.002749933835 | G47: 0.0008848820067 | H47: 0.04 | I47: 0.0425 | J47: 12.33 | K47: 12.52 | L47: 81.89 | M47: 0.01638326921 | N47: 0.04252068746 | HG47: 15
A48: 2013-06-01 | B48: 2013 - II | C48: 21893508 | D48: 0.007356165496 | E48: 0.01691226031 | F48: 0.0172564376 | G48: -0.004091472156 | H48: 0.04 | I48: 0.04 | J48: 12.93 | K48: 12.53 | L48: 81.62 | M48: -0.003297105874 | N48: 0.04093865578 | HG48: 16
A49: 2013-09-01 | B49: 2013 - III | C49: 21702816 | D49: 0.00838300429 | E49: 0.01324278119 | F49: 0.01041984807 | G49: 0.006281021804 | H49: 0.0375 | I49: 0.03875 | J49: 13.09 | K49: 12.91 | L49: 82.13 | M49: 0.006248468513 | N49: 0.03386203424 | HG49: 17
A50: 2013-12-01 | B50: 2013 - IV | C50: 22268120 | D50: 0.008521021035 | E50: 0.008521021035 | F50: 0.008921759871 | G50: 0.004915772116 | H50: 0.035 | I50: 0.035 | J50: 13.04 | K50: 13.03 | L50: 83.77 | M50: 0.01996834287 | N50: 0.03971701626 | HG50: 18
A51: 2014-03-01 | B51: 2014 - I | C51: 21547782 | D51: 0.02482573672 | E51: 0.0152627941 | F51: 0.02482573672 | G51: 0.006598705294 | H51: 0.035 | I51: 0.035 | J51: 13.06 | K51: 13.21 | L51: 84.97 | M51: 0.01432493733 | N51: 0.03761142997 | HG51: 19
A52: 2014-06-01 | B52: 2014 - II | C52: 22320156 | D52: 0.02210261586 | E52: 0.01583622706 | F52: 0.01948742065 | G52: 0.01272687722 | H52: 0.03 | I52: 0.0325 | J52: 12.97 | K52: 13.025 | L52: 84.68 | M52: -0.003412969283 | N52: 0.03749081108 | HG52: 20
A53: 2014-09-01 | B53: 2014 - III | C53: 22258188 | D53: 0.02327377814 | E53: 0.01961990594 | F53: 0.02558985894 | G53: 0.001684307638 | H53: 0.03 | I53: 0.03 | J53: 13.43 | K53: 13.325 | L53: 85.6 | M53: 0.0108644308 | N53: 0.04225009132 | HG53: 21
A54: 2014-12-01 | B54: 2014 - IV | C54: 22939645 | D54: 0.02503763225 | E54: 0.02503763225 | F54: 0.0301563401 | G54: 0.008494881153 | H54: 0.03 | I54: 0.03 | J54: 14.75 | K54: 14.115 | L54: 87.19 | M54: 0.01857476636 | N54: 0.04082607139 | HG54: 22
A55: 2015-03-01 | B55: 2015 - I | C55: 22169554 | D55: 0.02885549891 | E55: 0.0260297341 | F55: 0.02885549891 | G55: 0.004879183085 | H55: 0.03 | I55: 0.03 | J55: 15.26 | K55: 15.12 | L55: 87.63 | M55: 0.005046450281 | N55: 0.03130516653 | HG55: 23
A56: 2015-06-01 | B56: 2015 - II | C56: 22843018 | D56: 0.02609272403 | E56: 0.02699864982 | F56: 0.02342555312 | G56: 0.008766006249 | H56: 0.03 | I56: 0.03 | J56: 15.74 | K56: 15.545 | L56: 87.11 | M56: -0.005934040854 | N56: 0.0286962683 | HG56: 24
A57: 2015-09-01 | B57: 2015 - III | C57: 23011746 | D57: 0.02870562839 | E57: 0.02907108908 | F57: 0.03385531652 | G57: 0.01177168526 | H57: 0.03 | I57: 0.03 | J57: 16.92 | K57: 16.515 | L57: 87.75 | M57: 0.007347032488 | N57: 0.02511682243 | HG57: 25
A58: 2015-12-01 | B58: 2015 - IV | C58: 23448299 | D58: 0.02702324331 | E58: 0.02702324331 | F58: 0.02217357766 | G58: -0.002936361097 | H58: 0.0325 | I58: 0.03125 | J58: 17.21 | K58: 16.855 | L58: 89.05 | M58: 0.01481481481 | N58: 0.02133272164 | HG58: 26
A59: 2016-03-01 | B59: 2016 - I | C59: 22537031 | D59: 0.01657575069 | E59: 0.02400055713 | F59: 0.01657575069 | G59: -0.00110519829 | H59: 0.0375 | I59: 0.035 | J59: 17.28 | K59: 17.695 | L59: 89.91 | M59: 0.009657495789 | N59: 0.02601848682 | HG59: 27
A60: 2016-06-01 | B60: 2016 - II | C60: 23359955 | D60: 0.01964815519 | E60: 0.02379576946 | F60: 0.02262997823 | G60: 0.004460609382 | H60: 0.0425 | I60: 0.04 | J60: 18.28 | K60: 17.73 | L60: 89.32 | M60: -0.006562117673 | N60: 0.02537022156 | HG60: 28
A61: 2016-09-01 | B61: 2016 - III | C61: 23214541 | D61: 0.01598265197 | E61: 0.01754390362 | F61: 0.008812673319 | G61: 0.008726067949 | H61: 0.0475 | I61: 0.045 | J61: 19.39 | K61: 19.07 | L61: 90.36 | M61: 0.01164352888 | N61: 0.02974358974 | HG61: 29
A62: 2016-12-01 | B62: 2016 - IV | C62: 23982435 | D62: 0.01772492198 | E62: 0.01772492198 | F62: 0.02277930693 | G62: 0.0111764841 | H62: 0.0575 | I62: 0.0525 | J62: 20.73 | K62: 19.795 | L62: 92.04 | M62: 0.01859229748 | N62: 0.03357664234 | HG62: 30
A63: 2017-03-01 | B63: 2017 - I | C63: 23306069 | D63: 0.03412330577 | E63: 0.02202639296 | F63: 0.03412330577 | G63: 0.005831103421 | H63: 0.065 | I63: 0.06125 | J63: 18.72 | K63: 19.775 | L63: 94.72 | M63: 0.02911777488 | N63: 0.05349794239 | HG63: 31
A64: 2017-06-01 | B64: 2017 - II | C64: 23710327 | D64: 0.02438961896 | E64: 0.02009961754 | F64: 0.01499883026 | G64: 0.001103318879 | H64: 0.07 | I64: 0.0675 | J64: 18.12 | K64: 18.47 | L64: 94.96 | M64: 0.002533783784 | N64: 0.0631437528 | HG64: 32
A65: 2017-09-01 | B65: 2017 - III | C65: 23491267 | D65: 0.02020120319 | E65: 0.02085431751 | F65: 0.01192037353 | G65: -0.005951574925 | H65: 0.07 | I65: 0.07 | J65: 18.25 | K65: 18.025 | L65: 96.09 | M65: 0.01189974726 | N65: 0.06341301461 | HG65: 33
A66: 2017-12-01 | B66: 2017 - IV | C66: 24328767 | D66: 0.01871730414 | E66: 0.01871730414 | F66: 0.01444106906 | G66: 0.01397230138 | H66: 0.0725 | I66: 0.07125 | J66: 19.66 | K66: 19.405 | L66: 98.27 | M66: 0.02268706421 | N66: 0.06768796176 | HG66: 34
A67: 2018-03-01 | B67: 2018 - I | C67: 23568390 | D67: 0.01125548028 | E67: 0.01316547521 | F67: 0.01125548028 | G67: 0.01256981441 | H67: 0.075 | I67: 0.07375 | J67: 18.18 | K67: 18.39 | L67: 99.49 | M67: 0.01241477562 | N67: 0.0503589527 | HG67: 35
A68: 2018-06-01 | B68: 2018 - II | C68: 24395734 | D68: 0.0201573936 | E68: 0.01667264388 | F68: 0.02890753046 | G68: -0.003084442622 | H68: 0.0775 | I68: 0.07625 | J68: 19.91 | K68: 19.31 | L68: 99.38 | M68: =L68/L67-1 -> -0.001105638758 | N68: 0.04654591407 | HG68: 36
A69: 2018-09-01 | B69: 2018 - III | C69: 24137286 | D69: 0.0226038835 | E69: 0.02053208792 | F69: 0.02750038983 | G69: 0.003976010681 | H69: 0.0775 | I69: 0.0775 | J69: 18.72 | K69: 18.685 | L69: 100.92 | M69: 0.01549607567 | N69: 0.05026537621 | HG69: 37
A70: 2018-12-01 | B70: 2018 - IV | C70: 24605271 | D70: 0.01972080771 | E70: 0.01972080771 | F70: 0.01136531087 | G70: -0.001820826977 | H70: 0.0825 | I70: 0.08 | J70: 19.65 | K70: 19.995 | L70: 103.02 | M70: 0.02080856124 | N70: 0.04833621655 | HG70: 38
A71: 2019-03-01 | B71: 2019 - I | C71: 23790593 | D71: 0.009428009296 | E71: 0.01924455349 | F71: =C71/C67-1 -> 0.009428009296 | G71: 0.0001958978057 | H71: 0.0825 | I71: 0.0825 | J71: 19.43 | K71: 19.27 | L71: 103.48 | M71: 0.004465152398 | N71: =L71/L67-1 -> 0.04010453312 | HG71: 39
A72: 2019-06-01 | B72: 2019 - II | C72: 24154802 | D72: -0.0003904793508 | E72: 0.009435735709 | F72: -0.009875988974 | G72: -0.002772126184 | H72: 0.0825 | I72: 0.0825 | J72: 19.22 | K72: 19.085 | L72: 103.3 | M72: -0.001739466564 | N72: 0.03944455625 | HG72: 40
A73: 2019-09-01 | B73: 2019 - III | C73: 24024906 | D73: -0.001818397171 | E73: 0.001507774895 | F73: -0.004655867275 | G73: -7.225242435e-05 | H73: 0.0775 | I73: 0.08 | J73: 19.73 | K73: 19.44 | L73: 103.94 | M73: 0.006195546951 | N73: 0.02992469283 | HG73: 41
A74: 2019-12-01 | B74: 2019 - IV | C74: 24356623 | D74: =AVERAGE(OFFSET($C$1,MATCH(EDATE(A74,0),$A$1:$A$300,0)-1,,IF(MONTH($A74)=3,-1,IF(MONTH($A74)=6,-2,IF(MONTH($A74)=9,-3,-4)))))/AVERAGE(OFFSET($C$1,MATCH(EDATE(A74,-12),$A$1:$A$300,0)-1,,IF(MONTH($A74)=3,-1,IF(MONTH($A74)=6,-2,IF(MONTH($A74)=9,-3,-4)))))-1 -> -0.003926895185 | E74: =AVERAGE(C71:C74)/AVERAGE(C67:C70)-1 -> -0.003926895185 | F74: -0.01010547699 | G74: -0.00723310221 | H74: 0.0725 | I74: 0.075 | J74: 18.93 | K74: 19.08 | L74: 105.93 | M74: 0.01914566096 | N74: 0.02824694234 | HG74: 42
A75: 2020-03-01 | B75: 2020 - I | C75: 23449972 | D75: -0.01431746573 | E75: -0.009724459429 | F75: -0.01431746573 | G75: -0.01197191962 | H75: 0.065 | I75: 0.06875 | J75: 23.67 | K75: 21.255 | L75: 106.84 | M75: 0.008590578684 | N75: 0.03247004252 | HG75: 43
A76: 2020-06-01 | B76: 2020 - II | C76: 19252746 | D76: -0.1093468309 | E76: -0.05795660043 | F76: -0.2029433319 | G76: -0.1890727041 | H76: 0.05 | I76: 0.055 | J76: 22.99 | K76: 23.58 | L76: 106.74 | M76: -0.0009359790341 | N76: 0.03330106486 | HG76: 44
A77: 2020-09-01 | B77: 2020 - III | C77: 22072202 | D77: -0.09997708638 | E77: -0.0770798334 | F77: -0.08127832009 | G77: 0.1551540476 | H77: 0.0425 | I77: 0.04625 | J77: 22.11 | K77: 22.195 | L77: 108.11 | M77: 0.01283492599 | N77: 0.0401192996 | HG77: 45
A78: 2020-12-01 | B78: 2020 - IV | C78: 23504819 | D78: -0.08354035057 | E78: -0.08354035057 | F78: -0.03497217163 | G78: 0.04325656568 | H78: 0.0425 | I78: 0.0425 | J78: 19.91 | K78: 20.545 | L78: 109.27 | M78: 0.01072981223 | N78: 0.03153025583 | HG78: 46
A79: 2021-03-01 | B79: 2021 - I | C79: 22841383 | D79: -0.02595265359 | E79: -0.08662853699 | F79: -0.02595265359 | G79: 0.007162020855 | H79: 0.04 | I79: 0.04125 | J79: 20.43 | K79: 20.5 | L79: 111.82 | M79: 0.02333668894 | N79: 0.0466117559 | HG79: 56
A80: 2021-06-01 | B80: 2021 - II | C80: 23623518 | D80: 0.08810172224 | E80: 0.01051416718 | F80: 0.2270207066 | G80: 0.009421282132 | H80: 0.0425 | I80: 0.04125 | J80: 19.94 | K80: 20.095 | L80: 113.02 | M80: 0.01073153282 | N80: 0.05883455125 | HG80: 57
A81: 2021-09-01 | B81: 2021 - III | C81: 23204755 | D81: 0.07556529595 | E81: 0.0453591609 | F81: 0.05131128285 | G81: -0.008782642882 | H81: 0.0475 | I81: 0.045 | J81: 20.64 | K81: 20.255 | L81: 114.6 | M81: 0.01397982658 | N81: 0.06003144945 | HG81: 58
A82: 2021-12-01 | B82: 2021 - IV | C82: 23949668 | D82: 0.06048482993 | E82: 0.06048482993 | F82: 0.01892586367 | G82: 0.01170808947 | H82: 0.055 | I82: 0.05125 | J82: 20.53 | K82: 20.545 | L82: 117.31 | M82: 0.02364746946 | N82: 0.07357920747 | HG82: 59
A83: 2022-03-01 | B83: 2022- I | C83: 23440966 | D83: 0.02624985536 | E83: 0.07468542388 | F83: 0.02624985536 | G83: 0.01388057475 | H83: 0.065 | I83: 0.06 | J83: 19.87 | K83: 20.255 | L83: 120.16 | M83: 0.02429460404 | N83: 0.0745841531 | HG83: 60
A84: 2022-06-01 | B84: 2022 - II | C84: 24310226 | D84: 0.0276830677 | E84: 0.03111292048 | F84: 0.02906882878 | G84: 0.01182216859 | H84: 0.0775 | I84: 0.07125 | J84: 20.12 | K84: 20.275 | L84: 122.04 | M84: 0.01564580559 | N84: 0.07980888338 | HG84: 61
A85: 2022-09-01 | B85: 2022 - III | C85: 24289301 | D85: 0.03402969293 | E85: 0.03021949949 | F85: 0.04673809312 | G85: 0.008376204123 | H85: 0.0925 | I85: 0.085 | J85: 20.14 | K85: 20.255 | L85: 124.57 | M85: 0.0207309079 | N85: 0.0869982548 | HG85: 62
A86: 2022-12-01 | B86: 2022- IV | C86: 25051880 | D86: 0.03709756546 | E86: 0.03709756546 | F86: 0.04602201584 | G86: 0.01168982603 | H86: 0.105 | I86: 0.09875 | J86: 19.5 | K86: 19.655 | L86: 126.48 | M86: 0.01533274464 | N86: 0.07816895405 | HG86: 63
A87: 2023-03-01 | B87: 2023 - I | C87: 24330026 | D87: 0.03792761783 | E87: 0.03993387442 | F87: 0.03792761783 | G87: 0.005128131962 | H87: 0.1125 | I87: 0.10875 | J87: 18.05 | K87: 18.445 | L87: 128.39 | M87: 0.01510120177 | N87: 0.06849201065
A88: 2023-06-01 | B88: 2023 - II | C88: 25106433 | D88: 0.03529266871 | E88: 0.04079869247 | F88: 0.03275193739 | G88: 0.00748019862 | H88: 0.1125 | I88: 0.1125 | J88: 17.12 | K88: 17.56 | L88: 128.21 | M88: -0.001401978347 | N88: 0.05055719436
A89: 2023-09-01 | B89: 2023 - III | C89: 25090505 | D89: 0.03451490816 | E89: 0.03738594625 | F89: 0.03298588131 | G89: 0.00790048963 | H89: 0.1125 | I89: 0.1125 | J89: 17.42 | K89: 17.08 | L89: 130.12 | M89: 0.0148974339 | N89: 0.04455326323
A90: 2023-12-01 | B90: 2023 - IV | C90: 25581872 | D90: 0.0310679707 | E90: 0.0310679707 | F90: 0.02115577753 | G90: 0.0008589360804 | H90: 0.1125 | I90: 0.1125 | J90: 16.97 | K90: 17.51 | L90: 132.37 | M90: 0.01729173071 | N90: 0.04656862745
A91: 2024-03-01 | B91: 2024 - I | C91: 24743030 | D91: 0.01697507434 | E91: 0.0259274326 | F91: 0.01697507434 | G91: 0.002080087908 | H91: 0.11 | I91: 0.11125 | J91: 16.56 | K91: 16.885 | L91: 134.07 | M91: 0.01284278915 | N91: 0.04424020562
A92: 2024-06-01 | B92: 2024 - II | C92: 25625594 | D92: 0.01885582056 | E92: 0.02291369788 | F92: 0.02067840541 | G92: -0.001108048816 | H92: 0.11 | I92: 0.11 | J92: 18.32 | K92: 17.73 | L92: 134.59 | M92: 0.003878570896 | N92: 0.04976210904
A93: 2024-09-01 | B93: 2024 - III | C93: 25442016 | D93: 0.01722431629 | E93: 0.01821338677 | F93: 0.014009722 | G93: 0.0117749791 | H93: 0.105 | I93: 0.1075 | J93: 19.69 | K93: 19.155 | L93: 136.08 | M93: 0.01107065904 | N93: 0.04580387335
A94: 2024-12-01 | B94: 2024- IV | C94: 25650243 | D94: 0.01350577086 | E94: 0.01350577086 | F94: 0.002672634747 | G94: -0.009759260118 | H94: 0.1 | I94: 0.1025 | J94: 20.83 | K94: 20.435 | L94: 137.95 | M94: 0.01374191652 | N94: 0.04215456674
A95: 2025-03-01 | B95: 2025 - I | C95: 24882363 | D95: 0.005631201999 | E95: 0.01072777816 | F95: 0.005631201999 | G95: 0.003380590115 | H95: 0.09 | I95: 0.095 | J95: 20.47 | K95: 20.575 | L95: 139.16 | M95: 0.008771293947 | N95: 0.03796524204
A96: 2025-06-01 | B96: 2025 - II | C96: 25611244 | D96: 0.002481366177 | E96: 0.005392513877 | F96: -0.0005599870192 | G96: 0.005074324293 | H96: 0.08 | I96: 0.085 | J96: 18.75 | K96: 19.185 | L96: 140.41 | M96: 0.008982466226 | N96: 0.04324244
A97: 2025-09-01 | B97: 2025 - III | C97: 25428708 | D97: 0.001473078185 | E97: 0.001775732709 | F97: -0.0005230717566 | G97: 0.0006692610619 | H97: 0.075 | I97: 0.0775 | J97: 18.31 | K97: 18.595 | L97: 141.23 | M97: 0.005840039883 | N97: 0.03784538507
A98: 2025-12-01 | B98: 2025 - IV | C98: 26108457 | D98: 0.005616834618 | E98: 0.005616834618 | F98: 0.01786392433 | G98: 0.008634981896 | H98: 0.07 | I98: 0.0725 | J98: 18.01 | K98: 18.28 | L98: 143.04 | M98: 0.01281597394 | N98: 0.0368974266
A99: 2026-03-01 | B99: 2026 - I | C99: 25126720 | D99: 0.00982049012 | E99: 0.006642830366 | F99: 0.00982049012 | G99: -0.004999997668 | H99: 0.0675 | I99: 0.06875 | J99: 18.13 | K99: 17.795 | L99: 144.71 | M99: 0.01167505593 | N99: 0.03988215004
A100: 2026-06-01 | B100: 2026 - II | C100: 26222417 | D100: 0.01694333304 | E100: 0.01280134778 | F100: 0.02386346403 | G100: 0.00805833148 | H100: 0.065 | I100: 0.06625 | J100: 18.33 | K100: 18.265 | L100: 145.25 | M100: =L100/L99-1 -> 0.003731601133 | N100: 0.03447047931
A101: 2026-09-01 | B101: 2026 - III | C101: 25809255 | D101: 0.01628081283 | E101: 0.01668059792 | F101: 0.01496525109 | G101: 0.01266628265 | H101: 0.065 | I101: 0.065 | J101: 18.53 | K101: 18.465 | L101: 146.66 | M101: 0.009707401033 | N101: 0.03844792183
A102: 2026-12-01 | B102: 2026 - IV | C102: 26434382 | D102: 0.01530912654 | E102: 0.01530912654 | F102: 0.01248350295 | G102: -0.001446705267 | H102: 0.065 | I102: 0.065 | J102: 18.8 | K102: 18.7 | L102: 148.2 | M102: 0.01050047729 | N102: 0.0360738255
A103: 2027-03-01 | B103: 2027 - I | C103: 25473359 | D103: 0.0137956327 | E103: 0.01627261697 | F103: =C103/C99-1 -> 0.0137956327 | G103: -0.00223218255 | H103: 0.065 | I103: 0.065 | J103: 18.93 | K103: 18.885 | L103: 149.67 | M103: 0.00991902834 | N103: =L103/L99-1 -> 0.03427544745
A104: 2027-06-01 | B104: 2027 - II | C104: 27210064 | D104: 0.02598458471 | E104: 0.0198350797 | F104: 0.03766422447 | G104: 0.007867048158 | H104: 0.065 | I104: 0.065 | J104: 19.05 | K104: 19.01 | L104: 150.99 | M104: 0.008819402686 | N104: 0.03951807229
A105: 2027-09-01 | B105: 2027 - III | C105: 26201996 | D105: 0.02238287962 | E105: 0.01988006819 | F105: 0.0152170607 | G105: 0.01021403688 | H105: 0.065 | I105: 0.065 | J105: 19.18 | K105: 19.135 | L105: 152.31 | M105: 0.008742300815 | N105: 0.03852447839
A106: 2027-12-01 | B106: 2027 - IV | C106: 26807053 | D106: 0.02026876894 | E106: =AVERAGE(C103:C106)/AVERAGE(C99:C102)-1 -> 0.02026876894 | F106: 0.01409796529 | G106: 0.002324364996 | H106: 0.065 | I106: 0.065 | J106: 19.3 | K106: 19.26 | L106: 153.47 | M106: 0.007616046222 | N106: 0.03556005398
A107: 2028-03-01 | B107: 2028 - I | C107: 26055734 | D107: 0.02286212038 | E107: 0.02246918597 | F107: 0.02286212038 | G107: 0.008060445551 | H107: 0.065 | I107: 0.065 | J107: 19.63 | K107: 19.585 | L107: 155.01 | M107: 0.01003453444 | N107: 0.03567849268
A108: 2028-06-01 | B108: 2028 - II | C108: 27968017 | D108: 0.0254411715 | E108: 0.02006860766 | F108: 0.02785561254 | G108: -0.004795908969 | H108: 0.065 | I108: 0.065 | J108: 19.75 | K108: 19.71 | L108: 156.39 | M108: 0.008902651442 | N108: 0.03576395788
A109: 2028-09-01 | B109: 2028 - III | C109: 27245950 | D109: 0.03022462237 | E109: 0.02617696743 | F109: 0.03984253719 | G109: 0.01356984295 | H109: 0.065 | I109: 0.065 | J109: 19.88 | K109: 19.835 | L109: 157.78 | M109: 0.008888036319 | N109: 0.03591359727
A110: 2028-12-01 | B110: 2028 - IV | C110: 27032213 | D110: 0.02468900529 | E110: 0.02468900529 | F110: 0.008399282084 | G110: 0.00703481478 | H110: 0.065 | I110: 0.065 | J110: 20 | K110: 19.96 | L110: 159 | M110: 0.007732285461 | N110: 0.03603310093
A112: * Index SA

Sheet Peru
D2: 2003 | E2: 2004 | F2: 2005 | G2: 2006 | H2: 2007 | I2: 2008 | J2: 2009 | K2: 2010 | L2: 2011 | M2: 2012 | N2: 2013 | O2: 2014 | P2: 2015 | Q2: 2016 | R2: 2017 | S2: 2018 | T2: 2019 | U2: 2020 | V2: 2021 | W2: 2022 | X2: 2023 | Y2: 2024 | Z2: 2025 | AA2: 2026F | AB2: 2027F | AC2: 2028F | AD2: 2028F
C4: GDP % | D4: 0.04164850561 | E4: 0.04958274137 | F4: 0.06285208166 | G4: 0.07740513994 | H4: 0.08905276764 | I4: 0.09803740563 | J4: 0.0104919354 | K4: 0.08450746875 | L4: 0.06452216002 | M4: 0.0595034634 | N4: 0.0583753976 | O4: 0.02394076363 | P4: 0.023 | Q4: 0.044 | R4: 0.027 | S4: 0.034 | T4: 0.029 | U4: -0.101 | V4: 0.12 | W4: 0.032 | X4: 0.003 | Y4: 0.022 | Z4: 0.038 | AA4: 0.034 | AB4: 0.027 | AC4: 0.028 | AD4: 0.028
C5: CPI % | D5: 0.02483753673 | E5: 0.03481080682 | F5: 0.01494260325 | G5: 0.01137484663 | H5: 0.03927649382 | I5: 0.06650205269 | J5: 0.002453434809 | K5: 0.02076419759 | L5: 0.04738431607 | M5: 0.02649368608 | N5: 0.029 | O5: 0.03224061189 | P5: 0.044 | Q5: 0.032 | R5: 0.014 | S5: 0.022 | T5: 0.019 | U5: 0.02 | V5: 0.064 | W5: 0.085 | X5: 0.032 | Y5: 0.02 | Z5: 0.015 | AA5: 0.02 | AB5: 0.02 | AC5: 0.02 | AD5: 0.02
C6: Exchange Rate - PEN / USD (end of period) | D6: 3.463 | E6: 3.28 | F6: 3.428 | G6: 3.195 | H6: 2.98 | I6: 3.11 | J6: 2.88 | K6: 2.815 | L6: 2.696 | M6: 2.57 | N6: 2.786 | O6: 2.989 | P6: 3.414 | Q6: 3.356 | R6: 3.2374 | S6: 3.3685 | T6: 3.313 | U6: 3.618 | V6: 4.0015 | W6: 3.8061 | X6: 3.7042 | Y6: 3.757 | Z6: 3.3625 | AA6: 3.4 | AB6: 3.4 | AC6: 3.4 | AD6: 3.4
C7: Monetary Policy Rate - % (end of period) | D7: 0.025 | E7: 0.03 | F7: 0.0325 | G7: 0.045 | H7: 0.05 | I7: 0.065 | J7: 0.0125 | K7: 0.03 | L7: 0.0425 | M7: 0.0425 | N7: 0.04 | O7: 0.035 | P7: 0.0375 | Q7: 0.0425 | R7: 0.0325 | S7: 0.0275 | T7: 0.0225 | U7: 0.0025 | V7: 0.025 | W7: 0.075 | X7: 0.0675 | Y7: 0.05 | Z7: 0.0425 | AA7: 0.04 | AB7: 0.04 | AC7: 0.04 | AD7: 0.04

Sheet Peru_Quarterly
C1: GDP NSA | H1: Monetary Policy Rate | J1: Exchange Rate | L1: Inflation NSA
C2: Index | D2: Ydt | E2: 12M | F2: YoY | G2: QoQ* | H2: eop | I2: Avg | J2: eop | K2: Avg | L2: Index (eop) | M2: QoQ | N2: YoY
A3: 1991-03-01 | B3: 1991 - I | L3: 12.55
A4: 1991-06-01 | B4: 1991 - II | L4: 15.62 | M4: =L4/L3-1 -> 0.2446215139
A5: 1991-09-01 | B5: 1991 - III | L5: 19.28 | M5: 0.2343149808
A6: 1991-12-01 | B6: 1991 - IV | L6: 21.62 | M6: 0.1213692946
A7: 1992-03-01 | B7: 1992 - I | L7: 17.49 | M7: -0.191026827 | N7: =L7/L3-1 -> 0.393625498
A8: 1992-06-01 | B8: 1992 - II | L8: 19.33 | M8: 0.1052029731 | N8: 0.2375160051
A9: 1992-09-01 | B9: 1992 - III | L9: 21.11 | M9: 0.09208484221 | N9: 0.09491701245
A10: 1992-12-01 | B10: 1992 - IV | L10: 23.53 | M10: 0.1146376125 | N10: 0.08834412581
A11: 1993-03-01 | B11: 1993 - I | L11: 26.46 | M11: 0.124521887 | N11: 0.512864494
A12: 1993-06-01 | B12: 1993 - II | L12: 28.99 | M12: 0.09561602419 | N12: 0.4997413347
A13: 1993-09-01 | B13: 1993 - III | L13: 31.04 | M13: 0.07071403932 | N13: 0.4703931786
A14: 1993-12-01 | B14: 1993 - IV | L14: 32.81 | M14: 0.05702319588 | N14: 0.3943901402
A15: 1994-03-01 | B15: 1994 - I | L15: 34.82 | M15: 0.06126181042 | N15: 0.3159486017
A16: 1994-06-01 | B16: 1994 - II | L16: 36.01 | M16: 0.03417576106 | N16: 0.2421524664
A17: 1994-09-01 | B17: 1994 - III | L17: 37.08 | M17: 0.02971396834 | N17: 0.1945876289
A18: 1994-12-01 | B18: 1994 - IV | L18: 37.86 | M18: 0.02103559871 | N18: 0.1539164889
A19: 1995-03-01 | B19: 1995 - I | L19: 38.96 | M19: 0.02905441099 | N19: 0.1188971855
A20: 1995-06-01 | B20: 1995 - II | L20: 39.99 | M20: 0.02643737166 | N20: 0.1105248542
A21: 1995-09-01 | B21: 1995 - III | L21: 40.8 | M21: 0.02025506377 | N21: 0.1003236246
A22: 1995-12-01 | B22: 1995 - IV | L22: 41.73 | M22: 0.02279411765 | N22: 0.1022187005
A23: 1996-03-01 | B23: 1996 - I | L23: 43.49 | M23: 0.04217589264 | N23: 0.1162731006
A24: 1996-06-01 | B24: 1996 - II | L24: 44.4 | M24: 0.02092435043 | N24: 0.1102775694
A25: 1996-09-01 | B25: 1996 - III | L25: 45.57 | M25: 0.02635135135 | N25: 0.1169117647
A26: 1996-12-01 | B26: 1996 - IV | L26: 46.67 | M26: 0.02413868773 | N26: 0.1183800623
A27: 1997-03-01 | B27: 1997 - I | L27: 47.54 | M27: 0.01864152561 | N27: 0.09312485629
A28: 1997-06-01 | B28: 1997 - II | L28: 48.61 | M28: 0.02250736222 | N28: 0.09481981982
A29: 1997-09-01 | B29: 1997 - III | L29: 49.26 | M29: 0.01337173421 | N29: 0.08097432521
A30: 1997-12-01 | B30: 1997 - IV | L30: 49.69 | M30: 0.008729192042 | N30: 0.0647096636
A31: 1998-03-01 | B31: 1998 - I | L31: 51.43 | M31: 0.03501710606 | N31: 0.08182583088
A32: 1998-06-01 | B32: 1998 - II | L32: 52.33 | M32: 0.0174995139 | N32: 0.07652746348
A33: 1998-09-01 | B33: 1998 - III | L33: 52.51 | M33: 0.003439709536 | N33: 0.06597645148
A34: 1998-12-01 | B34: 1998 - IV | L34: 52.68 | M34: 0.003237478576 | N34: 0.06017307305
A35: 1999-03-01 | B35: 1999 - I | L35: 53.17 | M35: 0.009301442673 | N35: 0.03383239354
A36: 1999-06-01 | B36: 1999 - II | L36: 53.84 | M36: =L36/L35-1 -> 0.01260109084 | N36: 0.0288553411
A37: 1999-09-01 | B37: 1999 - III | L37: 54.32 | M37: 0.008915304606 | N37: 0.03446962483
A38: 1999-12-01 | B38: 1999 - IV | L38: 54.64 | M38: 0.0058910162 | N38: 0.03720577069
A39: 2000-03-01 | B39: 2000 - I | L39: 55.24 | M39: 0.01098096633 | N39: =L39/L35-1 -> 0.03893172842
A40: 2000-06-01 | B40: 2000 - II | L40: 55.56 | M40: 0.005792903693 | N40: 0.03194650817
A41: 2000-09-01 | B41: 2000 - III | L41: 56.43 | M41: 0.0156587473 | N41: 0.03884388807
A42: 2000-12-01 | B42: 2000 - IV | L42: 56.68 | M42: 0.004430267588 | N42: 0.03733528551
A43: 2001-03-01 | B43: 2001 - I | J43: 3.523 | L43: 57.21 | M43: 0.009350741002 | N43: 0.03566256336
A44: 2001-06-01 | B44: 2001 - II | J44: 3.5075 | K44: 3.54575 | L44: 56.96 | M44: -0.004369865408 | N44: 0.02519798416
A45: 2001-09-01 | B45: 2001 - III | J45: 3.4805 | K45: 3.48525 | L45: 56.92 | M45: -0.000702247191 | N45: 0.008683324473
A46: 2001-12-01 | B46: 2001 - IV | J46: 3.4435 | K46: 3.4415 | L46: 56.61 | M46: -0.005446240337 | N46: -0.001235003529
A47: 2002-03-01 | B47: 2002 - I | J47: 3.4435 | K47: 3.45665 | L47: 56.59 | M47: -0.0003532944709 | N47: -0.01083726621
A48: 2002-06-01 | B48: 2002 - II | J48: 3.5085 | K48: 3.47025 | L48: 56.96 | M48: 0.006538257643 | N48: 0
A49: 2002-09-01 | B49: 2002 - III | J49: 3.6313 | K49: 3.6029 | L49: 57.3 | M49: 0.005969101124 | N49: 0.006676036543
A50: 2002-12-01 | B50: 2002 - IV | J50: 3.5145 | K50: 3.559 | L50: 57.47 | M50: 0.002966841187 | N50: 0.01519166225
A51: 2003-03-01 | B51: 2003 - I | C51: 74.98 | F51: 0.0564319262 | J51: 3.4742 | K51: 3.47975 | L51: 58.52 | M51: 0.01827040195 | N51: 0.03410496554 | HK51: 2003-I
A52: 2003-06-01 | B52: 2003 - II | C52: 72.88 | F52: 0.04646750429 | J52: 3.4675 | K52: 3.46455 | L52: 58.19 | M52: -0.005639097744 | N52: 0.02159410112 | HK52: 2003-II
A53: 2003-09-01 | B53: 2003 - III | C53: 81.58 | F53: 0.03676659091 | J53: 3.4829 | K53: 3.47785 | L53: 58.44 | M53: 0.004296270837 | N53: 0.01989528796 | HK53: 2003-III
A54: 2003-12-01 | B54: 2003 - IV | C54: 75.76 | F54: 0.02779450267 | H54: 0.025 | I54: 0.02625 | J54: 3.4618 | K54: 3.4667 | L54: 58.89 | M54: 0.007700205339 | N54: 0.02470854359 | HK54: 2003-IV
A55: 2004-03-01 | B55: 2004 - I | C55: 77.06 | D55: =AVERAGE(OFFSET($C$1,MATCH(EDATE(A55,0),$A$1:$A$304,0)-1,,IF(MONTH($A55)=3,-1,IF(MONTH($A55)=6,-2,IF(MONTH($A55)=9,-3,-4)))))/AVERAGE(OFFSET($C$1,MATCH(EDATE(A55,-12),$A$1:$A$304,0)-1,,IF(MONTH($A55)=3,-1,IF(MONTH($A55)=6,-2,IF(MONTH($A55)=9,-3,-4)))))-1 -> 0.02774073086 | F55: =C55/C51-1 -> 0.02774073086 | H55: 0.025 | I55: 0.025 | J55: 3.4595 | K55: 3.4795 | L55: 60.13 | M55: 0.02105620649 | N55: 0.02751196172 | HK55: 2004-I
A56: 2004-06-01 | B56: 2004 - II | C56: 76.22 | D56: 0.0366562965 | F56: 0.0458287596 | H56: 0.025 | I56: 0.025 | J56: 3.4685 | K56: 3.47525 | L56: 60.67 | M56: 0.008980542159 | N56: 0.0426190067 | HK56: 2004-II
A57: 2004-09-01 | B57: 2004 - III | C57: 84.63 | D57: 0.03691596932 | F57: 0.03738661437 | H57: 0.0275 | I57: 0.02625 | J57: 3.3393 | K57: 3.3784 | L57: 60.79 | M57: 0.001977913301 | N57: 0.04021218344 | HK57: 2004-III
A58: 2004-12-01 | B58: 2004 - IV | C58: 79.01 | D58: 0.03840104849 | E58: =AVERAGE(C55:C58)/AVERAGE(C51:C54)-1 -> 0.03840104849 | F58: 0.04289862724 | H58: 0.03 | I58: 0.03 | J58: 3.279 | K58: 3.30175 | L58: 60.94 | M58: 0.002467511104 | N58: 0.03481066395 | HK58: 2004-IV
A59: 2005-03-01 | B59: 2005 - I | C59: 82.67 | D59: 0.07280041526 | E59: 0.04962900286 | F59: 0.07280041526 | H59: 0.03 | I59: 0.03 | J59: 3.2605 | K59: 3.2612 | L59: 61.26 | M59: 0.005251066623 | N59: 0.018792616 | HK59: 2005-I
A60: 2005-06-01 | B60: 2005 - II | C60: 80.5 | D60: 0.06452244259 | E60: 0.05212156332 | F60: 0.05615324062 | H60: 0.03 | I60: 0.03 | J60: 3.2535 | K60: 3.2545 | L60: 61.57 | M60: 0.005060398302 | N60: 0.01483434976 | HK60: 2005-II
A61: 2005-09-01 | B61: 2005 - III | C61: 89.22 | D61: 0.06086335169 | E61: 0.05652437275 | F61: 0.05423608649 | H61: 0.03 | I61: 0.03 | J61: 3.34 | K61: 3.2955 | L61: 61.46 | M61: -0.001786584376 | N61: 0.0110215496 | HK61: 2005-III
A62: 2005-12-01 | B62: 2005 - IV | C62: 84.12 | D62: 0.06181370693 | E62: 0.06181370693 | F62: 0.06467535755 | H62: 0.0325 | I62: 0.03125 | J62: 3.4205 | K62: 3.39775 | L62: 61.85 | M62: 0.006345590628 | N62: 0.01493272071 | HK62: 2005-IV
A63: 2006-03-01 | B63: 2006 - I | C63: 88.95 | D63: 0.07596467884 | E63: 0.06281586209 | F63: 0.07596467884 | H63: 0.04 | I63: 0.0375 | J63: 3.3688 | K63: 3.3394 | L63: 62.79 | M63: 0.01519805982 | N63: 0.0249755142 | HK63: 2006-I
A64: 2006-06-01 | B64: 2006 - II | C64: 87.17 | D64: 0.07936507937 | E64: 0.06930632478 | F64: 0.08285714286 | H64: 0.045 | I64: 0.04375 | J64: 3.2625 | K64: 3.28375 | L64: 62.69 | M64: -0.001592610288 | N64: 0.01819067728 | HK64: 2006-II
A65: 2006-09-01 | B65: 2006 - III | C65: 94.87 | D65: 0.07369547129 | E65: 0.07154496077 | F65: 0.06332660838 | H65: 0.045 | I65: 0.045 | J65: 3.2505 | K65: 3.2455 | L65: 62.69 | M65: 0 | N65: 0.0200130166 | HK65: 2006-III
A66: 2006-12-01 | B66: 2006 - IV | C66: 91.1 | D66: 0.0760155716 | E66: 0.0760155716 | F66: 0.08297669995 | H66: 0.045 | I66: 0.045 | J66: 3.1956 | K66: 3.2063 | L66: 62.56 | M66: -0.002073695964 | N66: 0.01147938561 | HK66: 2006-IV
A67: 2007-03-01 | B67: 2007 - I | C67: 95.46 | D67: 0.07318718381 | E67: 0.07529391172 | F67: 0.07318718381 | H67: 0.045 | I67: 0.045 | J67: 3.1825 | K67: 3.19 | L67: 62.94 | M67: 0.006074168798 | N67: 0.002388915432 | HK67: 2007-I
A68: 2007-06-01 | B68: 2007 - II | C68: 91.78 | D68: 0.06313876902 | E68: 0.06796199851 | F68: 0.05288516692 | G68: 0.01408308004 | H68: 0.045 | I68: 0.045 | J68: 3.166 | K68: 3.1695 | L68: 63.66 | M68: =L68/L67-1 -> 0.01143946616 | N68: 0.01547296219 | HK68: 2007-II
A69: 2007-09-01 | B69: 2007 - III | C69: 100.88 | D69: 0.06321266467 | E69: 0.06789445524 | F69: 0.06334984716 | G69: 0.02787491258 | H69: 0.05 | I69: 0.04875 | J69: 3.0845 | K69: 3.1224 | L69: 64.45 | M69: 0.01240967641 | N69: 0.02807465305 | HK69: 2007-III
A70: 2007-12-01 | B70: 2007 - IV | C70: 100.97 | D70: 0.07456709658 | E70: 0.07456709658 | F70: 0.1083424808 | G70: 0.03236780715 | H70: 0.05 | I70: 0.05 | J70: 2.998 | K70: 2.9993 | L70: 65.01 | M70: 0.008688906129 | N70: 0.03916240409 | HK70: 2007-IV
A71: 2008-03-01 | B71: 2008 - I | C71: 106.37 | D71: 0.1142887073 | E71: 0.08518719479 | F71: 0.1142887073 | G71: 0.02156105828 | H71: 0.0525 | I71: 0.0525 | J71: 2.7505 | K71: 2.84275 | L71: 66.43 | M71: 0.02184279342 | N71: =L71/L67-1 -> 0.05544963457 | HK71: 2008-I
A72: 2008-06-01 | B72: 2008 - II | C72: 101.09 | D72: 0.1079897458 | E72: 0.09672838348 | F72: 0.1014382218 | G72: 0.01004608295 | H72: 0.0575 | I72: 0.05625 | J72: 2.961 | K72: 2.88875 | L72: 67.3 | M72: 0.01309649255 | N72: 0.05717876217 | HK72: 2008-II
A73: 2008-09-01 | B73: 2008 - III | C73: 111.5 | D73: 0.1070387339 | E73: 0.1073519329 | F73: 0.1052735924 | G73: -0.0008212428141 | H73: 0.065 | I73: 0.0625 | J73: 2.9825 | K73: 2.89675 | L73: 68.46 | M73: 0.01723625557 | N73: 0.06221877424 | HK73: 2008-III
A74: 2008-12-01 | B74: 2008 - IV | C74: 110.64 | D74: 0.1041147292 | E74: 0.1041147292 | F74: 0.0957710211 | G74: -0.004109589041 | H74: 0.065 | I74: 0.065 | J74: 3.1345 | K74: 3.10475 | L74: 69.34 | M74: 0.01285422144 | N74: 0.06660513767 | HK74: 2008-IV
A75: 2009-03-01 | B75: 2009 - I | C75: 113.27 | D75: 0.06486791389 | E75: 0.09125 | F75: 0.06486791389 | G75: -0.004676753783 | H75: 0.06 | I75: 0.0625 | J75: 3.1527 | K75: 3.1696 | L75: 69.61 | M75: 0.00389385636 | N75: 0.04786993828
A76: 2009-06-01 | B76: 2009 - II | C76: 103.71 | D76: 0.04588836402 | E76: 0.07282988444 | F76: 0.02591749926 | G76: 0.008476137829 | H76: 0.03 | I76: 0.04 | J76: 3.0065 | K76: 2.9935 | L76: 69.36 | M76: -0.003591438012 | N76: 0.03060921248
A77: 2009-09-01 | B77: 2009 - III | C77: 110.69 | D77: 0.02730749937 | E77: 0.04376919963 | F77: -0.007264573991 | G77: 0.0265850539 | H77: 0.0125 | I77: 0.01625 | J77: 2.882 | K77: 2.934 | L77: 69.28 | M77: -0.001153402537 | N77: 0.01197779725 | HK77: 1
A78: 2009-12-01 | B78: 2009 - IV | C78: 110.53 | D78: 0.02001862197 | E78: 0.02001862197 | F78: -0.0009942154736 | G78: 0.02420574887 | H78: 0.0125 | I78: 0.0125 | J78: 2.888 | K78: 2.8985 | L78: 69.51 | M78: 0.003319861432 | N78: 0.002451687338 | HK78: 2
A79: 2010-03-01 | B79: 2010 - I | C79: 116.36 | D79: 0.02727995056 | E79: 0.01097365407 | F79: 0.02727995056 | G79: 0.0327569728 | H79: 0.0125 | I79: 0.0125 | J79: 2.842 | K79: 2.8495 | L79: 70.13 | M79: 0.008919579917 | N79: 0.007470191065 | HK79: 3
A80: 2010-06-01 | B80: 2010 - II | C80: 109.58 | D80: 0.04129412849 | E80: 0.01830934596 | F80: 0.05660013499 | G80: 0.009422850412 | H80: 0.0175 | I80: 0.015 | J80: 2.8255 | K80: 2.836 | L80: 70.5 | M80: 0.005275916156 | N80: 0.01643598616 | HK80: 4
A81: 2010-09-01 | B81: 2010 - III | C81: 121.17 | D81: 0.05932798242 | E81: 0.04410120691 | F81: 0.09467883278 | G81: 0.01541923654 | H81: 0.03 | I81: 0.025 | J81: 2.7861 | K81: 2.80305 | L81: 70.92 | M81: 0.005957446809 | N81: 0.02367205543 | HK81: 5
A82: 2010-12-01 | B82: 2010 - IV | C82: 121.04 | D82: 0.0683477864 | E82: 0.0683477864 | F82: 0.09508730661 | G82: 0.02240827382 | H82: 0.03 | I82: 0.03 | J82: 2.8063 | K82: 2.8024 | L82: 70.95 | M82: 0.0004230118443 | N82: 0.02071644368 | HK82: 6
A83: 2011-03-01 | B83: 2011 - I | C83: 126.25 | D83: 0.08499484359 | E83: 0.08327856965 | F83: 0.08499484359 | G83: 0.006824020552 | H83: 0.0375 | I83: 0.035 | J83: 2.8025 | K83: 2.78625 | L83: 72 | M83: 0.01479915433 | N83: 0.02666476544 | HK83: 7
A84: 2011-06-01 | B84: 2011 - II | C84: 118.8 | D84: 0.08457997699 | E84: 0.08967707308 | F84: 0.0841394415 | G84: 0.01227972251 | H84: 0.0425 | I84: 0.04125 | J84: 2.7495 | K84: 2.78875 | L84: 72.55 | M84: 0.007638888889 | N84: 0.02907801418 | HK84: 8
A85: 2011-09-01 | B85: 2011 - III | C85: 127.58 | D85: 0.0735213621 | E85: 0.07873000612 | F85: 0.05290088306 | G85: 0.01551792044 | H85: 0.0425 | I85: 0.0425 | J85: 2.774 | K85: 2.7561 | L85: 73.56 | M85: 0.01392143349 | N85: 0.0372250423 | HK85: 9
A86: 2011-12-01 | B86: 2011 - IV | C86: 128.08 | D86: 0.06955035779 | E86: 0.06955035779 | F86: 0.05816259088 | G86: 0.01853862861 | H86: 0.0425 | I86: 0.0425 | J86: 2.6965 | K86: 2.70175 | L86: 74.31 | M86: 0.01019575856 | N86: 0.04735729387 | HK86: 10
A87: 2012-03-01 | B87: 2012 - I | C87: 133.84 | D87: =AVERAGE(OFFSET($C$1,MATCH(EDATE(A87,0),$A$1:$A$304,0)-1,,IF(MONTH($A87)=3,-1,IF(MONTH($A87)=6,-2,IF(MONTH($A87)=9,-3,-4)))))/AVERAGE(OFFSET($C$1,MATCH(EDATE(A87,-12),$A$1:$A$304,0)-1,,IF(MONTH($A87)=3,-1,IF(MONTH($A87)=6,-2,IF(MONTH($A87)=9,-3,-4)))))-1 -> 0.06011881188 | E87: 0.06330014225 | F87: =C87/C83-1 -> 0.06011881188 | G87: 0.01431726449 | H87: 0.0425 | I87: 0.0425 | J87: 2.6685 | K87: 2.67875 | L87: 75.05 | M87: 0.009958282869 | N87: 0.04236111111 | HK87: 11
A88: 2012-06-01 | B88: 2012 - II | C88: 126.06 | D88: 0.06059987758 | E88: 0.05807987522 | F88: 0.06111111111 | G88: 0.01877017794 | H88: 0.0425 | I88: 0.0425 | J88: 2.664 | K88: 2.64925 | L88: 75.45 | M88: 0.005329780147 | N88: 0.0399724328 | HK88: 12
A89: 2012-09-01 | B89: 2012 - III | C89: 135.09 | D89: 0.06000590398 | E89: 0.05955395305 | F89: 0.05886502587 | G89: 0.001989829759 | H89: 0.0425 | I89: 0.0425 | J89: 2.5975 | K89: 2.612 | L89: 76.31 | M89: 0.011398277 | N89: 0.03738444807 | HK89: 13
A90: 2012-12-01 | B90: 2012 - IV | C90: 137.07 | D90: 0.06261109225 | E90: =AVERAGE(C87:C90)/AVERAGE(C83:C86)-1 -> 0.06261109225 | F90: 0.07019050593 | G90: 0.0263312739 | H90: 0.0425 | I90: 0.0425 | J90: 2.5515 | K90: 2.57375 | L90: 76.28 | M90: -0.0003931332722 | N90: 0.02651056385 | HK90: 14
A91: 2013-03-01 | B91: 2013 - I | C91: 141.28 | D91: 0.0555887627 | E91: 0.06138107417 | F91: 0.0555887627 | G91: 0.01017629354 | H91: 0.0425 | I91: 0.0425 | J91: 2.5895 | K91: 2.5825 | L91: 76.99 | M91: 0.009307813319 | N91: 0.02584943371 | HK91: 15
A92: 2013-06-01 | B92: 2013 - II | C92: 132.33 | D92: 0.0527510581 | E92: 0.05859647762 | F92: 0.0497382199 | G92: 0.01319523269 | H92: 0.0425 | I92: 0.0425 | J92: 2.7805 | K92: 2.71175 | L92: 77.54 | M92: 0.007143784907 | N92: 0.02770046388 | HK92: 16
A93: 2013-09-01 | B93: 2013 - III | C93: 143.56 | D93: 0.05615332034 | E93: 0.05959049458 | F93: 0.06269894145 | G93: 0.01505391402 | H93: 0.0425 | I93: 0.0425 | J93: 2.7815 | K93: 2.788 | L93: 78.47 | M93: 0.01199380965 | N93: 0.0283055956 | HK93: 17
A94: 2013-12-01 | B94: 2013 - IV | C94: 144.23 | D94: 0.05514415667 | E94: 0.05514415667 | F94: 0.05223608375 | G94: 0.004345726702 | H94: 0.04 | I94: 0.04125 | J94: 2.799 | K94: 2.7865 | L94: 78.46 | M94: -0.0001274372372 | N94: 0.02857891977 | HK94: 18
A95: 2014-03-01 | B95: 2014 - I | C95: 150.95 | D95: 0.06844563986 | E95: 0.05851714551 | F95: 0.06844563986 | G95: -0.005906593407 | H95: 0.04 | I95: 0.04 | J95: 2.8085 | K95: 2.8155 | L95: 79.6 | M95: 0.01452969666 | N95: 0.03390050656 | HK95: 19
A96: 2014-06-01 | B96: 2014 - II | C96: 138.89 | D96: 0.05931800738 | E96: 0.05837623908 | F96: 0.0495730371 | G96: 0.005112615725 | H96: 0.04 | I96: 0.04 | J96: 2.7985 | K96: 2.803 | L96: 80.22 | M96: 0.007788944724 | N96: 0.03456280629 | HK96: 20
A97: 2014-09-01 | B97: 2014 - III | C97: 146.37 | D97: 0.04564086583 | E97: 0.04727193995 | F97: 0.01957369741 | G97: 0.005705251581 | H97: 0.035 | I97: 0.03625 | J97: 2.8904 | K97: 2.84575 | L97: 80.62 | M97: 0.004986287709 | N97: 0.02739900599 | HK97: 21
A98: 2014-12-01 | B98: 2014 - IV | C98: 146.86 | D98: 0.03859992875 | E98: 0.03859992875 | F98: 0.01823476392 | G98: 0.01421638986 | H98: 0.035 | I98: 0.035 | J98: 2.9795 | K98: 2.9505 | L98: 80.99 | M98: 0.004589431903 | N98: 0.03224573031 | HK98: 22
A99: 2015-03-01 | B99: 2015 - I | C99: 152.57 | D99: 0.01073203047 | E99: 0.02384996585 | F99: 0.01073203047 | G99: 0.008558528203 | H99: 0.0325 | I99: 0.0325 | J99: 3.0965 | K99: 3.07775 | L99: 82 | M99: 0.01247067539 | N99: 0.03015075377 | HK99: 23
A100: 2015-06-01 | B100: 2015 - II | C100: 141.57 | D100: 0.01483577146 | E100: 0.01686200509 | F100: 0.01929584563 | G100: 0.002605906722 | H100: 0.0325 | I100: 0.0325 | J100: 3.1795 | K100: 3.155 | L100: 83.06 | M100: =L100/L99-1 -> 0.01292682927 | N100: 0.03540264273 | HK100: 24
A101: 2015-09-01 | B101: 2015 - III | C101: 151.02 | D101: 0.02051764059 | E101: 0.01995038247 | F101: 0.03176880508 | G101: 0.01826057981 | H101: 0.035 | I101: 0.03375 | J101: 3.2335 | K101: 3.21225 | L101: 83.77 | M101: 0.008548037563 | N101: 0.03907219052 | HK101: 25
A102: 2015-12-01 | B102: 2015 - IV | C102: 151.5 | D102: 0.0233076646 | E102: 0.0233076646 | F102: 0.03159471606 | G102: 0.01498789188 | H102: 0.0375 | I102: 0.03625 | J102: 3.414 | K102: 3.3505 | L102: 84.56 | M102: 0.009430583741 | N102: 0.04407951599 | HK102: 26
A103: 2016-03-01 | B103: 2016 - I | C103: 159.61 | D103: 0.04614275415 | E103: 0.03251295558 | F103: 0.04614275415 | G103: -0.004578282177 | H103: 0.0425 | I103: 0.04125 | J103: 3.313 | K103: 3.39275 | L103: 85.53 | M103: 0.01147114475 | N103: =L103/L99-1 -> 0.04304878049 | HK103: 27
A104: 2016-06-01 | B104: 2016 - II | C104: 147.91 | D104: 0.04548854287 | E104: 0.03859577438 | F104: 0.04478349933 | G104: 0.01729610676 | H104: 0.0425 | I104: 0.0425 | J104: 3.2855 | K104: 3.2865 | L104: 85.84 | M104: 0.003624459254 | N104: 0.03346978088 | HK104: 28
A105: 2016-09-01 | B105: 2016 - III | C105: 156.66 | D105: 0.0427262108 | E105: 0.03996486605 | F105: 0.03734604688 | G105: 0.001719307183 | H105: 0.0425 | I105: 0.0425 | J105: 3.3835 | K105: 3.36775 | L105: 86.39 | M105: 0.006407269338 | N105: 0.03127611317 | HK105: 29
A106: 2016-12-01 | B106: 2016 - IV | C106: 158.49 | D106: 0.04359266584 | E106: 0.04359266584 | F106: 0.04613861386 | G106: 0.008200368699 | H106: 0.0425 | I106: 0.0425 | J106: 3.356 | K106: 3.35975 | L106: 87.29 | M106: 0.01041787244 | N106: 0.03228476821 | HK106: 30
A107: 2017-03-01 | B107: 2017 - I | C107: 164.51 | D107: 0.03069983084 | E107: 0.03953950638 | F107: 0.03069983084 | G107: 0.005674653216 | H107: 0.0425 | I107: 0.0425 | J107: 3.2485 | K107: 3.26 | L107: 88.93 | M107: 0.01878794822 | N107: 0.03975213375 | HK107: 31
A108: 2017-06-01 | B108: 2017 - II | C108: 151.29 | D108: 0.02692507804 | E108: 0.03427644089 | F108: 0.02285173416 | G108: 0.01203761755 | H108: 0.04 | I108: 0.04125 | J108: 3.245 | K108: 3.2444 | L108: 88.18 | M108: -0.00843359946 | N108: 0.02726001864 | HK108: 32
A109: 2017-09-01 | B109: 2017 - III | C109: 160.81 | D109: 0.02677840493 | E109: 0.03154235967 | F109: 0.02649048896 | G109: -0.002663858258 | H109: 0.035 | I109: 0.03625 | J109: 3.2655 | K109: 3.25275 | L109: 88.94 | M109: 0.008618734407 | N109: 0.02951730524 | HK109: 33
A110: 2017-12-01 | B110: 2017 - IV | C110: 162.95 | D110: 0.02712512246 | E110: 0.02712512246 | F110: 0.02814057669 | G110: 0.02267221567 | H110: 0.0325 | I110: 0.03375 | J110: 3.2374 | K110: 3.24395 | L110: 88.48 | M110: -0.005172026085 | N110: 0.01363271852 | HK110: 34
A111: 2018-03-01 | B111: 2018 - I | C111: 168.33 | D111: 0.02322047292 | E111: 0.02519240881 | F111: 0.02322047292 | G111: 0.01895043732 | H111: 0.0275 | I111: 0.02875 | J111: 3.2298 | K111: 3.2229 | L111: 89.25 | M111: 0.008702531646 | N111: 0.00359833577 | HK111: 35
A112: 2018-06-01 | B112: 2018 - II | C112: 156.08 | D112: 0.0272640912 | E112: 0.02729217846 | F112: 0.03166104832 | G112: -0.01537911302 | H112: 0.0275 | I112: 0.0275 | J112: 3.2765 | K112: 3.2645 | L112: 89.44 | M112: 0.002128851541 | N112: 0.01428895441 | HK112: 36
A113: 2018-09-01 | B113: 2018 - III | C113: 169.81 | D113: 0.03694844842 | E113: 0.034750433 | F113: 0.05596666874 | G113: 0.01670904468 | H113: 0.0275 | I113: 0.0275 | J113: 3.304 | K113: 3.28785 | L113: 90.07 | M113: 0.007043828265 | N113: 0.01270519451 | HK113: 37
A114: 2018-12-01 | B114: 2018 - IV | C114: 166.92 | D114: 0.03374194759 | E114: 0.03374194759 | F114: 0.02436330163 | G114: 0.00190544242 | H114: 0.0275 | I114: 0.0275 | J114: 3.3685 | K114: 3.37 | L114: 90.42 | M114: 0.003885866548 | N114: 0.02192585895 | HK114: 38
A115: 2019-03-01 | B115: 2019 - I | C115: 176.1 | D115: 0.04615932989 | E115: 0.03968105941 | F115: 0.04615932989 | G115: 0.01325329847 | H115: 0.0275 | I115: 0.0275 | J115: 3.3185 | K115: 3.323 | L115: 91.25 | M115: 0.009179385092 | N115: 0.02240896359 | HK115: 39
A116: 2019-06-01 | B116: 2019 - II | C116: 159.83 | D116: 0.03551061928 | E116: 0.03778329759 | F116: 0.02402614044 | G116: 0.000762508065 | H116: 0.0275 | I116: 0.0275 | J116: 3.294 | K116: 3.30025 | L116: 91.49 | M116: 0.002630136986 | N116: 0.02292039356 | HK116: 40
A117: 2019-09-01 | B117: 2019 - III | C117: 171.76 | D117: 0.02725506859 | E117: 0.0265380343 | F117: 0.01148342265 | G117: 0.002813269253 | H117: 0.025 | I117: 0.02625 | J117: 3.3695 | K117: 3.33695 | L117: 91.74 | M117: 0.002732539075 | N117: 0.01854113467 | HK117: 41
A118: 2019-12-01 | B118: 2019 - IV | C118: 172.58 | D118: 0.02893487007 | E118: 0.02893487007 | F118: 0.03390845914 | G118: -0.05435417884 | H118: 0.0225 | I118: 0.02375 | J118: 3.313 | K118: 3.329 | L118: 92.14 | M118: 0.004360148245 | N118: 0.01902234019 | HK118: 42
A119: 2020-03-01 | B119: 2020 - I | C119: 179.73 | D119: =AVERAGE(OFFSET($C$1,MATCH(EDATE(A119,0),$A$1:$A$304,0)-1,,IF(MONTH($A119)=3,-1,IF(MONTH($A119)=6,-2,IF(MONTH($A119)=9,-3,-4)))))/AVERAGE(OFFSET($C$1,MATCH(EDATE(A119,-12),$A$1:$A$304,0)-1,,IF(MONTH($A119)=3,-1,IF(MONTH($A119)=6,-2,IF(MONTH($A119)=9,-3,-4)))))-1 -> 0.0206132879 | E119: 0.02240959172 | F119: =C119/C115-1 -> 0.0206132879 | G119: -0.2606304079 | H119: 0.0125 | I119: 0.0175 | J119: 3.432 | K119: 3.409 | L119: 92.92 | M119: 0.008465378771 | N119: 0.01830136986 | HK119: 43
A120: 2020-06-01 | B120: 2020 - II | C120: 154.13 | D120: -0.006161998035 | E120: 0.008235958731 | F120: -0.03566289182 | G120: 0.3007606788 | H120: 0.0025 | I120: 0.0025 | J120: 3.5415 | K120: 3.4586 | L120: 92.96 | M120: 0.0004304778304 | N120: 0.01606732976 | HK120: 44
A121: 2020-09-01 | B121: 2020 - III | C121: 120.15 | D121: -0.1057338139 | E121: -0.07118186804 | F121: -0.3004774103 | G121: 0.08142150247 | H121: 0.0025 | I121: 0.0025 | J121: 3.6025 | K121: 3.5682 | L121: 93.41 | M121: 0.004840791738 | N121: 0.01820361892 | HK121: 45
A122: 2020-12-01 | B122: 2020 - IV | C122: 157.58 | D122: -0.100959913 | E122: =AVERAGE(C119:C122)/AVERAGE(C115:C118)-1 -> -0.100959913 | F122: -0.08691621277 | G122: 0.00677442358 | H122: 0.0025 | I122: 0.0025 | J122: 3.618 | K122: 3.61665 | L122: 93.96 | M122: 0.005888020555 | N122: 0.01975255047 | HK122: 46
A123: 2021-03-01 | B123: 2021 - I | C123: 177.23 | D123: -0.01390975352 | E123: -0.1093873373 | F123: -0.01390975352 | G123: 0.00436784323 | H123: 0.0025 | I123: 0.0025 | J123: 3.7435 | K123: 3.69015 | L123: 95.33 | M123: 0.01458067263 | N123: 0.02593628928 | HK123: 47
A124: 2021-06-01 | B124: 2021 - II | C124: 160.64 | D124: 0.01201102258 | E124: -0.09230315541 | F124: 0.0422370726 | G124: 0.02186177715 | H124: 0.0025 | I124: 0.0025 | J124: 3.8659 | K124: 3.8258 | L124: 95.98 | M124: 0.006818420224 | N124: 0.03248709122 | HK124: 49
A125: 2021-09-01 | B125: 2021 - III | C125: 170.71 | D125: 0.1201955904 | E125: 0.06315134298 | F125: 0.4208073242 | G125: 0.0005175983437 | H125: 0.01 | I125: 0.00625 | J125: 4.1345 | K125: 4.1015 | L125: 98.3 | M125: 0.02417170244 | N125: 0.05234985548 | HK125: 50
A126: 2021-12-01 | B126: 2021 - IV | C126: 176.11 | D126: 0.1195245181 | E126: 0.1195245181 | F126: 0.1175910649 | G126: 0.01201356556 | H126: 0.025 | I126: 0.02 | J126: 4.0015 | K126: 3.9965 | L126: 100 | M126: 0.01729399797 | N126: 0.06428267348 | HK126: 51
A127: 2022-03-01 | B127: 2022 - I | C127: 183.38 | D127: 0.03470067144 | E127: 0.1342166182 | F127: 0.03470067144 | G127: 0.0005679881858 | H127: 0.04 | I127: 0.035 | J127: 3.6804 | K127: 3.7627 | L127: 101.84 | M127: 0.0184 | N127: 0.06828910102 | HK127: 52
A128: 2022-06-01 | B128: 2022 - II | C128: 166.93 | D128: 0.03681889484 | E128: 0.132439896 | F128: 0.03915587649 | G128: 0.006528156222 | H128: 0.055 | I128: 0.05 | J128: 3.8265 | K128: 3.832 | L128: 104.44 | M128: 0.02553024352 | N128: 0.0881433632 | HK128: 53
A129: 2022-09-01 | B129: 2022 - III | C129: 176.55 | D129: 0.03594321444 | E129: 0.05525699532 | F129: 0.03421006385 | G129: 0.0001691951949 | H129: 0.0675 | I129: 0.06375 | J129: 3.9832 | K129: 3.95255 | L129: 106.68 | M129: 0.02144772118 | N129: 0.08524923703 | HK129: 54
A130: 2022-12-01 | B130: 2022 - IV | C130: 179.73 | D130: 0.03198527801 | E130: 0.03198527801 | F130: 0.02055533473 | G130: -0.00693582948 | H130: 0.075 | I130: 0.0725 | J130: 3.8061 | K130: 3.89605 | L130: 108.46 | M130: 0.01668541432 | N130: 0.0846 | HK130: 55
A131: 2023-03-01 | B131: 2023 - I | C131: 187.1 | D131: 0.02028574545 | E131: 0.02818308147 | F131: 0.02028574545 | G131: -0.001703480779 | H131: 0.0775 | I131: 0.0775 | J131: 3.7631 | K131: 3.80455 | L131: 110.39 | M131: 0.01779457865 | N131: 0.08395522388
A132: 2023-06-01 | B132: 2023 - II | C132: 167 | D132: 0.0108189889 | E132: 0.01900649807 | F132: 0.0004193374468 | G132: 0.002104544679 | H132: 0.0775 | I132: 0.0775 | J132: 3.625 | K132: 3.6665 | L132: 111.19 | M132: =L132/L131-1 -> 0.007247033246 | N132: 0.0646304098
A133: 2023-09-01 | B133: 2023 - III | C133: 175.92 | D133: 0.005997798277 | E133: 0.009644792808 | F133: -0.003568394223 | G133: 0.002951526848 | H133: 0.075 | I133: 0.07625 | J133: 3.7849 | K133: 3.6993 | L133: 112.06 | M133: 0.007824444644 | N133: 0.0504311961
A134: 2023-12-01 | B134: 2023 - IV | C134: 178.61 | D134: 0.002887105677 | E134: 0.002887105677 | F134: -0.006231569577 | G134: 0.01329937748 | H134: 0.0675 | I134: 0.07 | J134: 3.7042 | K134: 3.7716 | L134: 111.97 | M134: -0.0008031411744 | N134: 0.03236216117
A135: 2024-03-01 | B135: 2024 - I | C135: 186.3 | D135: -0.004275788348 | E135: -0.003491433318 | F135: -0.004275788348 | G135: 0.01273387322 | H135: 0.0625 | I135: 0.06375 | J135: 3.7176 | K135: 3.76305 | L135: 113.75 | M135: 0.0158971153 | N135: =L135/L131-1 -> 0.03043753963
A136: 2024-06-01 | B136: 2024 - II | C136: 169.4 | D136: 0.0045184976 | E136: -0.0002111545933 | F136: 0.01437125749 | G136: 0.01091931837 | H136: 0.0575 | I136: 0.05875 | J136: 3.8425 | K136: 3.80445 | L136: 113.73 | M136: -0.0001758241758 | N136: 0.02284378092
A137: 2024-09-01 | B137: 2024 - III | C137: 182.63 | D137: 0.01567865364 | E137: 0.01013032758 | F137: 0.03814233743 | G137: 0.005509792155 | H137: 0.0525 | I137: 0.055 | J137: 3.704 | K137: 3.71615 | L137: 114.1 | M137: 0.003253319265 | N137: 0.01820453329
A138: 2024-12-01 | B138: 2024 - IV | C138: 186.04 | D138: 0.02221187362 | E138: 0.02221187362 | F138: 0.04159901461 | G138: 0.009548611111 | H138: 0.05 | I138: 0.05125 | J138: 3.757 | K138: 3.76575 | L138: 114.17 | M138: 0.0006134969325 | N138: 0.01964812003
A139: 2025-03-01 | B139: 2025 - I | C139: 194.63 | D139: 0.04471282877 | E139: 0.03513555515 | F139: 0.04471282877 | G139: 0.00510533104 | H139: 0.0475 | I139: 0.0475 | J139: 3.677 | K139: 3.7022 | L139: 115.21 | M139: 0.009109223088 | N139: 0.01283516484
A140: 2025-06-01 | B140: 2025 - II | C140: 176.31 | D140: 0.04284509418 | E140: 0.04136688115 | F140: 0.04079102715 | G140: 0.0134203069 | H140: 0.045 | I140: 0.04625 | J140: 3.5417 | K140: 3.6032 | L140: 115.66 | M140: 0.003905910945 | N140: 0.01697001671
A141: 2025-09-01 | B141: 2025 - III | C141: 187.9 | D141: 0.03809930712 | E141: 0.03897118308 | F141: 0.02885615726 | G141: -0.001635538673 | H141: 0.0425 | I141: 0.04375 | J141: 3.4719 | K141: 3.5319 | L141: 115.6 | M141: -0.0005187618883 | N141: 0.01314636284
A142: 2025-12-01 | B142: 2025 - IV | C142: 192.94 | D142: 0.03783977801 | E142: 0.03783977801 | F142: 0.03708879811 | G142: 0.0090366221 | H142: 0.0425 | I142: 0.0425 | J142: 3.3625 | K142: 3.36515 | L142: 115.89 | M142: 0.002508650519 | N142: 0.01506525357
A143: 2026-03-01 | B143: 2026 - I | C143: 200.75 | D143: 0.03144427889 | E143: 0.0343933397 | F143: 0.03144427889 | G143: 0.009008065361 | H143: 0.0425 | I143: 0.0425 | J143: 3.361236471 | K143: 3.365118235 | L143: 117.21 | M143: 0.01139011131 | N143: 0.0173596042
A144: 2026-06-01 | B144: 2026 - II | C144: 185.87 | D144: 0.04227098722 | E144: 0.03765498033 | F144: 0.05422267597 | G144: 0.008979549465 | H144: 0.04 | I144: 0.04125 | J144: 3.374157647 | K144: 3.369850588 | L144: 117.78 | M144: 0.004863066291 | N144: 0.01832958672
A145: 2026-09-01 | B145: 2026 - III | C145: 193.45 | D145: 0.03798940663 | E145: 0.03776447213 | F145: 0.02953698776 | G145: 0.00997993724 | H145: 0.04 | I145: 0.04 | J145: 3.387078824 | K145: 3.382771765 | L145: 117.88 | M145: 0.0008490405841 | N145: 0.01972318339
A146: 2026-12-01 | B146: 2026 - IV | C146: 197.36 | D146: 0.03411902418 | E146: 0.03411902418 | F146: 0.02290867627 | G146: 0.006010288799 | H146: 0.04 | I146: 0.04 | J146: 3.4 | K146: 3.395692941 | L146: 118.21 | M146: 0.002799457075 | N146: 0.02001898352
A147: 2027-03-01 | B147: 2027 - I | C147: 205.08 | D147: 0.02156911582 | E147: 0.03148172582 | F147: 0.02156911582 | G147: 0.006025011392 | H147: 0.04 | I147: 0.04 | J147: 3.4 | K147: 3.4 | L147: 119.55 | M147: 0.0113357584 | N147: 0.01996416688
A148: 2027-06-01 | B148: 2027 - II | C148: 190.86 | D148: 0.02410635766 | E148: 0.02513486045 | F148: 0.02684672083 | G148: 0.005988928032 | H148: 0.04 | I148: 0.04 | J148: 3.4 | K148: 3.4 | L148: 120.13 | M148: 0.004851526558 | N148: 0.01995245373
A149: 2027-09-01 | B149: 2027 - III | C149: 199.75 | D149: 0.02692778458 | E149: 0.02592463228 | F149: 0.03256655467 | G149: 0.007003852119 | H149: 0.04 | I149: 0.04 | J149: 3.4 | K149: 3.4 | L149: 120.24 | M149: 0.0009156746858 | N149: 0.02002035969
A150: 2027-12-01 | B150: 2027 - IV | C150: 203.03 | D150: 0.0273851022 | E150: 0.0273851022 | F150: 0.02872922578 | G150: 0.006011227582 | H150: 0.04 | I150: 0.04 | J150: 3.4 | K150: 3.4 | L150: 120.58 | M150: 0.002827677977 | N150: 0.02004906522
A151: 2028-03-01 | B151: 2028 - I | C151: 211.81 | D151: 0.03281646187 | E151: 0.03030341793 | F151: =C151/C147-1 -> 0.03281646187 | G151: 0.008 | H151: 0.04 | I151: 0.04 | J151: 3.4 | K151: 3.4 | L151: 121.94 | M151: 0.01127881904 | N151: 0.0199916353
A152: 2028-06-01 | B152: 2028 - II | C152: 194.89 | D152: 0.02717583472 | E152: 0.02889100731 | F152: 0.02111495337 | G152: 0.007985498726 | H152: 0.04 | I152: 0.04 | J152: 3.4 | K152: 3.4 | L152: 122.53 | M152: 0.004838445137 | N152: 0.01997835678
A153: 2028-09-01 | B153: 2028 - III | C153: 205.07 | D153: 0.02699390623 | E153: 0.0274257613 | F153: 0.02663329161 | G153: 0.007970838396 | H153: 0.04 | I153: 0.04 | J153: 3.4 | K153: 3.4 | L153: 122.64 | M153: 0.0008977393291 | N153: 0.01996007984
A154: 2028-12-01 | B154: 2028 - IV | C154: 209.1 | D154: 0.02773187099 | E154: =AVERAGE(C151:C154)/AVERAGE(C147:C150)-1 -> 0.02773187099 | F154: 0.02989705955 | G154: 0.00554510825 | H154: 0.04 | I154: 0.04 | J154: 3.4 | K154: 3.4 | L154: 122.99 | M154: 0.002853881279 | N154: 0.0199867308
HK155: 60
A156: * Index SA | HK156: 61
HK157: 62
HK158: 63
HK159: 64
HK160: 65
HK161: 66
HK162: 67

Sheet Paraguay
D2: 2003 | E2: 2004 | F2: 2005 | G2: 2006 | H2: 2007 | I2: 2008 | J2: 2009 | K2: 2010 | L2: 2011 | M2: 2012 | N2: 2013 | O2: 2014 | P2: 2015 | Q2: 2016 | R2: 2017 | S2: 2018 | T2: 2019 | U2: 2020 | V2: 2021 | W2: 2022 | X2: 2023 | Y2: 2024 | Z2: 2025F | AA2: 2026F | AB2: 2027F | AC2: 2028F | AD2: 2028F
C4: GDP % | D4: 0.04164850561 | E4: 0.04958274137 | F4: 0.06285208166 | G4: 0.07740513994 | H4: 0.08905276764 | I4: 0.09803740563 | J4: 0.0104919354 | K4: 0.08450746875 | L4: 0.06452216002 | M4: 0.0595034634 | N4: 0.0583753976 | O4: 0.02394076363 | P4: 0.02957151684 | Q4: 0.04268025833 | R4: 0.04810078856 | S4: 0.03204250341 | T4: -0.004018551007 | U4: -0.008197853909 | V4: 0.03994615107 | W4: -0.0002807717241 | X4: 0.0528584585 | Y4: 0.0466914578 | Z4: 0.06007464599 | AA4: 0.03980859565 | AB4: 0.03983172239 | AC4: 0.028 | AD4: 0.04008875976
C5: CPI % | D5: 0.02483753673 | E5: 0.03481080682 | F5: 0.01494260325 | G5: 0.01137484663 | H5: 0.03927649382 | I5: 0.06650205269 | J5: 0.002453434809 | K5: 0.02076419759 | L5: 0.04738431607 | M5: 0.02649368608 | N5: 0.029 | O5: 0.03224061189 | P5: 0.03104693141 | Q5: 0.03921568627 | R5: 0.04514824798 | S5: 0.032 | T5: 0.02810077519 | U5: 0.02167766258 | V5: 0.06826568266 | W5: 0.08117443869 | X5: 0.03674121406 | Y5: 0.03775038521 | Z5: 0.03118040089 | AA5: 0.03502618872 | AB5: 0.03498886992 | AC5: 0.02 | AD5: 0.03498886992
C6: Exchange Rate - PYG / USD (end of period) | D6: 3.463 | E6: 3.28 | F6: 3.428 | G6: 3.195 | H6: 2.98 | I6: 3.11 | J6: 2.88 | K6: 2.815 | L6: 2.696 | M6: 2.57 | N6: 2.786 | O6: 2.989 | P6: 5782 | Q6: 5737.5 | R6: 5588 | S6: 5963.9 | T6: 6465 | U6: 6911.6 | V6: 6876.9 | W6: 7339.5 | X6: 7275 | Y6: 7975.1 | Z6: 6598 | AA6: 6649.56455 | AB6: 6649.81429 | AC6: 3.4 | AD6: 6714.618319
C7: Monetary Policy Rate - % (end of period) | D7: 0.025 | E7: 0.03 | F7: 0.0325 | G7: 0.045 | H7: 0.05 | I7: 0.065 | J7: 0.0125 | K7: 0.03 | L7: 0.0425 | M7: 0.0425 | N7: 0.04 | O7: 0.035 | P7: 0.0575 | Q7: 0.055 | R7: 0.0525 | S7: 0.0525 | T7: 0.04 | U7: 0.0075 | V7: 0.0525 | W7: 0.085 | X7: 0.0675 | Y7: 0.06 | Z7: 0.06 | AA7: 0.0525 | AB7: 0.05 | AC7: 0.04 | AD7: 0.05

Sheet Paraguay_Quarterly
C1: GDP NSA | H1: Monetary Policy Rate | J1: Exchange Rate | L1: Inflation NSA
C2: Index | D2: Ydt | E2: 12M | F2: YoY | G2: QoQ* | H2: eop | I2: Avg | J2: eop | K2: Avg | L2: Index (eop) | M2: QoQ | N2: YoY
A3: 1991-03-01 | B3: 1991 - I
A4: 1991-06-01 | B4: 1991 - II
A5: 1991-09-01 | B5: 1991 - III
A6: 1991-12-01 | B6: 1991 - IV
A7: 1992-03-01 | B7: 1992 - I
A8: 1992-06-01 | B8: 1992 - II
A9: 1992-09-01 | B9: 1992 - III
A10: 1992-12-01 | B10: 1992 - IV
A11: 1993-03-01 | B11: 1993 - I
A12: 1993-06-01 | B12: 1993 - II
A13: 1993-09-01 | B13: 1993 - III
A14: 1993-12-01 | B14: 1993 - IV
A15: 1994-03-01 | B15: 1994 - I
A16: 1994-06-01 | B16: 1994 - II
A17: 1994-09-01 | B17: 1994 - III
A18: 1994-12-01 | B18: 1994 - IV
A19: 1995-03-01 | B19: 1995 - I | L19: 0
A20: 1995-06-01 | B20: 1995 - II | L20: 0
A21: 1995-09-01 | B21: 1995 - III | L21: 0
A22: 1995-12-01 | B22: 1995 - IV | L22: 0
A23: 1996-03-01 | B23: 1996 - I | L23: 0
A24: 1996-06-01 | B24: 1996 - II | L24: 0
A25: 1996-09-01 | B25: 1996 - III | L25: 0
A26: 1996-12-01 | B26: 1996 - IV | L26: 0
A27: 1997-03-01 | B27: 1997 - I | L27: 0
A28: 1997-06-01 | B28: 1997 - II | L28: 0
A29: 1997-09-01 | B29: 1997 - III | L29: 0
A30: 1997-12-01 | B30: 1997 - IV | L30: 0
A31: 1998-03-01 | B31: 1998 - I | L31: 0
A32: 1998-06-01 | B32: 1998 - II | L32: 0
A33: 1998-09-01 | B33: 1998 - III | L33: 0
A34: 1998-12-01 | B34: 1998 - IV | L34: 0
A35: 1999-03-01 | B35: 1999 - I | L35: 0
A36: 1999-06-01 | B36: 1999 - II | L36: 0
A37: 1999-09-01 | B37: 1999 - III | L37: 0
A38: 1999-12-01 | B38: 1999 - IV | L38: 0
A39: 2000-03-01 | B39: 2000 - I | C39: 72.42657156 | L39: 0
A40: 2000-06-01 | B40: 2000 - II | C40: 77.57808924 | L40: 0
A41: 2000-09-01 | B41: 2000 - III | C41: 73.89881955 | L41: 0
A42: 2000-12-01 | B42: 2000 - IV | C42: 85.35636826 | L42: 0
A43: 2001-03-01 | B43: 2001 - I | C43: 73.83485159 | L43: 36.6716951
A44: 2001-06-01 | B44: 2001 - II | C44: 75.67776818 | L44: 36.52044327 | M44: =L44/L43-1 -> -0.004124484439
A45: 2001-09-01 | B45: 2001 - III | C45: 74.91152285 | L45: 37.29045261 | M45: 0.02108433735
A46: 2001-12-01 | B46: 2001 - IV | C46: 82.25630964 | L46: 38.21171379 | M46: 0.02470501475
A47: 2002-03-01 | B47: 2002 - I | C47: 75.11750468 | L47: 39.05047398 | M47: 0.02195034185 | N47: =L47/L43-1 -> 0.06486689164
A48: 2002-06-01 | B48: 2002 - II | C48: 76.81098728 | L48: 39.94423482 | M48: 0.02288732394 | N48: 0.09375
A49: 2002-09-01 | B49: 2002 - III | C49: 73.61755903 | L49: 42.4467652 | M49: 0.06265060241 | N49: 0.1382743363
A50: 2002-12-01 | B50: 2002 - IV | C50: 81.06875816 | L50: 43.80803172 | M50: 0.03206997085 | N50: 0.1464555596
A51: 2003-03-01 | B51: 2003 - I | C51: 74.39939592 | F51: 0.0564319262 | L51: 46.9293196 | M51: 0.07124921532 | N51: 0.2017605634 | HK51: 2003-I
A52: 2003-06-01 | B52: 2003 - II | C52: 78.76246072 | F52: 0.04646750429 | G52: 0.01752754807 | L52: 46.22806109 | M52: =L52/L51-1 -> -0.01494286551 | N52: 0.1573149742 | HK52: 2003-II
A53: 2003-09-01 | B53: 2003 - III | C53: 79.03813814 | F53: 0.03676659091 | G53: 0.03438387879 | L53: 45.88430692 | M53: -0.00743604997 | N53: 0.08098477486 | HK53: 2003-III
A54: 2003-12-01 | B54: 2003 - IV | C54: 87.66285991 | F54: 0.02779450267 | G54: 0.004607952124 | L54: 47.89183129 | M54: 0.04375187294 | N54: 0.09322033898 | HK54: 2003-IV
A55: 2004-03-01 | B55: 2004 - I | C55: 78.01360208 | D55: =AVERAGE(OFFSET($C$1,MATCH(EDATE(A55,0),$A$1:$A$304,0)-1,,IF(MONTH($A55)=3,-1,IF(MONTH($A55)=6,-2,IF(MONTH($A55)=9,-3,-4)))))/AVERAGE(OFFSET($C$1,MATCH(EDATE(A55,-12),$A$1:$A$304,0)-1,,IF(MONTH($A55)=3,-1,IF(MONTH($A55)=6,-2,IF(MONTH($A55)=9,-3,-4)))))-1 -> 0.04857843422 | F55: =C55/C51-1 -> 0.04857843422 | G55: -0.01039099662 | L55: 48.33183663 | M55: 0.009187482056 | N55: =L55/L51-1 -> 0.02988573103 | HK55: 2004-I
A56: 2004-06-01 | B56: 2004 - II | C56: 83.97195529 | D56: 0.05761030142 | F56: 0.06614184623 | G56: 0.03802141866 | L56: 48.78559214 | M56: 0.009388335704 | N56: 0.05532421178 | HK56: 2004-II
A57: 2004-09-01 | B57: 2004 - III | C57: 80.97397105 | D57: 0.04633735523 | F57: 0.02449239014 | G57: -0.006745615875 | L57: 48.93684397 | M57: 0.003100338219 | N57: 0.0665268205 | HK57: 2004-III
A58: 2004-12-01 | B58: 2004 - IV | C58: 89.88150047 | D58: 0.04057418364 | E58: =AVERAGE(C55:C58)/AVERAGE(C51:C54)-1 -> 0.04057418364 | F58: 0.02530878601 | G58: 0.006225919431 | L58: 49.23934764 | M58: 0.006181511661 | N58: 0.0281366638 | HK58: 2004-IV
A59: 2005-03-01 | B59: 2005 - I | C59: 79.87856866 | D59: 0.0239056592 | E59: 0.03471323314 | F59: 0.0239056592 | G59: -0.01663582738 | L59: 50.44936233 | M59: 0.0245741413 | N59: 0.04381223329 | HK59: 2005-I
A60: 2005-06-01 | B60: 2005 - II | C60: 84.32407973 | D60: 0.01368696729 | E60: 0.01938492584 | F60: 0.004193357642 | G60: 0.02332157915 | L60: 51.75562818 | M60: 0.02589261379 | N60: 0.06087936866 | HK60: 2005-II
A61: 2005-09-01 | B61: 2005 - III | C61: 81.27033187 | D61: 0.01034514618 | E61: 0.01431267986 | F61: 0.003659951573 | G61: -0.008723686483 | L61: 52.63563887 | M61: 0.0170031881 | N61: 0.07558302894 | HK61: 2005-III
A62: 2005-12-01 | B62: 2005 - IV | C62: 94.46918091 | D62: 0.02133490665 | E62: 0.02133490665 | F62: 0.05104143141 | G62: 0.0564616308 | L62: 54.09315656 | M62: 0.0276907001 | N62: 0.09857581681 | HK62: 2005-IV
A63: 2006-03-01 | B63: 2006 - I | C63: 86.07737114 | D63: 0.07760282367 | E63: 0.03416421674 | F63: 0.07760282367 | G63: 0.0003545762784 | L63: 56.27943309 | M63: 0.0404168785 | N63: 0.1155628237 | HK63: 2006-I
A64: 2006-06-01 | B64: 2006 - II | C64: 87.28727066 | D64: 0.0557968675 | E64: 0.0419211887 | F64: 0.03514050726 | G64: -0.009769240858 | L64: 56.10068092 | M64: -0.00317615441 | N64: 0.08395324123 | HK64: 2006-II
A65: 2006-09-01 | B65: 2006 - III | C65: 87.30130632 | D65: 0.06189262808 | E65: 0.05898429707 | F65: 0.07420880804 | G65: 0.02601846293 | L65: 57.0219421 | M65: 0.01642156863 | N65: 0.08333333333 | HK65: 2006-III
A66: 2006-12-01 | B66: 2006 - IV | C66: 95.61763112 | D66: 0.04807117193 | E66: 0.04807117193 | F66: 0.0121568769 | G66: 4.25077651e-05 | L66: 60.8444885 | M66: 0.06703641186 | N66: 0.1248093543 | HK66: 2006-IV
A67: 2007-03-01 | B67: 2007 - I | C67: 90.98290397 | D67: 0.05698980776 | E67: 0.04347404673 | F67: 0.05698980776 | G67: 0.03337193019 | L67: 59.45572164 | M67: -0.02282485876 | N67: 0.05643782067 | HK67: 2007-I
A68: 2007-06-01 | B68: 2007 - II | C68: 91.15512373 | D68: 0.05060654703 | E68: 0.0456964214 | F68: 0.04431176546 | G68: -0.0132278997 | L68: 59.93697749 | M68: 0.008094357077 | N68: 0.06838235294 | HK68: 2007-II
A69: 2007-09-01 | B69: 2007 - III | C69: 92.64777688 | D69: 0.05416839661 | E69: 0.04299294949 | F69: 0.06124158717 | G69: 0.04073393495 | L69: 62.78326203 | M69: 0.04748795595 | N69: 0.1010368941 | HK69: 2007-III
A70: 2007-12-01 | B70: 2007 - IV | C70: 100.8141267 | D70: 0.05421622872 | E70: 0.05421622872 | F70: 0.05434662521 | G70: -0.001284015106 | L70: 64.47453256 | M70: 0.02693823916 | N70: 0.05966101695 | HK70: 2007-IV
A71: 2008-03-01 | B71: 2008 - I | C71: 97.14899962 | D71: 0.06777202499 | E71: 0.05696992003 | F71: 0.06777202499 | G71: 0.03303745859 | L71: 66.79561573 | M71: 0.036 | N71: 0.1234514339 | HK71: 2008-I
A72: 2008-06-01 | B72: 2008 - II | C72: 100.1395986 | D72: 0.08318180808 | E72: 0.07038226644 | F72: 0.09856247741 | G72: 0.02445559621 | L72: 67.95615732 | M72: 0.01737451737 | N72: 0.1337935306 | HK72: 2008-II
A73: 2008-09-01 | B73: 2008 - III | C73: 97.3640134 | D73: 0.07229924782 | E73: 0.067664876 | F73: 0.0509050155 | G73: -0.004309100888 | L73: 68.47195358 | M73: 0.007590132827 | N73: 0.09060840999 | HK73: 2008-III
A74: 2008-12-01 | B74: 2008 - IV | C74: 105.3473884 | D74: 0.0649629212 | E74: 0.0649629212 | F74: 0.04496653299 | G74: -0.003842578976 | L74: 69.3101225 | M74: 0.01224105461 | N74: 0.075 | HK74: 2008-IV
A75: 2009-03-01 | B75: 2009 - I | C75: 95.40088474 | D75: -0.01799416242 | E75: 0.04318314636 | F75: -0.01799416242 | G75: -0.04004259823 | L75: 69.05222437 | M75: -0.003720930233 | N75: 0.03378378378
A76: 2009-06-01 | B76: 2009 - II | C76: 96.68499275 | D76: -0.02637111688 | E76: 0.01035642327 | F76: -0.03449789947 | G76: 0.01315361628 | L76: 69.24564797 | M76: 0.002801120448 | N76: 0.01897533207
A77: 2009-09-01 | B77: 2009 - III | C77: 97.77709573 | D77: -0.01625520416 | E77: -0.0006482886631 | F77: 0.004242659188 | G77: 0.04054995506 | L77: 70.01934236 | M77: 0.01117318436 | N77: 0.02259887006 | HK77: 1
A78: 2009-12-01 | B78: 2009 - IV | C78: 109.0924775 | D78: -0.002611373281 | E78: -0.002611373281 | F78: 0.03554989924 | G78: 0.02669587345 | L78: 70.59961315 | M78: 0.008287292818 | N78: 0.01860465116 | HK78: 2
A79: 2010-03-01 | B79: 2010 - I | C79: 108.3049854 | D79: 0.1352618557 | E79: 0.03416849181 | F79: 0.1352618557 | G79: 0.04213780234 | L79: 71.8891038 | M79: 0.01826484018 | N79: 0.04108309991 | HK79: 3
A80: 2010-06-01 | B80: 2010 - II | C80: 109.6452205 | D80: 0.1346498183 | E80: 0.07604535653 | F80: 0.1340459095 | G80: 0.01709905979 | H80: 0.006 | J80: 4760 | K80: 4720 | L80: 72.21147647 | M80: 0.004484304933 | N80: 0.04283054004 | HK80: 4
A81: 2010-09-01 | B81: 2010 - III | C81: 106.7109442 | D81: 0.1200504384 | E81: 0.0975259502 | F81: 0.0913695426 | G81: 0.008006187052 | H81: 0.011 | I81: 0.0085 | J81: 4820 | K81: 4765 | L81: 72.66279819 | M81: 0.00625 | N81: 0.03775322284 | HK81: 5
A82: 2010-12-01 | B82: 2010 - IV | C82: 118.5593304 | D82: 0.1109523127 | E82: 0.1109523127 | F82: 0.08677823738 | G82: 0.02036012626 | H82: 0.045 | I82: 0.0305 | J82: 4645 | K82: 4960 | L82: 75.69310123 | M82: 0.04170363798 | N82: 0.07214611872 | HK82: 6
A83: 2011-03-01 | B83: 2011 - I | C83: 116.4898652 | D83: 0.0755725113 | E83: 0.09601770508 | F83: 0.0755725113 | G83: 0.02046603584 | H83: 0.07 | I83: 0.0575 | J83: 4115 | K83: 4635 | L83: 79.30367505 | M83: 0.04770017036 | N83: 0.1031390135 | HK83: 7
A84: 2011-06-01 | B84: 2011 - II | C84: 114.9842811 | D84: 0.06205059657 | E84: 0.07514867077 | F84: 0.04869396533 | G84: -0.001102252323 | H84: 0.0825 | I84: 0.08125 | J84: 4055 | K84: 3940 | L84: 78.59445519 | M84: =L84/L83-1 -> -0.008943089431 | N84: 0.08839285714 | HK84: 8
A85: 2011-09-01 | B85: 2011 - III | C85: 109.3779945 | D85: 0.04987042818 | E85: 0.05915303491 | F85: 0.02499322155 | G85: -0.01009529521 | H85: 0.085 | I85: 0.08375 | J85: 4180 | K85: 3780 | L85: 79.49709865 | M85: 0.01148482363 | N85: 0.09405501331 | HK85: 9
A86: 2011-12-01 | B86: 2011 - IV | C86: 121.3664149 | D86: 0.04286371207 | E86: 0.04286371207 | F86: 0.02367662233 | G86: 0.01821335519 | H86: 0.0725 | I86: 0.07875 | J86: 4435 | K86: 4200 | L86: 79.43262411 | M86: -0.0008110300081 | N86: 0.04940374787 | HK86: 10
A87: 2012-03-01 | B87: 2012 - I | C87: 114.1431465 | D87: =AVERAGE(OFFSET($C$1,MATCH(EDATE(A87,0),$A$1:$A$304,0)-1,,IF(MONTH($A87)=3,-1,IF(MONTH($A87)=6,-2,IF(MONTH($A87)=9,-3,-4)))))/AVERAGE(OFFSET($C$1,MATCH(EDATE(A87,-12),$A$1:$A$304,0)-1,,IF(MONTH($A87)=3,-1,IF(MONTH($A87)=6,-2,IF(MONTH($A87)=9,-3,-4)))))-1 -> -0.02014526059 | E87: 0.01875581768 | F87: =C87/C83-1 -> -0.02014526059 | G87: -0.0351042166 | H87: 0.065 | I87: 0.065 | J87: 4310 | K87: 4717.5 | L87: 81.88265635 | M87: 0.03084415584 | N87: =L87/L83-1 -> 0.0325203252 | HK87: 11
A88: 2012-06-01 | B88: 2012 - II | C88: 113.2277974 | D88: -0.0177263959 | E88: 0.003001530704 | F88: -0.01527585901 | G88: 0.0143729952 | H88: 0.0625 | I88: 0.06375 | J88: 4540 | K88: 4350 | L88: 81.68923275 | M88: -0.002362204724 | N88: 0.03937653815 | HK88: 12
A89: 2012-09-01 | B89: 2012 - III | C89: 112.7976208 | D89: -0.00200549162 | E89: 0.004622236296 | F89: 0.03126429827 | G89: 0.03749948983 | H89: 0.055 | I89: 0.0575 | J89: 4465 | K89: 4420 | L89: 81.68923275 | M89: 0 | N89: 0.02757502028 | HK89: 13
A90: 2012-12-01 | B90: 2012 - IV | C90: 118.7772843 | D90: -0.007080431123 | E90: =AVERAGE(C87:C90)/AVERAGE(C83:C86)-1 -> -0.007080431123 | F90: -0.02133317144 | G90: -0.0330419786 | H90: 0.055 | I90: 0.055 | J90: 4220 | K90: 4452.5 | L90: 82.59187621 | M90: 0.01104972376 | N90: 0.03977272727 | HK90: 14
A91: 2013-03-01 | B91: 2013 - I | C91: 125.7698409 | D91: 0.1018606437 | E91: 0.02326888831 | F91: 0.1018606437 | G91: 0.07535394735 | H91: 0.055 | I91: 0.055 | J91: 4008 | K91: 4150 | L91: 82.84977434 | M91: 0.0031225605 | N91: 0.01181102362 | HK91: 15
A92: 2013-06-01 | B92: 2013 - II | C92: 123.1200148 | D92: 0.09464231178 | E92: 0.04878554563 | F92: 0.08736562592 | G92: 0.009737456772 | H92: 0.055 | I92: 0.055 | J92: 4452.5 | K92: 4150 | L92: 83.10767247 | M92: 0.003112840467 | N92: 0.01736385162 | HK92: 16
A93: 2013-09-01 | B93: 2013 - III | C93: 118.4512779 | D93: 0.0798797177 | E93: 0.05326451834 | F93: 0.05012213126 | G93: 0.001396846652 | H93: 0.055 | I93: 0.055 | J93: 4427.5 | K93: 4422.5 | L93: 84.33268859 | M93: 0.01474010861 | N93: 0.03235990529 | HK93: 17
A94: 2013-12-01 | B94: 2013 - IV | C94: 129.6654457 | D94: 0.08293076489 | E94: 0.08293076489 | F94: 0.09166871803 | G94: 0.00718181746 | H94: 0.06 | I94: 0.0575 | J94: 4598.2 | K94: 4432.4 | L94: 85.68665377 | M94: 0.01605504587 | N94: 0.037470726 | HK94: 18
A95: 2014-03-01 | B95: 2014 - I | C95: 132.5823049 | D95: 0.05416611758 | E95: 0.07065116822 | F95: 0.05416611758 | G95: 0.0290855461 | H95: 0.0675 | I95: 0.06625 | J95: 4442.1 | K95: 4686.5 | L95: 87.87878788 | M95: 0.02558314522 | N95: 0.06070038911 | HK95: 19
A96: 2014-06-01 | B96: 2014 - II | C96: 127.6500849 | D96: 0.04557250452 | E96: 0.05803620762 | F96: 0.03679393713 | G96: 0.001498951936 | H96: 0.0675 | I96: 0.0675 | J96: 4386.9 | K96: 4434.4 | L96: 88.39458414 | M96: 0.005869405723 | N96: 0.06361520559 | HK96: 20
A97: 2014-09-01 | B97: 2014 - III | C97: 124.9500816 | D97: 0.04856885353 | E97: 0.05909979552 | F97: 0.05486478285 | G97: 0.01559486942 | H97: 0.0675 | I97: 0.0675 | J97: 4527.5 | K97: 4298 | L97: 87.81431335 | M97: -0.006564551422 | N97: 0.04128440367 | HK97: 21
A98: 2014-12-01 | B98: 2014 - IV | C98: 138.1716129 | D98: 0.05301238645 | E98: 0.05301238645 | F98: 0.06560087839 | G98: 0.02131509491 | H98: 0.0675 | I98: 0.0675 | J98: 4635.7 | K98: 4618.6 | L98: 89.2972276 | M98: 0.01688693098 | N98: 0.04213694507 | HK98: 22
A99: 2015-03-01 | B99: 2015 - I | C99: 138.960472 | D99: 0.04810722811 | E99: 0.05143356209 | F99: 0.04810722811 | G99: 0.004641462174 | H99: 0.065 | I99: 0.06625 | J99: 4798.8 | K99: 4818.8 | L99: 90.19987105 | M99: 0.01010830325 | N99: 0.02641232575 | HK99: 23
A100: 2015-06-01 | B100: 2015 - II | C100: 131.3037976 | D100: 0.03854969749 | E100: 0.04925129211 | F100: 0.02862287732 | G100: -0.01124506205 | H100: 0.06 | I100: 0.06125 | J100: 5183.5 | K100: 5014.2 | L100: 90.58671825 | M100: 0.004288777698 | N100: 0.02479941648 | HK100: 24
A101: 2015-09-01 | B101: 2015 - III | C101: 128.7875329 | D101: 0.03600717124 | E101: 0.04346040374 | F101: 0.03071187512 | G101: 0.01567379259 | H101: 0.0575 | I101: 0.0575 | J101: 5636.1 | K101: 5171.7 | L101: 91.10251451 | M101: 0.005693950178 | N101: 0.03744493392 | HK101: 25
A102: 2015-12-01 | B102: 2015 - IV | C102: 139.7786558 | D102: 0.02957151684 | E102: 0.02957151684 | F102: 0.01163077476 | G102: 0.004808680116 | H102: 0.0575 | I102: 0.0575 | J102: 5782 | K102: 5634.7 | L102: 92.0696325 | M102: 0.01061571125 | N102: 0.03104693141 | HK102: 26
A103: 2016-03-01 | B103: 2016 - I | C103: 140.3369684 | D103: 0.009905668382 | E103: 0.01977358044 | F103: 0.009905668382 | G103: -0.002430155219 | H103: 0.06 | I103: 0.06 | J103: 5628.7 | K103: 5929.5 | L103: 94.4551902 | M103: 0.02591036415 | N103: 0.04717655468 | HK103: 27
A104: 2016-06-01 | B104: 2016 - II | C104: 139.3390534 | D104: 0.03482425598 | E104: 0.02785271327 | F104: 0.06119591284 | G104: 0.04447208428 | H104: 0.0575 | I104: 0.05875 | J104: 5589 | K104: 5573 | L104: 94.8420374 | M104: 0.00409556314 | N104: 0.04697508897 | HK104: 28
A105: 2016-09-01 | B105: 2016 - III | C105: 135.362708 | D105: 0.0400622856 | E105: 0.03274982006 | F105: 0.05105443846 | G105: 0.003432140457 | H105: 0.055 | I105: 0.055 | J105: 5555.4 | K105: 5543.6 | L105: 94.32624113 | M105: -0.005438477226 | N105: 0.03538570418 | HK105: 29
A106: 2016-12-01 | B106: 2016 - IV | C106: 146.7891516 | D106: 0.04268025833 | E106: 0.04268025833 | F106: 0.05015426596 | G106: 0.004645236124 | H106: 0.055 | I106: 0.055 | J106: 5737.5 | K106: 5730 | L106: 95.68020632 | M106: 0.01435406699 | N106: 0.03921568627 | HK106: 30
A107: 2017-03-01 | B107: 2017 - I | C107: 151.2325342 | D107: 0.07763860028 | E107: 0.06019265823 | F107: 0.07763860028 | G107: 0.02282475689 | H107: 0.055 | I107: 0.055 | J107: 5638.1 | K107: 5810 | L107: 97.09864603 | M107: 0.01482479784 | N107: 0.02798634812 | HK107: 31
A108: 2017-06-01 | B108: 2017 - II | C108: 142.4977178 | D108: 0.05025182381 | E108: 0.05041549281 | F108: 0.0226689094 | G108: -0.007300569816 | H108: 0.055 | I108: 0.055 | J108: 5555 | K108: 5571.7 | L108: 97.6144423 | M108: 0.005312084993 | N108: 0.02923181509 | HK108: 32
A109: 2017-09-01 | B109: 2017 - III | C109: 141.2725153 | D109: 0.04810162522 | E109: 0.04861875999 | F109: 0.04365905018 | G109: 0.02293396958 | H109: 0.0525 | I109: 0.05375 | J109: 5667.5 | K109: 5555.3 | L109: 98.25918762 | M109: 0.006605019815 | N109: 0.04169514696 | HK109: 33
A110: 2017-12-01 | B110: 2017 - IV | C110: 153.8494783 | D110: 0.04810078856 | E110: 0.04810078856 | F110: 0.04809842293 | G110: 0.008463561005 | H110: 0.0525 | I110: 0.0525 | J110: 5588 | K110: 5636.7 | L110: 100 | M110: 0.01771653543 | N110: 0.04514824798 | HK110: 34
A111: 2018-03-01 | B111: 2018 - I | C111: 158.7324681 | D111: 0.04959206651 | E111: 0.04125679216 | F111: 0.04959206651 | G111: 0.02482243167 | H111: 0.0525 | I111: 0.0525 | J111: 5548.3 | K111: 5607.5 | L111: 101.1 | M111: 0.011 | N111: 0.04120916335 | HK111: 35
A112: 2018-06-01 | B112: 2018 - II | C112: 151.8751338 | D112: 0.05745867095 | E112: 0.05182915609 | F112: 0.06580748204 | G112: 0.00946477681 | H112: 0.0525 | I112: 0.0525 | J112: 5693.2 | K112: 5543.3 | L112: 101.9 | M112: 0.007912957468 | N112: 0.04390290621 | HK112: 36
A113: 2018-09-01 | B113: 2018 - III | C113: 142.811774 | D113: 0.04233676207 | E113: 0.04379045932 | F113: 0.0108956704 | G113: -0.03124274337 | H113: 0.0525 | I113: 0.0525 | J113: 5892.9 | K113: 5726.7 | L113: 102.2 | M113: 0.002944062807 | N113: 0.04010629921 | HK113: 37
A114: 2018-12-01 | B114: 2018 - IV | C114: 154.3011698 | D114: 0.03204250341 | E114: 0.03204250341 | F114: 0.002935930834 | G114: -0.0008333548885 | H114: 0.0525 | I114: 0.0525 | J114: 5963.9 | K114: 5990.9 | L114: 103.2 | M114: 0.009784735812 | N114: 0.032 | HK114: 38
A115: 2019-03-01 | B115: 2019 - I | C115: 153.9367561 | D115: -0.03021254576 | E115: 0.01102143073 | F115: -0.03021254576 | G115: -0.006799576604 | H115: 0.0475 | I115: 0.05 | J115: 6190 | K115: 6036.8 | L115: 103.9 | M115: 0.006782945736 | N115: 0.02769535114 | HK115: 39
A116: 2019-06-01 | B116: 2019 - II | C116: 146.204781 | D116: -0.03369545577 | E116: -0.01399158071 | F116: -0.03733562312 | G116: 0.002235644169 | H116: 0.0475 | I116: 0.0475 | J116: 6197.5 | K116: 6278.5 | L116: 104.8 | M116: =L116/L115-1 -> 0.008662175168 | N116: 0.0284592738 | HK116: 40
A117: 2019-09-01 | B117: 2019 - III | C117: 145.9619393 | D117: -0.01613495104 | E117: -0.01130340863 | F117: 0.02205816222 | G117: 0.02818376152 | H117: 0.04 | I117: 0.0425 | J117: 6380.1 | K117: 5999.2 | L117: 104.9 | M117: 0.0009541984733 | N117: 0.02641878669 | HK117: 41
A118: 2019-12-01 | B118: 2019 - IV | C118: 159.1749132 | D118: -0.004018551007 | E118: -0.004018551007 | F118: 0.03158591363 | G118: 0.005572730148 | H118: 0.04 | I118: 0.04 | J118: 6465 | K118: 6447.5 | L118: 106.1 | M118: 0.01143946616 | N118: 0.02810077519 | HK118: 42
A119: 2020-03-01 | B119: 2020 - I | C119: 160.1206877 | D119: =AVERAGE(OFFSET($C$1,MATCH(EDATE(A119,0),$A$1:$A$304,0)-1,,IF(MONTH($A119)=3,-1,IF(MONTH($A119)=6,-2,IF(MONTH($A119)=9,-3,-4)))))/AVERAGE(OFFSET($C$1,MATCH(EDATE(A119,-12),$A$1:$A$304,0)-1,,IF(MONTH($A119)=3,-1,IF(MONTH($A119)=6,-2,IF(MONTH($A119)=9,-3,-4)))))-1 -> 0.04017189724 | E119: 0.01416011917 | F119: =C119/C115-1 -> 0.04017189724 | G119: 0.00438149939 | H119: 0.0225 | I119: 0.03125 | J119: 6563 | K119: 6530.6 | L119: 106.5 | M119: 0.003770028275 | N119: =L119/L115-1 -> 0.0250240616 | HK119: 43
A120: 2020-06-01 | B120: 2020 - II | C120: 135.39045 | D120: -0.01542738635 | E120: 0.005681848114 | F120: -0.07396701345 | G120: -0.1063616384 | H120: 0.0075 | I120: 0.01 | J120: 6817.5 | K120: 6515.4 | L120: 105.3 | M120: -0.01126760563 | N120: 0.004770992366 | HK120: 44
A121: 2020-09-01 | B121: 2020 - III | C121: 144.0394573 | D121: -0.01468915134 | E121: -0.002796677322 | F121: -0.01317111868 | G121: 0.09308653796 | H121: 0.0075 | I121: 0.0075 | J121: 6990.2 | K121: 6921.8 | L121: 106.6 | M121: 0.01234567901 | N121: 0.01620591039 | HK121: 45
A122: 2020-12-01 | B122: 2020 - IV | C122: 160.7658109 | D122: -0.008197853909 | E122: =AVERAGE(C119:C122)/AVERAGE(C115:C118)-1 -> -0.008197853909 | F122: 0.009994650759 | G122: 0.02717179894 | H122: 0.0075 | I122: 0.0075 | J122: 6911.6 | K122: 7030 | L122: 108.4 | M122: 0.01688555347 | N122: 0.02167766258 | HK122: 46
A123: 2021-03-01 | B123: 2021 - I | C123: 161.1122678 | D123: 0.00619270465 | E123: -0.01660664097 | F123: 0.00619270465 | G123: 0.003108860418 | H123: 0.0075 | I123: 0.0075 | J123: 6311.1 | K123: 6950.1 | L123: 109.1 | M123: 0.006457564576 | N123: 0.02441314554 | HK123: 47
A124: 2021-06-01 | B124: 2021 - II | C124: 154.3432727 | D124: 0.06749120511 | E124: 0.03265276629 | F124: 0.1399864073 | G124: 0.01328062524 | H124: 0.0075 | I124: 0.0075 | J124: 6752.3 | K124: 6585 | L124: 110 | M124: 0.008249312557 | N124: 0.04463437797 | HK124: 49
A125: 2021-09-01 | B125: 2021 - III | C125: 147.6771611 | D125: 0.05365049419 | E125: 0.04204431574 | F125: 0.02525491213 | G125: -0.01786899948 | H125: 0.015 | I125: 0.01125 | J125: 6907 | K125: 6911.3 | L125: 113.4 | M125: 0.03090909091 | N125: 0.06378986867 | HK125: 50
A126: 2021-12-01 | B126: 2021 - IV | C126: 161.164034 | D126: 0.03994615107 | E126: 0.03994615107 | F126: 0.002477039083 | G126: 0.004660686674 | H126: 0.0525 | I126: 0.04 | J126: 6876.9 | K126: 6904.4 | L126: 115.8 | M126: 0.02116402116 | N126: 0.06826568266 | HK126: 51
A127: 2022-03-01 | B127: 2022 - I | C127: 159.1135055 | D127: -0.01240602158 | E127: 0.03490721549 | F127: -0.01240602158 | G127: -0.01101566103 | H127: 0.0625 | I127: 0.05875 | J127: 6941.9 | K127: 7060.9 | L127: 120.1 | M127: 0.03713298791 | N127: 0.1008249313 | HK127: 52
A128: 2022-06-01 | B128: 2022 - II | C128: 149.1317931 | D128: -0.02285660234 | E128: -0.005117709785 | F128: -0.03376551166 | G128: -0.006112866795 | H128: 0.0775 | I128: 0.0725 | J128: 6849.1 | K128: 6831.9 | L128: 122.7 | M128: 0.02164862614 | N128: 0.1154545455 | HK128: 53
A129: 2022-09-01 | B129: 2022 - III | C129: 151.6411464 | D129: -0.007009344428 | E129: -0.004564898566 | F129: 0.02684223607 | G129: 0.04205864094 | H129: 0.085 | I129: 0.0825 | J129: 7074.7 | K129: 6881 | L129: 124 | M129: 0.01059494703 | N129: 0.09347442681 | HK129: 54
A130: 2022-12-01 | B130: 2022 - IV | C130: 164.2350058 | D130: -0.0002807717241 | E130: -0.0002807717241 | F130: 0.01905494467 | G130: -0.003192232483 | H130: 0.085 | I130: 0.085 | J130: 7339.5 | K130: 7270.7 | L130: 125.2 | M130: 0.009677419355 | N130: 0.08117443869 | HK130: 55
A131: 2023-03-01 | B131: 2023 - I | C131: 166.9733576 | D131: 0.04939776853 | E131: 0.01556059947 | F131: 0.04939776853 | G131: 0.01401854254 | H131: 0.085 | I131: 0.085 | J131: 7181.8 | K131: 7320.2 | L131: 127.8 | M131: 0.02076677316 | N131: 0.06411323897
A132: 2023-06-01 | B132: 2023 - II | C132: 158.1440522 | D132: 0.05473598871 | E132: 0.03874184316 | F132: 0.06043150747 | G132: 0.004649875728 | H132: 0.085 | I132: 0.085 | J132: 7265.8 | K132: 7239.8 | L132: 127.9 | M132: 0.0007824726135 | N132: 0.0423797881
A133: 2023-09-01 | B133: 2023 - III | C133: 158.2652847 | D133: 0.05109141565 | E133: 0.04277787742 | F133: 0.04368298769 | G133: 0.02496254158 | H133: 0.08 | I133: 0.0825 | J133: 7287.5 | K133: 7283.2 | L133: 128.3 | M133: 0.003127443315 | N133: 0.03467741935
A134: 2023-12-01 | B134: 2023 - IV | C134: 173.7288541 | D134: 0.0528584585 | E134: 0.0528584585 | F134: 0.05780648433 | G134: 0.009950423199 | H134: 0.0675 | I134: 0.0725 | J134: 7275 | K134: 7462.1 | L134: 129.8 | M134: 0.0116913484 | N134: 0.03674121406
A135: 2024-03-01 | B135: 2024 - I | C135: 175.8764071 | D135: 0.05332017999 | E135: 0.05385174374 | F135: 0.05332017999 | G135: 0.007039896387 | H135: 0.06 | I135: 0.0625 | J135: 7385.5 | K135: 7276.9 | L135: 132.4 | M135: 0.02003081664 | N135: 0.03599374022
A136: 2024-06-01 | B136: 2024 - II | C136: 167.2183649 | D136: 0.05529498456 | E136: 0.05319140596 | F136: 0.057380044 | G136: 0.01096885043 | H136: 0.06 | I136: 0.06 | J136: 7806.1 | K136: 7969.7 | L136: 133.4 | M136: 0.007552870091 | N136: 0.04300234558
A137: 2024-09-01 | B137: 2024 - III | C137: 163.9880113 | D137: 0.04902965927 | E137: 0.05125545068 | F137: 0.03615907725 | G137: 0.003456659476 | H137: 0.06 | I137: 0.06 | J137: 7988 | K137: 7904.6 | L137: 133.5 | M137: 0.0007496251874 | N137: 0.04053000779
A138: 2024-12-01 | B138: 2024 - IV | C138: 180.7102614 | D138: 0.0466914578 | E138: 0.0466914578 | F138: 0.04018565233 | G138: 0.01520782323 | H138: 0.06 | I138: 0.06 | J138: 7975.1 | K138: 7976.9 | L138: 134.7 | M138: 0.008988764045 | N138: 0.03775038521
A139: 2025-03-01 | B139: 2025 - I | C139: 187.3508873 | D139: 0.06524172496 | E139: 0.0499282252 | F139: 0.06524172496 | G139: 0.02711063479 | H139: 0.06 | I139: 0.06 | J139: 7988 | K139: 7884 | L139: 138.2 | M139: 0.02598366741 | N139: 0.04380664653
A140: 2025-06-01 | B140: 2025 - II | C140: 178.1445052 | D140: 0.06528989169 | E140: 0.05200019424 | F140: 0.06534055234 | G140: 0.013 | H140: 0.06 | I140: 0.06 | J140: 7928 | K140: 8005.418182 | L140: 138.7 | M140: 0.003617945007 | N140: 0.03973013493
A141: 2025-09-01 | B141: 2025 - III | C141: 174.7743528 | D141: 0.06544683236 | E141: 0.05900070891 | F141: 0.06577518272 | G141: 0.005 | H141: 0.06 | I141: 0.06 | J141: 7172 | K141: 7472.22 | L141: 139.2 | M141: 0.003604902668 | N141: 0.04269662921
A142: 2025-12-01 | B142: 2025 - IV | C142: 188.8422232 | D142: 0.06007464599 | E142: 0.06007464599 | F142: 0.045 | G142: 0.013 | H142: 0.06 | I142: 0.06 | J142: 6598 | K142: 7095 | L142: 138.9 | M142: -0.002155172414 | N142: 0.03118040089
A143: 2026-03-01 | B143: 2026 - I | C143: 195.050483 | D143: 0.04109719353 | E143: 0.05369052305 | F143: 0.04109719353 | G143: 0.0095 | H143: 0.0525 | I143: 0.055 | J143: 6610.891138 | K143: 6602.297046 | L143: 141.0284283 | M143: 0.01532345782 | N143: 0.02046619603
A144: 2026-06-01 | B144: 2026 - II | C144: 184.8249447 | D144: 0.03934395745 | E144: 0.04688627901 | F144: 0.03750011537 | G144: 0.0095 | H144: 0.0525 | I144: 0.0525 | J144: 6623.782275 | K144: 6615.188183 | L144: 141.9907121 | M144: 0.006823331794 | N144: 0.0237253933
A145: 2026-09-01 | B145: 2026 - III | C145: 182.1403294 | D145: 0.0402502861 | E145: 0.04144077964 | F145: 0.04214563827 | G145: 0.0095 | H145: 0.0525 | I145: 0.0525 | J145: 6636.673413 | K145: 6628.079321 | L145: 142.6737843 | M145: 0.004810682799 | N145: 0.02495534717
A146: 2026-12-01 | B146: 2026 - IV | C146: 196.1211349 | D146: 0.03980859565 | E146: 0.03980859565 | F146: 0.03854493765 | G146: 0.0095 | H146: 0.0525 | I146: 0.0525 | J146: 6649.56455 | K146: 6640.970459 | L146: 143.7651376 | M146: 0.007649290951 | N146: 0.03502618872
A147: 2027-03-01 | B147: 2027 - I | C147: 202.6690229 | D147: 0.03905932345 | E147: 0.03928259161 | F147: 0.03905932345 | G147: 0.01 | H147: 0.0525 | I147: 0.0525 | J147: 6649.626985 | K147: 6649.585362 | L147: 146.3300373 | M147: 0.01784090136 | N147: 0.03759248419
A148: 2027-06-01 | B148: 2027 - II | C148: 192.1392004 | D148: 0.03930971715 | E148: 0.03978211445 | F148: 0.03957396403 | G148: 0.01 | H148: 0.0525 | I148: 0.0525 | J148: 6649.68942 | K148: 6649.647797 | L148: 147.2051627 | M148: =L148/L147-1 -> 0.005980491182 | N148: 0.03672388584
A149: 2027-09-01 | B149: 2027 - III | C149: 189.4421275 | D149: 0.03956222474 | E149: 0.03930637509 | F149: 0.0400888595 | G149: 0.01 | H149: 0.0525 | I149: 0.0525 | J149: 6649.751855 | K149: 6649.710232 | L149: 147.7894976 | M149: 0.003969527034 | N149: 0.03585601462
A150: 2027-12-01 | B150: 2027 - IV | C150: 204.0844394 | D150: 0.03983172239 | E150: 0.03983172239 | F150: 0.04060401 | G150: 0.01 | H150: 0.05 | I150: 0.05125 | J150: 6649.81429 | K150: 6649.772667 | L150: 148.7953173 | M150: 0.006805758905 | N150: 0.03498886992
A151: 2028-03-01 | B151: 2028 - I | C151: 210.8564359 | D151: 0.0403979498 | E151: 0.04017832593 | F151: =C151/C147-1 -> 0.0403979498 | G151: 0.0098 | H151: 0.05 | I151: 0.05 | J151: 6666.015297 | K151: 6655.214626 | L151: 151.4499599 | M151: 0.01784090136 | N151: =L151/L147-1 -> 0.03498886992
A152: 2028-06-01 | B152: 2028 - II | C152: 199.8616458 | D152: 0.04029768745 | E152: 0.0403261976 | F152: 0.0401919304 | G152: 0.0098 | H152: 0.05 | I152: 0.05 | J152: 6682.216305 | K152: 6671.415633 | L152: 152.355705 | M152: 0.005980491182 | N152: 0.03498886992
A153: 2028-09-01 | B153: 2028 - III | C153: 197.0171513 | D153: 0.04019660772 | E153: 0.04029899511 | F153: 0.0399859518 | G153: 0.0098 | H153: 0.05 | I153: 0.05 | J153: 6698.417312 | K153: 6687.61664 | L153: 152.9604851 | M153: 0.003969527034 | N153: 0.03498886992
A154: 2028-12-01 | B154: 2028 - IV | C154: 212.2029213 | D154: 0.04008875976 | E154: =AVERAGE(C151:C154)/AVERAGE(C147:C150)-1 -> 0.04008875976 | F154: 0.03978001399 | G154: 0.0098 | H154: 0.05 | I154: 0.05 | J154: 6714.618319 | K154: 6703.817648 | L154: 154.0014973 | M154: 0.006805758905 | N154: 0.03498886992
HK155: 60
A156: * Index SA | HK156: 61
HK157: 62
HK158: 63
HK159: 64
HK160: 65
HK161: 66
HK162: 67

Sheet Uruguay
D2: 2003 | E2: 2004 | F2: 2005 | G2: 2006 | H2: 2007 | I2: 2008 | J2: 2009 | K2: 2010 | L2: 2011 | M2: 2012 | N2: 2013 | O2: 2014 | P2: 2015 | Q2: 2016 | R2: 2017 | S2: 2018 | T2: 2019 | U2: 2020 | V2: 2021 | W2: 2022 | X2: 2023 | Y2: 2024 | Z2: 2025F | AA2: 2026F | AB2: 2027F | AC2: 2028F | AD2: 2028F
C4: GDP % | D4: 0.04164850561 | E4: 0.04958274137 | F4: 0.06285208166 | G4: 0.07740513994 | H4: 0.08905276764 | I4: 0.09803740563 | J4: 0.0104919354 | K4: 0.08450746875 | L4: 0.06452216002 | M4: 0.0595034634 | N4: 0.0583753976 | O4: 0.02394076363 | P4: 0 | Q4: 0 | R4: 0.01740376489 | S4: 0.001645182671 | T4: 0.009285655433 | U4: -0.07380098841 | V4: 0.05561892793 | W4: 0.04791536696 | X4: 0.007421287286 | Y4: 0.03108254828 | Z4: 0.02 | AA4: 0.015 | AB4: 0.015 | AC4: 0.028 | AD4: 0.02
C5: CPI % | D5: 0.02483753673 | E5: 0.03481080682 | F5: 0.01494260325 | G5: 0.01137484663 | H5: 0.03927649382 | I5: 0.06650205269 | J5: 0.002453434809 | K5: 0.02076419759 | L5: 0.04738431607 | M5: 0.02649368608 | N5: 0.029 | O5: 0.03224061189 | P5: 0.0943630132 | Q5: 0.0810288532 | R5: 0.06552425569 | S5: 0.07960199005 | T5: 0.08787911264 | U5: 0.09412865728 | V5: 0.07959303111 | W5: 0.08295761832 | X5: 0.0511196599 | Y5: 0.05492331057 | Z5: 0.0364787255 | AA5: 0.04500238137 | AB5: 0.04500238137 | AC5: 0.02 | AD5: 0.04500238137
C6: Exchange Rate - UYU / USD (end of period) | D6: 3.463 | E6: 3.28 | F6: 3.428 | G6: 3.195 | H6: 2.98 | I6: 3.11 | J6: 2.88 | K6: 2.815 | L6: 2.696 | M6: 2.57 | N6: 2.786 | O6: 2.989 | P6: 29.873 | Q6: 29.261 | R6: 28.7 | S6: 32.4 | T6: 37.35 | U6: 42.3525 | V6: 44.6875 | W6: 39.9125 | X6: 38.85 | Y6: 44.066 | Z6: 39 | AA6: 39.45313928 | AB6: 39.95021754 | AC6: 3.4 | AD6: 40.72982679
C7: Monetary Policy Rate - % (end of period) | D7: 0.025 | E7: 0.03 | F7: 0.0325 | G7: 0.045 | H7: 0.05 | I7: 0.065 | J7: 0.0125 | K7: 0.03 | L7: 0.0425 | M7: 0.0425 | N7: 0.04 | O7: 0.035 | P7: 0.1227 | Q7: 0.1 | R7: 0.0856 | S7: 0.0825 | T7: 0.0857 | U7: 0.045 | V7: 0.0575 | W7: 0.115 | X7: 0.09 | Y7: 0.0875 | Z7: 0.075 | AA7: 0.055 | AB7: 0.055 | AC7: 0.04 | AD7: 0.055

Sheet Uruguay_Quarterly
C1: GDP NSA | H1: Monetary Policy Rate | J1: Exchange Rate | L1: Inflation NSA
C2: Index | D2: Ydt | E2: 12M | F2: YoY | G2: QoQ* | H2: eop | I2: Avg | J2: eop | K2: Avg | L2: Index (eop) | M2: QoQ | N2: YoY
A3: 1991-03-01 | B3: 1991 - I | L3: 0
A4: 1991-06-01 | B4: 1991 - II | L4: 0
A5: 1991-09-01 | B5: 1991 - III | L5: 0
A6: 1991-12-01 | B6: 1991 - IV | L6: 0
A7: 1992-03-01 | B7: 1992 - I | L7: 0
A8: 1992-06-01 | B8: 1992 - II | L8: 0
A9: 1992-09-01 | B9: 1992 - III | L9: 0
A10: 1992-12-01 | B10: 1992 - IV | L10: 0
A11: 1993-03-01 | B11: 1993 - I | L11: 0
A12: 1993-06-01 | B12: 1993 - II | J12: 3.9 | L12: 0
A13: 1993-09-01 | B13: 1993 - III | J13: 4.1 | K13: 4 | L13: 0
A14: 1993-12-01 | B14: 1993 - IV | J14: 4.4 | K14: 4.3 | L14: 0
A15: 1994-03-01 | B15: 1994 - I | J15: 4.7 | K15: 4.6 | L15: 0
A16: 1994-06-01 | B16: 1994 - II | J16: 5 | K16: 4.8 | L16: 0
A17: 1994-09-01 | B17: 1994 - III | J17: 5.6 | K17: 5.1 | L17: 0
A18: 1994-12-01 | B18: 1994 - IV | J18: 5.6 | K18: 5.4 | L18: 0
A19: 1995-03-01 | B19: 1995 - I | J19: 5.9 | K19: 5.7 | L19: 0
A20: 1995-06-01 | B20: 1995 - II | J20: 6.3 | K20: 6 | L20: 0
A21: 1995-09-01 | B21: 1995 - III | J21: 6.6 | K21: 6.4 | L21: 0
A22: 1995-12-01 | B22: 1995 - IV | J22: 7 | K22: 6.8 | L22: 0
A23: 1996-03-01 | B23: 1996 - I | J23: 7 | K23: 7.2 | L23: 0
A24: 1996-06-01 | B24: 1996 - II | J24: 7.9 | K24: 7.6 | L24: 0
A25: 1996-09-01 | B25: 1996 - III | J25: 8.3 | K25: 8.2 | L25: 0
A26: 1996-12-01 | B26: 1996 - IV | J26: 8.7 | K26: 8.5 | L26: 0
A27: 1997-03-01 | B27: 1997 - I | J27: 9.1 | K27: 8.8 | L27: 0
A28: 1997-06-01 | B28: 1997 - II | J28: 9.4 | K28: 9.2 | L28: 0
A29: 1997-09-01 | B29: 1997 - III | J29: 9.7 | K29: 9.6 | L29: 0
A30: 1997-12-01 | B30: 1997 - IV | J30: 10 | K30: 9.8 | L30: 0
A31: 1998-03-01 | B31: 1998 - I | J31: 10.2 | K31: 10.1 | L31: 0
A32: 1998-06-01 | B32: 1998 - II | J32: 10.4 | K32: 10.3 | L32: 0
A33: 1998-09-01 | B33: 1998 - III | J33: 10.7 | K33: 10.5 | L33: 0
A34: 1998-12-01 | B34: 1998 - IV | J34: 10.8 | K34: 10.7 | L34: 0
A35: 1999-03-01 | B35: 1999 - I | J35: 11 | K35: 11 | L35: 0
A36: 1999-06-01 | B36: 1999 - II | J36: 11.4 | K36: 11.1 | L36: 0
A37: 1999-09-01 | B37: 1999 - III | J37: 11.7 | K37: 11.5 | L37: 0
A38: 1999-12-01 | B38: 1999 - IV | J38: 11.6 | K38: 11.5 | L38: 0
A39: 2000-03-01 | B39: 2000 - I | J39: 11.8 | K39: 11.7 | L39: 0
A40: 2000-06-01 | B40: 2000 - II | J40: 12.1 | K40: 11.9 | L40: 0
A41: 2000-09-01 | B41: 2000 - III | J41: 12.3 | K41: 12.2 | L41: 0
A42: 2000-12-01 | B42: 2000 - IV | J42: 12.5 | K42: 12.4 | L42: 0
A43: 2001-03-01 | B43: 2001 - I | J43: 12.8 | K43: 12.6 | L43: 16.70411714
A44: 2001-06-01 | B44: 2001 - II | J44: 13.6 | K44: 13 | L44: 16.87151339 | M44: =L44/L43-1 -> 0.01002125721
A45: 2001-09-01 | B45: 2001 - III | J45: 13.7 | K45: 13.5 | L45: 17.02369181 | M45: 0.009019843656
A46: 2001-12-01 | B46: 2001 - IV | J46: 14.4 | K46: 14.1 | L46: 17.132753 | M46: 0.006406436234
A47: 2002-03-01 | B47: 2002 - I | J47: 15.4 | K47: 14.3 | L47: 17.55124364 | M47: 0.02442635085 | N47: =L47/L43-1 -> 0.05071363498
A48: 2002-06-01 | B48: 2002 - II | J48: 18.7 | K48: 16.6 | L48: 18.36539815 | M48: 0.04638728324 | N48: 0.08854479856
A49: 2002-09-01 | B49: 2002 - III | J49: 27 | K49: 25.1 | L49: 21.01583884 | M49: 0.1443170833 | N49: 0.2345053635
A50: 2002-12-01 | B50: 2002 - IV | J50: 27.4 | K50: 27.1 | L50: 21.57763082 | M50: 0.02673183683 | N50: 0.2594374537
A51: 2003-03-01 | B51: 2003 - I | J51: 28.9 | K51: 28.4 | L51: 22.55537712 | M51: 0.04531295915 | N51: 0.2851156069
A52: 2003-06-01 | B52: 2003 - II | J52: 27 | K52: 29.3 | L52: 22.89143778 | M52: 0.01489935905 | N52: 0.2464438613
A53: 2003-09-01 | B53: 2003 - III | J53: 28.2 | K53: 27.4 | L53: 23.45957053 | M53: 0.02481856961 | N53: 0.1162804731
A54: 2003-12-01 | B54: 2003 - IV | J54: 29.3 | K54: 28.6 | L54: 23.77534073 | M54: 0.01346018704 | N54: 0.1018513077
A55: 2004-03-01 | B55: 2004 - I | J55: 29.8 | K55: 29.5 | L55: 24.44492575 | M55: 0.02816300405 | N55: 0.08377375464
A56: 2004-06-01 | B56: 2004 - II | J56: 29.7 | K56: 29.4 | L56: 25.08661139 | M56: 0.02625025939 | N56: 0.09589496427
A57: 2004-09-01 | B57: 2004 - III | J57: 27.5 | K57: 29.4 | L57: 25.70927473 | M57: 0.02482054393 | N57: 0.09589707552
A58: 2004-12-01 | B58: 2004 - IV | J58: 26.4 | K58: 26.9 | L58: 25.57992308 | M58: -0.005031322449 | N58: 0.07590142949
A59: 2005-03-01 | B59: 2005 - I | J59: 25.525 | K59: 24.7 | L59: 25.78536394 | M59: 0.00803133211 | N59: 0.05483502801
A60: 2005-06-01 | B60: 2005 - II | J60: 24.635 | K60: 25.075 | L60: 26.12522906 | M60: 0.01318054394 | N60: 0.04140127389
A61: 2005-09-01 | B61: 2005 - III | J61: 24.075 | K61: 24.48 | L61: 26.72379749 | M61: 0.02291150915 | N61: 0.03946135254
A62: 2005-12-01 | B62: 2005 - IV | J62: 24.05 | K62: 23.275 | L62: 26.83412684 | M62: 0.004128505671 | N62: 0.04903078677
A63: 2006-03-01 | B63: 2006 - I | J63: 24.3 | K63: 24.175 | L63: 27.46947171 | M63: 0.02367674858 | N63: 0.06531254611
A64: 2006-06-01 | B64: 2006 - II | J64: 23.75 | K64: 23.975 | L64: 27.87528081 | M64: 0.0147730945 | N64: 0.06698703946
A65: 2006-09-01 | B65: 2006 - III | J65: 23.86 | K65: 23.885 | L65: 28.48653077 | M65: 0.02192802875 | N65: 0.06596118256
A66: 2006-12-01 | B66: 2006 - IV | J66: 24.42 | K66: 23.86 | L66: 28.54613398 | M66: 0.002092329609 | N66: 0.06379962193
A67: 2007-03-01 | B67: 2007 - I | J67: 24.12 | K67: 24.275 | L67: 29.49217645 | M67: 0.0331408263 | N67: 0.07363464291
A68: 2007-06-01 | B68: 2007 - II | J68: 23.92 | K68: 23.96 | L68: 30.1199124 | M68: =L68/L67-1 -> 0.02128482972 | N68: 0.08052408899
A69: 2007-09-01 | B69: 2007 - III | H69: 0.05 | J69: 23.05 | K69: 23.72 | L69: 31.0215695 | M69: 0.02993558166 | N69: 0.08899078485
A70: 2007-12-01 | B70: 2007 - IV | H70: 0.0725 | I70: 0.07125 | J70: 21.525 | K70: 21.875 | L70: 30.97337967 | M70: -0.00155342981 | N70: 0.08502887606
A71: 2008-03-01 | B71: 2008 - I | H71: 0.0725 | I71: 0.0725 | J71: 20.35 | K71: 21.05 | L71: 31.85981893 | M71: 0.02861939076 | N71: =L71/L67-1 -> 0.08028035776
A72: 2008-06-01 | B72: 2008 - II | H72: 0.0725 | I72: 0.0725 | J72: 19.45 | K72: 19.965 | L72: 32.65748744 | M72: 0.02503681885 | N72: 0.08424908425
A73: 2008-09-01 | B73: 2008 - III | H73: 0.0775 | I73: 0.075 | J73: 21.2 | K73: 19.175 | L73: 33.33594953 | M73: 0.02077508543 | N73: 0.07460551059
A74: 2008-12-01 | B74: 2008 - IV | H74: 0.0775 | I74: 0.0775 | J74: 24.4 | K74: 23.075 | L74: 33.82038415 | M74: 0.0145318979 | N74: 0.09191778578
A75: 2009-03-01 | B75: 2009 - I | H75: 0.09 | I75: 0.08375 | J75: 24.05 | K75: 22.65 | L75: 34.25789709 | M75: 0.01293636807 | N75: 0.07526967321
A76: 2009-06-01 | B76: 2009 - II | H76: 0.08 | I76: 0.085 | J76: 23.522 | K76: 23.95 | L76: 34.77403554 | M76: 0.01506626194 | N76: 0.06481050016
A77: 2009-09-01 | B77: 2009 - III | H77: 0.08 | I77: 0.08 | J77: 21.45 | K77: 23.25 | L77: 35.63257542 | M77: 0.02468910689 | N77: 0.06889336935
A78: 2009-12-01 | B78: 2009 - IV | H78: 0.0625 | I78: 0.07125 | J78: 19.5 | K78: 20.8 | L78: 35.81645767 | M78: 0.005160509645 | N78: 0.05901983576
A79: 2010-03-01 | B79: 2010 - I | H79: 0.0625 | I79: 0.0625 | J79: 19.45 | K79: 19.5 | L79: 36.69782431 | M79: 0.02460786744 | N79: 0.07122232916
A80: 2010-06-01 | B80: 2010 - II | H80: 0.0625 | I80: 0.0625 | J80: 21.12 | K80: 19.2 | L80: 36.92482378 | M80: 0.006185638261 | N80: 0.06185040662
A81: 2010-09-01 | B81: 2010 - III | H81: 0.0625 | I81: 0.0625 | J81: 20.3 | K81: 20.85 | L81: 37.88481593 | M81: 0.02599855754 | N81: 0.06320734572
A82: 2010-12-01 | B82: 2010 - IV | H82: 0.0625 | I82: 0.0625 | J82: 19.9 | K82: 20.1 | L82: 38.29950211 | M82: 0.01094597309 | N82: 0.06932691286
A83: 2011-03-01 | B83: 2011 - I | H83: 0.075 | I83: 0.06875 | J83: 19.25 | K83: 19.65 | L83: 39.69743393 | M83: 0.0365 | N83: 0.08173807796
A84: 2011-06-01 | B84: 2011 - II | H84: 0.08 | I84: 0.0775 | J84: 18.4 | K84: 18.85 | L84: 40.10340866 | M84: 0.01022672455 | N84: 0.08608260123
A85: 2011-09-01 | B85: 2011 - III | H85: 0.08 | I85: 0.08 | J85: 20.3039 | K85: 18.4 | L85: 40.8387591 | M85: 0.01833635756 | N85: 0.0779716911
A86: 2011-12-01 | B86: 2011 - IV | H86: 0.0875 | I86: 0.08375 | J86: 19.95 | K86: 19.125 | L86: 41.59325929 | M86: 0.01847510082 | N86: 0.086
A87: 2012-03-01 | B87: 2012 - I | H87: 0.0875 | I87: 0.0875 | J87: 19.5 | K87: 19.711 | L87: 42.66564535 | M87: 0.02578268877 | N87: 0.07477086348
A88: 2012-06-01 | B88: 2012 - II | H88: 0.0875 | I88: 0.0875 | J88: 21.63 | K88: 19.75 | L88: 43.31290693 | M88: 0.01517055655 | N88: 0.0800305606
A89: 2012-09-01 | B89: 2012 - III | H89: 0.09 | I89: 0.08875 | J89: 21 | K89: 21.35 | L89: 44.36614324 | M89: 0.02431691573 | N89: 0.08637344087
A90: 2012-12-01 | B90: 2012 - IV | H90: 0.0925 | I90: 0.09125 | J90: 19.18 | K90: 19.75 | L90: 44.70317886 | M90: 0.007596685083 | N90: 0.07476979742
A91: 2013-03-01 | B91: 2013 - I | H91: 0.0925 | I91: 0.0925 | J91: 18.945 | K91: 19.02 | L91: 46.307928 | M91: 0.03589787526 | N91: 0.08536804309
A92: 2013-06-01 | B92: 2013 - II | H92: 0.0925 | I92: 0.0925 | J92: 20.555 | K92: 18.945 | L92: 46.86710073 | M92: 0.01207509718 | N92: 0.08205853745
A93: 2013-09-01 | B93: 2013 - III | H93: 0.14 | I93: 0.1199 | J93: 22.05 | K93: 21.3 | L93: 48.36844121 | M93: 0.03203399526 | N93: 0.09021063536
A94: 2013-12-01 | B94: 2013 - IV | H94: 0.1499 | I94: 0.14935 | J94: 21.3995 | K94: 21.5615 | L94: 48.51397932 | M94: 0.00300894766 | N94: 0.08524674435
A95: 2014-03-01 | B95: 2014 - I | H95: 0.157 | I95: 0.1545 | J95: 22.634 | K95: 22.15 | L95: 50.81577939 | M95: 0.04744611984 | N95: 0.09734513274
A96: 2014-06-01 | B96: 2014 - II | H96: 0.125 | I96: 0.1425 | J96: 22.88 | K96: 23.027 | L96: 51.12217541 | M96: 0.006029544769 | N96: 0.09079022636
A97: 2014-09-01 | B97: 2014 - III | H97: 0.129 | I97: 0.10935 | J97: 24.68 | K97: 23.301 | L97: 52.41286863 | M97: 0.02524722805 | N97: 0.08361707182
A98: 2014-12-01 | B98: 2014 - IV | H98: 0.1397 | I98: 0.1373 | J98: 24.333 | K98: 24.162 | L98: 52.52010724 | M98: 0.002046035806 | N98: 0.0825767743
A99: 2015-03-01 | B99: 2015 - I | H99: 0.1396 | I99: 0.14105 | J99: 25.735 | K99: 24.449 | L99: 54.65338951 | M99: 0.04061839131 | N99: 0.07552004824
A100: 2015-06-01 | B100: 2015 - II | H100: 0.1219 | I100: 0.12615 | J100: 27.0505 | K100: 26.358 | L100: 55.48065875 | M100: =L100/L99-1 -> 0.01513665032 | N100: 0.08525621816
A101: 2015-09-01 | B101: 2015 - III | H101: 0.135 | I101: 0.1293 | J101: 29.097 | K101: 28.478 | L101: 57.20413635 | M101: 0.03106447605 | N101: 0.09141395689
A102: 2015-12-01 | B102: 2015 - IV | H102: 0.1227 | I102: 0.1226 | J102: 29.873 | K102: 29.365 | L102: 57.47606281 | M102: 0.004753615426 | N102: 0.0943630132
A103: 2016-03-01 | B103: 2016 - I | C103: 96.66 | H103: 0.153 | I103: 0.1426 | J103: 31.76 | K103: 31.008 | L103: 60.44427422 | M103: 0.0516425668 | N103: =L103/L99-1 -> 0.1059565522
A104: 2016-06-01 | B104: 2016 - II | C104: 101.01 | H104: 0.1146 | I104: 0.1252 | J104: 30.5 | K104: 31.518 | L104: 61.55112984 | M104: 0.01831200101 | N104: 0.1094159879
A105: 2016-09-01 | B105: 2016 - III | C105: 96.99 | H105: 0.1195 | I105: 0.11245 | J105: 28.365 | K105: 29.752 | L105: 62.29797013 | M105: 0.0121336569 | N105: 0.08904659882
A106: 2016-12-01 | B106: 2016 - IV | C106: 105.34 | G106: 0.01090872698 | H106: 0.1 | I106: 0.10745 | J106: 29.261 | K106: 28.245 | L106: 62.13328227 | M106: -0.002643550965 | N106: 0.0810288532
A107: 2017-03-01 | B107: 2017 - I | C107: 100.89 | D107: 0.04376163873 | F107: 0.04376163873 | G107: 0.01871101871 | H107: 0.1163 | I107: 0.11815 | J107: 28.52 | K107: 28.165 | L107: 64.5001915 | M107: 0.03809406398 | N107: 0.0671017615
A108: 2017-06-01 | B108: 2017 - II | C108: 101.99 | D108: 0.02635705975 | F108: 0.009702009702 | G108: -0.01545189504 | H108: 0.0805 | I108: 0.09525 | J108: 28.525 | K108: 28.125 | L108: 64.82190732 | M108: 0.004987827326 | N108: 0.05313919482
A109: 2017-09-01 | B109: 2017 - III | C109: 98.32 | D109: 0.02219507229 | F109: 0.01371275389 | G109: 0.0006909485737 | H109: 0.0805 | I109: 0.081 | J109: 28.99 | K109: 28.24 | L109: 65.88280352 | M109: 0.01636632201 | N109: 0.05754334194
A110: 2017-12-01 | B110: 2017 - IV | C110: 105.76 | D110: 0.0174 | E110: 0.0174 | F110: 0.003987089425 | G110: 0.0003945551391 | H110: 0.0856 | I110: 0.08155 | J110: 28.7 | K110: 29.15 | L110: 66.20451934 | M110: 0.004883153122 | N110: 0.06552425569
A111: 2018-03-01 | B111: 2018 - I | C111: 100.58 | D111: -0.003072653385 | E111: 0.005986690745 | F111: -0.003072653385 | G111: 0.01409978308 | H111: 0.0814 | I111: 0.0842 | J111: 28.335 | K111: 28.37 | L111: 68.78973573 | M111: 0.03904894134 | N111: 0.06650436435
A112: 2018-06-01 | B112: 2018 - II | C112: 102.02 | D112: -0.001380126183 | E112: 0.003627748575 | F112: 0.0002941464849 | G112: -0.01516771998 | H112: 0.077 | I112: 0.07825 | J112: 31.485 | K112: 28.6 | L112: 70.08042895 | M112: 0.01876287512 | N112: 0.0811225997
A113: 2018-09-01 | B113: 2018 - III | C113: 98.35 | D113: -0.0008300132802 | E113: 0.0004181630344 | F113: 0.0003051261188 | G113: -0.0009872642907 | H113: 0.086 | I113: 0.08125 | J113: 33.35 | K113: 30.555 | L113: 71.32516277 | M113: 0.01776150399 | N113: 0.08260667364
A114: 2018-12-01 | B114: 2018 - IV | C114: 106.68 | D114: 0.00164635345 | E114: 0.00164635345 | F114: 0.008698940998 | G114: 0.01047534341 | H114: 0.0825 | I114: 0.0825 | J114: 32.4 | K114: 32.8 | L114: 71.47453083 | M114: 0.00209418461 | N114: 0.07960199005
A115: 2019-03-01 | B115: 2019 - I | C115: 100.74 | D115: 0.001590773514 | E115: 0.002803393582 | F115: 0.001590773514 | G115: 0.009682151589 | H115: 0.0772 | I115: 0.0796 | J115: 33.47 | K115: 32.485 | L115: 74.14400613 | M115: 0.03734862287 | N115: 0.07783530984
A116: 2019-06-01 | B116: 2019 - II | C116: 104.45 | D116: 0.01278381046 | E116: 0.008704632635 | F116: 0.02381885905 | G116: 0.004068190624 | H116: 0.0815 | I116: 0.07925 | J116: 35.18 | K116: 35.075 | L116: 75.23554194 | M116: 0.01472183481 | N116: 0.07355995191
A117: 2019-09-01 | B117: 2019 - III | C117: 100.23 | D117: 0.01485296561 | E117: 0.01325268619 | F117: 0.01911540417 | G117: -0.008199884237 | H117: 0.0728 | I117: 0.07325 | J117: 36.96 | K117: 34.37 | L117: 76.87476063 | M117: 0.02178782325 | N117: 0.07780701283
A118: 2019-12-01 | B118: 2019 - IV | C118: 106 | D118: 0.009297647376 | E118: 0.009297647376 | F118: -0.006374203225 | G118: -0.01089388192 | H118: 0.0857 | I118: 0.07935 | J118: 37.35 | K118: 37.445 | L118: 77.75564918 | M118: 0.01145874851 | N118: 0.08787911264
A119: 2020-03-01 | B119: 2020 - I | C119: 98.03 | D119: -0.0269009331 | E119: 0.00225606317 | F119: -0.0269009331 | G119: -0.00914544203 | H119: 0.0975 | I119: 0.09095 | J119: 43.1 | K119: 37.6 | L119: 80.93450785 | M119: 0.04088267166 | N119: 0.09158530916
A120: 2020-06-01 | B120: 2020 - II | C120: 89.31 | D120: -0.0869925435 | E120: -0.04058797718 | F120: -0.1449497367 | G120: -0.1240571655 | H120: 0.085 | I120: 0.0881 | J120: 42.2025 | K120: 42.85 | L120: 83.03332057 | M120: 0.02593223547 | N120: 0.1036448788
A121: 2020-09-01 | B121: 2020 - III | C121: 93.35 | D121: -0.0809704669 | E121: -0.06165979131 | F121: -0.06864212312 | G121: 0.07999093587 | H121: 0.045 | I121: 0.058 | J121: 42.55 | K121: 42.3475 | L121: 84.50402145 | M121: 0.01771217712 | N121: 0.09924272619
A122: 2020-12-01 | B122: 2020 - IV | C122: 100.37 | D122: -0.07379320403 | E122: -0.07379320403 | F122: -0.05311320755 | G122: 0.01710029375 | H122: 0.045 | I122: 0.045 | J122: 42.3525 | K122: 43.0125 | L122: 85.07468403 | M122: 0.006753081943 | N122: 0.09412865728
A123: 2021-03-01 | B123: 2021 - I | C123: 93.56 | D123: -0.04559828624 | E123: -0.0785887304 | F123: -0.04559828624 | G123: 0.004125838061 | H123: 0.045 | I123: 0.045 | J123: 44.22 | K123: 42.2425 | L123: 87.68671007 | M123: 0.03070274164 | N123: 0.08342797653
A124: 2021-06-01 | B124: 2021 - II | C124: 99.83 | D124: 0.0322942244 | E124: -0.01641385268 | F124: 0.1177919606 | G124: 0.01376476631 | H124: 0.045 | I124: 0.045 | J124: 43.6075 | K124: 43.8925 | L124: 89.11911145 | M124: 0.01633544442 | N124: 0.07329335793
A125: 2021-09-01 | B125: 2021 - III | C125: 99.98 | D125: 0.04517439168 | E125: 0.01823165843 | F125: 0.0710230316 | G125: 0.03972033641 | H125: 0.05 | I125: 0.0475 | J125: 42.9425 | K125: 43.7025 | L125: 90.76216009 | M125: 0.01843654648 | N125: 0.07405728789
A126: 2021-12-01 | B126: 2021 - IV | C126: 108.88 | D126: 0.05560804073 | E126: 0.05560804073 | F126: 0.08478629072 | G126: 0.02007601598 | H126: 0.0575 | I126: 0.055 | J126: 44.6875 | K126: 44.1925 | L126: 91.846036 | M126: 0.01194193603 | N126: 0.07959303111
A127: 2022-03-01 | B127: 2022 - I | C127: 102.33 | D127: 0.09373663959 | E127: 0.09142568841 | F127: 0.09373663959 | G127: 0.009840450941 | H127: 0.0725 | I127: 0.06875 | J127: 41.1375 | K127: 44.125 | L127: 95.90961318 | M127: 0.04424335933 | N127: 0.09377593361
A128: 2022-06-01 | B128: 2022 - II | C128: 108.65 | D128: 0.09095609907 | E128: 0.08454961122 | F128: 0.08835019533 | G128: 0.01419110691 | H128: 0.0925 | I128: 0.08875 | J128: 39.7725 | K128: 40.8075 | L128: 97.39563386 | M128: 0.01549397013 | N128: 0.09287034252
A129: 2022-09-01 | B129: 2022 - III | C129: 102.74 | D129: 0.06936632921 | E129: 0.07329709961 | F129: 0.0276055211 | G129: -0.01735074627 | H129: 0.1025 | I129: 0.1 | J129: 41.7125 | K129: 40.8825 | L129: 99.78935274 | M129: 0.02457727094 | N129: 0.09945987003
A130: 2022-12-01 | B130: 2022 - IV | C130: 107.8 | D130: 0.04790553139 | E130: 0.04790553139 | F130: -0.009919177076 | G130: -0.016802734 | H130: 0.115 | I130: 0.11125 | J130: 39.9125 | K130: 40.6475 | L130: 99.4653644 | M130: -0.003246722516 | N130: 0.08295761832
A131: 2023-03-01 | B131: 2023 - I | C131: 104.42 | D131: 0.02042411805 | E131: 0.03063111284 | F131: 0.02042411805 | G131: 0.0400695182 | H131: 0.115 | I131: 0.115 | J131: 38.665 | K131: 38.71 | L131: 102.9435224 | M131: 0.03496853383 | N131: 0.07333893811
A132: 2023-06-01 | B132: 2023 - II | C132: 106.49 | D132: -0.0003317850033 | E132: 0.003834794207 | F132: -0.01988034975 | G132: -0.02571481619 | H132: 0.1125 | I132: 0.1125 | J132: 37.5 | K132: 38.81 | L132: 103.2226223 | M132: =L132/L131-1 -> 0.002711195261 | N132: 0.05982802578
A133: 2023-09-01 | B133: 2023 - III | C133: 102.77 | D133: -0.0001275022313 | E133: -0.002650260293 | F133: 0.0002919992213 | G133: 0.005240590758 | H133: 0.1 | I133: 0.10375 | J133: 38.4925 | K133: 37.38 | L133: 103.6550344 | M133: 0.004189120952 | N133: 0.03873841803
A134: 2023-12-01 | B134: 2023 - IV | C134: 110.98 | D134: 0.007449231353 | E134: 0.007449231353 | F134: 0.02949907236 | G134: 0.01156398104 | H134: 0.09 | I134: 0.0925 | J134: 38.85 | K134: 39.98 | L134: 104.55 | M134: 0.008634077497 | N134: 0.0511196599
A135: 2024-03-01 | B135: 2024 - I | C135: 104.47 | D135: 0.0004788354721 | E135: 0.002596728123 | F135: 0.0004788354721 | G135: 0.008620689655 | H135: 0.09 | I135: 0.09 | J135: 37.4983 | K135: 39.11 | L135: 106.8536231 | M135: 0.02203369756 | N135: =L135/L131-1 -> 0.03798296999
A136: 2024-06-01 | B136: 2024 - II | C136: 111.26 | D136: 0.02285334977 | E136: 0.01905326848 | F136: 0.0447929383 | G136: 0.01811594203 | H136: 0.085 | I136: 0.085 | J136: 39.64 | K136: 38.262 | L136: 108.3377357 | M136: 0.01388921168 | N136: 0.04955418884
